Workbook

Sheet Disclaimer
L2: Copyright © 2026 Society of Actuaries Research Institute
B3: A Tool for Examining Mortality Trends in the U.S. General Population
B4: The workbook is released in tandem with Quarterly Mortality Monitoring Report (QMMR). The SOA Research Institute updates the workbook every three months with fresh data.
B5: This version uses death count data that was downloaded on December 20, 2025, and is effectively complete through May 2025. The workbook contains monthly data from Jan 2001 through Sept 2025.
B7: Disclaimer
B9: This workbook is made available free of charge with the understanding that neither the author nor the Society of Actuaries Research Institute
B10: accepts any liability for its use. It may be used for any personal, research or commercial use provided that the user does not represent it as
B11: his or her own work and does not distribute it to others for a fee. The workbook and the results it produces are for informational purposes only,
B12: and should not be construed as professional or financial advice. The Society of Actuaries Research Institute does not recommend or endorse any
B13: particular use of the information provided by this workbook. The Society of Actuaries Research Institute makes no warranty, express or implied,
B14: and assums no liability in connection with the use of this workbook.

Sheet Contents
B2: A Tool for Examining Mortality Trends in the U.S. General Population
B4: Tab | C4: Description | J4: Workbook Settings
J5: Yes | K5: Enable automatic alert if incomplete data is used for a data query
B6: 1 | C6: Outputs: a time series of death rates or death counts for user-specified ages or age groups | J6: No | K6: Hide Excel ribbon to create larger viewing window
B7: 2 | C7: Outputs: a time series of period life expectancies for user-specified ages or age groups | J7: 100 | K7: Select the zoom % that you wish to apply across all worksheets
B8: 3 | C8: Outputs: a time series of deaths and/or exposure counts for user-specified ages or age groups
B9: 4 | C9: Outputs: death rates across a series of ages, for user-specified years | J9: VBA Macros
B10: 5 | C10: Outputs: regression analysis to estimate rates of improvement by age and sex | J10: This tool uses VBA macros. Your operating system may automatically deactivate these macros.
B11: 6 | C11: Outputs: a dynamic graph that shows changes in population counts across time | J11: To activate them, first copy the file to your local hard-drive, and then, in Windows Explorer,
B12: 7 | C12: Data: exposure counts | J12: right-click on the file name, and then click "Properties". Lastly, check the "unblock" box.
B13: 8 | C13: Data: death counts from CDC WONDER, by year, sex, age, and category of death
B14: 9 | C14: Data: the MP-2021 mortality improvement rate scale | J14: Reporting Lag
B15: 10 | C15: Data: information about each source of data | J15: The death count data in this tool was downloaded on Dec 20, 2025. The SOA estimates that the
B16: 11 | C16: An example that illustrates the importance of age-standardization | J16: data is effectively complete through May 2025. More recent data has a lower level of
B17: 12 | C17: User guide | J17: completeness. For example, data for June 2025 is about 99.8% complete, and 99.7%, 99.4%,
J18: and 98.2% for July, August and Septeber of 2025, respectively. The rate of data maturation
B19: The tool disaggregates death counts into the following mutually-exclusive categories: | J19: varies by both age and cause of death. Roughly speaking, data for older ages matures at a
J20: faster rate than for younger ages. In addition, data for deaths caused by accidents, assaults,
B21: # | C21: Category | D21: Abbreviation | F21: ICD Codes | J21: and suicides matures at a slower rate than for other causes of death.
B23: 0 | C23: Total | D23: Total | F23: All codes | J23: This tool places no restrictions on using data that is incomplete. In addition, the tool provides
B24: 1 | C24: Alzheimer's/Dementia | D24: Alz/Dem | F24: G30 | J24: the ability to estimate final death counts by dividing by estimated completion rates. However,
B25: 2 | C25: Cancer | D25: Cancer | F25: C00-C97 | J25: keep in mind that the more recent data, the greater the level of uncertainty associated with the
B26: 3 | C26: COVID | D26: COVID | F26: U071 | J26: estimated final counts. If you wish, this tool will automatically alert you if you use incomplete data.
B27: 4 | C27: Diabetes | D27: Diabetes | F27: E10-E14 | J27: To enable automatic alerts, set cell J5 of this worksheet to "Yes".
B28: 5 | C28: Flu/Pneumonia | D28: Flu/Pneum | F28: J09-J18
B29: 6 | C29: Heart Disease | D29: Heart | F29: I00-I09, I11, I13, I20-I51
B30: 7 | C30: Hypertension | D30: Hyperten | F30: I10, I12, I15
B31: 8 | C31: Chronic Liver Disease and Cirrhosis | D31: Liver | F31: K70, K73-K74
B32: 9 | C32: Pulmonary | D32: =C32 -> Pulmonary | F32: J40-J47
B33: 10 | C33: Stroke | D33: Stroke | F33: I60-I69
B34: 11 | C34: Accidents | D34: Accidents | F34: V01-X59, Y85-Y86
B35: 12 | C35: Assault | D35: Assault | F35: U01-U02, X85-Y09, Y87.1
B36: 13 | C36: Suicide | D36: Suicide | F36: U03, X60-X84, Y87.0
B37: 14 | C37: Other | D37: Other | F37: Contains all other ICD codes not listed above

Sheet Consistency Check (hidden)
B2: Check for Consistency Between Exposure and Death Data
B6: 2019 | C6: Start Year
B7: 70 | C7: First Age
B8: 74 | C8: Last Age
B9: T | C9: Sex
G10: Population | L10: Change in Population | T10: Total Change Population | Y10: Total Change Pop as % of Total Change Deaths | AD10: Change Pop / Change Deaths
G13: SSA_2024 | H13: SSA_2025 | I13: HMD_2024 | J13: HMD_2025 | L13: SSA_2024 | M13: SSA_2025 | N13: HMD_2024 | O13: HMD_2025 | Q13: Deaths | R13: tDeaths | T13: SSA_2024 | U13: SSA_2025 | V13: HMD_2024 | W13: HMD_2025 | Y13: SSA_2024 | Z13: SSA_2025 | AA13: HMD_2024 | AB13: HMD_2025 | AD13: SSA_2024 | AE13: SSA_2025 | AF13: HMD_2024 | AG13: HMD_2025
C15: 2019 | D15: 70 | E15: 74 | G15: 14233217 | H15: 14191592 | I15: 13978357 | J15: 13978357 | L15: 308466 | M15: 313951 | N15: 397905 | O15: 397905 | Q15: 301147 | R15: 301147 | T15: 308466 | U15: 313951 | V15: 397905 | W15: 397905 | Y15: 1.024303794 | Z15: 1.042517424 | AA15: 1.321298242 | AB15: 1.321298242 | AD15: 1.024303794 | AE15: 1.042517424 | AF15: 1.321298242 | AG15: 1.321298242
C16: 2020 | D16: 71 | E16: 75 | G16: 13924751 | H16: 13877641 | I16: 13580452 | J16: 13580452 | L16: 359310 | M16: 362361 | N16: 422873 | O16: 422873 | Q16: 373065 | R16: 674212 | T16: 667776 | U16: 676312 | V16: 820778 | W16: 820778 | Y16: 0.9904540181 | Z16: 1.0031147 | AA16: 1.21738863 | AB16: 1.21738863 | AD16: 0.9631297588 | AE16: 0.9713079333 | AF16: 1.133510232 | AG16: 1.133510232
C17: 2021 | D17: 72 | E17: 76 | G17: 13565441 | H17: 13515280 | I17: 13157579 | J17: 13157579 | L17: 393745 | M17: 377240 | N17: 392799 | O17: 392799 | Q17: 400858 | R17: 1075070 | T17: 1061521 | U17: 1053552 | V17: 1213577 | W17: 1213577 | Y17: 0.9873970747 | Z17: 0.9799845815 | AA17: 1.12883532 | AB17: 1.12883532 | AD17: 0.982255578 | AE17: 0.9410814047 | AF17: 0.9798956513 | AG17: 0.9798956513
C18: 2022 | D18: 73 | E18: 77 | G18: 13171696 | H18: 13138040 | I18: 12764780 | J18: 12764780 | L18: 413055 | M18: 381297 | N18: 391281 | O18: 391281 | Q18: 393665 | R18: 1468735 | T18: 1474576 | U18: 1434849 | V18: 1604858 | W18: 1604858 | Y18: 1.003976941 | Z18: 0.9769284725 | AA18: 1.092680454 | AB18: 1.092680454 | AD18: 1.049255133 | AE18: 0.9685824513 | AF18: 0.9939441085 | AG18: 0.9939441085
C19: 2023 | D19: 74 | E19: 78 | G19: 12758641 | H19: 12756743 | I19: 12373499 | J19: 12373499 | L19: 422744 | M19: 401794 | N19: 398464 | O19: 394963 | Q19: 383695 | R19: 1852430 | T19: 1897320 | U19: 1836643 | V19: 2003322 | W19: 1999821 | Y19: 1.024232984 | Z19: 0.9914776683 | AA19: 1.081456304 | AB19: 1.07956624 | AD19: 1.101770997 | AE19: 1.047170281 | AF19: 1.038491488 | AG19: 1.029367089
C20: 2024 | D20: 75 | E20: 79 | G20: 12335897 | H20: 12354949 | I20: 11975035 | J20: 11978536 | L20: 435225 | M20: 426866 | N20: 417923 | O20: 412007 | Q20: 401936.625 | R20: 2254366.5 | T20: 2332545 | U20: 2263509 | V20: 2421245 | W20: 2411828 | Y20: 1.034678698 | Z20: 1.0040555 | AA20: 1.074024558 | AB20: 1.069847345 | AD20: 1.082819939 | AE20: 1.062023163 | AF20: 1.039773345 | AG20: 1.025054693

Sheet 1 Time Series - Death Rates
B2: Time Series of Death Rates for User-Specified Ages or Age Groups
B3: You may specify up to 100 different age-sex groups in the table of parameters that begins on row 21. You may leave rows blank if you wish. For example, if you only wish to run a single case, then use row 24, and leave all subsequent rows blank.
M6: List of Available Metrics
B7: Specify the Time Period Across Which to Produce Output | M7: A | N7: actual death rate
B8: 2019 | C8: 12 | D8: First year/month to output | M8: E | N8: expected death rate, using data from specified base year
B9: 2025 | C9: 9 | D9: Last year/month to output | M9: A / E | N9: actual divided by expected death rate
C10: 3 | D10: Across this date range, produce output every N months | M10: A_MI | N10: actual rate of mortality improvement (1 - A / A_lag) | R10: A_lag = same as A, but lagged by 12 months
M11: E_MI | N11: expected rate of mortality improvement (1 - E / E_lag) | R11: E_lag = same as E, but lagged by 12 months
M12: A_MI_tot | N12: total mortality improvement (1 - A / A_base) | R12: A_base = the value of A in the base year
M13: E_MI_tot | N13: total expected mortality improvement (1 - E / E_base) | R13: E_base = the value of E in the base year
M14: % of Total | N14: actual death rate as % of actual death rate for all causes
L17: Trailing
E18: Parameters for | L18: Period | M18: Parameters for
E19: Age-Standardization | L19: (Months) | M19: Expected Death Rates
E20: Use | I20: Use Data | L20: Used to | M20: Base | N20: Base
C21: Age | D21: Age | E21: Standardized | F21: Standard | H21: Causes of | I21: Completion | J21: Exposure | K21: Mortality | L21: Calculate | M21: Period | N21: Period | O21: Mort | P21: Show on | Q21: Graph
B22: Case | C22: Min | D22: Max | E22: Population | F22: Year | G22: Sex | H22: Death | I22: Factors? | J22: Source | K22: Metric | L22: the Metric | M22: First Yr | N22: Last Yr | O22: Improve | P22: Graph? | Q22: Label | R22: 2019-12-16 | S22: 2020-03-16 | T22: 2020-06-16 | U22: 2020-09-16 | V22: 2020-12-16 | W22: 2021-03-16 | X22: 2021-06-16 | Y22: 2021-09-16 | Z22: 2021-12-16 | AA22: 2022-03-16 | AB22: 2022-06-16 | AC22: 2022-09-16 | AD22: 2022-12-16 | AE22: 2023-03-16 | AF22: 2023-06-16 | AG22: 2023-09-16 | AH22: 2023-12-16 | AI22: 2024-03-16 | AJ22: 2024-06-16 | AK22: 2024-09-16 | AL22: 2024-12-16 | AM22: 2025-03-16 | AN22: 2025-06-16 | AO22: 2025-09-16
F23: 6
B24: 1 | C24: 0 | D24: 19 | E24: Y | F24: 2019 | G24: T | H24: Total | I24: Y | J24: HMD | K24: A / E | L24: 12 | M24: 2019 | N24: 2019 | O24: None | Q24: 0 to 19 | R24: 1 | S24: 1.008099914 | T24: 1.006284833 | U24: 1.019671798 | V24: 1.022871256 | W24: 1.023809671 | X24: 1.044270039 | Y24: 1.059714913 | Z24: 1.082042813 | AA24: 1.088292956 | AB24: 1.086009741 | AC24: 1.087990642 | AD24: 1.096919894 | AE24: 1.105600119 | AF24: 1.107066154 | AG24: 1.095985889 | AH24: 1.079264164 | AI24: 1.075781465 | AJ24: 1.063289165 | AK24: 1.053928733 | AL24: 1.037400007 | AM24: 1.02136755 | AN24: 1.013473988 | AO24: 1.003283024
B25: 2 | C25: 20 | D25: 49 | E25: Y | F25: 2019 | G25: T | H25: Total | I25: Y | J25: HMD | K25: A / E | L25: 12 | M25: 2019 | N25: 2019 | O25: None | Q25: 20 to 49 | R25: 1 | S25: 1.020499587 | T25: 1.091394305 | U25: 1.16344583 | V25: 1.22761035 | W25: 1.289266586 | X25: 1.292961836 | Y25: 1.361321092 | Z25: 1.402521014 | AA25: 1.408167481 | AB25: 1.382094383 | AC25: 1.294015408 | AD25: 1.237348914 | AE25: 1.192408562 | AF25: 1.183506608 | AG25: 1.167682409 | AH25: 1.138913274 | AI25: 1.119652033 | AJ25: 1.093274117 | AK25: 1.056694031 | AL25: 1.02873826 | AM25: 1.013202906 | AN25: 0.9942783117 | AO25: 0.9807832837
B26: 3 | C26: 50 | D26: 59 | E26: Y | F26: 2019 | G26: T | H26: Total | I26: Y | J26: HMD | K26: A / E | L26: 12 | M26: 2019 | N26: 2019 | O26: None | Q26: 50 to 59 | R26: 1 | S26: 1.004693627 | T26: 1.05580771 | U26: 1.106723905 | V26: 1.166092992 | W26: 1.221803308 | X26: 1.207732558 | Y26: 1.261956215 | Z26: 1.287882924 | AA26: 1.287935734 | AB26: 1.26199162 | AC26: 1.174558401 | AD26: 1.109983325 | AE26: 1.049074411 | AF26: 1.041131258 | AG26: 1.025421977 | AH26: 1.004200101 | AI26: 0.9966728687 | AJ26: 0.9816319346 | AK26: 0.966842711 | AL26: 0.9508184791 | AM26: 0.9489398599 | AN26: 0.9408705235 | AO26: 0.9320435524
B27: 4 | C27: 60 | D27: 99 | E27: Y | F27: 2019 | G27: T | H27: Total | I27: Y | J27: HMD | K27: A / E | L27: 12 | M27: 2019 | N27: 2019 | O27: None | Q27: 60 to 99 | R27: 1 | S27: 1.005903006 | T27: 1.054379106 | U27: 1.093882084 | V27: 1.166275978 | W27: 1.213650823 | X27: 1.171621919 | Y27: 1.179779887 | Z27: 1.152943015 | AA27: 1.147571802 | AB27: 1.142600179 | AC27: 1.111932278 | AD27: 1.087512851 | AE27: 1.042398334 | AF27: 1.036306858 | AG27: 1.02126801 | AH27: 1.005885243 | AI27: 1.003959656 | AJ27: 0.9993247986 | AK27: 0.9966658354 | AL27: 0.9850605726 | AM27: 0.9917551279 | AN27: 0.9871172309 | AO27: 0.9798926711
B28: 5 | C28: 0 | D28: 99 | E28: Y | F28: 2019 | G28: T | H28: Total | I28: Y | J28: HMD | K28: A / E | L28: 12 | M28: 2019 | N28: 2019 | O28: None | Q28: 0 to 99 | R28: 1 | S28: 1.006996751 | T28: 1.056786895 | U28: 1.099564195 | V28: 1.169112921 | W28: 1.217722535 | X28: 1.182811618 | Y28: 1.200100541 | Z28: 1.184238195 | AA28: 1.180413246 | AB28: 1.171877742 | AC28: 1.131905198 | AD28: 1.101723909 | AE28: 1.055963039 | AF28: 1.049586296 | AG28: 1.034480333 | AH28: 1.017472267 | AI28: 1.013622522 | AJ28: 1.006181479 | AK28: 0.9995983839 | AL28: 0.9862068295 | AM28: 0.9900084734 | AN28: 0.9838638902 | AO28: 0.9759474397
B29: 6
B30: 7 | C30: 0 | D30: 19 | E30: Y | F30: 2019 | G30: T | H30: Total | I30: Y | J30: HMD | K30: (A / E) - 1 | L30: 12 | M30: 2019 | N30: 2019 | O30: None | P30: Y | Q30: 0 to 19 | R30: 0 | S30: 0.008099914528 | T30: 0.006284887437 | U30: 0.01967174374 | V30: 0.02287129685 | W30: 0.02380966209 | X30: 0.04426999018 | Y30: 0.05971490964 | Z30: 0.0820427835 | AA30: 0.088292934 | AB30: 0.08600972593 | AC30: 0.08799066395 | AD30: 0.09691990912 | AE30: 0.1056001037 | AF30: 0.1070661098 | AG30: 0.09598589689 | AH30: 0.07926419377 | AI30: 0.07578144222 | AJ30: 0.0632891506 | AK30: 0.05392870307 | AL30: 0.03739999235 | AM30: 0.02136760578 | AN30: 0.01347399224 | AO30: 0.003283039667
B31: 8 | C31: 20 | D31: 49 | E31: Y | F31: 2019 | G31: T | H31: Total | I31: Y | J31: HMD | K31: (A / E) - 1 | L31: 12 | M31: 2019 | N31: 2019 | O31: None | P31: Y | Q31: 20 to 49 | R31: 0 | S31: 0.02049957775 | T31: 0.09139428288 | U31: 0.163445875 | V31: 0.2276104093 | W31: 0.2892665863 | X31: 0.2929618657 | Y31: 0.3613210618 | Z31: 0.4025209546 | AA31: 0.4081674516 | AB31: 0.3820944428 | AC31: 0.2940154374 | AD31: 0.2373489439 | AE31: 0.1924085617 | AF31: 0.1835066229 | AG31: 0.1676824242 | AH31: 0.138913244 | AI31: 0.1196519956 | AJ31: 0.09327405691 | AK31: 0.05669400468 | AL31: 0.02873826586 | AM31: 0.01320288796 | AN31: -0.005721703172 | AO31: -0.01921669766
B32: 9 | C32: 50 | D32: 59 | E32: Y | F32: 2019 | G32: T | H32: Total | I32: Y | J32: HMD | K32: (A / E) - 1 | L32: 12 | M32: 2019 | N32: 2019 | O32: None | P32: Y | Q32: 50 to 59 | R32: 0 | S32: 0.004693594296 | T32: 0.05580776185 | U32: 0.1067239195 | V32: 0.1660930067 | W32: 0.2218033522 | X32: 0.2077325135 | Y32: 0.2619561553 | Z32: 0.2878828943 | AA32: 0.2879357338 | AB32: 0.2619916201 | AC32: 0.1745583713 | AD32: 0.1099832803 | AE32: 0.04907446355 | AF32: 0.04113130271 | AG32: 0.02542200312 | AH32: 0.004200072028 | AI32: -0.003327155951 | AJ32: -0.01836808398 | AK32: -0.03315727413 | AL32: -0.04918151721 | AM32: -0.05106013641 | AN32: -0.05912947655 | AO32: -0.06795644015
B33: 10 | C33: 60 | D33: 99 | E33: Y | F33: 2019 | G33: T | H33: Total | I33: Y | J33: HMD | K33: (A / E) - 1 | L33: 12 | M33: 2019 | N33: 2019 | O33: None | P33: Y | Q33: 60 to 99 | R33: 0 | S33: 0.005902967881 | T33: 0.05437911302 | U33: 0.0938821137 | V33: 0.1662759483 | W33: 0.2136507779 | X33: 0.1716218591 | Y33: 0.1797798425 | Z33: 0.1529430598 | AA33: 0.147571817 | AB33: 0.1426001191 | AC33: 0.1119322926 | AD33: 0.08751288801 | AE33: 0.04239833727 | AF33: 0.03630686924 | AG33: 0.02126801386 | AH33: 0.005885198247 | AI33: 0.003959661815 | AJ33: -0.0006752195186 | AK33: -0.003334176028 | AL33: -0.01493944973 | AM33: -0.008244858123 | AN33: -0.01288278028 | AO33: -0.02010732517
B34: 11 | C34: 0 | D34: 99 | E34: Y | F34: 2019 | G34: T | H34: Total | I34: Y | J34: HMD | K34: (A / E) - 1 | L34: 12 | M34: 2019 | N34: 2019 | O34: None | P34: Y | Q34: 0 to 99 | R34: 0 | S34: 0.006996712647 | T34: 0.05678687617 | U34: 0.09956422448 | V34: 0.1691129804 | W34: 0.2177225798 | X34: 0.1828116477 | Y34: 0.2001005709 | Z34: 0.184238255 | AA34: 0.1804132313 | AB34: 0.1718776971 | AC34: 0.1319051683 | AD34: 0.1017238796 | AE34: 0.05596304685 | AF34: 0.04958629608 | AG34: 0.03448037058 | AH34: 0.01747226529 | AI34: 0.01362255681 | AJ34: 0.006181475241 | AK34: -0.0004016387393 | AL34: -0.01379314996 | AM34: -0.009991498664 | AN34: -0.01613611542 | AO34: -0.02405255102
B35: 12
B36: 13 | C36: 0 | D36: 19 | E36: Y | F36: 2019 | G36: T | H36: Total | I36: Y | J36: HMD | K36: A | L36: 12 | M36: 2019 | N36: 2019 | O36: None | Q36: 0 to 19 | R36: 0.0004943247768 | S36: 0.0004983287654 | T36: 0.0004974315525 | U36: 0.0005040490068 | V36: 0.0005056306254 | W36: 0.0005060944823 | X36: 0.000516208529 | Y36: 0.0005238433369 | Z36: 0.0005348805571 | AA36: 0.0005379701615 | AB36: 0.000536841515 | AC36: 0.0005378207425 | AD36: 0.0005422346876 | AE36: 0.0005465255235 | AF36: 0.0005472502089 | AG36: 0.0005417729844 | AH36: 0.0005335070309 | AI36: 0.0005317854229 | AJ36: 0.0005256101722 | AK36: 0.0005209830706 | AL36: 0.0005128125194 | AM36: 0.0005048873136 | AN36: 0.0005009853048 | AO36: 0.0004959476646
B37: 14 | C37: 20 | D37: 49 | E37: Y | F37: 2019 | G37: T | H37: Total | I37: Y | J37: HMD | K37: A | L37: 12 | M37: 2019 | N37: 2019 | O37: None | Q37: 20 to 49 | R37: 0.001735231723 | S37: 0.001770803239 | T37: 0.001893821987 | U37: 0.002018848201 | V37: 0.002130188514 | W37: 0.00223717629 | X37: 0.002243588446 | Y37: 0.00236220751 | Z37: 0.002433698857 | AA37: 0.002443496836 | AB37: 0.002398254117 | AC37: 0.002245416632 | AD37: 0.002147087129 | AE37: 0.002069105161 | AF37: 0.002053658245 | AG37: 0.002026199596 | AH37: 0.001976278378 | AI37: 0.001942855655 | AJ37: 0.001897083828 | AK37: 0.001833608956 | AL37: 0.001785099274 | AM37: 0.001758141792 | AN37: 0.001725303242 | AO37: 0.0017018863
B38: 15 | C38: 50 | D38: 59 | E38: Y | F38: 2019 | G38: T | H38: Total | I38: Y | J38: HMD | K38: A | L38: 12 | M38: 2019 | N38: 2019 | O38: None | Q38: 50 to 59 | R38: 0.005989632104 | S38: 0.006017745007 | T38: 0.006323900074 | U38: 0.006628869101 | V38: 0.006984468084 | W38: 0.00731815258 | X38: 0.007233873475 | Y38: 0.007558653131 | Z38: 0.007713944651 | AA38: 0.007714261301 | AB38: 0.007558865473 | AC38: 0.007035172544 | AD38: 0.006648391485 | AE38: 0.006283570081 | AF38: 0.006235993467 | AG38: 0.006141900551 | AH38: 0.006014788989 | AI38: 0.005969703663 | AJ38: 0.005879614037 | AK38: 0.005791032221 | AL38: 0.005695052911 | AM38: 0.005683800671 | AN38: 0.005635468289 | AO38: 0.005582598038
B39: 16 | C39: 60 | D39: 99 | E39: Y | F39: 2019 | G39: T | H39: Total | I39: Y | J39: HMD | K39: A | L39: 12 | M39: 2019 | N39: 2019 | O39: None | Q39: 60 to 99 | R39: 0.0312353652 | S39: 0.0314197503 | T39: 0.03293392062 | U39: 0.03416781127 | V39: 0.03642905504 | W39: 0.03790882975 | X39: 0.03659604117 | Y39: 0.03685085848 | Z39: 0.03601259738 | AA39: 0.03584482893 | AB39: 0.03568953648 | AC39: 0.03473161533 | AD39: 0.03396886215 | AE39: 0.03255969658 | AF39: 0.03236942738 | AG39: 0.03189968318 | AH39: 0.03141919151 | AI39: 0.03135905042 | AJ39: 0.03121427819 | AK39: 0.03113122471 | AL39: 0.03076872602 | AM39: 0.03097783774 | AN39: 0.03083297051 | AO39: 0.03060730919
B40: 17 | C40: 0 | D40: 99 | E40: Y | F40: 2019 | G40: T | H40: Total | I40: Y | J40: HMD | K40: A | L40: 12 | M40: 2019 | N40: 2019 | O40: None | Q40: 0 to 99 | R40: 0.008565670811 | S40: 0.00862560235 | T40: 0.009052088484 | U40: 0.009418506175 | V40: 0.0100142369 | W40: 0.01043061074 | X40: 0.01013157517 | Y40: 0.01027966756 | Z40: 0.01014379505 | AA40: 0.01011103112 | AB40: 0.01003791858 | AC40: 0.009695528075 | AD40: 0.009437004104 | AE40: 0.009045031853 | AF40: 0.008990410715 | AG40: 0.008861019276 | AH40: 0.008715332486 | AI40: 0.008682357147 | AJ40: 0.008618619293 | AK40: 0.008562231436 | AL40: 0.008447523229 | AM40: 0.008480086923 | AN40: 0.008427454159 | AO40: 0.008359645493
B41: 18
B42: 19
B43: 20
B44: 21
B45: 22
B46: 23
B47: 24
B48: 25
B49: 26
B50: 27
B51: 28
B52: 29
B53: 30
B54: 31
B55: 32
B56: 33
B57: 34
B58: 35
B59: 36
B60: 37
B61: 38
B62: 39
B63: 40
B64: 41
B65: 42
B66: 43
B67: 44
B68: 45
B69: 46
B70: 47
B71: 48
B72: 49
B73: 50
B74: 51
B75: 52
B76: 53
B77: 54
B78: 55
B79: 56
B80: 57
B81: 58
B82: 59
B83: 60
B84: 61
B85: 62
B86: 63
B87: 64
B88: 65
B89: 66
B90: 67
B91: 68
B92: 69
B93: 70
B94: 71
B95: 72
B96: 73
B97: 74
B98: 75
B99: 76
B100: 77
B101: 78
B102: 79
B103: 80
B104: 81
B105: 82
B106: 83
B107: 84
B108: 85
B109: 86
B110: 87
B111: 88
B112: 89
B113: 90
B114: 91
B115: 92
B116: 93
B117: 94
B118: 95
B119: 96
B120: 97
B121: 98
B122: 99
B123: 100
AC126: Manually Set Range of Y-Axis
AC127: 0.95 | AD127: Min | AE127: Leave one or both of these cells blank if you want
AD128: Max | AE128: Excel to automatically set the Y-axis range.
R149: 2019-12-16 | S149: 2020-03-16 | T149: 2020-06-16 | U149: 2020-09-16 | V149: 2020-12-16 | W149: 2021-03-16 | X149: 2021-06-16 | Y149: 2021-09-16 | Z149: 2021-12-16 | AA149: 2022-03-16 | AB149: 2022-06-16 | AC149: 2022-09-16 | AD149: 2022-12-16 | AE149: 2023-03-16 | AF149: 2023-06-16 | AG149: 2023-09-16 | AH149: 2023-12-16 | AI149: 2024-03-16 | AJ149: 2024-06-16 | AK149: 2024-09-16 | AL149: 2024-12-16 | AM149: 2025-03-16 | AN149: 2025-06-16 | AO149: 2025-09-16
Q150: 0 to 19 | R150: 0 | S150: 0.008099914528 | T150: 0.006284887437 | U150: 0.01967174374 | V150: 0.02287129685 | W150: 0.02380966209 | X150: 0.04426999018 | Y150: 0.05971490964 | Z150: 0.0820427835 | AA150: 0.088292934 | AB150: 0.08600972593 | AC150: 0.08799066395 | AD150: 0.09691990912 | AE150: 0.1056001037 | AF150: 0.1070661098 | AG150: 0.09598589689 | AH150: 0.07926419377 | AI150: 0.07578144222 | AJ150: 0.0632891506 | AK150: 0.05392870307 | AL150: 0.03739999235 | AM150: 0.02136760578 | AN150: 0.01347399224 | AO150: 0.003283039667
Q151: 20 to 49 | R151: 0 | S151: 0.02049957775 | T151: 0.09139428288 | U151: 0.163445875 | V151: 0.2276104093 | W151: 0.2892665863 | X151: 0.2929618657 | Y151: 0.3613210618 | Z151: 0.4025209546 | AA151: 0.4081674516 | AB151: 0.3820944428 | AC151: 0.2940154374 | AD151: 0.2373489439 | AE151: 0.1924085617 | AF151: 0.1835066229 | AG151: 0.1676824242 | AH151: 0.138913244 | AI151: 0.1196519956 | AJ151: 0.09327405691 | AK151: 0.05669400468 | AL151: 0.02873826586 | AM151: 0.01320288796 | AN151: -0.005721703172 | AO151: -0.01921669766
Q152: 50 to 59 | R152: 0 | S152: 0.004693594296 | T152: 0.05580776185 | U152: 0.1067239195 | V152: 0.1660930067 | W152: 0.2218033522 | X152: 0.2077325135 | Y152: 0.2619561553 | Z152: 0.2878828943 | AA152: 0.2879357338 | AB152: 0.2619916201 | AC152: 0.1745583713 | AD152: 0.1099832803 | AE152: 0.04907446355 | AF152: 0.04113130271 | AG152: 0.02542200312 | AH152: 0.004200072028 | AI152: -0.003327155951 | AJ152: -0.01836808398 | AK152: -0.03315727413 | AL152: -0.04918151721 | AM152: -0.05106013641 | AN152: -0.05912947655 | AO152: -0.06795644015
Q153: 60 to 99 | R153: 0 | S153: 0.005902967881 | T153: 0.05437911302 | U153: 0.0938821137 | V153: 0.1662759483 | W153: 0.2136507779 | X153: 0.1716218591 | Y153: 0.1797798425 | Z153: 0.1529430598 | AA153: 0.147571817 | AB153: 0.1426001191 | AC153: 0.1119322926 | AD153: 0.08751288801 | AE153: 0.04239833727 | AF153: 0.03630686924 | AG153: 0.02126801386 | AH153: 0.005885198247 | AI153: 0.003959661815 | AJ153: -0.0006752195186 | AK153: -0.003334176028 | AL153: -0.01493944973 | AM153: -0.008244858123 | AN153: -0.01288278028 | AO153: -0.02010732517
Q154: 0 to 99 | R154: 0 | S154: 0.006996712647 | T154: 0.05678687617 | U154: 0.09956422448 | V154: 0.1691129804 | W154: 0.2177225798 | X154: 0.1828116477 | Y154: 0.2001005709 | Z154: 0.184238255 | AA154: 0.1804132313 | AB154: 0.1718776971 | AC154: 0.1319051683 | AD154: 0.1017238796 | AE154: 0.05596304685 | AF154: 0.04958629608 | AG154: 0.03448037058 | AH154: 0.01747226529 | AI154: 0.01362255681 | AJ154: 0.006181475241 | AK154: -0.0004016387393 | AL154: -0.01379314996 | AM154: -0.009991498664 | AN154: -0.01613611542 | AO154: -0.02405255102

Sheet 2 Time Series - Life Expectancy
B2: Time Series of Period Life Expectancies for User-Specified Ages
B3: You may specify up to 100 different age-sex groups. For each group, this tool computes a time series of period life expectancies based on mortality rates computed from the trailing 12 months of data.
B7: Specify the Time Period Across Which to Produce Output
B8: 2019 | C8: 12 | D8: First year/month to output
B9: 2025 | C9: 9 | D9: Last year/month to output
C10: 3 | D10: Across this date range, produce output every N months
I16: Parameters for
I17: Expected Death Rates
F18: Use Data | I18: Base | J18: Base
F19: Completion | G19: Exposure | H19: Life | I19: Period | J19: Period | K19: Mort | L19: Show on | M19: Graph
B20: Case | C20: Age | D20: Sex | E20: Cause | F20: Factors? | G20: Source | H20: Expectancy | I20: First Yr | J20: Last Yr | K20: Improve | L20: Graph? | M20: Label | N20: 2019-12-16 | O20: 2020-03-16 | P20: 2020-06-16 | Q20: 2020-09-16 | R20: 2020-12-16 | S20: 2021-03-16 | T20: 2021-06-16 | U20: 2021-09-16 | V20: 2021-12-16 | W20: 2022-03-16 | X20: 2022-06-16 | Y20: 2022-09-16 | Z20: 2022-12-16 | AA20: 2023-03-16 | AB20: 2023-06-16 | AC20: 2023-09-16 | AD20: 2023-12-16 | AE20: 2024-03-16 | AF20: 2024-06-16 | AG20: 2024-09-16 | AH20: 2024-12-16 | AI20: 2025-03-16 | AJ20: 2025-06-16 | AK20: 2025-09-16
B22: 1 | C22: 65 | D22: F | E22: Total | F22: Y | G22: HMD | H22: Actual | I22: 2019 | J22: 2019 | K22: None | L22: Y | M22: F | N22: 20.58967209 | O22: 20.53712654 | P22: 20.1982975 | Q22: 19.92073059 | R22: 19.47291565 | S22: 19.20106888 | T22: 19.44304276 | U22: 19.38462639 | V22: 19.52734184 | W22: 19.5498848 | X22: 19.57411766 | Y22: 19.76566696 | Z22: 19.9141922 | AA22: 20.20108795 | AB22: 20.24121666 | AC22: 20.35268593 | AD22: 20.46076393 | AE22: 20.46200562 | AF22: 20.49141884 | AG22: 20.50506973 | AH22: 20.58880234 | AI22: 20.53507996 | AJ22: 20.56695175 | AK22: 20.61339188
B23: 2 | C23: 65 | D23: M | E23: Total | F23: Y | G23: HMD | H23: Actual | I23: 2019 | J23: 2019 | K23: None | L23: Y | M23: M | N23: 18.01511955 | O23: 17.96834946 | P23: 17.61110687 | Q23: 17.32290268 | R23: 16.79260445 | S23: 16.43286705 | T23: 16.68215752 | U23: 16.62473106 | V23: 16.8103199 | W23: 16.86499405 | X23: 16.9210701 | Y23: 17.15770149 | Z23: 17.36676025 | AA23: 17.74445724 | AB23: 17.79153061 | AC23: 17.89782524 | AD23: 18.00836754 | AE23: 18.02584457 | AF23: 18.06452942 | AG23: 18.08768845 | AH23: 18.1739254 | AI23: 18.12541962 | AJ23: 18.15617561 | AK23: 18.21050262
B24: 3
B25: 4
B26: 5
B27: 6
B28: 7
B29: 8
B30: 9
B31: 10
B32: 11
B33: 12
B34: 13
B35: 14
B36: 15
B37: 16
B38: 17
B39: 18
B40: 19
B41: 20
B42: 21
B43: 22
B44: 23
B45: 24
B46: 25
B47: 26
B48: 27
B49: 28
B50: 29
B51: 30
B52: 31
B53: 32
B54: 33
B55: 34
B56: 35
B57: 36
B58: 37
B59: 38
B60: 39
B61: 40
B62: 41
B63: 42
B64: 43
B65: 44
B66: 45
B67: 46
B68: 47
B69: 48
B70: 49
B71: 50
B72: 51
B73: 52
B74: 53
B75: 54
B76: 55
B77: 56
B78: 57
B79: 58
B80: 59
B81: 60
B82: 61
B83: 62
B84: 63
B85: 64
B86: 65
B87: 66
B88: 67
B89: 68
B90: 69
B91: 70
B92: 71
B93: 72
B94: 73
B95: 74
B96: 75
B97: 76
B98: 77
B99: 78
B100: 79
B101: 80
B102: 81
B103: 82
B104: 83
B105: 84
B106: 85
B107: 86
B108: 87
B109: 88
B110: 89
B111: 90
B112: 91
B113: 92
B114: 93
B115: 94
B116: 95
B117: 96
B118: 97
B119: 98
B120: 99
B121: 100
N124: This graph is redrawn each time you press the RUN button
Y126: Manually Set Range of Y-Axis
Z127: Min | AA127: Leave one or both of these cells blank if you want
Z128: Max | AA128: Excel to automatically set the Y-axis range.
N148: 2019-12-16 | O148: 2020-03-16 | P148: 2020-06-16 | Q148: 2020-09-16 | R148: 2020-12-16 | S148: 2021-03-16 | T148: 2021-06-16 | U148: 2021-09-16 | V148: 2021-12-16 | W148: 2022-03-16 | X148: 2022-06-16 | Y148: 2022-09-16 | Z148: 2022-12-16 | AA148: 2023-03-16 | AB148: 2023-06-16 | AC148: 2023-09-16 | AD148: 2023-12-16 | AE148: 2024-03-16 | AF148: 2024-06-16 | AG148: 2024-09-16 | AH148: 2024-12-16 | AI148: 2025-03-16 | AJ148: 2025-06-16 | AK148: 2025-09-16
M149: F | N149: 20.58967209 | O149: 20.53712654 | P149: 20.1982975 | Q149: 19.92073059 | R149: 19.47291565 | S149: 19.20106888 | T149: 19.44304276 | U149: 19.38462639 | V149: 19.52734184 | W149: 19.5498848 | X149: 19.57411766 | Y149: 19.76566696 | Z149: 19.9141922 | AA149: 20.20108795 | AB149: 20.24121666 | AC149: 20.35268593 | AD149: 20.46076393 | AE149: 20.46200562 | AF149: 20.49141884 | AG149: 20.50506973 | AH149: 20.58880234 | AI149: 20.53507996 | AJ149: 20.56695175 | AK149: 20.61339188
M150: M | N150: 18.01511955 | O150: 17.96834946 | P150: 17.61110687 | Q150: 17.32290268 | R150: 16.79260445 | S150: 16.43286705 | T150: 16.68215752 | U150: 16.62473106 | V150: 16.8103199 | W150: 16.86499405 | X150: 16.9210701 | Y150: 17.15770149 | Z150: 17.36676025 | AA150: 17.74445724 | AB150: 17.79153061 | AC150: 17.89782524 | AD150: 18.00836754 | AE150: 18.02584457 | AF150: 18.06452942 | AG150: 18.08768845 | AH150: 18.1739254 | AI150: 18.12541962 | AJ150: 18.15617561 | AK150: 18.21050262

Sheet 3 Time Series - Counts
B2: Time Series of Deaths and Exposure Counts
B3: You may specify up to 100 different age-sex groups. Note that the CDC supresses specific death counts below 10. In these cases, we impute assign a value of "4" to the supressed data cell.
B7: Specify the Time Period Across Which to Produce Output
B8: 2025 | C8: 1 | D8: First year/month to output
B9: 2025 | C9: 9 | D9: Last year/month to output
C10: 1 | D10: Across this date range, produce output every N months
G14: Use Data | J14: Trailing | CI14: =CI18/CI19 -> 
C15: Age | D15: Age | F15: Cause of | G15: Completion | H15: Exposure | I15: Data to | J15: Period | K15: Show on | L15: Graph
B16: Case | C16: Min | D16: Max | E16: Sex | F16: Death | G16: Factors? | H16: Source | I16: Output | J16: (Months) | K16: Graph? | L16: Label | M16: 2025-01-15 | N16: 2025-02-15 | O16: 2025-03-15 | P16: 2025-04-15 | Q16: 2025-05-15 | R16: 2025-06-15 | S16: 2025-07-15 | T16: 2025-08-15 | U16: 2025-09-15
B18: 1 | C18: 0 | D18: 9 | E18: T | F18: Total | G18: Y | H18: HMD | I18: Deaths | J18: 1 | L18: =I18 -> Deaths | M18: 2187 | N18: 2038 | O18: 2202.934814 | P18: 2178.115479 | Q18: 2221.747803 | R18: 2143.090332 | S18: 2307.131836 | T18: 2137.01123 | U18: 2065.644287
B19: 2 | C19: =C18+10 -> 10 | D19: =D18+10 -> 19 | E19: T | F19: Total | G19: Y | H19: HMD | I19: Deaths | J19: 1 | L19: =I19 -> Deaths | M19: 1157 | N19: 1100 | O19: 1160 | P19: 1195.262451 | Q19: 1212.590576 | R19: 1252.602539 | S19: 1335.312378 | T19: 1192.772705 | U19: 1078.876831
B20: 3 | C20: =C19+10 -> 20 | D20: 29 | E20: T | F20: Total | G20: Y | H20: HMD | I20: Deaths | J20: 1 | L20: Deaths | M20: 3353 | N20: 3043 | O20: 3385.924561 | P20: 3135.964111 | Q20: 3284.613037 | R20: 3340.20874 | S20: 3368.801758 | T20: 3239.845703 | U20: 3051.476318
B21: 4 | C21: 30 | D21: 39 | E21: T | F21: Total | G21: Y | H21: HMD | I21: Deaths | J21: 1 | L21: Deaths | M21: 6438 | N21: 5712 | O21: 6311.019043 | P21: 5987.054688 | Q21: 6194.453125 | R21: 6059.898926 | S21: 6341.404785 | T21: 6142.122559 | U21: 5546.183105
B22: 5 | C22: 40 | D22: 49 | E22: T | F22: Total | G22: Y | H22: HMD | I22: Deaths | J22: 1 | L22: Deaths | M22: 10917 | N22: 9605 | O22: 10019.00195 | P22: 9421.49707 | Q22: 9665.568359 | R22: 9497.225586 | S22: 9785.21582 | T22: 9576.836914 | U22: 9254.333008
B23: 6 | C23: 50 | D23: 59 | E23: T | F23: Total | G23: Y | H23: HMD | I23: Deaths | J23: 1 | L23: Deaths | M23: 21453 | N23: 19317 | O23: 19690.41406 | P23: 18067.69727 | Q23: 18330.40039 | R23: 17915.31445 | S23: 18050.35352 | T23: 17862.49414 | U23: 17542.0625
B24: 7 | C24: 60 | D24: 69 | E24: T | F24: Total | G24: Y | H24: HMD | I24: Deaths | J24: 1 | L24: Deaths | M24: 48732 | N24: 44039 | O24: 45140.375 | P24: 41163.67188 | Q24: 41105.80078 | R24: 39820.66797 | S24: 41062.01562 | T24: 40636.33594 | U24: 39568.58203
B25: 8 | C25: =C24+10 -> 70 | D25: =D24+10 -> 79 | E25: T | F25: Total | G25: Y | H25: HMD | I25: Deaths | J25: 1 | L25: =I25 -> Deaths | M25: 73574 | N25: 65721 | O25: 68481.21094 | P25: 61539.8125 | Q25: 61937.1875 | R25: 59754.39844 | S25: 61710.32031 | T25: 61369.39453 | U25: 60218.83984
B26: 9 | C26: 80 | D26: 89 | E26: T | F26: Total | G26: Y | H26: HMD | I26: Deaths | J26: 1 | L26: Deaths | M26: 81984 | N26: 73768 | O26: 75545.10156 | P26: 67283.09375 | Q26: 67543.98438 | R26: 64320.51562 | S26: 65430.73828 | T26: 66148.45312 | U26: 65343.67188
B27: 10 | C27: 90 | D27: 99 | E27: T | F27: Total | G27: Y | H27: HMD | I27: Deaths | J27: 1 | L27: Deaths | M27: 46585 | N27: 41336 | O27: 41348.94922 | P27: 36589.66016 | Q27: 36881.35938 | R27: 34968.22656 | S27: 35420.70703 | T27: 35623.59766 | U27: 35387.65234
B28: 11 | C28: 0 | D28: 99 | E28: T | F28: Total | G28: Y | H28: HMD | I28: Deaths | J28: 1 | L28: Deaths | M28: 296380 | N28: 265679 | O28: 273284.9375 | P28: 246561.875 | Q28: 248377.7812 | R28: 239072.1562 | S28: 244811.9688 | T28: 243928.9062 | U28: 239057.2969
B29: 12
B30: 13
B31: 14
B32: 15
B33: 16
B34: 17
B35: 18
B36: 19
B37: 20
B38: 21
B39: 22
B40: 23
B41: 24
B42: 25
B43: 26
B44: 27
B45: 28
B46: 29
B47: 30
B48: 31
B49: 32
B50: 33
B51: 34
B52: 35
B53: 36
B54: 37
B55: 38
B56: 39
B57: 40
B58: 41
B59: 42
B60: 43
B61: 44
B62: 45
B63: 46
B64: 47
B65: 48
B66: 49
B67: 50
B68: 51
B69: 52
B70: 53
B71: 54
B72: 55
B73: 56
B74: 57
B75: 58
B76: 59
B77: 60
B78: 61
B79: 62
B80: 63
B81: 64
B82: 65
B83: 66
B84: 67
B85: 68
B86: 69
B87: 70
B88: 71
B89: 72
B90: 73
B91: 74
B92: 75
B93: 76
B94: 77
B95: 78
B96: 79
B97: 80
B98: 81
B99: 82
B100: 83
B101: 84
B102: 85
B103: 86
B104: 87
B105: 88
B106: 89
B107: 90
B108: 91
B109: 92
B110: 93
B111: 94
B112: 95
B113: 96
B114: 97
B115: 98
B116: 99
B117: 100
M123: This graph is redrawn each time you press the RUN button
X125: Manually Set Range of Y-Axis
Y126: Min | Z126: Leave one or both of these cells blank if you want
Y127: Max | Z127: Excel to automatically set the Y-axis range.
M147: 2025-01-15 | N147: 2025-02-15 | O147: 2025-03-15 | P147: 2025-04-15 | Q147: 2025-05-15 | R147: 2025-06-15 | S147: 2025-07-15 | T147: 2025-08-15 | U147: 2025-09-15
L148: Deaths | M148: 2187 | N148: 2038 | O148: 2202.934814 | P148: 2178.115479 | Q148: 2221.747803 | R148: 2143.090332 | S148: 2307.131836 | T148: 2137.01123 | U148: 2065.644287

Sheet 4 Age Series -- Death Rates
B2: Death Rates Across a Series of Ages, for a User-Specified Year
B3: You may specify up to 100 different age-sex groups. For each group, this tool computes death rates by single age or age groups, for a user-specified year.
K6: List of Available Metrics
B7: Specify the Age Range Across Which to Produce Outputs | K7: A | L7: actual death rate
B8: 20 | C8: First age to output | K8: E | L8: expected death rate, using data from specified base year
B9: 90 | C9: Last age to output | K9: A / E | L9: actual divided by expected death rate
B10: 5 | C10: Produce output every Nth age | K10: A_MI | L10: actual rate of mortality improvement (1 - A / A_lag) | P10: A_lag = same as A, but lagged by 12 months
B11: Yes | C11: Use age groups? "No" = single ages; "Yes" = use groupings of N-ages. | K11: E_MI | L11: expected rate of mortality improvement (1 - E / E_lag) | P11: E_lag = same as E, but lagged by 12 months
B12: Yes | C12: If using age groups, also use age-standardization? | K12: A_MI_tot | L12: total mortality improvement (1 - A / A_base) | P12: A_base = the value of A in the base year
K13: E_MI_tot | L13: total expected mortality improvement (1 - E / E_base) | P13: E_base = the value of E in the base year
K14: % of Total | L14: actual death rate as % of actual death rate for all causes
K17: Parameters for
K18: Expected Death Rates | P18: The age labels below are the lower boundaries of each age group
E19: Trailing | H19: Use Data | K19: Base | L19: Base
E20: Period | G20: Causes of | H20: Completion | I20: Exposure | J20: Mortality | K20: Period | L20: Period | M20: Mort | N20: Show on | O20: Graph
B21: Case | C21: Year | D21: Month | E21: (Months) | F21: Sex | G21: Death | H21: Factors? | I21: Source | J21: Metric | K21: First Yr | L21: Last Yr | M21: Improve | N21: Graph? | O21: Label | P21: 20 | Q21: 25 | R21: 30 | S21: 35 | T21: 40 | U21: 45 | V21: 50 | W21: 55 | X21: 60 | Y21: 65 | Z21: 70 | AA21: 75 | AB21: 80 | AC21: 85 | AD21: 90
B23: 1 | C23: 2021 | D23: 9 | E23: 12 | F23: T | G23: Total | H23: Y | I23: HMD | J23: (A / E) - 1 | K23: 2019 | L23: 2019 | M23: None | N23: Y | O23: 2021 | P23: 0.2772009373 | Q23: 0.3418872952 | R23: 0.3807179332 | S23: 0.3710741401 | T23: 0.4089975655 | U23: 0.3471446633 | V23: 0.2967646122 | W23: 0.2406453937 | X23: 0.2436467707 | Y23: 0.2333739549 | Z23: 0.2127484977 | AA23: 0.200747624 | AB23: 0.1920007616 | AC23: 0.1403176785 | AD23: 0.1117500141
B24: 2 | C24: 2022 | D24: 9 | E24: 12 | F24: T | G24: Total | H24: Y | I24: HMD | J24: (A / E) - 1 | K24: 2019 | L24: 2019 | M24: None | N24: Y | O24: 2022 | P24: 0.1918390393 | Q24: 0.260061264 | R24: 0.3347685635 | S24: 0.3261208236 | T24: 0.3487145007 | U24: 0.2626606226 | V24: 0.2004667222 | W24: 0.1586966366 | X24: 0.1633054465 | Y24: 0.1629422903 | Z24: 0.12653777 | AA24: 0.1282585114 | AB24: 0.1238361299 | AC24: 0.0824047029 | AD24: 0.05509344488
B25: 3 | C25: 2023 | D25: 9 | E25: 12 | F25: T | G25: Total | H25: Y | I25: HMD | J25: (A / E) - 1 | K25: 2019 | L25: 2019 | M25: None | N25: Y | O25: 2023 | P25: 0.1012552977 | Q25: 0.137992397 | R25: 0.2111341953 | S25: 0.2053545862 | T25: 0.2277407199 | U25: 0.1152032763 | V25: 0.04569463059 | W25: 0.01301073097 | X25: 0.03580236807 | Y25: 0.04996009171 | Z25: 0.01894711331 | AA25: 0.01336749084 | AB25: 0.04009772837 | AC25: 0.01447229739 | AD25: -0.004557071254
B26: 4 | C26: 2024 | D26: 9 | E26: 12 | F26: T | G26: Total | H26: Y | I26: HMD | J26: (A / E) - 1 | K26: 2019 | L26: 2019 | M26: None | N26: Y | O26: 2024 | P26: -0.03668593988 | Q26: -0.02919193357 | R26: 0.06289879233 | S26: 0.09675710648 | T26: 0.1327264905 | U26: 0.04258033633 | V26: -0.007715607528 | W26: -0.04873330146 | X26: -0.005558387842 | Y26: 0.02455001697 | Z26: -0.004064240959 | AA26: -0.01647321135 | AB26: 0.01988631859 | AC26: 0.002969161374 | AD26: -0.03013492562
B27: 5 | C27: 2025 | D27: 9 | E27: 12 | F27: T | G27: Total | H27: Y | I27: HMD | J27: (A / E) - 1 | K27: 2019 | L27: 2019 | M27: None | N27: Y | O27: 2025 | P27: -0.1244747564 | Q27: -0.1494440883 | R27: -0.06145287678 | S27: 0.01048067492 | T27: 0.06474773586 | U27: 0.0141300261 | V27: -0.04294171184 | W27: -0.0832708627 | X27: -0.02603172325 | Y27: 0.01464485563 | Z27: -0.0116155073 | AA27: -0.03455531597 | AB27: 0.00373018533 | AC27: -0.02158620954 | AD27: -0.04502075911
B28: 6
B29: 7 | C29: 2021 | D29: 9 | E29: 12 | F29: T | G29: Total | H29: Y | I29: HMD | J29: A / E | K29: 2019 | L29: 2019 | M29: None | N29: Y | O29: 2021 | P29: 1.277200937 | Q29: 1.341887355 | R29: 1.380717874 | S29: 1.37107408 | T29: 1.408997536 | U29: 1.347144723 | V29: 1.296764612 | W29: 1.240645409 | X29: 1.243646741 | Y29: 1.233374 | Z29: 1.212748528 | AA29: 1.200747609 | AB29: 1.192000747 | AC29: 1.140317678 | AD29: 1.111750007
B30: 8 | C30: 2022 | D30: 9 | E30: 12 | F30: T | G30: Total | H30: Y | I30: HMD | J30: A / E | K30: 2019 | L30: 2019 | M30: None | N30: Y | O30: 2022 | P30: 1.19183898 | Q30: 1.260061264 | R30: 1.334768534 | S30: 1.326120853 | T30: 1.348714471 | U30: 1.262660623 | V30: 1.200466752 | W30: 1.158696651 | X30: 1.163305402 | Y30: 1.16294229 | Z30: 1.1265378 | AA30: 1.128258467 | AB30: 1.12383616 | AC30: 1.082404733 | AD30: 1.055093408
B31: 9 | C31: 2023 | D31: 9 | E31: 12 | F31: T | G31: Total | H31: Y | I31: HMD | J31: A / E | K31: 2019 | L31: 2019 | M31: None | N31: Y | O31: 2023 | P31: 1.101255298 | Q31: 1.137992382 | R31: 1.211134195 | S31: 1.205354571 | T31: 1.227740765 | U31: 1.115203261 | V31: 1.04569459 | W31: 1.01301074 | X31: 1.035802364 | Y31: 1.049960136 | Z31: 1.018947124 | AA31: 1.013367534 | AB31: 1.040097713 | AC31: 1.014472246 | AD31: 0.9954429269
B32: 10 | C32: 2024 | D32: 9 | E32: 12 | F32: T | G32: Total | H32: Y | I32: HMD | J32: A / E | K32: 2019 | L32: 2019 | M32: None | N32: Y | O32: 2024 | P32: 0.9633140564 | Q32: 0.9708080888 | R32: 1.062898755 | S32: 1.096757054 | T32: 1.132726431 | U32: 1.042580366 | V32: 0.9922844172 | W32: 0.951266706 | X32: 0.9944416285 | Y32: 1.024549961 | Z32: 0.9959357381 | AA32: 0.9835267663 | AB32: 1.019886374 | AC32: 1.002969146 | AD32: 0.9698650837
B33: 11 | C33: 2025 | D33: 9 | E33: 12 | F33: T | G33: Total | H33: Y | I33: HMD | J33: A / E | K33: 2019 | L33: 2019 | M33: None | N33: Y | O33: 2025 | P33: 0.8755252361 | Q33: 0.8505558968 | R33: 0.9385471344 | S33: 1.010480642 | T33: 1.064747691 | U33: 1.014129996 | V33: 0.9570583105 | W33: 0.9167291522 | X33: 0.9739682674 | Y33: 1.014644861 | Z33: 0.9883844852 | AA33: 0.965444684 | AB33: 1.003730178 | AC33: 0.9784137607 | AD33: 0.9549792409
B34: 12
B35: 13
B36: 14
B37: 15
B38: 16
B39: 17
B40: 18
B41: 19
B42: 20
B43: 21
B44: 22
B45: 23
B46: 24
B47: 25
B48: 26
B49: 27
B50: 28
B51: 29
B52: 30
B53: 31
B54: 32
B55: 33
B56: 34
B57: 35
B58: 36
B59: 37
B60: 38
B61: 39
B62: 40
B63: 41
B64: 42
B65: 43
B66: 44
B67: 45
B68: 46
B69: 47
B70: 48
B71: 49
B72: 50
B73: 51
B74: 52
B75: 53
B76: 54
B77: 55
B78: 56
B79: 57
B80: 58
B81: 59
B82: 60
B83: 61
B84: 62
B85: 63
B86: 64
B87: 65
B88: 66
B89: 67
B90: 68
B91: 69
B92: 70
B93: 71
B94: 72
B95: 73
B96: 74
B97: 75
B98: 76
B99: 77
B100: 78
B101: 79
B102: 80
B103: 81
B104: 82
B105: 83
B106: 84
B107: 85
B108: 86
B109: 87
B110: 88
B111: 89
B112: 90
B113: 91
B114: 92
B115: 93
B116: 94
B117: 95
B118: 96
B119: 97
B120: 98
B121: 99
B122: 100
P126: This graph is redrawn each time you press the RUN button
AA128: Manually Set Range of Y-Axis
AB129: Min | AC129: Leave one or both of these cells blank if you want
AB130: Max | AC130: Excel to automatically set the Y-axis range.
P149: 20 | Q149: 25 | R149: 30 | S149: 35 | T149: 40 | U149: 45 | V149: 50 | W149: 55 | X149: 60 | Y149: 65 | Z149: 70 | AA149: 75 | AB149: 80 | AC149: 85 | AD149: 90
O150: 2021 | P150: 0.2772009373 | Q150: 0.3418872952 | R150: 0.3807179332 | S150: 0.3710741401 | T150: 0.4089975655 | U150: 0.3471446633 | V150: 0.2967646122 | W150: 0.2406453937 | X150: 0.2436467707 | Y150: 0.2333739549 | Z150: 0.2127484977 | AA150: 0.200747624 | AB150: 0.1920007616 | AC150: 0.1403176785 | AD150: 0.1117500141
O151: 2022 | P151: 0.1918390393 | Q151: 0.260061264 | R151: 0.3347685635 | S151: 0.3261208236 | T151: 0.3487145007 | U151: 0.2626606226 | V151: 0.2004667222 | W151: 0.1586966366 | X151: 0.1633054465 | Y151: 0.1629422903 | Z151: 0.12653777 | AA151: 0.1282585114 | AB151: 0.1238361299 | AC151: 0.0824047029 | AD151: 0.05509344488
O152: 2023 | P152: 0.1012552977 | Q152: 0.137992397 | R152: 0.2111341953 | S152: 0.2053545862 | T152: 0.2277407199 | U152: 0.1152032763 | V152: 0.04569463059 | W152: 0.01301073097 | X152: 0.03580236807 | Y152: 0.04996009171 | Z152: 0.01894711331 | AA152: 0.01336749084 | AB152: 0.04009772837 | AC152: 0.01447229739 | AD152: -0.004557071254
O153: 2024 | P153: -0.03668593988 | Q153: -0.02919193357 | R153: 0.06289879233 | S153: 0.09675710648 | T153: 0.1327264905 | U153: 0.04258033633 | V153: -0.007715607528 | W153: -0.04873330146 | X153: -0.005558387842 | Y153: 0.02455001697 | Z153: -0.004064240959 | AA153: -0.01647321135 | AB153: 0.01988631859 | AC153: 0.002969161374 | AD153: -0.03013492562
O154: 2025 | P154: -0.1244747564 | Q154: -0.1494440883 | R154: -0.06145287678 | S154: 0.01048067492 | T154: 0.06474773586 | U154: 0.0141300261 | V154: -0.04294171184 | W154: -0.0832708627 | X154: -0.02603172325 | Y154: 0.01464485563 | Z154: -0.0116155073 | AA154: -0.03455531597 | AB154: 0.00373018533 | AC154: -0.02158620954 | AD154: -0.04502075911
O155: 2021 | P155: 1.277200937 | Q155: 1.341887355 | R155: 1.380717874 | S155: 1.37107408 | T155: 1.408997536 | U155: 1.347144723 | V155: 1.296764612 | W155: 1.240645409 | X155: 1.243646741 | Y155: 1.233374 | Z155: 1.212748528 | AA155: 1.200747609 | AB155: 1.192000747 | AC155: 1.140317678 | AD155: 1.111750007
O156: 2022 | P156: 1.19183898 | Q156: 1.260061264 | R156: 1.334768534 | S156: 1.326120853 | T156: 1.348714471 | U156: 1.262660623 | V156: 1.200466752 | W156: 1.158696651 | X156: 1.163305402 | Y156: 1.16294229 | Z156: 1.1265378 | AA156: 1.128258467 | AB156: 1.12383616 | AC156: 1.082404733 | AD156: 1.055093408
O157: 2023 | P157: 1.101255298 | Q157: 1.137992382 | R157: 1.211134195 | S157: 1.205354571 | T157: 1.227740765 | U157: 1.115203261 | V157: 1.04569459 | W157: 1.01301074 | X157: 1.035802364 | Y157: 1.049960136 | Z157: 1.018947124 | AA157: 1.013367534 | AB157: 1.040097713 | AC157: 1.014472246 | AD157: 0.9954429269
O158: 2024 | P158: 0.9633140564 | Q158: 0.9708080888 | R158: 1.062898755 | S158: 1.096757054 | T158: 1.132726431 | U158: 1.042580366 | V158: 0.9922844172 | W158: 0.951266706 | X158: 0.9944416285 | Y158: 1.024549961 | Z158: 0.9959357381 | AA158: 0.9835267663 | AB158: 1.019886374 | AC158: 1.002969146 | AD158: 0.9698650837
O159: 2025 | P159: 0.8755252361 | Q159: 0.8505558968 | R159: 0.9385471344 | S159: 1.010480642 | T159: 1.064747691 | U159: 1.014129996 | V159: 0.9570583105 | W159: 0.9167291522 | X159: 0.9739682674 | Y159: 1.014644861 | Z159: 0.9883844852 | AA159: 0.965444684 | AB159: 1.003730178 | AC159: 0.9784137607 | AD159: 0.9549792409

Sheet 5 Improvement Rates
B2: Calculate Rates of Mortality Improvement Using Regression Analysis
B3: This tool estimates annualized rates of mortality improvement, by age and sex, across a user-specified time period.
B4: Linear regression is applied to logged death rates. The slope of the regression line is the rate of geometric rate of mortality improvement multiplied by negative 1 (a slope of negative 1% indicates an improvement rate of positive 1%).
B5: Prior to running the regression, crude death rates can be smoothed using the "smoothing radius" parameter.
B6: For example, a smoothing radius of "2" means that the death rate for age 50 will be computed as the average rate across ages 48 to 52.
N10: HMD | O10: Exposure Dataset | R10: Metric #1
N11: F | O11: Sex | R11: The annualized rate of mortality improvement is
N12: 2011 | O12: First year in time period | R12: estimated using linear regression applied to the full time series
N13: 2019 | O13: Final year in time period | R13: of data from the first to the final year of the specified period.
N14: 20 | O14: Age range: lower boundary
N15: 90 | O15: Age range: upper boundary | R15: Metric #2
N16: 3 | O16: Age Radius | R16: Similar to metric #1, except only the first and final years
N17: Y | O17: Plot MP-2021 | R17: of data are used to determine the rate of mortality improvement
N18: 1 | O18: Select a Metric to Plot
O19: 1 = improvement rates, method 1
O20: 2 = improvement rates, method 2
O21: 3 = mort rates in final year as % of initial year
O22: 4 = mort rates in final year as % of initial year, minus 1.00
N24: Data on Graph
O25: F | P25: MP2021-F
N26: 20 | O26: -0.01389999967 | P26: -0.009338056556
N27: 21 | O27: -0.01559999958 | P27: -0.01124613451
N28: 22 | O28: -0.01600000076 | P28: -0.01337696931
N29: 23 | O29: -0.01700000092 | P29: -0.01569350278
N30: 24 | O30: -0.01970000006 | P30: -0.01807112412
N31: 25 | O31: -0.02300000004 | P31: -0.02053528563
N32: 26 | O32: -0.02569999918 | P32: -0.02298600763
N33: 27 | O33: -0.02820000052 | P33: -0.0253608812
N34: 28 | O34: -0.03020000085 | P34: -0.02764788625
N35: 29 | O35: -0.03189999983 | P35: -0.02968436465
N36: 30 | O36: -0.03420000151 | P36: -0.0313831464
N37: 31 | O37: -0.03310000151 | P37: -0.03260668027
N38: 32 | O38: -0.03229999915 | P38: -0.03326753193
N39: 33 | O39: -0.03180000186 | P39: -0.03327864643
N40: 34 | O40: -0.03109999932 | P40: -0.03255251116
N41: 35 | O41: -0.03030000068 | P41: -0.03110136862
N42: 36 | O42: -0.03020000085 | P42: -0.02891310262
N43: 37 | O43: -0.02789999917 | P43: -0.02607508988
N44: 38 | O44: -0.02559999935 | P44: -0.02267508804
N45: 39 | O45: -0.0214000009 | P45: -0.01888806096
N46: 40 | O46: -0.01740000024 | P46: -0.01481434996
N47: 41 | O47: -0.01229999959 | P47: -0.01067895837
N48: 42 | O48: -0.00829999987 | P48: -0.00666940552
N49: 43 | O49: -0.003800000064 | P49: -0.00288541727
N50: 44 | O50: -0.0003999999899 | P50: 0.000460490564
N51: 45 | O51: 0.002000000095 | P51: 0.003243994273
N52: 46 | O52: 0.003800000064 | P52: 0.005428039168
N53: 47 | O53: 0.005299999844 | P53: 0.006925803682
N54: 48 | O54: 0.006300000008 | P54: 0.007700476533
N55: 49 | O55: 0.007400000002 | P55: 0.007752256606
N56: 50 | O56: 0.007799999788 | P56: 0.007156111571
N57: 51 | O57: 0.007400000002 | P57: 0.005961034281
N58: 52 | O58: 0.006399999838 | P58: 0.004291146477
N59: 53 | O59: 0.004600000102 | P59: 0.002257322551
N60: 54 | O60: 0.002899999963 | P60: 8.364484806e-05
N61: 55 | O61: 0.0006000000285 | P61: -0.002067747501
N62: 56 | O62: -0.00159999996 | P62: -0.003946508933
N63: 57 | O63: -0.003700000001 | P63: -0.005413769146
N64: 58 | O64: -0.00540000014 | P64: -0.0063059458
N65: 59 | O65: -0.006399999838 | P65: -0.006534023085
N66: 60 | O66: -0.006500000134 | P66: -0.006072548723
N67: 61 | O67: -0.004800000228 | P67: -0.004921894313
N68: 62 | O68: -0.002300000051 | P68: -0.003195484422
N69: 63 | O69: -9.999999747e-05 | P69: -0.001056625617
N70: 64 | O70: 0.002300000051 | P70: 0.001343906339
N71: 65 | O71: 0.005100000184 | P71: 0.003743487636
N72: 66 | O72: 0.007899999619 | P72: 0.006017310636
N73: 67 | O73: 0.009800000116 | P73: 0.007953327306
N74: 68 | O74: 0.009899999946 | P74: 0.009489529978
N75: 69 | O75: 0.0083999997 | P75: 0.01057607749
N76: 70 | O76: 0.007899999619 | P76: 0.01120051107
N77: 71 | O77: 0.007799999788 | P77: 0.01145029717
N78: 72 | O78: 0.006699999794 | P78: 0.01136275143
N79: 73 | O79: 0.0055999998 | P79: 0.01105029278
N80: 74 | O80: 0.005299999844 | P80: 0.0105503364
N81: 75 | O81: 0.005299999844 | P81: 0.00991284683
N82: 76 | O82: 0.005900000222 | P82: 0.009237829068
N83: 77 | O83: 0.007100000046 | P83: 0.008525283005
N84: 78 | O84: 0.00829999987 | P84: 0.007800275999
N85: 79 | O85: 0.009399999864 | P85: 0.007125271078
N86: 80 | O86: 0.009800000116 | P86: 0.006475279679
N87: 81 | O87: 0.009899999946 | P87: 0.005887813542
N88: 82 | O88: 0.009700000286 | P88: 0.005375350967
N89: 83 | O89: 0.009499999695 | P89: 0.004925391084
N90: 84 | O90: 0.009100000374 | P90: 0.004538031698
N91: 85 | O91: 0.008700000122 | P91: 0.004213221003
N92: 86 | O92: 0.00800000038 | P92: 0.003975930511
N93: 87 | O93: 0.00810000021 | P93: 0.003776129265
N94: 88 | O94: 0.008500000462 | P94: 0.003613891791
N95: 89 | O95: 0.0083999997 | P95: 0.003526534458
N96: 90 | O96: 0.00829999987 | P96: 0.003526613993

Sheet 6 Population Graph
B2: A Graph that Depicts Changes in the Population Across Time
B3: Each time you change the graph's parameters, you must press "Load Data", after which you may use the plus/minus buttons to go forwards or backwards in time. Population counts are in 1000s.
W6: Data Plotted on Graph
W7: HMD | X7: SSA
V8: 0 | W8: 3642 | X8: 3708
A9: 2019 | P9: 0 | Q9: First age to include | V9: 1 | W9: 3646 | X9: 3622
P10: 95 | Q10: Last age to include | V10: 2 | W10: 3709 | X10: 3779
F11: 2022 | P11: 1 | Q11: Size of age groups (1 = single age) | V11: 3 | W11: 3796 | X11: 3839
P12: T | Q12: Sex | V12: 4 | W12: 3876 | X12: 3937
P13: Y | Q13: Plot HMD Population | V13: 5 | W13: 3963 | X13: 4014
P14: Y | Q14: Plot Social Security Area population | V14: 6 | W14: 4043 | X14: 4117
P15: MOY | Q15: Beginning, middle or end-of-year data | V15: 7 | W15: 4083 | X15: 4155
P16: Line | Q16: Chart Type | V16: 8 | W16: 4082 | X16: 4140
P17: 1 | Q17: Metric | V17: 9 | W17: 4074 | X17: 4129
Q18: 1 = Counts | V18: 10 | W18: 4085 | X18: 4134
Q19: 2 = Counts as % of 2019 Levels | V19: 11 | W19: 4130 | X19: 4200
V20: 12 | W20: 4207 | X20: 4255
V21: 13 | W21: 4313 | X21: 4376
V22: 14 | W22: 4415 | X22: 4523
V23: 15 | W23: 4432 | X23: 4516
V24: 16 | W24: 4382 | X24: 4418
V25: 17 | W25: 4349 | X25: 4400
B26: Population counts are in 1000s | V26: 18 | W26: 4343 | X26: 4420
V27: 19 | W27: 4325 | X27: 4398
V28: 20 | W28: 4322 | X28: 4380
V29: 21 | W29: 4355 | X29: 4459
V30: 22 | W30: 4359 | X30: 4454
V31: 23 | W31: 4324 | X31: 4391
V32: 24 | W32: 4305 | X32: 4382
V33: 25 | W33: 4315 | X33: 4391
V34: 26 | W34: 4352 | X34: 4415
V35: 27 | W35: 4421 | X35: 4489
V36: 28 | W36: 4504 | X36: 4561
V37: 29 | W37: 4590 | X37: 4659
V38: 30 | W38: 4677 | X38: 4773
V39: 31 | W39: 4740 | X39: 4824
V40: 32 | W40: 4730 | X40: 4841
V41: 33 | W41: 4645 | X41: 4710
V42: 34 | W42: 4557 | X42: 4611
V43: 35 | W43: 4512 | X43: 4562
V44: 36 | W44: 4503 | X44: 4576
V45: 37 | W45: 4478 | X45: 4565
V46: 38 | W46: 4446 | X46: 4443
V47: 39 | W47: 4452 | X47: 4540
V48: 40 | W48: 4446 | X48: 4512
V49: 41 | W49: 4405 | X49: 4472
V50: 42 | W50: 4332 | X50: 4423
V51: 43 | W51: 4213 | X51: 4260
V52: 44 | W52: 4107 | X52: 4140
V53: 45 | W53: 4021 | X53: 4117
V54: 46 | W54: 3948 | X54: 3954
V55: 47 | W55: 3915 | X55: 4011
V56: 48 | W56: 3899 | X56: 3898
V57: 49 | W57: 3952 | X57: 3986
V58: 50 | W58: 4119 | X58: 4144
V59: 51 | W59: 4269 | X59: 4437
V60: 52 | W60: 4254 | X60: 4329
V61: 53 | W61: 4133 | X61: 4186
V62: 54 | W62: 4050 | X62: 4068
V63: 55 | W63: 4048 | X63: 4096
V64: 56 | W64: 4118 | X64: 4157
V65: 57 | W65: 4235 | X65: 4311
V66: 58 | W66: 4322 | X66: 4411
V67: 59 | W67: 4348 | X67: 4422
V68: 60 | W68: 4350 | X68: 4402
V69: 61 | W69: 4326 | X69: 4444
V70: 62 | W70: 4259 | X70: 4310
V71: 63 | W71: 4185 | X71: 4250
V72: 64 | W72: 4122 | X72: 4209
V73: 65 | W73: 4024 | X73: 4142
V74: 66 | W74: 3887 | X74: 3956
V75: 67 | W75: 3757 | X75: 3859
V76: 68 | W76: 3623 | X76: 3714
V77: 69 | W77: 3473 | X77: 3562
V78: 70 | W78: 3322 | X78: 3403
V79: 71 | W79: 3164 | X79: 3263
V80: 72 | W80: 3022 | X80: 3078
V81: 73 | W81: 2917 | X81: 2999
V82: 74 | W82: 2891 | X82: 2909
V83: 75 | W83: 2712 | X83: 3063
V84: 76 | W84: 2277 | X84: 2140
V85: 77 | W85: 1993 | X85: 2053
V86: 78 | W86: 1932 | X86: 1962
V87: 79 | W87: 1836 | X87: 1981
V88: 80 | W88: 1638 | X88: 1658
V89: 81 | W89: 1436 | X89: 1476
V90: 82 | W90: 1291 | X90: 1328
V91: 83 | W91: 1175 | X91: 1214
V92: 84 | W92: 1061 | X92: 1115
V93: 85 | W93: 943 | X93: 975
V94: 86 | W94: 840 | X94: 874
V95: 87 | W95: 739 | X95: 776
V96: 88 | W96: 643 | X96: 645
V97: 89 | W97: 569 | X97: 572
V98: 90 | W98: 494 | X98: 498
V99: 91 | W99: 422 | X99: 430
V100: 92 | W100: 350 | X100: 356
V101: 93 | W101: 282 | X101: 286
V102: 94 | W102: 226 | X102: 231
V103: 95 | W103: 174 | X103: 178
C199: 0
C200: 0
C201: 0
C202: 0
C203: 0
C204: 0
C205: 0
C206: 0
C207: 0
C208: 0
C209: 0
C210: 0
C211: 0
C212: 0
C213: 0
C214: 0
C215: 0
C216: 0
C217: 0
C218: 0
C219: 0
C220: 0
C221: 0
C222: 0
C223: 0
C224: 0
C225: 0
C226: 0
C227: 0
C228: 0
C229: 0
C230: 0
C231: 0
C232: 0
C233: 0
C234: 0
C235: 0
C236: 0
C237: 0
C238: 0
C239: 0
C240: 0
C241: 0
C242: 0
C243: 0
C244: 0
C245: 0
C246: 0
C247: 0
C248: 0
C249: 0
C250: 0
C251: 0
C252: 0
C253: 0
C254: 0
C255: 0
C256: 0
C257: 0
C258: 0
C259: 0
C260: 0
C261: 0
C262: 0
C263: 0
C264: 0
C265: 0
C266: 0
C267: 0
C268: 0
C269: 0
C270: 0
C271: 0
C272: 0
C273: 0
C274: 0
C275: 0
C276: 0
C277: 0
C278: 0
C279: 0
C280: 0
C281: 0
C282: 0
C283: 0
C284: 0
C285: 0
C286: 0
C287: 0
C288: 0
C289: 0
C290: 0
C291: 0
C292: 0
C293: 0
C294: 0
C295: 0
C296: 0
C297: 0
C298: 0
... 4202 more rows

Sheet 7 Exposure Counts
B2: Population Counts by Sex, Age and Year
B4: SSA | C4: Counts from the Social Security Administration's 2025 Trustees Report. Unlike HMD and the Census, these counts include Puerto Rico and Guam.
B5: HMD | C5: Counts from the Human Mortality Database. The data for 2025 is imputed (imputed data appears in red font).
B10: Source | C10: Sex | D10: Year | E10: Total | F10: 0 | G10: 1 | H10: 2 | I10: 3 | J10: 4 | K10: 5 | L10: 6 | M10: 7 | N10: 8 | O10: 9 | P10: 10 | Q10: 11 | R10: 12 | S10: 13 | T10: 14 | U10: 15 | V10: 16 | W10: 17 | X10: 18 | Y10: 19 | Z10: 20 | AA10: 21 | AB10: 22 | AC10: 23 | AD10: 24 | AE10: 25 | AF10: 26 | AG10: 27 | AH10: 28 | AI10: 29 | AJ10: 30 | AK10: 31 | AL10: 32 | AM10: 33 | AN10: 34 | AO10: 35 | AP10: 36 | AQ10: 37 | AR10: 38 | AS10: 39 | AT10: 40 | AU10: 41 | AV10: 42 | AW10: 43 | AX10: 44 | AY10: 45 | AZ10: 46 | BA10: 47 | BB10: 48 | BC10: 49 | BD10: 50 | BE10: 51 | BF10: 52 | BG10: 53 | BH10: 54 | BI10: 55 | BJ10: 56 | BK10: 57 | BL10: 58 | BM10: 59 | BN10: 60 | BO10: 61 | BP10: 62 | BQ10: 63 | BR10: 64 | BS10: 65 | BT10: 66 | BU10: 67 | BV10: 68 | BW10: 69 | BX10: 70 | BY10: 71 | BZ10: 72 | CA10: 73 | CB10: 74 | CC10: 75 | CD10: 76 | CE10: 77 | CF10: 78 | CG10: 79 | CH10: 80 | CI10: 81 | CJ10: 82 | CK10: 83 | CL10: 84 | CM10: 85 | CN10: 86 | CO10: 87 | CP10: 88 | CQ10: 89 | CR10: 90 | CS10: 91 | CT10: 92 | CU10: 93 | CV10: 94 | CW10: 95 | CX10: 96 | CY10: 97 | CZ10: 98 | DA10: 99 | DB10: 100+
B12: SSA | C12: F | D12: 2000 | E12: 145468864 | F12: 1976917 | G12: 1947220 | H12: 1941614 | I12: 1947367 | J12: 1955962 | K12: 1991114 | L12: 2018017 | M12: 2047331 | N12: 2095387 | O12: 2116412 | P12: 2124099 | Q12: 2058666 | R12: 2006516 | S12: 1981877 | T12: 1980753 | U12: 1971696 | V12: 1923023 | W12: 1971732 | X12: 1972977 | Y12: 1960381 | Z12: 1963063 | AA12: 1911384 | AB12: 1868211 | AC12: 1865078 | AD12: 1799457 | AE12: 1842210 | AF12: 1817913 | AG12: 1874142 | AH12: 1976171 | AI12: 2138836 | AJ12: 2095208 | AK12: 2053814 | AL12: 2015165 | AM12: 2050534 | AN12: 2093171 | AO12: 2203152 | AP12: 2288822 | AQ12: 2319562 | AR12: 2331629 | AS12: 2361284 | AT12: 2321092 | AU12: 2329002 | AV12: 2313867 | AW12: 2299034 | AX12: 2221424 | AY12: 2184319 | AZ12: 2141257 | BA12: 2079771 | BB12: 2016609 | BC12: 1964287 | BD12: 1890439 | BE12: 1893094 | BF12: 1866512 | BG12: 1995694 | BH12: 1446830 | BI12: 1472205 | BJ12: 1479415 | BK12: 1541362 | BL12: 1345705 | BM12: 1266106 | BN12: 1209017 | BO12: 1191038 | BP12: 1169054 | BQ12: 1102497 | BR12: 1084874 | BS12: 1079117 | BT12: 1017651 | BU12: 1016892 | BV12: 1023268 | BW12: 1035768 | BX12: 1017051 | BY12: 1010114 | BZ12: 1001836 | CA12: 980457 | CB12: 962243 | CC12: 945988 | CD12: 918700 | CE12: 883458 | CF12: 849359 | CG12: 801657 | CH12: 736203 | CI12: 676031 | CJ12: 622696 | CK12: 570900 | CL12: 527035 | CM12: 487244 | CN12: 442992 | CO12: 392384 | CP12: 339260 | CQ12: 290189 | CR12: 248269 | CS12: 207993 | CT12: 169911 | CU12: 136026 | CV12: 107107 | CW12: 82645 | CX12: 61543 | CY12: 45014 | CZ12: 32566 | DA12: 23591 | DB12: 43335
B13: SSA | C13: F | D13: 2001 | E13: 146810600 | F13: 1992128 | G13: 1984269 | H13: 1959109 | I13: 1951954 | J13: 1956127 | K13: 1964319 | L13: 1998353 | M13: 2024543 | N13: 2054362 | O13: 2102218 | P13: 2124252 | Q13: 2133270 | R13: 2068019 | S13: 2017052 | T13: 1992848 | U13: 1991990 | V13: 1984381 | W13: 1936154 | X13: 1986038 | Y13: 1989988 | Z13: 1979195 | AA13: 1981056 | AB13: 1928440 | AC13: 1885533 | AD13: 1884864 | AE13: 1820294 | AF13: 1862562 | AG13: 1836227 | AH13: 1892822 | AI13: 1992771 | AJ13: 2153933 | AK13: 2109697 | AL13: 2065667 | AM13: 2025486 | AN13: 2059895 | AO13: 2102509 | AP13: 2211090 | AQ13: 2293820 | AR13: 2323574 | AS13: 2334006 | AT13: 2365161 | AU13: 2324003 | AV13: 2328397 | AW13: 2313550 | AX13: 2298490 | AY13: 2220767 | AZ13: 2183450 | BA13: 2138403 | BB13: 2076692 | BC13: 2012703 | BD13: 1961902 | BE13: 1887408 | BF13: 1886470 | BG13: 1860200 | BH13: 1989867 | BI13: 1442668 | BJ13: 1466678 | BK13: 1471915 | BL13: 1534149 | BM13: 1339361 | BN13: 1259746 | BO13: 1202354 | BP13: 1182351 | BQ13: 1159624 | BR13: 1092686 | BS13: 1074014 | BT13: 1066403 | BU13: 1003081 | BV13: 1001891 | BW13: 1006194 | BX13: 1016868 | BY13: 997067 | BZ13: 987085 | CA13: 977975 | CB13: 955025 | CC13: 935055 | CD13: 917544 | CE13: 888451 | CF13: 851116 | CG13: 814746 | CH13: 765261 | CI13: 698878 | CJ13: 637681 | CK13: 583189 | CL13: 530365 | CM13: 485164 | CN13: 443977 | CO13: 399122 | CP13: 349132 | CQ13: 297712 | CR13: 250718 | CS13: 210814 | CT13: 173291 | CU13: 138656 | CV13: 108615 | CW13: 83592 | CX13: 63020 | CY13: 45813 | CZ13: 32708 | DA13: 23077 | DB13: 43490
B14: SSA | C14: F | D14: 2002 | E14: 148159121 | F14: 1973402 | G14: 1998044 | H14: 1993811 | I14: 1970704 | J14: 1962658 | K14: 1965598 | L14: 1973232 | M14: 2005742 | N14: 2031213 | O14: 2061870 | P14: 2109808 | Q14: 2132980 | R14: 2143252 | S14: 2077859 | T14: 2027802 | U14: 2004279 | V14: 2004156 | W14: 1998358 | X14: 1950994 | Y14: 2002866 | Z14: 2009844 | AA14: 1999946 | AB14: 2000371 | AC14: 1947401 | AD14: 1904917 | AE14: 1906048 | AF14: 1842207 | AG14: 1884043 | AH14: 1855045 | AI14: 1911485 | AJ14: 2009278 | AK14: 2168831 | AL14: 2123939 | AM14: 2077215 | AN14: 2035493 | AO14: 2068985 | AP14: 2111597 | AQ14: 2218740 | AR14: 2298474 | AS14: 2327190 | AT14: 2335960 | AU14: 2368588 | AV14: 2326396 | AW14: 2327205 | AX14: 2312600 | AY14: 2297296 | AZ14: 2219472 | BA14: 2181937 | BB14: 2134915 | BC14: 2073026 | BD14: 2008287 | BE14: 1959040 | BF14: 1883896 | BG14: 1879346 | BH14: 1853348 | BI14: 1983450 | BJ14: 1438102 | BK14: 1460734 | BL14: 1463955 | BM14: 1526414 | BN14: 1332549 | BO14: 1252938 | BP14: 1195245 | BQ14: 1173199 | BR14: 1149652 | BS14: 1082297 | BT14: 1062557 | BU14: 1053075 | BV14: 987918 | BW14: 986198 | BX14: 988323 | BY14: 996992 | BZ14: 975965 | CA14: 962834 | CB14: 952703 | CC14: 928076 | CD14: 906232 | CE14: 887295 | CF14: 856276 | CG14: 816771 | CH14: 778049 | CI14: 726759 | CJ14: 659532 | CK14: 597451 | CL14: 542009 | CM14: 488444 | CN14: 442270 | CO14: 400125 | CP14: 355154 | CQ14: 306325 | CR14: 257186 | CS14: 212872 | CT14: 175606 | CU14: 141406 | CV14: 110661 | CW14: 84702 | CX14: 63634 | CY14: 46820 | CZ14: 33202 | DA14: 23113 | DB14: 43062
B15: SSA | C15: F | D15: 2003 | E15: 149471028 | F15: 1995264 | G15: 1980033 | H15: 2005930 | I15: 2002633 | J15: 1982157 | K15: 1973495 | L15: 1974942 | M15: 1981606 | N15: 2012524 | O15: 2037504 | P15: 2069193 | Q15: 2117275 | R15: 2141427 | S15: 2152667 | T15: 2086861 | U15: 2037654 | V15: 2015057 | W15: 2015983 | X15: 2012292 | Y15: 1966294 | Z15: 2020565 | AA15: 2030094 | AB15: 2020425 | AC15: 2019550 | AD15: 1966048 | AE15: 1923196 | AF15: 1925363 | AG15: 1861888 | AH15: 1903185 | AI15: 1871355 | AJ15: 1927423 | AK15: 2023060 | AL15: 2180979 | AM15: 2135569 | AN15: 2086227 | AO15: 2043075 | AP15: 2075724 | AQ15: 2118462 | AR15: 2224244 | AS15: 2301093 | AT15: 2328911 | AU15: 2336130 | AV15: 2370275 | AW15: 2327110 | AX15: 2324368 | AY15: 2310072 | AZ15: 2294546 | BA15: 2216683 | BB15: 2179007 | BC15: 2130106 | BD15: 2068121 | BE15: 2002704 | BF15: 1955027 | BG15: 1879282 | BH15: 1871149 | BI15: 1845448 | BJ15: 1975875 | BK15: 1432625 | BL15: 1453806 | BM15: 1454984 | BN15: 1517565 | BO15: 1324687 | BP15: 1245054 | BQ15: 1187027 | BR15: 1162906 | BS15: 1138570 | BT15: 1070893 | BU15: 1050094 | BV15: 1038709 | BW15: 971750 | BX15: 969398 | BY15: 969279 | BZ15: 975811 | CA15: 953443 | CB15: 937111 | CC15: 925809 | CD15: 899403 | CE15: 875571 | CF15: 855073 | CG15: 822103 | CH15: 780433 | CI15: 739334 | CJ15: 686257 | CK15: 618322 | CL15: 555584 | CM15: 499496 | CN15: 445563 | CO15: 398836 | CP15: 356236 | CQ15: 311750 | CR15: 264698 | CS15: 218391 | CT15: 177276 | CU15: 143191 | CV15: 112783 | CW15: 86235 | CX15: 64454 | CY15: 47247 | CZ15: 33922 | DA15: 23450 | DB15: 42769
B16: SSA | C16: F | D16: 2004 | E16: 150807612 | F16: 2027355 | G16: 2001781 | H16: 1988642 | I16: 2012984 | J16: 2011358 | K16: 1993908 | L16: 1984431 | M16: 1983956 | N16: 1989554 | O16: 2019086 | P16: 2043728 | Q16: 2076592 | R16: 2124766 | S16: 2149643 | T16: 2161773 | U16: 2095714 | V16: 2047512 | W16: 2025931 | X16: 2028113 | Y16: 2026893 | Z16: 1982429 | AA16: 2038508 | AB16: 2050327 | AC16: 2041024 | AD16: 2038543 | AE16: 1983977 | AF16: 1940257 | AG16: 1943194 | AH16: 1879991 | AI16: 1920607 | AJ16: 1886222 | AK16: 1942181 | AL16: 2035624 | AM16: 2191872 | AN16: 2145997 | AO16: 2094073 | AP16: 2049582 | AQ16: 2081440 | AR16: 2124332 | AS16: 2228778 | AT16: 2302778 | AU16: 2329737 | AV16: 2335431 | AW16: 2371069 | AX16: 2326951 | AY16: 2320676 | AZ16: 2306707 | BA16: 2290991 | BB16: 2213120 | BC16: 2175323 | BD16: 2124581 | BE16: 2062514 | BF16: 1996410 | BG16: 1950280 | BH16: 1873931 | BI16: 1862207 | BJ16: 1836784 | BK16: 1967401 | BL16: 1426400 | BM16: 1446057 | BN16: 1445156 | BO16: 1507740 | BP16: 1315886 | BQ16: 1236172 | BR16: 1177745 | BS16: 1151558 | BT16: 1126468 | BU16: 1058516 | BV16: 1036660 | BW16: 1023376 | BX16: 954663 | BY16: 951571 | BZ16: 949144 | CA16: 953420 | CB16: 929655 | CC16: 910174 | CD16: 897639 | CE16: 869459 | CF16: 843621 | CG16: 821469 | CH16: 786489 | CI16: 742643 | CJ16: 699235 | CK16: 644564 | CL16: 576221 | CM16: 513165 | CN16: 456797 | CO16: 402926 | CP16: 356168 | CQ16: 313735 | CR16: 270377 | CS16: 225676 | CT16: 182705 | CU16: 145273 | CV16: 114818 | CW16: 88435 | CX16: 66063 | CY16: 48222 | CZ16: 34503 | DA16: 24174 | DB16: 43305
B17: SSA | C17: F | D17: 2005 | E17: 152309930 | F17: 2034715 | G17: 2034590 | H17: 2010997 | I17: 1997486 | J17: 2021445 | K17: 2022279 | L17: 2007846 | M17: 1997290 | N17: 1994937 | O17: 1999714 | P17: 2028107 | Q17: 2052675 | R17: 2086894 | S17: 2135116 | T17: 2160726 | U17: 2174052 | V17: 2107946 | W17: 2060868 | X17: 2040529 | Y17: 2044391 | Z17: 2046010 | AA17: 2002736 | AB17: 2060297 | AC17: 2074871 | AD17: 2066341 | AE17: 2061937 | AF17: 2005806 | AG17: 1960829 | AH17: 1964388 | AI17: 1901204 | AJ17: 1940907 | AK17: 1903703 | AL17: 1959504 | AM17: 2050650 | AN17: 2205154 | AO17: 2158625 | AP17: 2103994 | AQ17: 2058112 | AR17: 2089233 | AS17: 2132243 | AT17: 2235245 | AU17: 2306250 | AV17: 2332201 | AW17: 2336193 | AX17: 2373164 | AY17: 2327953 | AZ17: 2318077 | BA17: 2304355 | BB17: 2288366 | BC17: 2210394 | BD17: 2172441 | BE17: 2119851 | BF17: 2057698 | BG17: 1990939 | BH17: 1946365 | BI17: 1869324 | BJ17: 1853897 | BK17: 1828583 | BL17: 1959331 | BM17: 1420537 | BN17: 1438689 | BO17: 1435588 | BP17: 1498036 | BQ17: 1307123 | BR17: 1227252 | BS17: 1168385 | BT17: 1140129 | BU17: 1114185 | BV17: 1045854 | BW17: 1022831 | BX17: 1007563 | BY17: 937094 | BZ17: 933129 | CA17: 928284 | CB17: 930163 | CC17: 904911 | CD17: 882221 | CE17: 868235 | CF17: 838155 | CG17: 810221 | CH17: 786287 | CI17: 749244 | CJ17: 703260 | CK17: 657622 | CL17: 601517 | CM17: 533036 | CN17: 470014 | CO17: 413778 | CP17: 360438 | CQ17: 314197 | CR17: 272557 | CS17: 230981 | CT17: 189258 | CU17: 150167 | CV17: 116860 | CW17: 90322 | CX17: 68002 | CY17: 49623 | CZ17: 35383 | DA17: 24707 | DB17: 44318
B18: SSA | C18: F | D18: 2006 | E18: 153918840 | F18: 2068267 | G18: 2042238 | H18: 2044843 | I18: 2020749 | J18: 2007946 | K18: 2032361 | L18: 2035687 | M18: 2023959 | N18: 2012302 | O18: 2008327 | P18: 2012520 | Q18: 2039994 | R18: 2064625 | S18: 2100096 | T18: 2148284 | U18: 2174835 | V18: 2189630 | W18: 2123532 | X18: 2077657 | Y18: 2058878 | Z18: 2064752 | AA18: 2068985 | AB18: 2026412 | AC18: 2085231 | AD18: 2101878 | AE18: 2093514 | AF18: 2086930 | AG18: 2029025 | AH18: 1982688 | AI18: 1986857 | AJ18: 1922725 | AK18: 1959674 | AL18: 1918873 | AM18: 1974649 | AN18: 2063659 | AO18: 2216576 | AP18: 2169670 | AQ18: 2112501 | AR18: 2065413 | AS18: 2095996 | AT18: 2139341 | AU18: 2241058 | AV18: 2309204 | AW18: 2334219 | AX18: 2336556 | AY18: 2374944 | AZ18: 2328732 | BA18: 2315331 | BB18: 2301889 | BC18: 2285635 | BD18: 2207619 | BE18: 2169572 | BF18: 2115189 | BG18: 2052976 | BH18: 1985578 | BI18: 1942602 | BJ18: 1864888 | BK18: 1845717 | BL18: 1820408 | BM18: 1951238 | BN18: 1414734 | BO18: 1431421 | BP18: 1426055 | BQ18: 1488254 | BR18: 1298192 | BS18: 1218121 | BT18: 1158796 | BU18: 1128395 | BV18: 1101510 | BW18: 1032729 | BX18: 1008421 | BY18: 991088 | BZ18: 918850 | CA18: 913854 | CB18: 906502 | CC18: 905852 | CD18: 878982 | CE18: 852989 | CF18: 837340 | CG18: 805258 | CH18: 775121 | CI18: 749263 | CJ18: 710161 | CK18: 662157 | CL18: 614452 | CM18: 557152 | CN18: 488861 | CO18: 426251 | CP18: 370571 | CQ18: 318258 | CR18: 273107 | CS18: 232885 | CT18: 193721 | CU18: 155544 | CV18: 120746 | CW18: 91785 | CX18: 69219 | CY18: 50815 | CZ18: 36138 | DA18: 25102 | DB18: 44754
B19: SSA | C19: F | D19: 2007 | E19: 155372426 | F19: 2134578 | G19: 2074994 | H19: 2052577 | I19: 2055126 | J19: 2031220 | K19: 2019604 | L19: 2044140 | M19: 2049275 | N19: 2040020 | O19: 2027336 | P19: 2021760 | Q19: 2025397 | R19: 2051869 | S19: 2076281 | T19: 2112775 | U19: 2160940 | V19: 2188494 | W19: 2204720 | X19: 2138601 | Y19: 2094063 | Z19: 2076985 | AA19: 2084478 | AB19: 2090257 | AC19: 2047494 | AD19: 2106854 | AE19: 2124461 | AF19: 2114678 | AG19: 2104150 | AH19: 2042818 | AI19: 1993620 | AJ19: 1996600 | AK19: 1931063 | AL19: 1965249 | AM19: 1921471 | AN19: 1977689 | AO19: 2065319 | AP19: 2217246 | AQ19: 2171128 | AR19: 2112198 | AS19: 2064554 | AT19: 2094930 | AU19: 2139146 | AV19: 2240169 | AW19: 2306060 | AX19: 2330697 | AY19: 2331889 | AZ19: 2372144 | BA19: 2325460 | BB19: 2308854 | BC19: 2296020 | BD19: 2279808 | BE19: 2202056 | BF19: 2164089 | BG19: 2108037 | BH19: 2045874 | BI19: 1977961 | BJ19: 1936693 | BK19: 1858507 | BL19: 1835741 | BM19: 1810575 | BN19: 1941415 | BO19: 1407625 | BP19: 1422824 | BQ19: 1415253 | BR19: 1477099 | BS19: 1288004 | BT19: 1207785 | BU19: 1147989 | BV19: 1115410 | BW19: 1087552 | BX19: 1018340 | BY19: 992713 | BZ19: 973265 | CA19: 899301 | CB19: 893142 | CC19: 883233 | CD19: 879949 | CE19: 851427 | CF19: 822236 | CG19: 804932 | CH19: 770904 | CI19: 738537 | CJ19: 710664 | CK19: 669557 | CL19: 619693 | CM19: 570176 | CN19: 512087 | CO19: 444483 | CP19: 382820 | CQ19: 328279 | CR19: 277632 | CS19: 234256 | CT19: 196131 | CU19: 159924 | CV19: 125635 | CW19: 95255 | CX19: 70586 | CY19: 51813 | CZ19: 37008 | DA19: 25594 | DB19: 45106
B20: SSA | C20: F | D20: 2008 | E20: 156464596 | F20: 2135634 | G20: 2140882 | H20: 2084121 | I20: 2062530 | J20: 2065269 | K20: 2041611 | L20: 2030585 | M20: 2054233 | N20: 2060632 | O20: 2053735 | P20: 2039802 | Q20: 2032310 | R20: 2034973 | S20: 2059844 | T20: 2083489 | U20: 2120632 | V20: 2168441 | W20: 2196603 | X20: 2213777 | Y20: 2147500 | Z20: 2103832 | AA20: 2086901 | AB20: 2093946 | AC20: 2099688 | AD20: 2055686 | AE20: 2114333 | AF20: 2132281 | AG20: 2120997 | AH20: 2106697 | AI20: 2042145 | AJ20: 1990418 | AK20: 1992135 | AL20: 1926442 | AM20: 1959548 | AN20: 1914150 | AO20: 1971283 | AP20: 2058209 | AQ20: 2209613 | AR20: 2165170 | AS20: 2105060 | AT20: 2057306 | AU20: 2087600 | AV20: 2132974 | AW20: 2233665 | AX20: 2297713 | AY20: 2322430 | AZ20: 2322890 | BA20: 2365327 | BB20: 2318584 | BC20: 2299011 | BD20: 2287028 | BE20: 2271075 | BF20: 2193784 | BG20: 2156021 | BH20: 2098407 | BI20: 2036389 | BJ20: 1968084 | BK20: 1928602 | BL20: 1850075 | BM20: 1823810 | BN20: 1798896 | BO20: 1929595 | BP20: 1398880 | BQ20: 1412423 | BR20: 1402634 | BS20: 1464017 | BT20: 1276094 | BU20: 1195717 | BV20: 1135405 | BW20: 1100634 | BX20: 1071768 | BY20: 1002136 | BZ20: 975117 | CA20: 953482 | CB20: 877883 | CC20: 870459 | CD20: 857965 | CE20: 851975 | CF20: 821814 | CG20: 789525 | CH20: 770471 | CI20: 734447 | CJ20: 699778 | CK20: 669810 | CL20: 626780 | CM20: 575272 | CN20: 524244 | CO20: 465775 | CP20: 399379 | CQ20: 339256 | CR20: 286517 | CS20: 238230 | CT20: 197306 | CU20: 161880 | CV20: 129080 | CW20: 98947 | CX20: 73094 | CY20: 52720 | CZ20: 37646 | DA20: 26144 | DB20: 45489
B21: SSA | C21: F | D21: 2009 | E21: 157495108 | F21: 2068664 | G21: 2145080 | H21: 2150703 | I21: 2094224 | J21: 2073893 | K21: 2077210 | L21: 2053530 | M21: 2042318 | N21: 2064737 | O21: 2072564 | P21: 2068084 | Q21: 2052820 | R21: 2043154 | S21: 2044382 | T21: 2067235 | U21: 2089887 | V21: 2127549 | W21: 2174930 | X21: 2203547 | Y21: 2221339 | Z21: 2154522 | AA21: 2110763 | AB21: 2092522 | AC21: 2098022 | AD21: 2103407 | AE21: 2058126 | AF21: 2115618 | AG21: 2133707 | AH21: 2121882 | AI21: 2105630 | AJ21: 2039693 | AK21: 1987256 | AL21: 1989553 | AM21: 1924540 | AN21: 1956610 | AO21: 1909513 | AP21: 1967544 | AQ21: 2053625 | AR21: 2204334 | AS21: 2161292 | AT21: 2099812 | AU21: 2051756 | AV21: 2081846 | AW21: 2128210 | AX21: 2228350 | AY21: 2290340 | AZ21: 2314922 | BA21: 2314474 | BB21: 2358961 | BC21: 2312011 | BD21: 2289352 | BE21: 2278098 | BF21: 2262286 | BG21: 2185383 | BH21: 2147789 | BI21: 2088617 | BJ21: 2026718 | BK21: 1957952 | BL21: 1920145 | BM21: 1841167 | BN21: 1811317 | BO21: 1786572 | BP21: 1916931 | BQ21: 1389379 | BR21: 1401139 | BS21: 1389099 | BT21: 1449924 | BU21: 1263176 | BV21: 1182570 | BW21: 1121724 | BX21: 1084751 | BY21: 1054801 | BZ21: 984677 | CA21: 956147 | CB21: 932259 | CC21: 855114 | CD21: 846343 | CE21: 831284 | CF21: 822548 | CG21: 790747 | CH21: 755427 | CI21: 734482 | CJ21: 696433 | CK21: 659495 | CL21: 627441 | CM21: 582638 | CN21: 529792 | CO21: 477706 | CP21: 419457 | CQ21: 354935 | CR21: 297034 | CS21: 246737 | CT21: 201391 | CU21: 163461 | CV21: 131209 | CW21: 102142 | CX21: 76285 | CY21: 54840 | CZ21: 38475 | DA21: 26711 | DB21: 46317
B22: SSA | C22: F | D22: 2010 | E22: 158685865 | F22: 1995126 | G22: 2075894 | H22: 2152538 | I22: 2156877 | J22: 2101103 | K22: 2082069 | L22: 2086041 | M22: 2062553 | N22: 2051292 | O22: 2074012 | P22: 2082350 | Q22: 2078317 | R22: 2063044 | S22: 2052978 | T22: 2053849 | U22: 2076333 | V22: 2099017 | W22: 2137297 | X22: 2185181 | Y22: 2214456 | Z22: 2233134 | AA22: 2166717 | AB22: 2122717 | AC22: 2104025 | AD22: 2109810 | AE22: 2115366 | AF22: 2069003 | AG22: 2125542 | AH22: 2142641 | AI22: 2130345 | AJ22: 2112849 | AK22: 2045725 | AL22: 1992745 | AM22: 1994824 | AN22: 1929535 | AO22: 1960912 | AP22: 1912578 | AQ22: 1970553 | AR22: 2055766 | AS22: 2205764 | AT22: 2162928 | AU22: 2100465 | AV22: 2051840 | AW22: 2081570 | AX22: 2127940 | AY22: 2227467 | AZ22: 2288104 | BA22: 2312156 | BB22: 2311128 | BC22: 2355975 | BD22: 2308256 | BE22: 2284254 | BF22: 2273295 | BG22: 2257271 | BH22: 2180300 | BI22: 2142706 | BJ22: 2082682 | BK22: 2020503 | BL22: 1951277 | BM22: 1913459 | BN22: 1833756 | BO22: 1802178 | BP22: 1776833 | BQ22: 1906010 | BR22: 1380373 | BS22: 1389620 | BT22: 1375533 | BU22: 1434936 | BV22: 1248918 | BW22: 1167660 | BX22: 1105985 | BY22: 1067270 | BZ22: 1036106 | CA22: 965485 | CB22: 935362 | CC22: 909390 | CD22: 831272 | CE22: 820605 | CF22: 803144 | CG22: 791645 | CH22: 758038 | CI22: 720171 | CJ22: 696758 | CK22: 656576 | CL22: 617323 | CM22: 582947 | CN22: 536615 | CO22: 482979 | CP22: 430462 | CQ22: 373138 | CR22: 311265 | CS22: 256360 | CT22: 209231 | CU22: 167456 | CV22: 133051 | CW22: 104416 | CX22: 79374 | CY22: 57790 | CZ22: 40428 | DA22: 27559 | DB22: 47393
B23: SSA | C23: F | D23: 2011 | E23: 159828498 | F23: 1947981 | G23: 1996485 | H23: 2078222 | I23: 2154875 | J23: 2158469 | K23: 2103652 | L23: 2085366 | M23: 2089573 | N23: 2066721 | O23: 2055817 | P23: 2080076 | Q23: 2087727 | R23: 2081967 | S23: 2067709 | T23: 2058908 | U23: 2060580 | V23: 2084369 | W23: 2108022 | X23: 2146721 | Y23: 2195894 | Z23: 2226076 | AA23: 2245606 | AB23: 2180488 | AC23: 2136659 | AD23: 2118373 | AE23: 2125211 | AF23: 2130430 | AG23: 2082886 | AH23: 2138432 | AI23: 2153186 | AJ23: 2140386 | AK23: 2122306 | AL23: 2054188 | AM23: 2000961 | AN23: 2002031 | AO23: 1935691 | AP23: 1966700 | AQ23: 1917803 | AR23: 1974961 | AS23: 2059639 | AT23: 2209171 | AU23: 2165817 | AV23: 2103045 | AW23: 2053808 | AX23: 2083086 | AY23: 2128681 | AZ23: 2227822 | BA23: 2288130 | BB23: 2311530 | BC23: 2310479 | BD23: 2354215 | BE23: 2305441 | BF23: 2282021 | BG23: 2271088 | BH23: 2254665 | BI23: 2177301 | BJ23: 2139558 | BK23: 2079423 | BL23: 2016636 | BM23: 1947027 | BN23: 1907612 | BO23: 1826991 | BP23: 1795525 | BQ23: 1768795 | BR23: 1895859 | BS23: 1371154 | BT23: 1377168 | BU23: 1361217 | BV23: 1418339 | BW23: 1232731 | BX23: 1150436 | BY23: 1087638 | BZ23: 1047610 | CA23: 1015101 | CB23: 943976 | CC23: 912159 | CD23: 884252 | CE23: 805721 | CF23: 792587 | CG23: 772803 | CH23: 758427 | CI23: 722773 | CJ23: 682807 | CK23: 656458 | CL23: 614136 | CM23: 572606 | CN23: 535724 | CO23: 488086 | CP23: 434160 | CQ23: 381803 | CR23: 326103 | CS23: 267640 | CT23: 216498 | CU23: 173263 | CV23: 135680 | CW23: 105267 | CX23: 80566 | CY23: 59681 | CZ23: 42289 | DA23: 28735 | DB23: 48031
B24: SSA | C24: F | D24: 2012 | E24: 160897105 | F24: 1930049 | G24: 1951738 | H24: 2001238 | I24: 2081405 | J24: 2157664 | K24: 2160510 | L24: 2106477 | M24: 2088616 | N24: 2093000 | O24: 2070939 | P24: 2060450 | Q24: 2086208 | R24: 2093073 | S24: 2085282 | T24: 2071786 | U24: 2064240 | V24: 2066801 | W24: 2091942 | X24: 2116451 | Y24: 2155705 | Z24: 2206614 | AA24: 2237635 | AB24: 2257484 | AC24: 2193509 | AD24: 2149940 | AE24: 2131645 | AF24: 2138624 | AG24: 2142972 | AH24: 2094388 | AI24: 2149148 | AJ24: 2161704 | AK24: 2148490 | AL24: 2129849 | AM24: 2060757 | AN24: 2007332 | AO24: 2007379 | AP24: 1940033 | AQ24: 1970668 | AR24: 1921271 | AS24: 1977628 | AT24: 2061843 | AU24: 2210955 | AV24: 2167212 | AW24: 2104196 | AX24: 2054361 | AY24: 2083167 | AZ24: 2128027 | BA24: 2226810 | BB24: 2286833 | BC24: 2309609 | BD24: 2308568 | BE24: 2351262 | BF24: 2301546 | BG24: 2278758 | BH24: 2267856 | BI24: 2251002 | BJ24: 2173225 | BK24: 2135314 | BL24: 2075085 | BM24: 2011675 | BN24: 1941655 | BO24: 1900617 | BP24: 1819050 | BQ24: 1787613 | BR24: 1759412 | BS24: 1884147 | BT24: 1360716 | BU24: 1363382 | BV24: 1345490 | BW24: 1400230 | BX24: 1215191 | BY24: 1131903 | BZ24: 1067991 | CA24: 1026588 | CB24: 992593 | CC24: 920854 | CD24: 887221 | CE24: 857304 | CF24: 778404 | CG24: 762703 | CH24: 740509 | CI24: 723139 | CJ24: 685422 | CK24: 643428 | CL24: 614247 | CM24: 570000 | CN24: 526462 | CO24: 487357 | CP24: 438759 | CQ24: 385054 | CR24: 333617 | CS24: 280415 | CT24: 226106 | CU24: 179294 | CV24: 140380 | CW24: 107310 | CX24: 81126 | CY24: 60442 | CZ24: 43567 | DA24: 30022 | DB24: 49437
B25: SSA | C25: F | D25: 2013 | E25: 161972324 | F25: 1931793 | G25: 1934106 | H25: 1958997 | I25: 2007027 | J25: 2085208 | K25: 2161089 | L25: 2163128 | M25: 2109648 | N25: 2092232 | O25: 2097062 | P25: 2075925 | Q25: 2065880 | R25: 2093145 | S25: 2099048 | T25: 2088978 | U25: 2076238 | V25: 2070145 | W25: 2073717 | X25: 2100181 | Y25: 2125612 | Z25: 2165789 | AA25: 2218498 | AB25: 2249836 | AC25: 2269848 | AD25: 2207194 | AE25: 2163645 | AF25: 2144821 | AG25: 2151572 | AH25: 2155057 | AI25: 2105643 | AJ25: 2159742 | AK25: 2170157 | AL25: 2156551 | AM25: 2137354 | AN25: 2067271 | AO25: 2013614 | AP25: 2012602 | AQ25: 1944260 | AR25: 1974525 | AS25: 1924583 | AT25: 1980050 | AU25: 2063749 | AV25: 2212433 | AW25: 2168295 | AX25: 2105015 | AY25: 2054589 | AZ25: 2082894 | BA25: 2126935 | BB25: 2225237 | BC25: 2284890 | BD25: 2307018 | BE25: 2305982 | BF25: 2347611 | BG25: 2296940 | BH25: 2274724 | BI25: 2263786 | BJ25: 2246439 | BK25: 2168190 | BL25: 2130059 | BM25: 2069713 | BN25: 2005635 | BO25: 1935146 | BP25: 1892401 | BQ25: 1809807 | BR25: 1778288 | BS25: 1748591 | BT25: 1870837 | BU25: 1348993 | BV25: 1348178 | BW25: 1328269 | BX25: 1380495 | BY25: 1196178 | BZ25: 1111901 | CA25: 1046824 | CB25: 1003954 | CC25: 968381 | CD25: 896000 | CE25: 860470 | CF25: 828474 | CG25: 749262 | CH25: 730925 | CI25: 706280 | CJ25: 685864 | CK25: 646097 | CL25: 602126 | CM25: 570218 | CN25: 524309 | CO25: 479124 | CP25: 438284 | CQ25: 389392 | CR25: 336709 | CS25: 287047 | CT25: 237105 | CU25: 187519 | CV25: 145474 | CW25: 111193 | CX25: 82798 | CY25: 60898 | CZ25: 44138 | DA25: 30975 | DB25: 51495
B26: SSA | C26: F | D26: 2014 | E26: 163258654 | F26: 1942417 | G26: 1937324 | H26: 1942046 | I26: 1967856 | J26: 2014121 | K26: 2090480 | L26: 2166130 | M26: 2167304 | N26: 2114576 | O26: 2098108 | P26: 2103757 | Q26: 2083868 | R26: 2074431 | S26: 2103172 | T26: 2108118 | U26: 2096062 | V26: 2084566 | W26: 2080275 | X26: 2085047 | Y26: 2113256 | Z26: 2140413 | AA26: 2181949 | AB26: 2236548 | AC26: 2268309 | AD26: 2288487 | AE26: 2226782 | AF26: 2182926 | AG26: 2163553 | AH26: 2170291 | AI26: 2173160 | AJ26: 2122946 | AK26: 2176633 | AL26: 2184241 | AM26: 2169386 | AN26: 2149396 | AO26: 2078157 | AP26: 2024139 | AQ26: 2022057 | AR26: 1952553 | AS26: 1982398 | AT26: 1931679 | AU26: 1986071 | AV26: 2068980 | AW26: 2217004 | AX26: 2172044 | AY26: 2108236 | AZ26: 2057062 | BA26: 2084795 | BB26: 2127831 | BC26: 2225348 | BD26: 2284293 | BE26: 2305514 | BF26: 2304271 | BG26: 2344579 | BH26: 2292684 | BI26: 2270807 | BJ26: 2259617 | BK26: 2241644 | BL26: 2162824 | BM26: 2124360 | BN26: 2063810 | BO26: 1998979 | BP26: 1927930 | BQ26: 1883345 | BR26: 1799591 | BS26: 1767863 | BT26: 1736537 | BU26: 1856023 | BV26: 1336130 | BW26: 1331828 | BX26: 1309828 | BY26: 1359314 | BZ26: 1175763 | CA26: 1090450 | CB26: 1024097 | CC26: 979654 | CD26: 942472 | CE26: 869485 | CF26: 832001 | CG26: 797846 | CH26: 718376 | CI26: 697363 | CJ26: 670274 | CK26: 646814 | CL26: 605097 | CM26: 559356 | CN26: 525002 | CO26: 477872 | CP26: 431605 | CQ26: 389655 | CR26: 341133 | CS26: 290180 | CT26: 243002 | CU26: 196906 | CV26: 152478 | CW26: 115551 | CX26: 86108 | CY26: 62388 | CZ26: 44598 | DA26: 31429 | DB26: 53640
B27: SSA | C27: F | D27: 2015 | E27: 164702581 | F27: 1963870 | G27: 1948747 | H27: 1946628 | I27: 1951610 | J27: 1978013 | K27: 2022586 | L27: 2097174 | M27: 2172522 | N27: 2172955 | O27: 2121337 | P27: 2106152 | Q27: 2112940 | R27: 2094571 | S27: 2085722 | T27: 2115914 | U27: 2120108 | V27: 2106454 | W27: 2096600 | X27: 2094325 | Y27: 2100638 | Z27: 2131197 | AA27: 2160445 | AB27: 2203446 | AC27: 2260393 | AD27: 2292992 | AE27: 2313123 | AF27: 2251837 | AG27: 2207387 | AH27: 2187442 | AI27: 2194464 | AJ27: 2196227 | AK27: 2143729 | AL27: 2195550 | AM27: 2199558 | AN27: 2183407 | AO27: 2162628 | AP27: 2090272 | AQ27: 2035915 | AR27: 2032794 | AS27: 1962085 | AT27: 1991502 | AU27: 1940013 | AV27: 1993349 | AW27: 2075400 | AX27: 2222638 | AY27: 2176676 | AZ27: 2112232 | BA27: 2060248 | BB27: 2087429 | BC27: 2129413 | BD27: 2226047 | BE27: 2284201 | BF27: 2304413 | BG27: 2302830 | BH27: 2341676 | BI27: 2288446 | BJ27: 2266824 | BK27: 2255272 | BL27: 2236569 | BM27: 2157158 | BN27: 2118334 | BO27: 2057478 | BP27: 1991773 | BQ27: 1920048 | BR27: 1873510 | BS27: 1788580 | BT27: 1756572 | BU27: 1723445 | BV27: 1839893 | BW27: 1322238 | BX27: 1314359 | BY27: 1290094 | BZ27: 1336573 | CA27: 1153831 | CB27: 1067441 | CC27: 999752 | CD27: 953617 | CE27: 914706 | CF27: 841102 | CG27: 801608 | CH27: 765244 | CI27: 685576 | CJ27: 661773 | CK27: 632195 | CL27: 605734 | CM27: 562272 | CN27: 515050 | CO27: 478548 | CP27: 430613 | CQ27: 383817 | CR27: 341419 | CS27: 294018 | CT27: 245588 | CU27: 201643 | CV27: 159989 | CW27: 121069 | CX27: 89455 | CY27: 64901 | CZ27: 45725 | DA27: 31779 | DB27: 55126
B28: SSA | C28: F | D28: 2016 | E28: 165981489 | F28: 1958501 | G28: 1970288 | H28: 1958497 | I28: 1957098 | J28: 1961923 | K28: 1988806 | L28: 2031446 | M28: 2103908 | N28: 2178742 | O28: 2178437 | P28: 2127934 | Q28: 2113986 | R28: 2121876 | S28: 2104792 | T28: 2096345 | U28: 2128012 | V28: 2131540 | W28: 2116309 | X28: 2107997 | Y28: 2107838 | Z28: 2115898 | AA28: 2148483 | AB28: 2179047 | AC28: 2223305 | AD28: 2282772 | AE28: 2316092 | AF28: 2335911 | AG28: 2273982 | AH28: 2227213 | AI28: 2205053 | AJ28: 2210773 | AK28: 2210694 | AL28: 2156149 | AM28: 2205974 | AN28: 2207100 | AO28: 2190602 | AP28: 2169389 | AQ28: 2096222 | AR28: 2041799 | AS28: 2037721 | AT28: 1966135 | AU28: 1995294 | AV28: 1943374 | AW28: 1995913 | AX28: 2077469 | AY28: 2224169 | AZ28: 2177650 | BA28: 2112865 | BB28: 2060280 | BC28: 2086958 | BD28: 2128044 | BE28: 2224055 | BF28: 2281699 | BG28: 2301125 | BH28: 2299340 | BI28: 2336852 | BJ28: 2282498 | BK28: 2261277 | BL28: 2249482 | BM28: 2230099 | BN28: 2150141 | BO28: 2110912 | BP28: 2049674 | BQ28: 1983035 | BR28: 1910595 | BS28: 1862152 | BT28: 1776086 | BU28: 1743650 | BV28: 1708643 | BW28: 1821847 | BX28: 1306851 | BY28: 1295256 | BZ28: 1268571 | CA28: 1311770 | CB28: 1129918 | CC28: 1042439 | CD28: 973453 | CE28: 925587 | CF28: 884843 | CG28: 810623 | CH28: 769078 | CI28: 730500 | CJ28: 650811 | CK28: 624256 | CL28: 592246 | CM28: 562891 | CN28: 517921 | CO28: 469533 | CP28: 431250 | CQ28: 383001 | CR28: 336290 | CS28: 294248 | CT28: 248902 | CU28: 203848 | CV28: 163798 | CW28: 126958 | CX28: 93651 | CY28: 67313 | CZ28: 47465 | DA28: 32467 | DB28: 55984
B29: SSA | C29: F | D29: 2017 | E29: 167115864 | F29: 1919268 | G29: 1964796 | H29: 1980223 | I29: 1969438 | J29: 1968219 | K29: 1972706 | L29: 1999833 | M29: 2040165 | N29: 2110353 | O29: 2184684 | P29: 2183560 | Q29: 2134116 | R29: 2121336 | S29: 2130069 | T29: 2113978 | U29: 2105831 | V29: 2138949 | W29: 2141717 | X29: 2124736 | Y29: 2117939 | Z29: 2119927 | AA29: 2129249 | AB29: 2163043 | AC29: 2194526 | AD29: 2240062 | AE29: 2301710 | AF29: 2335166 | AG29: 2353328 | AH29: 2289733 | AI29: 2240625 | AJ29: 2216277 | AK29: 2220666 | AL29: 2219475 | AM29: 2164465 | AN29: 2213810 | AO29: 2212924 | AP29: 2196195 | AQ29: 2174589 | AR29: 2100671 | AS29: 2046267 | AT29: 2041261 | AU29: 1968849 | AV29: 1997777 | AW29: 1945534 | AX29: 1997297 | AY29: 2078342 | AZ29: 2224475 | BA29: 2177484 | BB29: 2112401 | BC29: 2059209 | BD29: 2085312 | BE29: 2125486 | BF29: 2220891 | BG29: 2278020 | BH29: 2296610 | BI29: 2294567 | BJ29: 2330644 | BK29: 2275114 | BL29: 2254230 | BM29: 2242124 | BN29: 2222007 | BO29: 2141456 | BP29: 2101714 | BQ29: 2040001 | BR29: 1972385 | BS29: 1899272 | BT29: 1848923 | BU29: 1761611 | BV29: 1728586 | BW29: 1691670 | BX29: 1801367 | BY29: 1289572 | BZ29: 1274168 | CA29: 1244989 | CB29: 1284664 | CC29: 1103845 | CD29: 1015299 | CE29: 945016 | CF29: 895398 | CG29: 852791 | CH29: 778000 | CI29: 734395 | CJ29: 693601 | CK29: 614062 | CL29: 584871 | CM29: 550634 | CN29: 518617 | CO29: 472487 | CP29: 423403 | CQ29: 383886 | CR29: 335960 | CS29: 290107 | CT29: 249295 | CU29: 206805 | CV29: 165752 | CW29: 130068 | CX29: 98284 | CY29: 70553 | CZ29: 49288 | DA29: 33781 | DB29: 57030
B30: SSA | C30: F | D30: 2018 | E30: 168150324 | F30: 1895139 | G30: 1925073 | H30: 1974135 | I30: 1990918 | J30: 1980549 | K30: 1979275 | L30: 1983155 | M30: 2010188 | N30: 2048149 | O30: 2116072 | P30: 2189832 | Q30: 2187896 | R30: 2139437 | S30: 2127532 | T30: 2136787 | U30: 2121508 | V30: 2113554 | W30: 2147980 | X30: 2149738 | Y30: 2130883 | Z30: 2125523 | AA30: 2128992 | AB30: 2138655 | AC30: 2173174 | AD30: 2205716 | AE30: 2252343 | AF30: 2315321 | AG30: 2348202 | AH30: 2364361 | AI30: 2300046 | AJ30: 2250310 | AK30: 2225431 | AL30: 2230153 | AM30: 2228669 | AN30: 2173172 | AO30: 2222078 | AP30: 2219326 | AQ30: 2202433 | AR30: 2180406 | AS30: 2105735 | AT30: 2051346 | AU30: 2045433 | AV30: 1972153 | AW30: 2000764 | AX30: 1948116 | AY30: 1999013 | AZ30: 2079396 | BA30: 2224814 | BB30: 2177245 | BC30: 2111760 | BD30: 2057889 | BE30: 2083375 | BF30: 2122555 | BG30: 2217220 | BH30: 2273683 | BI30: 2291308 | BJ30: 2288900 | BK30: 2323407 | BL30: 2266594 | BM30: 2245922 | BN30: 2233414 | BO30: 2212462 | BP30: 2131215 | BQ30: 2090856 | BR30: 2028657 | BS30: 1960118 | BT30: 1886332 | BU30: 1833927 | BV30: 1745290 | BW30: 1711604 | BX30: 1672698 | BY30: 1778520 | BZ30: 1270374 | CA30: 1250997 | CB30: 1219227 | CC30: 1255168 | CD30: 1075593 | CE30: 986026 | CF30: 914452 | CG30: 863040 | CH30: 818510 | CI30: 743168 | CJ30: 697510 | CK30: 654534 | CL30: 575331 | CM30: 543583 | CN30: 507289 | CO30: 472854 | CP30: 425916 | CQ30: 376653 | CR30: 336563 | CS30: 289780 | CT30: 245670 | CU30: 206906 | CV30: 167887 | CW30: 131291 | CX30: 100313 | CY30: 73710 | CZ30: 51377 | DA30: 34806 | DB30: 57964
B31: SSA | C31: F | D31: 2019 | E31: 168956016 | F31: 1855884 | G31: 1899981 | H31: 1933018 | I31: 1983248 | J31: 2000779 | K31: 1990577 | L31: 1988916 | M31: 1991783 | N31: 2018572 | O31: 2054162 | P31: 2119663 | Q31: 2192671 | R31: 2189796 | S31: 2142117 | T31: 2130838 | U31: 2140402 | V31: 2125705 | W31: 2117712 | X31: 2153174 | Y31: 2153718 | Z31: 2132831 | AA31: 2128378 | AB31: 2132611 | AC31: 2142237 | AD31: 2177377 | AE31: 2210870 | AF31: 2258043 | AG31: 2321666 | AH31: 2353724 | AI31: 2368724 | AJ31: 2304820 | AK31: 2254751 | AL31: 2229473 | AM31: 2234605 | AN31: 2232982 | AO31: 2177345 | AP31: 2226015 | AQ31: 2221600 | AR31: 2204753 | AS31: 2182549 | AT31: 2107404 | AU31: 2053302 | AV31: 2046596 | AW31: 1972625 | AX31: 2000966 | AY31: 1948021 | AZ31: 1998105 | BA31: 2077965 | BB31: 2222729 | BC31: 2174721 | BD31: 2108947 | BE31: 2054524 | BF31: 2079417 | BG31: 2117634 | BH31: 2211530 | BI31: 2267323 | BJ31: 2284067 | BK31: 2281377 | BL31: 2314309 | BM31: 2256252 | BN31: 2235771 | BO31: 2222850 | BP31: 2201045 | BQ31: 2119091 | BR31: 2078121 | BS31: 2015577 | BT31: 1946219 | BU31: 1871666 | BV31: 1817083 | BW31: 1727102 | BX31: 1692661 | BY31: 1651641 | BZ31: 1753199 | CA31: 1249227 | CB31: 1225832 | CC31: 1191469 | CD31: 1223496 | CE31: 1045334 | CF31: 954775 | CG31: 881926 | CH31: 828710 | CI31: 782219 | CJ31: 706384 | CK31: 658766 | CL31: 613789 | CM31: 535236 | CN31: 501153 | CO31: 463082 | CP31: 426609 | CQ31: 379357 | CR31: 330555 | CS31: 290699 | CT31: 245921 | CU31: 204390 | CV31: 168407 | CW31: 133387 | CX31: 101593 | CY31: 75502 | CZ31: 53951 | DA31: 36546 | DB31: 59791
B32: SSA | C32: F | D32: 2020 | E32: 169632542 | F32: 1836405 | G32: 1860405 | H32: 1906885 | I32: 1940915 | J32: 1991796 | K32: 2009898 | L32: 1999640 | M32: 1997302 | N32: 1999155 | O32: 2025866 | P32: 2059073 | Q32: 2122166 | R32: 2194608 | S32: 2190886 | T32: 2144058 | U32: 2133576 | V32: 2143620 | W32: 2129596 | X32: 2121494 | Y32: 2157919 | Z32: 2157274 | AA32: 2134243 | AB32: 2130565 | AC32: 2135788 | AD32: 2145743 | AE32: 2181754 | AF32: 2216225 | AG32: 2263921 | AH32: 2328392 | AI32: 2359109 | AJ32: 2372374 | AK32: 2309022 | AL32: 2258779 | AM32: 2233215 | AN32: 2238847 | AO32: 2237221 | AP32: 2181593 | AQ32: 2230145 | AR32: 2224159 | AS32: 2207403 | AT32: 2185030 | AU32: 2109423 | AV32: 2055653 | AW32: 2048228 | AX32: 1973591 | AY32: 2001695 | AZ32: 1948432 | BA32: 1997581 | BB32: 2076727 | BC32: 2220623 | BD32: 2171944 | BE32: 2105692 | BF32: 2050603 | BG32: 2074810 | BH32: 2111880 | BI32: 2204715 | BJ32: 2259569 | BK32: 2275181 | BL32: 2272023 | BM32: 2303114 | BN32: 2243576 | BO32: 2223066 | BP32: 2209506 | BQ32: 2186620 | BR32: 2103897 | BS32: 2062282 | BT32: 1999355 | BU32: 1929037 | BV32: 1853597 | BW32: 1796678 | BX32: 1705189 | BY32: 1669657 | BZ32: 1626222 | CA32: 1722766 | CB32: 1224123 | CC32: 1196563 | CD32: 1159446 | CE32: 1187027 | CF32: 1010532 | CG32: 918915 | CH32: 844706 | CI32: 789578 | CJ32: 741057 | CK32: 664879 | CL32: 615285 | CM32: 568331 | CN32: 490831 | CO32: 454579 | CP32: 415056 | CQ32: 377031 | CR32: 330233 | CS32: 282825 | CT32: 244157 | CU32: 202352 | CV32: 164336 | CW32: 132021 | CX32: 101737 | CY32: 75255 | CZ32: 54294 | DA32: 37688 | DB32: 60708
B33: SSA | C33: F | D33: 2021 | E33: 170272196 | F33: 1768915 | G33: 1840963 | H33: 1867885 | I33: 1914924 | J33: 1949715 | K33: 2001300 | L33: 2019889 | M33: 2009361 | N33: 2006385 | O33: 2007465 | P33: 2034285 | Q33: 2065256 | R33: 2126260 | S33: 2198479 | T33: 2194109 | U33: 2148249 | V33: 2138688 | W33: 2149340 | X33: 2135996 | Y33: 2127896 | Z33: 2165568 | AA33: 2163881 | AB33: 2138787 | AC33: 2136229 | AD33: 2142908 | AE33: 2153520 | AF33: 2190624 | AG33: 2226117 | AH33: 2274390 | AI33: 2339745 | AJ33: 2369001 | AK33: 2380391 | AL33: 2317307 | AM33: 2266663 | AN33: 2240658 | AO33: 2246619 | AP33: 2244798 | AQ33: 2188904 | AR33: 2237133 | AS33: 2229332 | AT33: 2212419 | AU33: 2189634 | AV33: 2113307 | AW33: 2059567 | AX33: 2051201 | AY33: 1975671 | AZ33: 2003371 | BA33: 1949560 | BB33: 1997483 | BC33: 2075588 | BD33: 2218272 | BE33: 2168692 | BF33: 2101829 | BG33: 2045929 | BH33: 2069282 | BI33: 2104966 | BJ33: 2196387 | BK33: 2249985 | BL33: 2264185 | BM33: 2260265 | BN33: 2289203 | BO33: 2227969 | BP33: 2207157 | BQ33: 2192706 | BR33: 2168534 | BS33: 2085023 | BT33: 2042664 | BU33: 1979146 | BV33: 1907649 | BW33: 1831149 | BX33: 1771716 | BY33: 1678631 | BZ33: 1641750 | CA33: 1595667 | CB33: 1686448 | CC33: 1194517 | CD33: 1162593 | CE33: 1122520 | CF33: 1145185 | CG33: 970850 | CH33: 878369 | CI33: 802999 | CJ33: 746129 | CK33: 695752 | CL33: 619589 | CM33: 568262 | CN33: 519612 | CO33: 443758 | CP33: 405855 | CQ33: 365526 | CR33: 326750 | CS33: 281301 | CT33: 236219 | CU33: 199620 | CV33: 161604 | CW33: 127877 | CX33: 99905 | CY33: 74718 | CZ33: 53517 | DA33: 37331 | DB33: 60898
B34: SSA | C34: F | D34: 2022 | E34: 171344335 | F34: 1813832 | G34: 1769121 | H34: 1848869 | I34: 1877170 | J34: 1924684 | K34: 1960366 | L34: 2012751 | M34: 2031808 | N34: 2021288 | O34: 2018155 | P34: 2018835 | Q34: 2046038 | R34: 2075384 | S34: 2135102 | T34: 2207536 | U34: 2202714 | V34: 2158037 | W34: 2149690 | X34: 2161185 | Y34: 2148886 | Z34: 2141517 | AA34: 2181366 | AB34: 2179296 | AC34: 2152463 | AD34: 2151182 | AE34: 2159759 | AF34: 2171472 | AG34: 2209820 | AH34: 2246091 | AI34: 2294503 | AJ34: 2360520 | AK34: 2388832 | AL34: 2398796 | AM34: 2335341 | AN34: 2283748 | AO34: 2256988 | AP34: 2262991 | AQ34: 2260550 | AR34: 2203850 | AS34: 2251517 | AT34: 2241521 | AU34: 2224046 | AV34: 2200445 | AW34: 2123047 | AX34: 2068982 | AY34: 2059459 | AZ34: 1982705 | BA34: 2009796 | BB34: 1954984 | BC34: 2001355 | BD34: 2078066 | BE34: 2219269 | BF34: 2168378 | BG34: 2100666 | BH34: 2043790 | BI34: 2066192 | BJ34: 2100251 | BK34: 2189943 | BL34: 2241980 | BM34: 2254519 | BN34: 2249577 | BO34: 2276075 | BP34: 2212892 | BQ34: 2191562 | BR34: 2176040 | BS34: 2150517 | BT34: 2066165 | BU34: 2022877 | BV34: 1958563 | BW34: 1885709 | BX34: 1807957 | BY34: 1745807 | BZ34: 1650917 | CA34: 1612414 | CB34: 1563474 | CC34: 1648146 | CD34: 1163421 | CE34: 1127130 | CF34: 1084060 | CG34: 1101736 | CH34: 929876 | CI34: 836781 | CJ34: 760469 | CK34: 702023 | CL34: 649968 | CM34: 574118 | CN34: 521510 | CO34: 471700 | CP34: 397994 | CQ34: 359116 | CR34: 318759 | CS34: 280170 | CT34: 236851 | CU34: 194780 | CV34: 160909 | CW34: 127070 | CX34: 97878 | CY34: 74356 | CZ34: 54017 | DA34: 37516 | DB34: 61988
B35: SSA | C35: F | D35: 2023 | E35: 172905910 | F35: 1816920 | G35: 1818801 | H35: 1781158 | I35: 1862839 | J35: 1890453 | K35: 1937685 | L35: 1973625 | M35: 2026469 | N35: 2046042 | O35: 2035955 | P35: 2033234 | Q35: 2034337 | R35: 2062409 | S35: 2091462 | T35: 2151019 | U35: 2224178 | V35: 2219948 | W35: 2176848 | X35: 2170329 | Y35: 2183392 | Z35: 2172849 | AA35: 2167691 | AB35: 2211021 | AC35: 2210964 | AD35: 2184511 | AE35: 2184144 | AF35: 2193599 | AG35: 2205412 | AH35: 2243828 | AI35: 2279605 | AJ35: 2326970 | AK35: 2392194 | AL35: 2418632 | AM35: 2426747 | AN35: 2361700 | AO35: 2308293 | AP35: 2279955 | AQ35: 2284862 | AR35: 2281019 | AS35: 2222664 | AT35: 2269347 | AU35: 2257579 | AV35: 2239162 | AW35: 2214596 | AX35: 2136128 | AY35: 2081270 | AZ35: 2070773 | BA35: 1992855 | BB35: 2019273 | BC35: 1963409 | BD35: 2008594 | BE35: 2083923 | BF35: 2223657 | BG35: 2171365 | BH35: 2102717 | BI35: 2044766 | BJ35: 2066076 | BK35: 2098507 | BL35: 2186342 | BM35: 2236608 | BN35: 2247355 | BO35: 2240871 | BP35: 2265011 | BQ35: 2200022 | BR35: 2177581 | BS35: 2160608 | BT35: 2133586 | BU35: 2048173 | BV35: 2003512 | BW35: 1937973 | BX35: 1863585 | BY35: 1784349 | BZ35: 1719814 | CA35: 1623093 | CB35: 1582260 | CC35: 1530369 | CD35: 1608762 | CE35: 1131905 | CF35: 1092063 | CG35: 1046062 | CH35: 1058629 | CI35: 889278 | CJ35: 795799 | CK35: 718704 | CL35: 658739 | CM35: 605088 | CN35: 529676 | CO35: 476083 | CP35: 425450 | CQ35: 354155 | CR35: 314764 | CS35: 274920 | CT35: 237236 | CU35: 196677 | CV35: 158178 | CW35: 127554 | CX35: 98114 | CY35: 73461 | CZ35: 54192 | DA35: 38107 | DB35: 63442
B36: SSA | C36: F | D36: 2024 | E36: 174636375 | F36: 1831394 | G36: 1843365 | H36: 1842756 | I36: 1801515 | J36: 1881090 | K36: 1906687 | L36: 1953157 | M36: 1988679 | N36: 2041740 | O36: 2061698 | P36: 2052043 | Q36: 2050079 | R36: 2052164 | S36: 2081150 | T36: 2110716 | U36: 2171001 | V36: 2245551 | W36: 2243031 | X36: 2201777 | Y36: 2197355 | Z36: 2212401 | AA36: 2203851 | AB36: 2201456 | AC36: 2248397 | AD36: 2251406 | AE36: 2226365 | AF36: 2226148 | AG36: 2234995 | AH36: 2245446 | AI36: 2282665 | AJ36: 2316710 | AK36: 2361823 | AL36: 2424630 | AM36: 2448250 | AN36: 2454159 | AO36: 2386671 | AP36: 2331026 | AQ36: 2300594 | AR36: 2303488 | AS36: 2297831 | AT36: 2237671 | AU36: 2283340 | AV36: 2270522 | AW36: 2251121 | AX36: 2225745 | AY36: 2146393 | AZ36: 2090452 | BA36: 2079190 | BB36: 2000349 | BC36: 2026049 | BD36: 1969281 | BE36: 2013662 | BF36: 2087785 | BG36: 2226183 | BH36: 2172760 | BI36: 2103260 | BJ36: 2044244 | BK36: 2064235 | BL36: 2095142 | BM36: 2181164 | BN36: 2229741 | BO36: 2238947 | BP36: 2230841 | BQ36: 2253141 | BR36: 2186860 | BS36: 2162833 | BT36: 2144128 | BU36: 2115441 | BV36: 2028791 | BW36: 1982320 | BX36: 1915047 | BY36: 1838821 | BZ36: 1757723 | CA36: 1691023 | CB36: 1592595 | CC36: 1548934 | CD36: 1494247 | CE36: 1566247 | CF36: 1098561 | CG36: 1055968 | CH36: 1007091 | CI36: 1014261 | CJ36: 847521 | CK36: 753872 | CL36: 676455 | CM36: 615642 | CN36: 560908 | CO36: 486272 | CP36: 432206 | CQ36: 381369 | CR36: 313013 | CS36: 273805 | CT36: 235095 | CU36: 198967 | CV36: 161610 | CW36: 127016 | CX36: 99958 | CY36: 74948 | CZ36: 54646 | DA36: 39163 | DB36: 66540
B37: SSA | C37: F | D37: 2025 | E37: 176208651 | F37: 1859569 | G37: 1854247 | H37: 1864621 | I37: 1861517 | J37: 1817800 | K37: 1896245 | L37: 1920860 | M37: 1967077 | N37: 2002489 | O37: 2055864 | P37: 2076102 | Q37: 2066952 | R37: 2065840 | S37: 2068656 | T37: 2098252 | U37: 2128471 | V37: 2189959 | W37: 2266294 | X37: 2265520 | Y37: 2225867 | Z37: 2223144 | AA37: 2239787 | AB37: 2232885 | AC37: 2232642 | AD37: 2282032 | AE37: 2286468 | AF37: 2261555 | AG37: 2261004 | AH37: 2269180 | AI37: 2278503 | AJ37: 2314636 | AK37: 2346838 | AL37: 2389665 | AM37: 2450220 | AN37: 2471397 | AO37: 2475426 | AP37: 2405955 | AQ37: 2348557 | AR37: 2316513 | AS37: 2317853 | AT37: 2310928 | AU37: 2249654 | AV37: 2294724 | AW37: 2281117 | AX37: 2260920 | AY37: 2234759 | AZ37: 2154530 | BA37: 2097658 | BB37: 2085741 | BC37: 2006066 | BD37: 2031026 | BE37: 1973314 | BF37: 2016744 | BG37: 2089601 | BH37: 2226553 | BI37: 2171936 | BJ37: 2101499 | BK37: 2041375 | BL37: 2059949 | BM37: 2089293 | BN37: 2173512 | BO37: 2220483 | BP37: 2228290 | BQ37: 2218822 | BR37: 2239545 | BS37: 2172202 | BT37: 2146681 | BU37: 2126238 | BV37: 2095754 | BW37: 2007689 | BX37: 1959142 | BY37: 1889835 | BZ37: 1811458 | CA37: 1728259 | CB37: 1659214 | CC37: 1559078 | CD37: 1512555 | CE37: 1455058 | CF37: 1520394 | CG37: 1062747 | CH37: 1017333 | CI37: 965503 | CJ37: 967032 | CK37: 803170 | CL37: 709491 | CM37: 631939 | CN37: 570523 | CO37: 515041 | CP37: 441698 | CQ37: 387783 | CR37: 337513 | CS37: 272858 | CT37: 234620 | CU37: 197743 | CV37: 163816 | CW37: 130095 | CX37: 99734 | CY37: 76515 | CZ37: 55932 | DA37: 39682 | DB37: 69825
B38: SSA | C38: F | D38: 2026 | E38: 177452378 | F38: 1884488 | G38: 1875916 | H38: 1869829 | I38: 1878580 | J38: 1874056 | K38: 1829075 | L38: 1907287 | M38: 1931518 | N38: 1977779 | O38: 2013270 | P38: 2066879 | Q38: 2087460 | R38: 2078890 | S38: 2078347 | T38: 2081524 | U38: 2111668 | V38: 2142727 | W38: 2205416 | X38: 2283128 | Y38: 2283496 | Z38: 2244693 | AA38: 2242716 | AB38: 2260089 | AC38: 2254182 | AD38: 2255222 | AE38: 2305617 | AF38: 2310235 | AG38: 2285016 | AH38: 2284114 | AI38: 2291939 | AJ38: 2300532 | AK38: 2335620 | AL38: 2366198 | AM38: 2407184 | AN38: 2465974 | AO38: 2485442 | AP38: 2488273 | AQ38: 2417610 | AR38: 2359141 | AS38: 2326085 | AT38: 2326530 | AU38: 2318995 | AV38: 2257129 | AW38: 2301775 | AX38: 2287569 | AY38: 2266646 | AZ38: 2239753 | BA38: 2158881 | BB38: 2101377 | BC38: 2088963 | BD38: 2008650 | BE38: 2032901 | BF38: 1974395 | BG38: 2016915 | BH38: 2088516 | BI38: 2223930 | BJ38: 2168233 | BK38: 2096935 | BL38: 2035803 | BM38: 2053049 | BN38: 2080976 | BO38: 2163477 | BP38: 2208889 | BQ38: 2215325 | BR38: 2204551 | BS38: 2223715 | BT38: 2155391 | BU38: 2128394 | BV38: 2106117 | BW38: 2073660 | BX38: 1984027 | BY38: 1933195 | BZ38: 1861673 | CA38: 1781056 | CB38: 1695785 | CC38: 1624454 | CD38: 1522697 | CE38: 1473228 | CF38: 1412803 | CG38: 1471013 | CH38: 1024170 | CI38: 975792 | CJ38: 921026 | CK38: 916848 | CL38: 756358 | CM38: 663008 | CN38: 585474 | CO38: 523390 | CP38: 467383 | CQ38: 395920 | CR38: 342790 | CS38: 293792 | CT38: 233514 | CU38: 196959 | CV38: 162568 | CW38: 131511 | CX38: 101905 | CY38: 76080 | CZ38: 56853 | DA38: 40437 | DB38: 72014
B39: SSA | C39: F | D39: 2027 | E39: 178485911 | F39: 1906472 | G39: 1896901 | H39: 1888227 | I39: 1880699 | J39: 1888344 | K39: 1883139 | L39: 1837661 | M39: 1915958 | N39: 1940098 | O39: 1986550 | P39: 2022119 | Q39: 2076069 | R39: 2097127 | S39: 2088962 | T39: 2088720 | U39: 2092271 | V39: 2123167 | W39: 2155167 | X39: 2218858 | Y39: 2297501 | Z39: 2298473 | AA39: 2259961 | AB39: 2258318 | AC39: 2276319 | AD39: 2271102 | AE39: 2272488 | AF39: 2322851 | AG39: 2327176 | AH39: 2301625 | AI39: 2300570 | AJ39: 2308188 | AK39: 2315910 | AL39: 2349794 | AM39: 2378888 | AN39: 2418299 | AO39: 2475695 | AP39: 2493969 | AQ39: 2496043 | AR39: 2424632 | AS39: 2365478 | AT39: 2331841 | AU39: 2331837 | AV39: 2323964 | AW39: 2261676 | AX39: 2305912 | AY39: 2291063 | AZ39: 2269395 | BA39: 2241897 | BB39: 2160601 | BC39: 2102632 | BD39: 2089753 | BE39: 2008861 | BF39: 2032386 | BG39: 1973161 | BH39: 2014723 | BI39: 2085020 | BJ39: 2218826 | BK39: 2162137 | BL39: 2090032 | BM39: 2028021 | BN39: 2044052 | BO39: 2070671 | BP39: 2151476 | BQ39: 2195340 | BR39: 2200440 | BS39: 2188399 | BT39: 2205931 | BU39: 2136527 | BV39: 2107866 | BW39: 2083554 | BX39: 2048895 | BY39: 1957506 | BZ39: 1904156 | CA39: 1830293 | CB39: 1747438 | CC39: 1660170 | CD39: 1586551 | CE39: 1483152 | CF39: 1430553 | CG39: 1367015 | CH39: 1417556 | CI39: 982455 | CJ39: 931035 | CK39: 873402 | CL39: 863491 | CM39: 706956 | CN39: 614369 | CO39: 537321 | CP39: 475061 | CQ39: 419088 | CR39: 350165 | CS39: 298537 | CT39: 251541 | CU39: 196204 | CV39: 161995 | CW39: 130686 | CX39: 103054 | CY39: 77828 | CZ39: 56564 | DA39: 41119 | DB39: 73972
B41: SSA | C41: M | D41: 2000 | E41: 142150639 | F41: 2070683 | G41: 2036805 | H41: 2028711 | I41: 2030946 | J41: 2043376 | K41: 2082938 | L41: 2114203 | M41: 2148033 | N41: 2190561 | O41: 2217787 | P41: 2227594 | Q41: 2157361 | R41: 2100795 | S41: 2073330 | T41: 2073129 | U41: 2067392 | V41: 2024944 | W41: 2091476 | X41: 2108007 | Y41: 2102989 | Z41: 2100751 | AA41: 2042749 | AB41: 1990161 | AC41: 1983474 | AD41: 1900249 | AE41: 1941530 | AF41: 1906674 | AG41: 1954441 | AH41: 2053049 | AI41: 2226207 | AJ41: 2176523 | AK41: 2131377 | AL41: 2091047 | AM41: 2118881 | AN41: 2163789 | AO41: 2262143 | AP41: 2358687 | AQ41: 2375891 | AR41: 2377183 | AS41: 2404029 | AT41: 2353496 | AU41: 2346468 | AV41: 2331171 | AW41: 2312178 | AX41: 2221169 | AY41: 2179551 | AZ41: 2127967 | BA41: 2061504 | BB41: 1992243 | BC41: 1929610 | BD41: 1856151 | BE41: 1853164 | BF41: 1829089 | BG41: 1951340 | BH41: 1399465 | BI41: 1417153 | BJ41: 1422408 | BK41: 1480409 | BL41: 1282881 | BM41: 1197260 | BN41: 1137284 | BO41: 1112916 | BP41: 1085813 | BQ41: 1015630 | BR41: 989990 | BS41: 971324 | BT41: 904517 | BU41: 890839 | BV41: 881180 | BW41: 883352 | BX41: 851851 | BY41: 826190 | BZ41: 801511 | CA41: 766410 | CB41: 731522 | CC41: 698569 | CD41: 661231 | CE41: 620505 | CF41: 580443 | CG41: 530771 | CH41: 469482 | CI41: 414211 | CJ41: 367333 | CK41: 322696 | CL41: 282227 | CM41: 248615 | CN41: 215097 | CO41: 178739 | CP41: 144997 | CQ41: 115524 | CR41: 92013 | CS41: 72118 | CT41: 54868 | CU41: 40906 | CV41: 29915 | CW41: 21540 | CX41: 15042 | CY41: 10238 | CZ41: 6871 | DA41: 4636 | DB41: 7151
B42: SSA | C42: M | D42: 2001 | E42: 143614226 | F42: 2080211 | G42: 2075221 | H42: 2047007 | I42: 2038384 | J42: 2039047 | K42: 2050713 | L42: 2089008 | M42: 2119395 | N42: 2154438 | O42: 2197776 | P42: 2225847 | Q42: 2236118 | R42: 2165310 | S42: 2109487 | T42: 2082813 | U42: 2083683 | V42: 2080526 | W42: 2040830 | X42: 2111160 | Y42: 2130342 | Z42: 2125716 | AA42: 2122428 | AB42: 2062197 | AC42: 2007820 | AD42: 2002176 | AE42: 1919390 | AF42: 1960926 | AG42: 1923882 | AH42: 1971652 | AI42: 2068161 | AJ42: 2239798 | AK42: 2189788 | AL42: 2141432 | AM42: 2099366 | AN42: 2126549 | AO42: 2171432 | AP42: 2268016 | AQ42: 2360546 | AR42: 2377146 | AS42: 2377047 | AT42: 2404924 | AU42: 2353502 | AV42: 2342293 | AW42: 2327248 | AX42: 2307637 | AY42: 2216646 | AZ42: 2174935 | BA42: 2120096 | BB42: 2053318 | BC42: 1983623 | BD42: 1922051 | BE42: 1847934 | BF42: 1841358 | BG42: 1817568 | BH42: 1939574 | BI42: 1390632 | BJ42: 1406421 | BK42: 1409230 | BL42: 1467116 | BM42: 1271252 | BN42: 1185521 | BO42: 1125155 | BP42: 1099031 | BQ42: 1071167 | BR42: 1000439 | BS42: 973197 | BT42: 951908 | BU42: 883467 | BV42: 869233 | BW42: 857451 | BX42: 857155 | BY42: 824217 | BZ42: 796078 | CA42: 770602 | CB42: 734327 | CC42: 698253 | CD42: 665090 | CE42: 627393 | CF42: 585606 | CG42: 544519 | CH42: 494573 | CI42: 434104 | CJ42: 379686 | CK42: 333534 | CL42: 289924 | CM42: 250584 | CN42: 217842 | CO42: 185801 | CP42: 152001 | CQ42: 121256 | CR42: 94879 | CS42: 74097 | CT42: 56850 | CU42: 42244 | CV42: 30714 | CW42: 21882 | CX42: 15343 | CY42: 10433 | CZ42: 6916 | DA42: 4519 | DB42: 7093
B43: SSA | C43: M | D43: 2002 | E43: 145037011 | F43: 2061633 | G43: 2083638 | H43: 2083518 | I43: 2058027 | J43: 2049007 | K43: 2048261 | L43: 2058867 | M43: 2095477 | N43: 2125390 | O43: 2162190 | P43: 2206055 | Q43: 2234164 | R43: 2244470 | S43: 2173287 | T43: 2118625 | U43: 2093431 | V43: 2096593 | W43: 2097178 | X43: 2059031 | Y43: 2130498 | Z43: 2149947 | AA43: 2143762 | AB43: 2139186 | AC43: 2078282 | AD43: 2023277 | AE43: 2019047 | AF43: 1936999 | AG43: 1978866 | AH43: 1939790 | AI43: 1987605 | AJ43: 2081830 | AK43: 2251668 | AL43: 2201243 | AM43: 2149647 | AN43: 2105954 | AO43: 2132610 | AP43: 2177585 | AQ43: 2272419 | AR43: 2360907 | AS43: 2376922 | AT43: 2375489 | AU43: 2404432 | AV43: 2352218 | AW43: 2336934 | AX43: 2322201 | AY43: 2302011 | AZ43: 2211139 | BA43: 2169420 | BB43: 2111423 | BC43: 2044409 | BD43: 1974336 | BE43: 1913826 | BF43: 1839033 | BG43: 1828849 | BH43: 1805294 | BI43: 1926927 | BJ43: 1381155 | BK43: 1395064 | BL43: 1395406 | BM43: 1453067 | BN43: 1258916 | BO43: 1173057 | BP43: 1112242 | BQ43: 1084349 | BR43: 1055730 | BS43: 984543 | BT43: 955769 | BU43: 931896 | BV43: 861853 | BW43: 846970 | BX43: 833045 | BY43: 830259 | BZ43: 795929 | CA43: 765398 | CB43: 739055 | CC43: 701577 | CD43: 664293 | CE43: 630845 | CF43: 592804 | CG43: 550091 | CH43: 508118 | CI43: 458060 | CJ43: 398623 | CK43: 345304 | CL43: 300135 | CM43: 257826 | CN43: 219930 | CO43: 188423 | CP43: 158198 | CQ43: 127204 | CR43: 99610 | CS43: 76383 | CT43: 58356 | CU43: 43738 | CV43: 31701 | CW43: 22466 | CX43: 15586 | CY43: 10642 | CZ43: 7046 | DA43: 4547 | DB43: 6975
B44: SSA | C44: M | D44: 2003 | E44: 146420317 | F44: 2089670 | G44: 2065861 | H44: 2090584 | I44: 2092310 | J44: 2069535 | K44: 2060131 | L44: 2057585 | M44: 2066686 | N44: 2101944 | O44: 2131908 | P44: 2170288 | Q44: 2214152 | R44: 2241991 | S44: 2252342 | T44: 2180999 | U44: 2127879 | V44: 2104755 | W44: 2110957 | X44: 2115222 | Y44: 2076876 | Z44: 2147629 | AA44: 2166245 | AB44: 2158425 | AC44: 2153666 | AD44: 2092780 | AE44: 2037182 | AF44: 2034344 | AG44: 1953036 | AH44: 1994172 | AI44: 1952192 | AJ44: 2000023 | AK44: 2092043 | AL44: 2260126 | AM44: 2209501 | AN44: 2154798 | AO44: 2109658 | AP44: 2135915 | AQ44: 2181144 | AR44: 2274355 | AS44: 2358916 | AT44: 2374481 | AU44: 2371843 | AV44: 2401910 | AW44: 2349009 | AX44: 2329730 | AY44: 2315367 | AZ44: 2294631 | BA44: 2203925 | BB44: 2162213 | BC44: 2101121 | BD44: 2033918 | BE44: 1963540 | BF44: 1904117 | BG44: 1828663 | BH44: 1814862 | BI44: 1791522 | BJ44: 1912655 | BK44: 1370487 | BL44: 1382476 | BM44: 1380335 | BN44: 1437631 | BO44: 1245287 | BP44: 1159318 | BQ44: 1098084 | BR44: 1068427 | BS44: 1039066 | BT44: 967527 | BU44: 937255 | BV44: 910828 | BW44: 839300 | BX44: 823747 | BY44: 807727 | BZ44: 802431 | CA44: 766736 | CB44: 733898 | CC44: 706646 | CD44: 668002 | CE44: 629573 | CF44: 595809 | CG44: 557449 | CH44: 513955 | CI44: 471288 | CJ44: 421388 | CK44: 363300 | CL44: 311388 | CM44: 267493 | CN44: 226769 | CO44: 190608 | CP44: 160659 | CQ44: 132548 | CR44: 104561 | CS44: 80212 | CT44: 60153 | CU44: 44879 | CV44: 32831 | CW44: 23210 | CX44: 16038 | CY44: 10843 | CZ44: 7214 | DA44: 4651 | DB44: 6958
B45: SSA | C45: M | D45: 2004 | E45: 147877012 | F45: 2121857 | G45: 2093832 | H45: 2073652 | I45: 2098089 | J45: 2101732 | K45: 2081749 | L45: 2071637 | M45: 2066832 | N45: 2074742 | O45: 2109287 | P45: 2139263 | Q45: 2178869 | R45: 2222704 | S45: 2250427 | T45: 2261072 | U45: 2190021 | V45: 2139065 | W45: 2118755 | X45: 2127996 | Y45: 2134650 | Z45: 2096058 | AA45: 2166532 | AB45: 2184126 | AC45: 2175419 | AD45: 2171090 | AE45: 2110174 | AF45: 2053782 | AG45: 2052207 | AH45: 1970235 | AI45: 2009129 | AJ45: 1963861 | AK45: 2011609 | AL45: 2101448 | AM45: 2267798 | AN45: 2217012 | AO45: 2159230 | AP45: 2112671 | AQ45: 2138507 | AR45: 2183983 | AS45: 2275601 | AT45: 2356251 | AU45: 2371383 | AV45: 2367549 | AW45: 2398721 | AX45: 2345132 | AY45: 2321816 | AZ45: 2307774 | BA45: 2286465 | BB45: 2195901 | BC45: 2154152 | BD45: 2089937 | BE45: 2022485 | BF45: 1951777 | BG45: 1893439 | BH45: 1817392 | BI45: 1800009 | BJ45: 1776852 | BK45: 1897356 | BL45: 1359008 | BM45: 1369015 | BN45: 1364377 | BO45: 1421182 | BP45: 1230707 | BQ45: 1144661 | BR45: 1083022 | BS45: 1051630 | BT45: 1021534 | BU45: 949659 | BV45: 917913 | BW45: 889027 | BX45: 816173 | BY45: 799957 | BZ45: 781892 | CA45: 774078 | CB45: 737029 | CC45: 701974 | CD45: 673836 | CE45: 634142 | CF45: 594680 | CG45: 560593 | CH45: 521951 | CI45: 477855 | CJ45: 434715 | CK45: 385246 | CL45: 328818 | CM45: 278648 | CN45: 236369 | CO45: 197559 | CP45: 163441 | CQ45: 135377 | CR45: 109632 | CS45: 84747 | CT45: 63608 | CU45: 46593 | CV45: 33911 | CW45: 24193 | CX45: 16671 | CY45: 11229 | CZ45: 7401 | DA45: 4799 | DB45: 7066
B46: SSA | C46: M | D46: 2005 | E46: 149547633 | F46: 2131494 | G46: 2127064 | H46: 2102400 | I46: 2083071 | J46: 2107662 | K46: 2113650 | L46: 2096375 | M46: 2085311 | N46: 2078690 | O46: 2086049 | P46: 2119907 | Q46: 2149598 | R46: 2190494 | S46: 2234486 | T46: 2262330 | U46: 2273908 | V46: 2203944 | W46: 2156212 | X46: 2139461 | Y46: 2150810 | Z46: 2158713 | AA46: 2119723 | AB46: 2189908 | AC46: 2206747 | AD46: 2197527 | AE46: 2193469 | AF46: 2132203 | AG46: 2074708 | AH46: 2074281 | AI46: 1991258 | AJ46: 2028481 | AK46: 1980372 | AL46: 2027834 | AM46: 2114978 | AN46: 2279100 | AO46: 2227661 | AP46: 2166509 | AQ46: 2118370 | AR46: 2143776 | AS46: 2189389 | AT46: 2279162 | AU46: 2355651 | AV46: 2370146 | AW46: 2364905 | AX46: 2397000 | AY46: 2342542 | AZ46: 2315118 | BA46: 2301329 | BB46: 2279368 | BC46: 2188888 | BD46: 2147096 | BE46: 2079762 | BF46: 2012033 | BG46: 1940947 | BH46: 1883642 | BI46: 1806955 | BJ46: 1785972 | BK46: 1762850 | BL46: 1882645 | BM46: 1348000 | BN46: 1356061 | BO46: 1348835 | BP46: 1405006 | BQ46: 1216293 | BR46: 1130100 | BS46: 1068034 | BT46: 1034950 | BU46: 1004079 | BV46: 931816 | BW46: 898546 | BX46: 867203 | BY46: 793038 | BZ46: 776042 | CA46: 755911 | CB46: 745562 | CC46: 707195 | CD46: 670009 | CE46: 640916 | CF46: 600186 | CG46: 559729 | CH46: 525279 | CI46: 486398 | CJ46: 441880 | CK46: 398481 | CL46: 349668 | CM46: 295153 | CN46: 247016 | CO46: 206659 | CP46: 170071 | CQ46: 138289 | CR46: 112388 | CS46: 89195 | CT46: 67440 | CU46: 49416 | CV46: 35269 | CW46: 24976 | CX46: 17335 | CY46: 11619 | CZ46: 7618 | DA46: 4886 | DB46: 7152
B47: SSA | C47: M | D47: 2006 | E47: 151336260 | F47: 2164976 | G47: 2137496 | H47: 2137100 | I47: 2112929 | J47: 2094733 | K47: 2119866 | L47: 2128130 | M47: 2113294 | N47: 2101618 | O47: 2093712 | P47: 2100441 | Q47: 2133157 | R47: 2162411 | S47: 2204728 | T47: 2248977 | U47: 2277340 | V47: 2290660 | W47: 2222588 | X47: 2178203 | Y47: 2163279 | Z47: 2174736 | AA47: 2183157 | AB47: 2143128 | AC47: 2212782 | AD47: 2229102 | AE47: 2219117 | AF47: 2214925 | AG47: 2153077 | AH47: 2094347 | AI47: 2094940 | AJ47: 2011899 | AK47: 2048476 | AL47: 1997571 | AM47: 2044747 | AN47: 2129047 | AO47: 2290792 | AP47: 2238639 | AQ47: 2174088 | AR47: 2124391 | AS47: 2149478 | AT47: 2195288 | AU47: 2283184 | AV47: 2355495 | AW47: 2369295 | AX47: 2362547 | AY47: 2395478 | AZ47: 2340109 | BA47: 2308569 | BB47: 2294985 | BC47: 2272311 | BD47: 2181892 | BE47: 2140087 | BF47: 2069720 | BG47: 2001759 | BH47: 1930328 | BI47: 1874063 | BJ47: 1796684 | BK47: 1772018 | BL47: 1748769 | BM47: 1867801 | BN47: 1337038 | BO47: 1343225 | BP47: 1333324 | BQ47: 1388682 | BR47: 1201596 | BS47: 1115184 | BT47: 1052688 | BU47: 1017910 | BV47: 986253 | BW47: 913658 | BX47: 878874 | BY47: 845086 | BZ47: 769625 | CA47: 751701 | CB47: 729449 | CC47: 716518 | CD47: 676876 | CE47: 637686 | CF47: 607613 | CG47: 565854 | CH47: 524408 | CI47: 489543 | CJ47: 450519 | CK47: 405867 | CL47: 362537 | CM47: 314706 | CN47: 262379 | CO47: 216533 | CP47: 178392 | CQ47: 144327 | CR47: 115157 | CS47: 91648 | CT47: 71121 | CU47: 52467 | CV47: 37431 | CW47: 25967 | CX47: 17860 | CY47: 12044 | CZ47: 7847 | DA47: 5001 | DB47: 7207
B48: SSA | C48: M | D48: 2007 | E48: 152927740 | F48: 2235667 | G48: 2170056 | H48: 2148104 | I48: 2148480 | J48: 2124633 | K48: 2107509 | L48: 2132653 | M48: 2142567 | N48: 2130280 | O48: 2118182 | P48: 2108533 | Q48: 2113902 | R48: 2145090 | S48: 2173880 | T48: 2217492 | U48: 2261989 | V48: 2291260 | W48: 2306787 | X48: 2240112 | Y48: 2196509 | Z48: 2180485 | AA48: 2190489 | AB48: 2198185 | AC48: 2156453 | AD48: 2225183 | AE48: 2240712 | AF48: 2229711 | AG48: 2225130 | AH48: 2162462 | AI48: 2102305 | AJ48: 2103367 | AK48: 2020492 | AL48: 2056440 | AM48: 2003377 | AN48: 2050849 | AO48: 2133446 | AP48: 2293835 | AQ48: 2242157 | AR48: 2174899 | AS48: 2124159 | AT48: 2149179 | AU48: 2195581 | AV48: 2282118 | AW48: 2350730 | AX48: 2364211 | AY48: 2356276 | AZ48: 2390331 | BA48: 2334388 | BB48: 2298855 | BC48: 2285516 | BD48: 2262213 | BE48: 2171958 | BF48: 2130122 | BG48: 2056782 | BH48: 1988638 | BI48: 1916930 | BJ48: 1861754 | BK48: 1783829 | BL48: 1755586 | BM48: 1732343 | BN48: 1850522 | BO48: 1324238 | BP48: 1328473 | BQ48: 1315948 | BR48: 1370391 | BS48: 1185203 | BT48: 1098700 | BU48: 1035780 | BV48: 999305 | BW48: 966878 | BX48: 894044 | BY48: 857812 | BZ48: 821669 | CA48: 745060 | CB48: 726167 | CC48: 701883 | CD48: 686443 | CE48: 645629 | CF48: 604611 | CG48: 573632 | CH48: 530998 | CI48: 488735 | CJ48: 453551 | CK48: 414511 | CL48: 369972 | CM48: 327043 | CN48: 280605 | CO48: 230870 | CP48: 187681 | CQ48: 152063 | CR48: 120778 | CS48: 94448 | CT48: 73529 | CU48: 55723 | CV48: 40045 | CW48: 27784 | CX48: 18724 | CY48: 12497 | CZ48: 8178 | DA48: 5168 | DB48: 7288
B49: SSA | C49: M | D49: 2008 | E49: 154100029 | F49: 2231470 | G49: 2240240 | H49: 2179020 | I49: 2159119 | J49: 2159920 | K49: 2136202 | L49: 2119497 | M49: 2143843 | N49: 2155315 | O49: 2145524 | P49: 2132297 | Q49: 2120085 | R49: 2123727 | S49: 2153401 | T49: 2181650 | U49: 2226519 | V49: 2271901 | W49: 2302473 | X49: 2318400 | Y49: 2250356 | Z49: 2205488 | AA49: 2187195 | AB49: 2194553 | AC49: 2200175 | AD49: 2156392 | AE49: 2223518 | AF49: 2237881 | AG49: 2225823 | AH49: 2220595 | AI49: 2156724 | AJ49: 2094823 | AK49: 2095557 | AL49: 2013076 | AM49: 2048520 | AN49: 1994298 | AO49: 2042986 | AP49: 2125530 | AQ49: 2286009 | AR49: 2236405 | AS49: 2167370 | AT49: 2116206 | AU49: 2141397 | AV49: 2188850 | AW49: 2274687 | AX49: 2340202 | AY49: 2353878 | AZ49: 2345177 | BA49: 2380662 | BB49: 2324501 | BC49: 2285138 | BD49: 2272187 | BE49: 2248377 | BF49: 2158381 | BG49: 2116453 | BH49: 2040119 | BI49: 1971825 | BJ49: 1899969 | BK49: 1845968 | BL49: 1767666 | BM49: 1736005 | BN49: 1712971 | BO49: 1830102 | BP49: 1308940 | BQ49: 1311057 | BR49: 1295995 | BS49: 1349521 | BT49: 1166658 | BU49: 1080184 | BV49: 1016881 | BW49: 978716 | BX49: 945469 | BY49: 872408 | BZ49: 834670 | CA49: 796204 | CB49: 718649 | CC49: 698796 | CD49: 672621 | CE49: 654750 | CF49: 612879 | CG49: 570212 | CH49: 538420 | CI49: 495168 | CJ49: 452372 | CK49: 416988 | CL49: 378066 | CM49: 333878 | CN49: 291655 | CO49: 247001 | CP49: 200275 | CQ49: 160139 | CR49: 127407 | CS49: 99185 | CT49: 75883 | CU49: 57670 | CV49: 42593 | CW49: 29766 | CX49: 20056 | CY49: 13113 | CZ49: 8477 | DA49: 5366 | DB49: 7343
B50: SSA | C50: M | D50: 2009 | E50: 155207105 | F50: 2163961 | G50: 2238739 | H50: 2249551 | I50: 2189464 | J50: 2171603 | K50: 2173042 | L50: 2149142 | M50: 2132247 | N50: 2155826 | O50: 2169035 | P50: 2161135 | Q50: 2146015 | R50: 2131043 | S50: 2133099 | T50: 2161488 | U50: 2189251 | V50: 2235484 | W50: 2282198 | X50: 2313518 | Y50: 2328277 | Z50: 2257917 | AA50: 2211975 | AB50: 2191688 | AC50: 2196662 | AD50: 2200838 | AE50: 2155416 | AF50: 2221127 | AG50: 2234563 | AH50: 2221709 | AI50: 2216005 | AJ50: 2151046 | AK50: 2087496 | AL50: 2087991 | AM50: 2005926 | AN50: 2040865 | AO50: 1985507 | AP50: 2035470 | AQ50: 2117904 | AR50: 2278323 | AS50: 2230682 | AT50: 2159811 | AU50: 2108159 | AV50: 2133466 | AW50: 2181929 | AX50: 2266990 | AY50: 2329320 | AZ50: 2343123 | BA50: 2333623 | BB50: 2370422 | BC50: 2313924 | BD50: 2270649 | BE50: 2258002 | BF50: 2233643 | BG50: 2143925 | BH50: 2101922 | BI50: 2022652 | BJ50: 1954191 | BK50: 1882168 | BL50: 1829291 | BM50: 1750579 | BN50: 1715498 | BO50: 1692599 | BP50: 1808474 | BQ50: 1292693 | BR50: 1292632 | BS50: 1275097 | BT50: 1327670 | BU50: 1147150 | BV50: 1060668 | BW50: 996980 | BX50: 957116 | BY50: 922979 | BZ50: 849675 | CA50: 810427 | CB50: 769740 | CC50: 691414 | CD50: 670528 | CE50: 642460 | CF50: 622166 | CG50: 579368 | CH50: 535272 | CI50: 502754 | CJ50: 459097 | CK50: 415991 | CL50: 380543 | CM50: 341953 | CN50: 298493 | CO50: 257385 | CP50: 214883 | CQ50: 171443 | CR50: 134609 | CS50: 104975 | CT50: 79942 | CU50: 59707 | CV50: 44204 | CW50: 31755 | CX50: 21563 | CY50: 14114 | CZ50: 8948 | DA50: 5590 | DB50: 7533
B51: SSA | C51: M | D51: 2010 | E51: 156398060 | F51: 2088136 | G51: 2169891 | H51: 2245714 | I51: 2255868 | J51: 2196697 | K51: 2180408 | L51: 2182505 | M51: 2158752 | N51: 2141939 | O51: 2165975 | P51: 2179628 | Q51: 2171668 | R51: 2155983 | S51: 2140412 | T51: 2142290 | U51: 2170527 | V51: 2198401 | W51: 2245419 | X51: 2292760 | Y51: 2324107 | Z51: 2338674 | AA51: 2267749 | AB51: 2220913 | AC51: 2199756 | AD51: 2204030 | AE51: 2207190 | AF51: 2160453 | AG51: 2225251 | AH51: 2237404 | AI51: 2224199 | AJ51: 2217862 | AK51: 2151839 | AL51: 2087601 | AM51: 2087728 | AN51: 2005629 | AO51: 2040148 | AP51: 1983951 | AQ51: 2034151 | AR51: 2116272 | AS51: 2276242 | AT51: 2228929 | AU51: 2156911 | AV51: 2104595 | AW51: 2129307 | AX51: 2177463 | AY51: 2261422 | AZ51: 2321765 | BA51: 2335118 | BB51: 2325152 | BC51: 2361922 | BD51: 2304700 | BE51: 2259892 | BF51: 2247047 | BG51: 2221869 | BH51: 2131789 | BI51: 2089425 | BJ51: 2008773 | BK51: 1939802 | BL51: 1867305 | BM51: 1813969 | BN51: 1734614 | BO51: 1698040 | BP51: 1674711 | BQ51: 1788944 | BR51: 1277143 | BS51: 1274065 | BT51: 1254357 | BU51: 1304901 | BV51: 1126109 | BW51: 1039284 | BX51: 974856 | BY51: 933429 | BZ51: 898310 | CA51: 825029 | CB51: 784423 | CC51: 742082 | CD51: 663606 | CE51: 641241 | CF51: 611460 | CG51: 588933 | CH51: 545331 | CI51: 500246 | CJ51: 466768 | CK51: 422828 | CL51: 379615 | CM51: 344010 | CN51: 305875 | CO51: 263623 | CP51: 224124 | CQ51: 184224 | CR51: 144440 | CS51: 111208 | CT51: 84880 | CU51: 63116 | CV51: 45947 | CW51: 33099 | CX51: 23119 | CY51: 15253 | CZ51: 9701 | DA51: 5968 | DB51: 7871
B52: SSA | C52: M | D52: 2011 | E52: 157471783 | F52: 2043528 | G52: 2088967 | H52: 2172393 | I52: 2248776 | J52: 2258263 | K52: 2199881 | L52: 2184255 | M52: 2186674 | N52: 2163781 | O52: 2147580 | P52: 2173192 | Q52: 2186165 | R52: 2176426 | S52: 2161598 | T52: 2147664 | U52: 2150884 | V52: 2180193 | W52: 2208874 | X52: 2256343 | Y52: 2304465 | Z52: 2336397 | AA52: 2351276 | AB52: 2280544 | AC52: 2233361 | AD52: 2212267 | AE52: 2216668 | AF52: 2218727 | AG52: 2170792 | AH52: 2235002 | AI52: 2244256 | AJ52: 2228834 | AK52: 2219345 | AL52: 2149992 | AM52: 2083864 | AN52: 2081035 | AO52: 1997982 | AP52: 2032561 | AQ52: 1976866 | AR52: 2027202 | AS52: 2110407 | AT52: 2270996 | AU52: 2223894 | AV52: 2152313 | AW52: 2099707 | AX52: 2123315 | AY52: 2170281 | AZ52: 2253503 | BA52: 2313697 | BB52: 2326486 | BC52: 2316697 | BD52: 2352395 | BE52: 2294400 | BF52: 2250599 | BG52: 2237234 | BH52: 2211056 | BI52: 2120023 | BJ52: 2076968 | BK52: 1996484 | BL52: 1926762 | BM52: 1853648 | BN52: 1798448 | BO52: 1718352 | BP52: 1682234 | BQ52: 1658029 | BR52: 1770253 | BS52: 1261453 | BT52: 1254516 | BU52: 1232808 | BV52: 1280198 | BW52: 1102671 | BX52: 1015207 | BY52: 949714 | BZ52: 906851 | CA52: 870709 | CB52: 797786 | CC52: 755976 | CD52: 712494 | CE52: 634518 | CF52: 610314 | CG52: 579020 | CH52: 554375 | CI52: 509988 | CJ52: 464299 | CK52: 429725 | CL52: 385764 | CM52: 342773 | CN52: 307069 | CO52: 269617 | CP52: 229070 | CQ52: 191631 | CR52: 154727 | CS52: 118929 | CT52: 89603 | CU52: 66820 | CV52: 48436 | CW52: 34305 | CX52: 24012 | CY52: 16293 | CZ52: 10431 | DA52: 6423 | DB52: 8204
B53: SSA | C53: M | D53: 2012 | E53: 158477695 | F53: 2020845 | G53: 2047144 | H53: 2094000 | I53: 2176093 | J53: 2252546 | K53: 2261305 | L53: 2203479 | M53: 2188163 | N53: 2190897 | O53: 2169077 | P53: 2153590 | Q53: 2180778 | R53: 2192935 | S53: 2181083 | T53: 2166920 | U53: 2154718 | V53: 2159399 | W53: 2189815 | X53: 2219163 | Y53: 2267221 | Z53: 2316478 | AA53: 2348691 | AB53: 2363150 | AC53: 2292368 | AD53: 2245012 | AE53: 2223699 | AF53: 2227912 | AG53: 2228850 | AH53: 2179655 | AI53: 2243153 | AJ53: 2249433 | AK53: 2231755 | AL53: 2219032 | AM53: 2146301 | AN53: 2078300 | AO53: 2072508 | AP53: 1988588 | AQ53: 2023215 | AR53: 1968085 | AS53: 2018606 | AT53: 2103052 | AU53: 2264383 | AV53: 2217621 | AW53: 2146539 | AX53: 2093641 | AY53: 2116076 | AZ53: 2161853 | BA53: 2244378 | BB53: 2304433 | BC53: 2316625 | BD53: 2306950 | BE53: 2341515 | BF53: 2282765 | BG53: 2239963 | BH53: 2226025 | BI53: 2198770 | BJ53: 2106765 | BK53: 2062997 | BL53: 1982696 | BM53: 1912262 | BN53: 1838566 | BO53: 1781481 | BP53: 1700586 | BQ53: 1664814 | BR53: 1639658 | BS53: 1749713 | BT53: 1244447 | BU53: 1233587 | BV53: 1209810 | BW53: 1253937 | BX53: 1077848 | BY53: 989829 | BZ53: 923308 | CA53: 879014 | CB53: 841832 | CC53: 769296 | CD53: 726293 | CE53: 681713 | CF53: 604346 | CG53: 578322 | CH53: 545562 | CI53: 518856 | CJ53: 473821 | CK53: 427730 | CL53: 392317 | CM53: 348666 | CN53: 306288 | CO53: 270898 | CP53: 234551 | CQ53: 196145 | CR53: 161190 | CS53: 127621 | CT53: 95980 | CU53: 70584 | CV53: 51282 | CW53: 36132 | CX53: 24831 | CY53: 16853 | CZ53: 11100 | DA53: 6897 | DB53: 8720
B54: SSA | C54: M | D54: 2013 | E54: 159491677 | F54: 2021423 | G54: 2024402 | H54: 2055032 | I54: 2100390 | J54: 2180625 | K54: 2257068 | L54: 2264938 | M54: 2207347 | N54: 2192332 | O54: 2195628 | P54: 2174942 | Q54: 2160038 | R54: 2188458 | S54: 2199293 | T54: 2185150 | U54: 2171725 | V54: 2161259 | W54: 2167346 | X54: 2198634 | Y54: 2228696 | Z54: 2277473 | AA54: 2327032 | AB54: 2358321 | AC54: 2371681 | AD54: 2300699 | AE54: 2252971 | AF54: 2231110 | AG54: 2234978 | AH54: 2234549 | AI54: 2183833 | AJ54: 2246204 | AK54: 2250320 | AL54: 2232328 | AM54: 2218289 | AN54: 2144118 | AO54: 2076233 | AP54: 2069610 | AQ54: 1985439 | AR54: 2019803 | AS54: 1964659 | AT54: 2014820 | AU54: 2099698 | AV54: 2261047 | AW54: 2213910 | AX54: 2142871 | AY54: 2089365 | AZ54: 2110415 | BA54: 2154707 | BB54: 2236169 | BC54: 2295741 | BD54: 2307038 | BE54: 2297242 | BF54: 2330497 | BG54: 2270846 | BH54: 2228867 | BI54: 2214188 | BJ54: 2185743 | BK54: 2092723 | BL54: 2048191 | BM54: 1967995 | BN54: 1896758 | BO54: 1822389 | BP54: 1763318 | BQ54: 1681501 | BR54: 1645891 | BS54: 1619721 | BT54: 1727381 | BU54: 1226000 | BV54: 1211152 | BW54: 1185297 | BX54: 1226060 | BY54: 1051593 | BZ54: 963103 | CA54: 895591 | CB54: 849857 | CC54: 811585 | CD54: 739414 | CE54: 695207 | CF54: 649572 | CG54: 572932 | CH54: 545100 | CI54: 510964 | CJ54: 482386 | CK54: 436987 | CL54: 390792 | CM54: 354811 | CN54: 311767 | CO54: 270352 | CP54: 235696 | CQ54: 200899 | CR54: 165081 | CS54: 133038 | CT54: 103104 | CU54: 75733 | CV54: 54243 | CW54: 38292 | CX54: 26164 | CY54: 17418 | CZ54: 11450 | DA54: 7312 | DB54: 9317
B55: SSA | C55: M | D55: 2014 | E55: 160766346 | F55: 2037884 | G55: 2026397 | H55: 2032669 | I55: 2064866 | J55: 2108354 | K55: 2186827 | L55: 2263371 | M55: 2270298 | N55: 2213155 | O55: 2198991 | P55: 2203276 | Q55: 2183988 | R55: 2169696 | S55: 2199261 | T55: 2208805 | U55: 2192634 | V55: 2180335 | W55: 2171945 | X55: 2179640 | Y55: 2212204 | Z55: 2243820 | AA55: 2293610 | AB55: 2343269 | AC55: 2373585 | AD55: 2386024 | AE55: 2315209 | AF55: 2267466 | AG55: 2245486 | AH55: 2249592 | AI55: 2248273 | AJ55: 2196115 | AK55: 2257565 | AL55: 2259320 | AM55: 2240644 | AN55: 2225126 | AO55: 2149387 | AP55: 2081434 | AQ55: 2074014 | AR55: 1989233 | AS55: 2023127 | AT55: 1967430 | AU55: 2016748 | AV55: 2101259 | AW55: 2261858 | AX55: 2213569 | AY55: 2142116 | AZ55: 2087699 | BA55: 2107211 | BB55: 2149726 | BC55: 2229678 | BD55: 2288343 | BE55: 2298424 | BF55: 2288282 | BG55: 2319970 | BH55: 2259122 | BI55: 2217730 | BJ55: 2202112 | BK55: 2172370 | BL55: 2078322 | BM55: 2033010 | BN55: 1952866 | BO55: 1880732 | BP55: 1805605 | BQ55: 1744481 | BR55: 1661652 | BS55: 1626125 | BT55: 1598839 | BU55: 1703815 | BV55: 1206652 | BW55: 1187855 | BX55: 1159801 | BY55: 1196960 | BZ55: 1024124 | CA55: 935118 | CB55: 866592 | CC55: 819398 | CD55: 779997 | CE55: 708240 | CF55: 662909 | CG55: 616307 | CH55: 540522 | CI55: 510949 | CJ55: 475558 | CK55: 445292 | CL55: 399830 | CM55: 353884 | CN55: 317665 | CO55: 275570 | CP55: 235529 | CQ55: 202091 | CR55: 169303 | CS55: 136458 | CT55: 107627 | CU55: 81471 | CV55: 58323 | CW55: 40605 | CX55: 27804 | CY55: 18409 | CZ55: 11893 | DA55: 7598 | DB55: 10023
B56: SSA | C56: M | D56: 2015 | E56: 162221833 | F56: 2055894 | G56: 2043753 | H56: 2035959 | I56: 2042851 | J56: 2076239 | K56: 2117895 | L56: 2194622 | M56: 2271172 | N56: 2277275 | O56: 2220961 | P56: 2208034 | Q56: 2213581 | R56: 2195776 | S56: 2182010 | T56: 2212818 | U56: 2221450 | V56: 2203644 | W56: 2192767 | X56: 2186587 | Y56: 2196046 | Z56: 2230477 | AA56: 2263754 | AB56: 2314397 | AC56: 2364447 | AD56: 2394040 | AE56: 2406023 | AF56: 2335763 | AG56: 2288301 | AH56: 2266667 | AI56: 2271518 | AJ56: 2269698 | AK56: 2214936 | AL56: 2273234 | AM56: 2271377 | AN56: 2251882 | AO56: 2234823 | AP56: 2157469 | AQ56: 2089378 | AR56: 2081187 | AS56: 1995673 | AT56: 2028995 | AU56: 1972556 | AV56: 2020872 | AW56: 2104680 | AX56: 2264176 | AY56: 2214411 | AZ56: 2142368 | BA56: 2086906 | BB56: 2104809 | BC56: 2145378 | BD56: 2223555 | BE56: 2281081 | BF56: 2289793 | BG56: 2279138 | BH56: 2309038 | BI56: 2246865 | BJ56: 2206012 | BK56: 2189414 | BL56: 2158323 | BM56: 2063237 | BN56: 2017102 | BO56: 1936955 | BP56: 1863853 | BQ56: 1787862 | BR56: 1724609 | BS56: 1640808 | BT56: 1605330 | BU56: 1576764 | BV56: 1678793 | BW56: 1186259 | BX56: 1163494 | BY56: 1133110 | BZ56: 1166472 | CA56: 995349 | CB56: 905814 | CC56: 836259 | CD56: 787596 | CE56: 747036 | CF56: 675756 | CG56: 629354 | CH56: 581784 | CI56: 506981 | CJ56: 475828 | CK56: 439432 | CL56: 407748 | CM56: 362504 | CN56: 317124 | CO56: 281043 | CP56: 240354 | CQ56: 202174 | CR56: 170423 | CS56: 140042 | CT56: 110456 | CU56: 85067 | CV56: 62766 | CW56: 43699 | CX56: 29503 | CY56: 19541 | CZ56: 12502 | DA56: 7816 | DB56: 10486
B57: SSA | C57: M | D57: 2016 | E57: 163429901 | F57: 2048580 | G57: 2061566 | H57: 2053735 | I57: 2046829 | J57: 2053832 | K57: 2088254 | L57: 2127757 | M57: 2202337 | N57: 2278647 | O57: 2283837 | P57: 2228279 | Q57: 2216425 | R57: 2222867 | S57: 2205997 | T57: 2192428 | U57: 2224361 | V57: 2232022 | W57: 2212478 | X57: 2202718 | Y57: 2198426 | Z57: 2209376 | AA57: 2244860 | AB57: 2278802 | AC57: 2329593 | AD57: 2379309 | AE57: 2407790 | AF57: 2419160 | AG57: 2349245 | AH57: 2301845 | AI57: 2280396 | AJ57: 2285744 | AK57: 2283114 | AL57: 2225687 | AM57: 2280594 | AN57: 2275208 | AO57: 2255139 | AP57: 2236692 | AQ57: 2157896 | AR57: 2089888 | AS57: 2080912 | AT57: 1995022 | AU57: 2027952 | AV57: 1971266 | AW57: 2018948 | AX57: 2102686 | AY57: 2261615 | AZ57: 2210986 | BA57: 2138672 | BB57: 2082395 | BC57: 2098760 | BD57: 2137534 | BE57: 2214183 | BF57: 2270806 | BG57: 2278343 | BH57: 2267264 | BI57: 2295444 | BJ57: 2232136 | BK57: 2191924 | BL57: 2174414 | BM57: 2142018 | BN57: 2045932 | BO57: 1998897 | BP57: 1918711 | BQ57: 1844639 | BR57: 1767762 | BS57: 1702462 | BT57: 1617824 | BU57: 1582289 | BV57: 1552377 | BW57: 1651172 | BX57: 1163874 | BY57: 1137078 | BZ57: 1104332 | CA57: 1133745 | CB57: 964550 | CC57: 874602 | CD57: 804159 | CE57: 754133 | CF57: 712452 | CG57: 641719 | CH57: 594311 | CI57: 545922 | CJ57: 472368 | CK57: 439854 | CL57: 402708 | CM57: 369895 | CN57: 325204 | CO57: 280759 | CP57: 245227 | CQ57: 206381 | CR57: 170530 | CS57: 140966 | CT57: 113412 | CU57: 87365 | CV57: 65559 | CW57: 47034 | CX57: 31770 | CY57: 20765 | CZ57: 13289 | DA57: 8197 | DB57: 10683
B58: SSA | C58: M | D58: 2017 | E58: 164451955 | F58: 2010232 | G58: 2054377 | H58: 2071414 | I58: 2065069 | J58: 2058437 | K58: 2065327 | L58: 2100443 | M58: 2137385 | N58: 2209727 | O58: 2285808 | P58: 2289928 | Q58: 2234948 | R58: 2223861 | S58: 2230716 | T58: 2214442 | U58: 2200900 | V58: 2233921 | W58: 2240567 | X58: 2219017 | Y58: 2210085 | Z58: 2207217 | AA58: 2218810 | AB58: 2254534 | AC58: 2288641 | AD58: 2338980 | AE58: 2388026 | AF58: 2415436 | AG58: 2426032 | AH58: 2356421 | AI58: 2309043 | AJ58: 2287641 | AK58: 2293260 | AL58: 2289559 | AM58: 2230652 | AN58: 2284415 | AO58: 2276698 | AP58: 2256115 | AQ58: 2236345 | AR58: 2156218 | AS58: 2088370 | AT58: 2078602 | AU58: 1992463 | AV58: 2025075 | AW58: 1968221 | AX58: 2015232 | AY58: 2098913 | AZ58: 2257279 | BA58: 2205848 | BB58: 2133297 | BC58: 2076288 | BD58: 2091111 | BE58: 2128064 | BF58: 2203153 | BG58: 2258835 | BH58: 2265169 | BI58: 2253676 | BJ58: 2280117 | BK58: 2215670 | BL58: 2176005 | BM58: 2157520 | BN58: 2123787 | BO58: 2026700 | BP58: 1978687 | BQ58: 1898411 | BR58: 1823347 | BS58: 1745701 | BT58: 1678494 | BU58: 1592937 | BV58: 1557169 | BW58: 1525799 | BX58: 1620978 | BY58: 1139536 | BZ58: 1108688 | CA58: 1073557 | CB58: 1098875 | CC58: 931825 | CD58: 841560 | CE58: 770320 | CF58: 718979 | CG58: 676184 | CH58: 606090 | CI58: 557825 | CJ58: 508834 | CK58: 436828 | CL58: 403173 | CM58: 365531 | CN58: 331913 | CO58: 288157 | CP58: 245134 | CQ58: 210704 | CR58: 174200 | CS58: 141118 | CT58: 114189 | CU58: 89813 | CV58: 67468 | CW58: 49225 | CX58: 34257 | CY58: 22403 | CZ58: 14156 | DA58: 8755 | DB58: 11093
B59: SSA | C59: M | D59: 2018 | E59: 165344376 | F59: 1981864 | G59: 2015825 | H59: 2063823 | I59: 2082054 | J59: 2076531 | K59: 2069997 | L59: 2076528 | M59: 2112024 | N59: 2146424 | O59: 2216603 | P59: 2292282 | Q59: 2295132 | R59: 2240517 | S59: 2229860 | T59: 2237056 | U59: 2221734 | V59: 2208719 | W59: 2243285 | X59: 2248452 | Y59: 2224292 | Z59: 2216037 | AA59: 2213744 | AB59: 2224863 | AC59: 2260374 | AD59: 2294411 | AE59: 2344246 | AF59: 2392923 | AG59: 2419503 | AH59: 2429505 | AI59: 2360403 | AJ59: 2313186 | AK59: 2291908 | AL59: 2297848 | AM59: 2293140 | AN59: 2232950 | AO59: 2285733 | AP59: 2275890 | AQ59: 2255004 | AR59: 2234053 | AS59: 2152739 | AT59: 2085266 | AU59: 2074858 | AV59: 1988609 | AW59: 2020949 | AX59: 1964005 | AY59: 2010373 | AZ59: 2093993 | BA59: 2251688 | BB59: 2199469 | BC59: 2126731 | BD59: 2069010 | BE59: 2082281 | BF59: 2117396 | BG59: 2190841 | BH59: 2245462 | BI59: 2250535 | BJ59: 2238577 | BK59: 2263209 | BL59: 2197594 | BM59: 2158428 | BN59: 2138912 | BO59: 2103736 | BP59: 2005562 | BQ59: 1956484 | BR59: 1876089 | BS59: 1800132 | BT59: 1721854 | BU59: 1652699 | BV59: 1566164 | BW59: 1530059 | BX59: 1497109 | BY59: 1588294 | BZ59: 1113296 | CA59: 1078353 | CB59: 1040792 | CC59: 1061864 | CD59: 897218 | CE59: 806807 | CF59: 734894 | CG59: 682289 | CH59: 638383 | CI59: 569029 | CJ59: 520049 | CK59: 470623 | CL59: 400422 | CM59: 365880 | CN59: 328077 | CO59: 294042 | CP59: 251646 | CQ59: 210567 | CR59: 177819 | CS59: 144185 | CT59: 114292 | CU59: 90302 | CV59: 69238 | CW59: 50544 | CX59: 35723 | CY59: 24043 | CZ59: 15198 | DA59: 9284 | DB59: 11687
B60: SSA | C60: M | D60: 2019 | E60: 165984612 | F60: 1941811 | G60: 1986232 | H60: 2024200 | I60: 2073191 | J60: 2091878 | K60: 2086855 | L60: 2080039 | M60: 2085798 | N60: 2121609 | O60: 2153508 | P60: 2221305 | Q60: 2296345 | R60: 2297778 | S60: 2243295 | T60: 2232767 | U60: 2240252 | V60: 2226035 | W60: 2213747 | X60: 2249763 | Y60: 2252796 | Z60: 2225432 | AA60: 2217286 | AB60: 2215046 | AC60: 2225616 | AD60: 2260618 | AE60: 2294336 | AF60: 2343677 | AG60: 2391898 | AH60: 2417637 | AI60: 2427002 | AJ60: 2358431 | AK60: 2311311 | AL60: 2290056 | AM60: 2296251 | AN60: 2290545 | AO60: 2229321 | AP60: 2281214 | AQ60: 2269520 | AR60: 2248687 | AS60: 2226809 | AT60: 2144564 | AU60: 2077730 | AV60: 2066779 | AW60: 1980707 | AX60: 2012897 | AY60: 1956162 | AZ60: 2002124 | BA60: 2085982 | BB60: 2243204 | BC60: 2190494 | BD60: 2117685 | BE60: 2059302 | BF60: 2071039 | BG60: 2104408 | BH60: 2176260 | BI60: 2229861 | BJ60: 2233729 | BK60: 2221317 | BL60: 2244116 | BM60: 2177417 | BN60: 2138751 | BO60: 2118132 | BP60: 2081425 | BQ60: 1982169 | BR60: 1931977 | BS60: 1851561 | BT60: 1774858 | BU60: 1695940 | BV60: 1624850 | BW60: 1537386 | BX60: 1500831 | BY60: 1466220 | BZ60: 1553076 | CA60: 1085138 | CB60: 1046120 | CC60: 1006156 | CD60: 1022880 | CE60: 860883 | CF60: 770499 | CG60: 698100 | CH60: 644382 | CI60: 599464 | CJ60: 531003 | CK60: 481516 | CL60: 431923 | CM60: 363839 | CN60: 328730 | CO60: 291147 | CP60: 257217 | CQ60: 216718 | CR60: 178105 | CS60: 147532 | CT60: 117102 | CU60: 90630 | CV60: 69749 | CW60: 51988 | CX60: 36798 | CY60: 25164 | CZ60: 16389 | DA60: 10041 | DB60: 12549
B61: SSA | C61: M | D61: 2020 | E61: 166497824 | F61: 1919010 | G61: 1945353 | H61: 1993337 | I61: 2032672 | J61: 2082075 | K61: 2101032 | L61: 2096284 | M61: 2088866 | N61: 2093814 | O61: 2130110 | P61: 2159553 | Q61: 2225022 | R61: 2299621 | S61: 2299790 | T61: 2245513 | U61: 2235097 | V61: 2242824 | W61: 2229663 | X61: 2217815 | Y61: 2254733 | Z61: 2255542 | AA61: 2224993 | AB61: 2216852 | AC61: 2215258 | AD61: 2226156 | AE61: 2261306 | AF61: 2295214 | AG61: 2344411 | AH61: 2392405 | AI61: 2417352 | AJ61: 2425975 | AK61: 2357780 | AL61: 2310641 | AM61: 2289428 | AN61: 2296065 | AO61: 2289591 | AP61: 2227426 | AQ61: 2278494 | AR61: 2264952 | AS61: 2244055 | AT61: 2221212 | AU61: 2138080 | AV61: 2071848 | AW61: 2060357 | AX61: 1974349 | AY61: 2006218 | AZ61: 1949393 | BA61: 1994555 | BB61: 2078051 | BC61: 2234169 | BD61: 2180567 | BE61: 2107429 | BF61: 2048218 | BG61: 2058249 | BH61: 2089558 | BI61: 2159397 | BJ61: 2211615 | BK61: 2214046 | BL61: 2200984 | BM61: 2221642 | BN61: 2153617 | BO61: 2115150 | BP61: 2093164 | BQ61: 2054755 | BR61: 1954449 | BS61: 1903200 | BT61: 1822906 | BU61: 1745431 | BV61: 1665784 | BW61: 1592685 | BX61: 1504166 | BY61: 1466823 | BZ61: 1430205 | CA61: 1511808 | CB61: 1052395 | CC61: 1009204 | CD61: 966646 | CE61: 978516 | CF61: 819665 | CG61: 729538 | CH61: 656877 | CI61: 602198 | CJ61: 556352 | CK61: 489047 | CL61: 439312 | CM61: 389969 | CN61: 324682 | CO61: 289492 | CP61: 252687 | CQ61: 219515 | CR61: 181622 | CS61: 146154 | CT61: 118368 | CU61: 91657 | CV61: 69006 | CW61: 51538 | CX61: 37236 | CY61: 25507 | CZ61: 16856 | DA61: 10607 | DB61: 13018
B62: SSA | C62: M | D62: 2021 | E62: 166924706 | F62: 1852983 | G62: 1922671 | H62: 1952487 | I62: 2001717 | J62: 2042065 | K62: 2091885 | L62: 2111074 | M62: 2106456 | N62: 2098507 | O62: 2102949 | P62: 2139923 | Q62: 2167129 | R62: 2230531 | S62: 2304831 | T62: 2303822 | U62: 2249807 | V62: 2239612 | W62: 2247630 | X62: 2235509 | Y62: 2224217 | Z62: 2262058 | AA62: 2260668 | AB62: 2227078 | AC62: 2219165 | AD62: 2218592 | AE62: 2230106 | AF62: 2265646 | AG62: 2300007 | AH62: 2349281 | AI62: 2397118 | AJ62: 2421188 | AK62: 2428925 | AL62: 2360846 | AM62: 2313466 | AN62: 2292115 | AO62: 2299102 | AP62: 2291836 | AQ62: 2228520 | AR62: 2278569 | AS62: 2262936 | AT62: 2241641 | AU62: 2217561 | AV62: 2133353 | AW62: 2067520 | AX62: 2055334 | AY62: 1969116 | AZ62: 2000336 | BA62: 1943029 | BB62: 1986912 | BC62: 2069421 | BD62: 2223749 | BE62: 2168822 | BF62: 2095106 | BG62: 2034883 | BH62: 2042948 | BI62: 2071859 | BJ62: 2139246 | BK62: 2189685 | BL62: 2190396 | BM62: 2176412 | BN62: 2194564 | BO62: 2124996 | BP62: 2086455 | BQ62: 2062910 | BR62: 2022718 | BS62: 1921581 | BT62: 1869365 | BU62: 1789150 | BV62: 1710827 | BW62: 1630368 | BX62: 1555138 | BY62: 1465471 | BZ62: 1427016 | CA62: 1388093 | CB62: 1463565 | CC62: 1014554 | CD62: 967266 | CE62: 922068 | CF62: 928691 | CG62: 773601 | CH62: 684110 | CI62: 611609 | CJ62: 556367 | CK62: 509908 | CL62: 444209 | CM62: 394671 | CN62: 346103 | CO62: 284295 | CP62: 249670 | CQ62: 214329 | CR62: 182615 | CS62: 147933 | CT62: 116185 | CU62: 91702 | CV62: 69048 | CW62: 50400 | CX62: 36416 | CY62: 25442 | CZ62: 16832 | DA62: 10723 | DB62: 13386
B63: SSA | C63: M | D63: 2022 | E63: 167832956 | F63: 1893997 | G63: 1852638 | H63: 1930237 | I63: 1961595 | J63: 2011966 | K63: 2053441 | L63: 2103774 | M63: 2123235 | N63: 2119050 | O63: 2111098 | P63: 2115466 | Q63: 2153651 | R63: 2179166 | S63: 2240867 | T63: 2315142 | U63: 2313222 | V63: 2259788 | W63: 2250263 | X63: 2259047 | Y63: 2248746 | Z63: 2238837 | AA63: 2278125 | AB63: 2274837 | AC63: 2238410 | AD63: 2230878 | AE63: 2231376 | AF63: 2243532 | AG63: 2279676 | AH63: 2314678 | AI63: 2364235 | AJ63: 2412237 | AK63: 2435610 | AL63: 2442553 | AM63: 2374511 | AN63: 2326915 | AO63: 2305404 | AP63: 2312652 | AQ63: 2304509 | AR63: 2239572 | AS63: 2288363 | AT63: 2270184 | AU63: 2247997 | AV63: 2222277 | AW63: 2136596 | AX63: 2070765 | AY63: 2057740 | AZ63: 1970810 | BA63: 2001074 | BB63: 1942701 | BC63: 1984820 | BD63: 2065602 | BE63: 2217469 | BF63: 2160509 | BG63: 2085809 | BH63: 2024278 | BI63: 2030184 | BJ63: 2056419 | BK63: 2120973 | BL63: 2169255 | BM63: 2167949 | BN63: 2152805 | BO63: 2168279 | BP63: 2097012 | BQ63: 2058247 | BR63: 2033043 | BS63: 1991167 | BT63: 1889374 | BU63: 1836166 | BV63: 1755905 | BW63: 1676606 | BX63: 1595146 | BY63: 1517678 | BZ63: 1426753 | CA63: 1386984 | CB63: 1345574 | CC63: 1414788 | CD63: 976509 | CE63: 925385 | CF63: 877660 | CG63: 879200 | CH63: 727992 | CI63: 639298 | CJ63: 567156 | CK63: 511605 | CL63: 464826 | CM63: 401026 | CN63: 352097 | CO63: 304690 | CP63: 246618 | CQ63: 213064 | CR63: 179671 | CS63: 149937 | CT63: 118746 | CU63: 90876 | CV63: 69801 | CW63: 51057 | CX63: 36126 | CY63: 25269 | CZ63: 17090 | DA63: 10940 | DB63: 14080
B64: SSA | C64: M | D64: 2023 | E64: 169255216 | F64: 1899207 | G64: 1898496 | H64: 1864872 | I64: 1944539 | J64: 1975396 | K64: 2025924 | L64: 2067748 | M64: 2118249 | N64: 2138092 | O64: 2134635 | P64: 2127199 | Q64: 2132060 | R64: 2171392 | S64: 2196491 | T64: 2258021 | U64: 2333205 | V64: 2331775 | W64: 2279686 | X64: 2271774 | Y64: 2282014 | Z64: 2273832 | AA64: 2266042 | AB64: 2307798 | AC64: 2304779 | AD64: 2267105 | AE64: 2259593 | AF64: 2260092 | AG64: 2271867 | AH64: 2307887 | AI64: 2342793 | AJ64: 2392099 | AK64: 2439191 | AL64: 2460421 | AM64: 2465804 | AN64: 2396903 | AO64: 2348446 | AP64: 2326161 | AQ64: 2332684 | AR64: 2323150 | AS64: 2256213 | AT64: 2303429 | AU64: 2282779 | AV64: 2259026 | AW64: 2231565 | AX64: 2144276 | AY64: 2077460 | AZ64: 2063262 | BA64: 1975165 | BB64: 2004192 | BC64: 1944422 | BD64: 1984893 | BE64: 2063875 | BF64: 2213394 | BG64: 2154608 | BH64: 2078811 | BI64: 2015992 | BJ64: 2019997 | BK64: 2043843 | BL64: 2105693 | BM64: 2151636 | BN64: 2148232 | BO64: 2131443 | BP64: 2144308 | BQ64: 2071377 | BR64: 2031524 | BS64: 2004411 | BT64: 1960857 | BU64: 1858411 | BV64: 1803953 | BW64: 1723144 | BX64: 1642787 | BY64: 1560290 | BZ64: 1481135 | CA64: 1389107 | CB64: 1347430 | CC64: 1303406 | CD64: 1366085 | CE64: 938996 | CF64: 885032 | CG64: 835000 | CH64: 831760 | CI64: 684440 | CJ64: 596790 | CK64: 525305 | CL64: 469673 | CM64: 422637 | CN64: 360673 | CO64: 312608 | CP64: 266640 | CQ64: 212398 | CR64: 180270 | CS64: 149109 | CT64: 121678 | CU64: 94055 | CV64: 70005 | CW64: 52229 | CX64: 37062 | CY64: 25420 | CZ64: 17251 | DA64: 11292 | DB64: 15040
B65: SSA | C65: M | D65: 2024 | E65: 170796281 | F65: 1917829 | G65: 1925077 | H65: 1922714 | I65: 1885958 | J65: 1963746 | K65: 1992769 | L65: 2042625 | M65: 2083913 | N65: 2134422 | O65: 2154677 | P65: 2151757 | Q65: 2144986 | R65: 2150494 | S65: 2190434 | T65: 2216315 | U65: 2279280 | V65: 2356294 | W65: 2356780 | X65: 2306498 | Y65: 2300478 | Z65: 2312198 | AA65: 2305240 | AB65: 2299080 | AC65: 2342987 | AD65: 2341399 | AE65: 2303911 | AF65: 2295946 | AG65: 2295528 | AH65: 2306119 | AI65: 2341373 | AJ65: 2375359 | AK65: 2422911 | AL65: 2466932 | AM65: 2484738 | AN65: 2488047 | AO65: 2417346 | AP65: 2367242 | AQ65: 2343285 | AR65: 2347864 | AS65: 2336408 | AT65: 2267516 | AU65: 2313065 | AV65: 2290612 | AW65: 2265226 | AX65: 2236292 | AY65: 2147498 | AZ65: 2078996 | BA65: 2063356 | BB65: 1974051 | BC65: 2001739 | BD65: 1940897 | BE65: 1980288 | BF65: 2057973 | BG65: 2205702 | BH65: 2145896 | BI65: 2069191 | BJ65: 2005284 | BK65: 2007682 | BL65: 2029619 | BM65: 2089192 | BN65: 2132899 | BO65: 2127521 | BP65: 2108748 | BQ65: 2119218 | BR65: 2044842 | BS65: 2003085 | BT65: 1973995 | BU65: 1928906 | BV65: 1825988 | BW65: 1770131 | BX65: 1688265 | BY65: 1606671 | BZ65: 1522931 | CA65: 1442384 | CB65: 1349271 | CC65: 1305011 | CD65: 1258284 | CE65: 1313984 | CF65: 899588 | CG65: 843889 | CH65: 791942 | CI65: 784194 | CJ65: 641076 | CK65: 554806 | CL65: 484506 | CM65: 429466 | CN65: 382550 | CO65: 322550 | CP65: 275757 | CQ65: 231659 | CR65: 181465 | CS65: 151173 | CT65: 122551 | CU65: 97724 | CV65: 73700 | CW65: 53359 | CX65: 38684 | CY65: 26666 | CZ65: 17780 | DA65: 11714 | DB65: 16314
B66: SSA | C66: M | D66: 2025 | E66: 172195598 | F66: 1945964 | G66: 1940091 | H66: 1946578 | I66: 1942094 | J66: 1903111 | K66: 1979870 | L66: 2007983 | M66: 2057510 | N66: 2098566 | O66: 2149393 | P66: 2170011 | Q66: 2167564 | R66: 2161346 | S66: 2167302 | T66: 2208038 | U66: 2235095 | V66: 2299688 | W66: 2378652 | X66: 2380942 | Y66: 2331892 | Z66: 2326992 | AA66: 2339376 | AB66: 2332824 | AC66: 2327294 | AD66: 2371992 | AE66: 2370863 | AF66: 2333261 | AG66: 2324962 | AH66: 2324177 | AI66: 2334357 | AJ66: 2369409 | AK66: 2402164 | AL66: 2447042 | AM66: 2488125 | AN66: 2503643 | AO66: 2505450 | AP66: 2433194 | AQ66: 2381617 | AR66: 2356046 | AS66: 2358888 | AT66: 2345854 | AU66: 2275387 | AV66: 2319627 | AW66: 2295864 | AX66: 2269203 | AY66: 2238920 | AZ66: 2148744 | BA66: 2078857 | BB66: 2062010 | BC66: 1971635 | BD66: 1998132 | BE66: 1936447 | BF66: 1974730 | BG66: 2050929 | BH66: 2196629 | BI66: 2135672 | BJ66: 2057975 | BK66: 1992925 | BL66: 1993656 | BM66: 2013687 | BN66: 2070938 | BO66: 2112289 | BP66: 2104868 | BQ66: 2084144 | BR66: 2092284 | BS66: 2016668 | BT66: 1973250 | BU66: 1942444 | BV66: 1896027 | BW66: 1792708 | BX66: 1735360 | BY66: 1652255 | BZ66: 1569125 | CA66: 1483781 | CB66: 1401515 | CC66: 1307100 | CD66: 1260065 | CE66: 1210523 | CF66: 1259044 | CG66: 858271 | CH66: 801034 | CI66: 747347 | CJ66: 735178 | CK66: 596605 | CL66: 511930 | CM66: 442949 | CN66: 388693 | CO66: 342253 | CP66: 284715 | CQ66: 239767 | CR66: 198131 | CS66: 152407 | CT66: 124407 | CU66: 98649 | CV66: 76711 | CW66: 56346 | CX66: 39621 | CY66: 27893 | CZ66: 18689 | DA66: 12096 | DB66: 17269
B67: SSA | C67: M | D67: 2026 | E67: 173278856 | F67: 1972499 | G67: 1961693 | H67: 1955861 | I67: 1961019 | J67: 1955286 | K67: 1915145 | L67: 1991693 | M67: 2019378 | N67: 2068846 | O67: 2109994 | P67: 2161090 | Q67: 2182003 | R67: 2179951 | S67: 2174043 | T67: 2180437 | U67: 2222087 | V67: 2250208 | W67: 2316064 | X67: 2396298 | Y67: 2399377 | Z67: 2350476 | AA67: 2345443 | AB67: 2357372 | AC67: 2350535 | AD67: 2344988 | AE67: 2389808 | AF67: 2388741 | AG67: 2351030 | AH67: 2342751 | AI67: 2342258 | AJ67: 2352603 | AK67: 2387133 | AL67: 2418003 | AM67: 2460590 | AN67: 2500009 | AO67: 2514154 | AP67: 2514885 | AQ67: 2441584 | AR67: 2388897 | AS67: 2362132 | AT67: 2363756 | AU67: 2349598 | AV67: 2278110 | AW67: 2321430 | AX67: 2296730 | AY67: 2268971 | AZ67: 2237502 | BA67: 2146374 | BB67: 2075598 | BC67: 2057837 | BD67: 1966749 | BE67: 1992278 | BF67: 1929910 | BG67: 1967024 | BH67: 2041644 | BI67: 2185149 | BJ67: 2123089 | BK67: 2044450 | BL67: 1978315 | BM67: 1977415 | BN67: 1995559 | BO67: 2050393 | BP67: 2089284 | BQ67: 2079835 | BR67: 2057227 | BS67: 2063131 | BT67: 1986593 | BU67: 1941886 | BV67: 1909542 | BW67: 1861725 | BX67: 1757824 | BY67: 1698697 | BZ67: 1614079 | CA67: 1529208 | CB67: 1442216 | CC67: 1358293 | CD67: 1262697 | CE67: 1212932 | CF67: 1160616 | CG67: 1201804 | CH67: 815319 | CI67: 756618 | CJ67: 701326 | CK67: 684832 | CL67: 551151 | CM67: 468381 | CN67: 400889 | CO67: 347444 | CP67: 301803 | CQ67: 247309 | CR67: 204797 | CS67: 166148 | CT67: 125232 | CU67: 99916 | CV67: 77291 | CW67: 58442 | CX67: 41701 | CY67: 28430 | CZ67: 19424 | DA67: 12625 | DB67: 17944
B68: SSA | C68: M | D68: 2027 | E68: 174162169 | F68: 1995782 | G68: 1984294 | H68: 1974141 | I68: 1967151 | J68: 1971332 | K68: 1964988 | L68: 1924382 | M68: 2000945 | N68: 2028468 | O68: 2078138 | P68: 2119401 | Q68: 2170768 | R68: 2191971 | S68: 2190158 | T68: 2184610 | U68: 2191635 | V68: 2234193 | W68: 2263228 | X68: 2329946 | Y68: 2410677 | Z68: 2413740 | AA68: 2364244 | AB68: 2358497 | AC68: 2369864 | AD68: 2362602 | AE68: 2356715 | AF68: 2401264 | AG68: 2400094 | AH68: 2362514 | AI68: 2354710 | AJ68: 2354814 | AK68: 2364805 | AL68: 2397856 | AM68: 2426893 | AN68: 2468063 | AO68: 2506392 | AP68: 2519501 | AQ68: 2519426 | AR68: 2445305 | AS68: 2391771 | AT68: 2364142 | AU68: 2364820 | AV68: 2349817 | AW68: 2277645 | AX68: 2320150 | AY68: 2294509 | AZ68: 2265683 | BA68: 2233292 | BB68: 2141556 | BC68: 2070134 | BD68: 2051617 | BE68: 1960021 | BF68: 1984583 | BG68: 1921527 | BH68: 1957374 | BI68: 2030313 | BJ68: 2171502 | BK68: 2108405 | BL68: 2028873 | BM68: 1961726 | BN68: 1959214 | BO68: 1975413 | BP68: 2027724 | BQ68: 2064139 | BR68: 2052723 | BS68: 2028363 | BT68: 2032158 | BU68: 1954869 | BV68: 1908928 | BW68: 1874955 | BX68: 1825498 | BY68: 1720751 | BZ68: 1659517 | CA68: 1573162 | CB68: 1486478 | CC68: 1397899 | CD68: 1312398 | CE68: 1215723 | CF68: 1163230 | CG68: 1108153 | CH68: 1141810 | CI68: 770417 | CJ68: 710347 | CK68: 653593 | CL68: 632869 | CM68: 504525 | CN68: 424103 | CO68: 358604 | CP68: 306539 | CQ68: 262310 | CR68: 211416 | CS68: 171872 | CT68: 136640 | CU68: 100703 | CV68: 78344 | CW68: 58977 | CX68: 43272 | CY68: 29961 | CZ68: 19806 | DA68: 13118 | DB68: 18681
B70: HMD | C70: F | D70: 2000 | E70: 142712944 | F70: 1867013.125 | G70: 1852381.125 | H70: 1852960.875 | I70: 1868837.875 | J70: 1915542.5 | K70: 1941707.625 | L70: 1962829.75 | M70: 2015108.5 | N70: 2036636.75 | O70: 2062180.5 | P70: 2062304.75 | Q70: 1997410.75 | R70: 1974689.375 | S70: 1960706.875 | T70: 1964531.375 | U70: 1944088 | V70: 1940094.25 | W70: 1952222.375 | X70: 1960549.875 | Y70: 2011423.875 | Z70: 1959912.5 | AA70: 1869404.5 | AB70: 1825107 | AC70: 1783475 | AD70: 1786659.625 | AE70: 1819604.875 | AF70: 1805794.125 | AG70: 1903046.375 | AH70: 2008905 | AI70: 2076595.5 | AJ70: 2092777.625 | AK70: 1985595.375 | AL70: 2001470.625 | AM70: 2020654.5 | AN70: 2121586 | AO70: 2253876.5 | AP70: 2274790 | AQ70: 2285759.25 | AR70: 2280039.25 | AS70: 2321328 | AT70: 2346702 | AU70: 2262689 | AV70: 2275088.5 | AW70: 2221378.25 | AX70: 2167859.25 | AY70: 2166851.75 | AZ70: 2071176.5 | BA70: 2024849 | BB70: 1935974.5 | BC70: 1928463.75 | BD70: 1923904 | BE70: 1855103.625 | BF70: 1915893.25 | BG70: 1689781 | BH70: 1476225.625 | BI70: 1466186.875 | BJ70: 1481855.5 | BK70: 1416578.375 | BL70: 1295151.25 | BM70: 1227383.125 | BN70: 1211422.5 | BO70: 1150757.5 | BP70: 1119074.125 | BQ70: 1086700.875 | BR70: 1087125.375 | BS70: 1051163.75 | BT70: 1011441.875 | BU70: 1025057.25 | BV70: 1024789.438 | BW70: 1021234.938 | BX70: 1035357.75 | BY70: 1001516.062 | BZ70: 989831.625 | CA70: 973659.6875 | CB70: 966253.9375 | CC70: 950266.1875 | CD70: 908444.8125 | CE70: 874389.1875 | CF70: 841135.3125 | CG70: 782312.6875 | CH70: 673519 | CI70: 649936.125 | CJ70: 590795.625 | CK70: 541551.625 | CL70: 501295.6875 | CM70: 465924.9688 | CN70: 409421.0625 | CO70: 368687.0312 | CP70: 308947.0625 | CQ70: 275702.375 | CR70: 226637.4375 | CS70: 193817.6719 | CT70: 156553.6875 | CU70: 123546.9219 | CV70: 97053.78125 | CW70: 73088.77344 | CX70: 54887.91016 | CY70: 40610.78125 | CZ70: 26289.16016 | DA70: 20476.48047 | DB70: 33536.31641
B71: HMD | C71: F | D71: 2001 | E71: 144131568 | F71: 1922474.625 | G71: 1869378.875 | H71: 1856606.125 | I71: 1862912 | J71: 1888273.375 | K71: 1922267.125 | L71: 1945943 | M71: 1976138.625 | N71: 2016128.25 | O71: 2053727.375 | P71: 2095784.375 | Q71: 2071269.5 | R71: 2016824.5 | S71: 1987511 | T71: 1976102.875 | U71: 1981705.25 | V71: 1961779.875 | W71: 1951300.625 | X71: 1978261.75 | Y71: 2008941 | Z71: 2020047.875 | AA71: 1963060.875 | AB71: 1879676.25 | AC71: 1841194.375 | AD71: 1809850.625 | AE71: 1821000.75 | AF71: 1827722.125 | AG71: 1834774.375 | AH71: 1911351.625 | AI71: 2022580 | AJ71: 2109537 | AK71: 2071464.25 | AL71: 2007465.625 | AM71: 2001343.5 | AN71: 2039845.25 | AO71: 2145983.5 | AP71: 2246727.75 | AQ71: 2273212.75 | AR71: 2280298 | AS71: 2303112.25 | AT71: 2338066.75 | AU71: 2316497.75 | AV71: 2277699.75 | AW71: 2272273 | AX71: 2221905 | AY71: 2184204 | AZ71: 2148933.5 | BA71: 2078519.5 | BB71: 2014035 | BC71: 1960677.875 | BD71: 1935463.75 | BE71: 1902031.75 | BF71: 1862479.5 | BG71: 1901681.25 | BH71: 1707577.875 | BI71: 1464907.625 | BJ71: 1457760.125 | BK71: 1476198.375 | BL71: 1419420 | BM71: 1290991.5 | BN71: 1229906.625 | BO71: 1188244 | BP71: 1152523.125 | BQ71: 1115668.25 | BR71: 1079034.875 | BS71: 1076952.125 | BT71: 1039495.188 | BU71: 1003437.5 | BV71: 1006072.188 | BW71: 1004080.562 | BX71: 1015104.938 | BY71: 1003501.188 | BZ71: 981792.5 | CA71: 975355.5 | CB71: 953390.1875 | CC71: 939847.375 | CD71: 920901.8125 | CE71: 875665.6875 | CF71: 838733.6875 | CG71: 804794.5 | CH71: 729880.25 | CI71: 636571.75 | CJ71: 611029.875 | CK71: 551182 | CL71: 501234.4375 | CM71: 460011.5312 | CN71: 422476.9688 | CO71: 367367.7812 | CP71: 326619.5625 | CQ71: 270144.6875 | CR71: 236692.5156 | CS71: 191463.1406 | CT71: 160146.2656 | CU71: 126906.0938 | CV71: 97820.4375 | CW71: 75063.60156 | CX71: 55166.83984 | CY71: 40309.10938 | CZ71: 29042.55078 | DA71: 18330.41016 | DB71: 34729.69141
B72: HMD | C72: F | D72: 2002 | E72: 145489520 | F72: 1947881 | G72: 1921504.25 | H72: 1870221.125 | I72: 1858443.75 | J72: 1866586.125 | K72: 1892761.5 | L72: 1924447.125 | M72: 1950504.5 | N72: 1980050.5 | O72: 2024054.75 | P72: 2079811.875 | Q72: 2106596.75 | R72: 2088003.875 | S72: 2029715.125 | T72: 1997509.625 | U72: 1991858.625 | V72: 1998603.25 | W72: 1977367.5 | X72: 1974706 | Y72: 2002952.625 | Z72: 2026482.375 | AA72: 2038730.25 | AB72: 1976973.625 | AC72: 1896121.5 | AD72: 1858617.5 | AE72: 1831375.25 | AF72: 1835584.75 | AG72: 1846010 | AH72: 1846130.5 | AI72: 1916674.125 | AJ72: 2038930.75 | AK72: 2113080.75 | AL72: 2086669.625 | AM72: 2017637 | AN72: 2010751.875 | AO72: 2050250.375 | AP72: 2154353.5 | AQ72: 2252394 | AR72: 2279366.75 | AS72: 2285787.25 | AT72: 2306623.25 | AU72: 2342454.75 | AV72: 2318467.25 | AW72: 2280644.5 | AX72: 2270322.25 | AY72: 2220321.25 | AZ72: 2184582 | BA72: 2149825.75 | BB72: 2077107.75 | BC72: 2014416.75 | BD72: 1957709.625 | BE72: 1936739.5 | BF72: 1899316.75 | BG72: 1861600.5 | BH72: 1901147.625 | BI72: 1702946.75 | BJ72: 1463834.5 | BK72: 1453768.5 | BL72: 1472189.5 | BM72: 1413765.625 | BN72: 1282520.25 | BO72: 1226172.5 | BP72: 1182233.625 | BQ72: 1146095.75 | BR72: 1106194.875 | BS72: 1070876.625 | BT72: 1066593.875 | BU72: 1028663.75 | BV72: 991229.6875 | BW72: 991892 | BX72: 986914.25 | BY72: 998826.25 | BZ72: 983468.9375 | CA72: 960633.75 | CB72: 950756.625 | CC72: 925261.0625 | CD72: 912149.8125 | CE72: 889164.3125 | CF72: 843083.625 | CG72: 803753.6875 | CH72: 754778.5625 | CI72: 690993.875 | CJ72: 598521.8125 | CK72: 570463.1875 | CL72: 510363.5625 | CM72: 459564.875 | CN72: 417845.5312 | CO72: 379428.25 | CP72: 325185.7812 | CQ72: 285149.375 | CR72: 232343.0781 | CS72: 199968.1875 | CT72: 158850.8594 | CU72: 129964 | CV72: 100729.2031 | CW72: 75448.75781 | CX72: 56411.21875 | CY72: 40557.82031 | CZ72: 28697.26953 | DA72: 20345.11914 | DB72: 34091.49219
B73: HMD | C73: F | D73: 2003 | E73: 146778640 | F73: 1937799.75 | G73: 1943411.125 | H73: 1921354.75 | I73: 1872625.5 | J73: 1863409.125 | K73: 1872030 | L73: 1894021.5 | M73: 1929899.125 | N73: 1954366.125 | O73: 1990011.875 | P73: 2061119 | Q73: 2086742.875 | R73: 2124615.5 | S73: 2099065.75 | T73: 2036706.125 | U73: 2014354.5 | V73: 2008462.75 | W73: 2011401.375 | X73: 2001928.875 | Y73: 1998219 | Z73: 2014618.625 | AA73: 2041816.375 | AB73: 2047151.5 | AC73: 1990227.625 | AD73: 1911413 | AE73: 1880563.5 | AF73: 1841736.625 | AG73: 1854289 | AH73: 1853721.875 | AI73: 1847614 | AJ73: 1938146.5 | AK73: 2038513.25 | AL73: 2133184.75 | AM73: 2095931.25 | AN73: 2026125 | AO73: 2021663.25 | AP73: 2057796.125 | AQ73: 2158776 | AR73: 2258406.5 | AS73: 2284798.5 | AT73: 2288439.75 | AU73: 2311346 | AV73: 2343398 | AW73: 2321843 | AX73: 2276293 | AY73: 2268004.75 | AZ73: 2221636.25 | BA73: 2186396.25 | BB73: 2147537 | BC73: 2078270.75 | BD73: 2010022.125 | BE73: 1960924.625 | BF73: 1933024.75 | BG73: 1899706.125 | BH73: 1862312.625 | BI73: 1894224.5 | BJ73: 1703143.375 | BK73: 1459174.875 | BL73: 1450143.875 | BM73: 1465752.125 | BN73: 1402523.125 | BO73: 1280904.25 | BP73: 1220118.25 | BQ73: 1176112.375 | BR73: 1135353.75 | BS73: 1098647.75 | BT73: 1060421.625 | BU73: 1056014.5 | BV73: 1016435 | BW73: 977364.1875 | BX73: 974067.0625 | BY73: 972185.125 | BZ73: 978573.4375 | CA73: 962725.8125 | CB73: 936038.625 | CC73: 921904.75 | CD73: 899501.4375 | CE73: 880654.5 | CF73: 856882.6875 | CG73: 808389.875 | CH73: 734416.0625 | CI73: 714613 | CJ73: 649958.4375 | CK73: 558310.8125 | CL73: 528372.5 | CM73: 468261.0938 | CN73: 417504.4688 | CO73: 375246.1562 | CP73: 336138.5312 | CQ73: 283850.9062 | CR73: 245189.9062 | CS73: 196465.1562 | CT73: 165305.4531 | CU73: 128619.1719 | CV73: 102733.3438 | CW73: 77777.88281 | CX73: 56862.67969 | CY73: 41228.32031 | CZ73: 28735.53906 | DA73: 19841.74023 | DB73: 34789.08984
B74: HMD | C74: F | D74: 2004 | E74: 148058064 | F74: 1952451.875 | G74: 1929815 | H74: 1942271 | I74: 1924118.375 | J74: 1878834.5 | K74: 1869730.625 | L74: 1872307.375 | M74: 1900300.375 | N74: 1933564 | O74: 1966229.875 | P74: 2037841.75 | Q74: 2064191.375 | R74: 2105708.25 | S74: 2133712.25 | T74: 2102835.25 | U74: 2054616.375 | V74: 2030613.75 | W74: 2018356.125 | X74: 2037015.5 | Y74: 2024292.25 | Z74: 2004764.375 | AA74: 2027946.625 | AB74: 2046467.75 | AC74: 2058720.375 | AD74: 2004415.625 | AE74: 1934677 | AF74: 1887280.75 | AG74: 1861396.5 | AH74: 1858668 | AI74: 1851305.25 | AJ74: 1873969 | AK74: 1934449.125 | AL74: 2063277 | AM74: 2141833 | AN74: 2103744.25 | AO74: 2037843 | AP74: 2028618.75 | AQ74: 2061130.75 | AR74: 2164833.5 | AS74: 2264001.25 | AT74: 2286804.5 | AU74: 2293994 | AV74: 2311428.75 | AW74: 2347216 | AX74: 2315086.5 | AY74: 2273419.75 | AZ74: 2270300.25 | BA74: 2224464.25 | BB74: 2183317.75 | BC74: 2149612.75 | BD74: 2072435.875 | BE74: 2015382 | BF74: 1955965.875 | BG74: 1934465.75 | BH74: 1901717.625 | BI74: 1853897.625 | BJ74: 1895807.125 | BK74: 1696711.125 | BL74: 1455731.5 | BM74: 1443361.25 | BN74: 1452180.125 | BO74: 1403101.75 | BP74: 1274525 | BQ74: 1214116.375 | BR74: 1164063.75 | BS74: 1128348.75 | BT74: 1087708.5 | BU74: 1050239.625 | BV74: 1043596.688 | BW74: 1002328.375 | BX74: 958847.3125 | BY74: 960529.375 | BZ74: 951992.1875 | CA74: 958188 | CB74: 937588.875 | CC74: 906634 | CD74: 897648 | CE74: 868229.875 | CF74: 849194.875 | CG74: 821882.625 | CH74: 737370.5625 | CI74: 696034 | CJ74: 672927.4375 | CK74: 607652.9375 | CL74: 517715.375 | CM74: 485316.25 | CN74: 425744.7812 | CO74: 375020.0312 | CP74: 333175.3438 | CQ74: 293649.4062 | CR74: 244323.3125 | CS74: 207389.1719 | CT74: 162675.2969 | CU74: 133794.9531 | CV74: 102017.8828 | CW74: 79279.40625 | CX74: 58417.82031 | CY74: 41535.80078 | CZ74: 29232.58984 | DA74: 19815.65039 | DB74: 34776.23828
B75: HMD | C75: F | D75: 2005 | E75: 149392944 | F75: 1959441.375 | G75: 1941718.125 | H75: 1928840.125 | I75: 1946297.25 | J75: 1932392 | K75: 1886665.75 | L75: 1869620.75 | M75: 1880013.5 | N75: 1904354.5 | O75: 1947870.875 | P75: 2025306.375 | Q75: 2037746.75 | R75: 2084641.5 | S75: 2113352 | T75: 2134866.75 | U75: 2122766.25 | V75: 2071433.5 | W75: 2038546 | X75: 2046243.25 | Y75: 2060065 | Z75: 2027292.5 | AA75: 2017650.25 | AB75: 2030266.375 | AC75: 2058019.375 | AD75: 2073539.125 | AE75: 2030729.875 | AF75: 1939057.5 | AG75: 1909302.25 | AH75: 1863374 | AI75: 1853668.125 | AJ75: 1883972 | AK75: 1867756 | AL75: 1964083.625 | AM75: 2072193.5 | AN75: 2149862 | AO75: 2117153 | AP75: 2044968.875 | AQ75: 2031464.375 | AR75: 2067739 | AS75: 2171087.5 | AT75: 2265975 | AU75: 2293575.5 | AV75: 2293791.75 | AW75: 2316135.75 | AX75: 2338441.5 | AY75: 2312097 | AZ75: 2277212.75 | BA75: 2274449 | BB75: 2220642.75 | BC75: 2186632 | BD75: 2142482.5 | BE75: 2080445.25 | BF75: 2009333.75 | BG75: 1958672.875 | BH75: 1937950.75 | BI75: 1891614 | BJ75: 1857351.125 | BK75: 1887945.5 | BL75: 1693009.375 | BM75: 1448614.125 | BN75: 1428383.875 | BO75: 1455486.625 | BP75: 1396220.125 | BQ75: 1268590.125 | BR75: 1200799 | BS75: 1158062.5 | BT75: 1116978.375 | BU75: 1077772.125 | BV75: 1038084.125 | BW75: 1029197.562 | BX75: 982521.25 | BY75: 946566.875 | BZ75: 940178.4375 | CA75: 932458.4375 | CB75: 932767.125 | CC75: 907231 | CD75: 884163.125 | CE75: 866345.5 | CF75: 837809.875 | CG75: 814707.875 | CH75: 756329.625 | CI75: 700248.5 | CJ75: 656817.75 | CK75: 630756.75 | CL75: 565067.875 | CM75: 476999.125 | CN75: 443156.75 | CO75: 384370.3438 | CP75: 334358.75 | CQ75: 292837.4062 | CR75: 254618.125 | CS75: 207908.7031 | CT75: 173534.1719 | CU75: 133143.625 | CV75: 106958.2969 | CW75: 79935.65625 | CX75: 60471.75 | CY75: 43348.92969 | CZ75: 29991.09961 | DA75: 20478.35938 | DB75: 35569.08203
B76: HMD | C76: F | D76: 2006 | E76: 150751728 | F76: 1966326.875 | G76: 1946506.625 | H76: 1941403.25 | I76: 1934933.375 | J76: 1957250.5 | K76: 1942333.625 | L76: 1886614.75 | M76: 1879230.875 | N76: 1884966.75 | O76: 1921501.875 | P76: 2018448.375 | Q76: 2022572.625 | R76: 2060099.75 | S76: 2091361.25 | T76: 2112562.5 | U76: 2157391.5 | V76: 2141018 | W76: 2078091.25 | X76: 2069655.25 | Y76: 2070107.5 | Z76: 2059333.875 | AA76: 2039353 | AB76: 2017191.375 | AC76: 2041450.25 | AD76: 2073488.375 | AE76: 2103138.75 | AF76: 2032399 | AG76: 1963743.25 | AH76: 1908834.125 | AI76: 1855781.375 | AJ76: 1892640.125 | AK76: 1874599.875 | AL76: 1902115.875 | AM76: 1973304.5 | AN76: 2080569.875 | AO76: 2165204.25 | AP76: 2124608.5 | AQ76: 2047402.125 | AR76: 2038819 | AS76: 2074606.75 | AT76: 2173281 | AU76: 2273945.5 | AV76: 2293137.5 | AW76: 2299596.25 | AX76: 2305687.75 | AY76: 2335451.5 | AZ76: 2317711.5 | BA76: 2282914.75 | BB76: 2270074.5 | BC76: 2225322.5 | BD76: 2178391.75 | BE76: 2153458.75 | BF76: 2073369.75 | BG76: 2013427 | BH76: 1963474 | BI76: 1926126.75 | BJ76: 1897230 | BK76: 1849095.25 | BL76: 1884393.125 | BM76: 1684254.125 | BN76: 1432091.875 | BO76: 1434921.375 | BP76: 1448863.875 | BQ76: 1390323.125 | BR76: 1253841.625 | BS76: 1195817.5 | BT76: 1146568.5 | BU76: 1107537.5 | BV76: 1065745.5 | BW76: 1023873.25 | BX76: 1008183.875 | BY76: 971425.875 | BZ76: 926413.875 | CA76: 921611.875 | CB76: 907633.9375 | CC76: 902083.125 | CD76: 886702.125 | CE76: 853608.1875 | CF76: 837177.4375 | CG76: 804583.8125 | CH76: 743518.875 | CI76: 718353.5 | CJ76: 660938.875 | CK76: 615822.125 | CL76: 586685.1875 | CM76: 520683.9688 | CN76: 434796.5312 | CO76: 399818.2812 | CP76: 342197.625 | CQ76: 293322.0312 | CR76: 253012.75 | CS76: 215895.4531 | CT76: 173210.8125 | CU76: 141346.2188 | CV76: 106121.0312 | CW76: 83057.24219 | CX76: 60453.39062 | CY76: 44391.05859 | CZ76: 31087.40039 | DA76: 20854.7207 | DB76: 35898.62891
B77: HMD | C77: F | D77: 2007 | E77: 152165120 | F77: 2001620.25 | G77: 1950339.75 | H77: 1946353.375 | I77: 1949183.625 | J77: 1948265.25 | K77: 1968945.75 | L77: 1941826.375 | M77: 1897919.25 | N77: 1884742.125 | O77: 1904611.75 | P77: 2002652.375 | Q77: 2012777.5 | R77: 2046493.875 | S77: 2065581.125 | T77: 2088382.25 | U77: 2137035 | V77: 2176572.5 | W77: 2145769.5 | X77: 2111880.5 | Y77: 2093235.75 | Z77: 2065173.125 | AA77: 2069999.125 | AB77: 2035153.625 | AC77: 2027312.125 | AD77: 2056878.5 | AE77: 2105284.25 | AF77: 2101269.5 | AG77: 2059202.625 | AH77: 1959344.125 | AI77: 1897034.25 | AJ77: 1900178.625 | AK77: 1879335.5 | AL77: 1913706 | AM77: 1910853.75 | AN77: 1981480 | AO77: 2097098.125 | AP77: 2172365.5 | AQ77: 2125866.5 | AR77: 2055039.75 | AS77: 2045792.125 | AT77: 2076471 | AU77: 2181778 | AV77: 2273068.75 | AW77: 2299812.75 | AX77: 2287205 | AY77: 2302500.25 | AZ77: 2342431.75 | BA77: 2324965.5 | BB77: 2277948.75 | BC77: 2276038 | BD77: 2215813.5 | BE77: 2192101 | BF77: 2145189 | BG77: 2078704.875 | BH77: 2019523 | BI77: 1949568.75 | BJ77: 1933602.875 | BK77: 1888043.75 | BL77: 1846106.125 | BM77: 1873997.25 | BN77: 1662717.25 | BO77: 1441437.625 | BP77: 1428965.75 | BQ77: 1443527.5 | BR77: 1373240.125 | BS77: 1249529.375 | BT77: 1183737.375 | BU77: 1137473.75 | BV77: 1095398.375 | BW77: 1051159.875 | BX77: 1002068.75 | BY77: 998133.5625 | BZ77: 950579.5 | CA77: 908625.625 | CB77: 896849.5 | CC77: 877070.25 | CD77: 883378 | CE77: 856212.75 | CF77: 825780.4375 | CG77: 804678.4375 | CH77: 735368.1875 | CI77: 707112.5 | CJ77: 678986.875 | CK77: 620899.3125 | CL77: 574301.0625 | CM77: 542480.375 | CN77: 476702.2188 | CO77: 392934.5 | CP77: 357734.0312 | CQ77: 301988.625 | CR77: 254035.4531 | CS77: 216088.8438 | CT77: 180678.4844 | CU77: 141845.1562 | CV77: 113479.0391 | CW77: 83191.21875 | CX77: 63405.42188 | CY77: 45097.32031 | CZ77: 32146.07031 | DA77: 21730.99023 | DB77: 36930.20312
B78: HMD | C78: F | D78: 2008 | E78: 153604176 | F78: 2025029.125 | G78: 1981914.125 | H78: 1950114.875 | I78: 1955616.125 | J78: 1964653.125 | K78: 1961588 | L78: 1967760.625 | M78: 1954770.75 | N78: 1903791.5 | O78: 1906822.25 | P78: 1996202.375 | Q78: 1993989.5 | R78: 2038130.75 | S78: 2050579.75 | T78: 2060291.25 | U78: 2114471.5 | V78: 2156699.25 | W78: 2179279.75 | X78: 2182877 | Y78: 2135010.75 | Z78: 2083626.375 | AA78: 2074001.875 | AB78: 2061592.5 | AC78: 2043572.75 | AD78: 2042166.125 | AE78: 2089953.25 | AF78: 2099732 | AG78: 2129734.5 | AH78: 2049577.875 | AI78: 1942623 | AJ78: 1947168.625 | AK78: 1882597.5 | AL78: 1922832.875 | AM78: 1921680 | AN78: 1918418.5 | AO78: 1998622.5 | AP78: 2103794 | AQ78: 2172331.75 | AR78: 2133500 | AS78: 2061986.5 | AT78: 2047051.75 | AU78: 2085037.75 | AV78: 2180510 | AW78: 2280390.5 | AX78: 2285223 | AY78: 2283777.75 | AZ78: 2310588 | BA78: 2351042.25 | BB78: 2319129.25 | BC78: 2285080.75 | BD78: 2265172.5 | BE78: 2232255.25 | BF78: 2182639.5 | BG78: 2151946.75 | BH78: 2086472.5 | BI78: 2003265.75 | BJ78: 1958760.375 | BK78: 1923338.125 | BL78: 1885457.5 | BM78: 1835297.75 | BN78: 1847713.125 | BO78: 1677179.5 | BP78: 1435858.625 | BQ78: 1424484.125 | BR78: 1424592.25 | BS78: 1369712.5 | BT78: 1236649.875 | BU78: 1174819.625 | BV78: 1125225.125 | BW78: 1080391.875 | BX78: 1027835.688 | BY78: 993210.875 | BZ78: 976332.375 | CA78: 932700.5 | CB78: 883704 | CC78: 865687.0625 | CD78: 860225.5 | CE78: 852871.8125 | CF78: 829023.3125 | CG78: 793988.8125 | CH78: 743278.5 | CI78: 700302.5 | CJ78: 669305.6875 | CK78: 638182.25 | CL78: 580003 | CM78: 531703.625 | CN78: 497619.1875 | CO78: 432263.1875 | CP78: 351913.625 | CQ78: 316353.5 | CR78: 263070.7812 | CS78: 217440.6562 | CT78: 181405.125 | CU78: 148876.3438 | CV78: 114494.2031 | CW78: 89098.6875 | CX78: 64017.51172 | CY78: 47456.35938 | CZ78: 32721.89062 | DA78: 22694.73047 | DB78: 38240.02734
B79: HMD | C79: F | D79: 2009 | E79: 154988544 | F79: 1990941.75 | G79: 2001750 | H79: 1981638.875 | I79: 1960911.25 | J79: 1973048 | K79: 1979876.625 | L79: 1960147.875 | M79: 1982128.125 | N79: 1960978 | O79: 1928658.5 | P79: 2009534.125 | Q79: 1984519 | R79: 2020695 | S79: 2040836.125 | T79: 2042991.75 | U79: 2087930.75 | V79: 2134643 | W79: 2157626 | X79: 2219403 | Y79: 2205256 | Z79: 2120827 | AA79: 2090936.5 | AB79: 2061691.25 | AC79: 2068445.125 | AD79: 2057753.75 | AE79: 2076721.5 | AF79: 2081159.625 | AG79: 2129594.25 | AH79: 2115336.5 | AI79: 2027489.875 | AJ79: 1999071.375 | AK79: 1924858.875 | AL79: 1930673.75 | AM79: 1930149.125 | AN79: 1928705.25 | AO79: 1936111.5 | AP79: 2004954 | AQ79: 2103008.5 | AR79: 2180188 | AS79: 2140527.25 | AT79: 2062635.25 | AU79: 2055757.375 | AV79: 2083172.5 | AW79: 2188154.5 | AX79: 2263677.25 | AY79: 2281501.5 | AZ79: 2293096 | BA79: 2320292 | BB79: 2344351.75 | BC79: 2327564.25 | BD79: 2272878.75 | BE79: 2284463.5 | BF79: 2221520.25 | BG79: 2190822 | BH79: 2161479.5 | BI79: 2067670.75 | BJ79: 2014438.625 | BK79: 1947416.625 | BL79: 1921171 | BM79: 1873864.625 | BN79: 1806927.25 | BO79: 1867322.5 | BP79: 1671453.625 | BQ79: 1431969 | BR79: 1404305.375 | BS79: 1422108.75 | BT79: 1355711 | BU79: 1227896.125 | BV79: 1162582.75 | BW79: 1109950.375 | BX79: 1055475.75 | BY79: 1020048 | BZ79: 971136.3125 | CA79: 958507 | CB79: 906792.4375 | CC79: 852072.6875 | CD79: 850547.4375 | CE79: 830371.9375 | CF79: 826535.125 | CG79: 797552.75 | CH79: 731864.6875 | CI79: 707585.75 | CJ79: 663157.1875 | CK79: 629282.6875 | CL79: 595483.6875 | CM79: 536860.4375 | CN79: 487499.0312 | CO79: 451310.4688 | CP79: 387089.0312 | CQ79: 310451.6875 | CR79: 274903.4375 | CS79: 224827.4062 | CT79: 181928.875 | CU79: 148831.9531 | CV79: 119510.7578 | CW79: 89541.82031 | CX79: 67818.90625 | CY79: 47327.92188 | CZ79: 34077.35156 | DA79: 22981.53906 | DB79: 39287.51172
B80: HMD | C80: F | D80: 2010 | E80: 156303312 | F80: 1946038.125 | G80: 1967668.875 | H80: 2003709.25 | I80: 1990069 | J80: 1981977.875 | K80: 1989823.75 | L80: 1980159.875 | M80: 1974235.125 | N80: 1986594.125 | O80: 1982262.75 | P80: 2032278.25 | Q80: 1998457.625 | R80: 2009891.75 | S80: 2023943.625 | T80: 2031116.75 | U80: 2067605.125 | V80: 2109819.5 | W80: 2135579.75 | X80: 2196781.5 | Y80: 2244157.5 | Z80: 2189159.5 | AA80: 2126599.25 | AB80: 2079784.125 | AC80: 2067216.5 | AD80: 2082099.125 | AE80: 2090401.75 | AF80: 2066384.375 | AG80: 2109995 | AH80: 2118355.25 | AI80: 2089619.75 | AJ80: 2085009.875 | AK80: 1978145.5 | AL80: 1970786.875 | AM80: 1938859.375 | AN80: 1936257.875 | AO80: 1944697.625 | AP80: 1942528.25 | AQ80: 2004101.375 | AR80: 2109715.25 | AS80: 2187504.5 | AT80: 2139653 | AU80: 2071011.75 | AV80: 2053644.375 | AW80: 2089998.25 | AX80: 2172317.5 | AY80: 2259229.25 | AZ80: 2290703 | BA80: 2301500 | BB80: 2313455.75 | BC80: 2353204.25 | BD80: 2313588 | BE80: 2291735 | BF80: 2273096.75 | BG80: 2228586.5 | BH80: 2199972.25 | BI80: 2141510.5 | BJ80: 2078411.75 | BK80: 2002575.875 | BL80: 1943911.125 | BM80: 1910408.625 | BN80: 1843045 | BO80: 1825857.5 | BP80: 1860686.5 | BQ80: 1665883.625 | BR80: 1412383.25 | BS80: 1400882.875 | BT80: 1407473 | BU80: 1346311 | BV80: 1214484.75 | BW80: 1147971.875 | BX80: 1083982.75 | BY80: 1047285.75 | BZ80: 997403.4375 | CA80: 953515.25 | CB80: 932950 | CC80: 874615.25 | CD80: 837574.0625 | CE80: 821318.6875 | CF80: 805153.75 | CG80: 795772.0625 | CH80: 718899.8125 | CI80: 698463 | CJ80: 671422.4375 | CK80: 624932.75 | CL80: 588917.625 | CM80: 553072 | CN80: 493790.1562 | CO80: 443666.25 | CP80: 406121.0625 | CQ80: 344104.2812 | CR80: 271945.75 | CS80: 236916 | CT80: 190513.2188 | CU80: 150918.9062 | CV80: 120689.1406 | CW80: 95109.1875 | CX80: 69453.04688 | CY80: 51306.85156 | CZ80: 34823.12109 | DA80: 24487.67969 | DB80: 41365.78516
B81: HMD | C81: F | D81: 2011 | E81: 157500608 | F81: 1933864.875 | G81: 1939398.5 | H81: 1973336.25 | I81: 2009425.75 | J81: 2004651.25 | K81: 1993251.125 | L81: 1993481.125 | M81: 1989491.125 | N81: 1978244.375 | O81: 1997433.75 | P81: 2034398.75 | Q81: 2030701.125 | R81: 2013084.375 | S81: 2015036.5 | T81: 2021670.75 | U81: 2044926.875 | V81: 2083227.125 | W81: 2115813.5 | X81: 2160436 | Y81: 2217534.25 | Z81: 2243307.25 | AA81: 2198619.75 | AB81: 2130122.25 | AC81: 2090299.5 | AD81: 2082184.625 | AE81: 2105411 | AF81: 2093107 | AG81: 2087199.625 | AH81: 2113771 | AI81: 2111049.5 | AJ81: 2122381.5 | AK81: 2081009.125 | AL81: 2002579.625 | AM81: 1978971.25 | AN81: 1944710.375 | AO81: 1946103.625 | AP81: 1950449 | AQ81: 1944217.875 | AR81: 2008489.875 | AS81: 2114778.25 | AT81: 2187337.25 | AU81: 2144112.75 | AV81: 2070182.75 | AW81: 2056479.75 | AX81: 2082751.875 | AY81: 2169177.75 | AZ81: 2262314.5 | BA81: 2292382 | BB81: 2296242 | BC81: 2315361 | BD81: 2342909.25 | BE81: 2319023.5 | BF81: 2282698 | BG81: 2272119 | BH81: 2228586.75 | BI81: 2185854.75 | BJ81: 2141755.75 | BK81: 2067900.625 | BL81: 1995319.125 | BM81: 1934208.875 | BN81: 1889420.625 | BO81: 1846058.25 | BP81: 1816134.625 | BQ81: 1850114.75 | BR81: 1649043.375 | BS81: 1403742 | BT81: 1386927.375 | BU81: 1395021.25 | BV81: 1330624.75 | BW81: 1199513.75 | BX81: 1126476.25 | BY81: 1070716.75 | BZ81: 1026656.812 | CA81: 978715.125 | CB81: 931254.75 | CC81: 905864.0625 | CD81: 855556.9375 | CE81: 811280.8125 | CF81: 795876.8125 | CG81: 776144.625 | CH81: 736741.3125 | CI81: 685908.3125 | CJ81: 662827.875 | CK81: 633138.6875 | CL81: 585310.0625 | CM81: 546311.25 | CN81: 508210.5 | CO81: 449892.8125 | CP81: 399237.3438 | CQ81: 360747.5625 | CR81: 300692.9688 | CS81: 234134.5938 | CT81: 199933.7656 | CU81: 158212.1875 | CV81: 122276.5469 | CW81: 95444.85156 | CX81: 73433 | CY81: 52232.98828 | CZ81: 37720.44922 | DA81: 24690.19922 | DB81: 43509.37109
B82: HMD | C82: F | D82: 2012 | E82: 158584064 | F82: 1926803.75 | G82: 1941935 | H82: 1946421.75 | I82: 1979378.625 | J82: 2014820.25 | K82: 2009743.625 | L82: 1998381.25 | M82: 1998797 | N82: 1994836.625 | O82: 1983689.375 | P82: 2003012.375 | Q82: 2040141.5 | R82: 2036542.25 | S82: 2018734.625 | T82: 2020897.5 | U82: 2028226.25 | V82: 2052590.375 | W82: 2093116.75 | X82: 2128023 | Y82: 2173747.25 | Z82: 2230939.75 | AA82: 2257132.25 | AB82: 2213452.5 | AC82: 2145865.25 | AD82: 2106523.75 | AE82: 2098589.75 | AF82: 2120835.25 | AG82: 2107570.75 | AH82: 2100488.75 | AI82: 2125487.25 | AJ82: 2121344 | AK82: 2131390 | AL82: 2088793.75 | AM82: 2009468.75 | AN82: 1985196.625 | AO82: 1950213.625 | AP82: 1950831.375 | AQ82: 1954478.875 | AR82: 1947624.25 | AS82: 2011154.25 | AT82: 2116548.75 | AU82: 2188284.75 | AV82: 2144398.25 | AW82: 2070006 | AX82: 2055981.625 | AY82: 2081446.375 | AZ82: 2166907.5 | BA82: 2259223.25 | BB82: 2288586 | BC82: 2291677 | BD82: 2309956 | BE82: 2336827.5 | BF82: 2312151 | BG82: 2275339.5 | BH82: 2264163.25 | BI82: 2220035.25 | BJ82: 2177022.5 | BK82: 2132458.75 | BL82: 2058270.375 | BM82: 1985342.625 | BN82: 1923774.375 | BO82: 1878370.375 | BP82: 1833958.625 | BQ82: 1802700 | BR82: 1835094.5 | BS82: 1634734 | BT82: 1390452.75 | BU82: 1372454.25 | BV82: 1378736.375 | BW82: 1313531.875 | BX82: 1182552.75 | BY82: 1109130.5 | BZ82: 1052523.375 | CA82: 1007383.062 | CB82: 958397.4375 | CC82: 909967.125 | CD82: 882918.25 | CE82: 831473.75 | CF82: 785971.5625 | CG82: 768329.5 | CH82: 712229.5625 | CI82: 702986.9375 | CJ82: 650536.3125 | CK82: 625181.375 | CL82: 592829.5625 | CM82: 543365.9375 | CN82: 502710.0312 | CO82: 462714.2812 | CP82: 404331.0938 | CQ82: 354424.1562 | CR82: 314929.3125 | CS82: 258383.7969 | CT82: 197402.1406 | CU82: 165229.8438 | CV82: 128081.8594 | CW82: 96397.85938 | CX82: 73357.25 | CY82: 55066.01172 | CZ82: 38096.10938 | DA82: 26707.59961 | DB82: 44746
B83: HMD | C83: F | D83: 2013 | E83: 159660384 | F83: 1920266.75 | G83: 1934962.5 | H83: 1949141.125 | I83: 1952749.125 | J83: 1985075.5 | K83: 2020091.375 | L83: 2014882 | M83: 2003752.625 | N83: 2004380.625 | O83: 2000484.625 | P83: 1989297.375 | Q83: 2008732.5 | R83: 2045927.25 | S83: 2042136.375 | T83: 2024570.5 | U83: 2027383.375 | V83: 2035913.25 | W83: 2062398 | X83: 2105159.5 | Y83: 2140835.25 | Z83: 2186394.75 | AA83: 2244528 | AB83: 2272084.5 | AC83: 2229148.75 | AD83: 2161891.75 | AE83: 2122571 | AF83: 2113932.25 | AG83: 2135328 | AH83: 2120714 | AI83: 2112328.5 | AJ83: 2136117.5 | AK83: 2130373 | AL83: 2139189.5 | AM83: 2095696.125 | AN83: 2015577.5 | AO83: 1990568.125 | AP83: 1954995.625 | AQ83: 1955018.5 | AR83: 1957990.875 | AS83: 1950421.625 | AT83: 2013079.75 | AU83: 2117644 | AV83: 2188662 | AW83: 2144206 | AX83: 2069487.625 | AY83: 2054661.625 | AZ83: 2079240.5 | BA83: 2164101.5 | BB83: 2255657.5 | BC83: 2284175 | BD83: 2286476.5 | BE83: 2303849.75 | BF83: 2329746.5 | BG83: 2304641.25 | BH83: 2267297.25 | BI83: 2255424.5 | BJ83: 2210710.5 | BK83: 2167328 | BL83: 2122350.75 | BM83: 2047894.75 | BN83: 1974374.125 | BO83: 1912257.5 | BP83: 1866196.75 | BQ83: 1820771.375 | BR83: 1788199.625 | BS83: 1819040 | BT83: 1619193.625 | BU83: 1376124.875 | BV83: 1356629.25 | BW83: 1360962.875 | BX83: 1295015.625 | BY83: 1164532.125 | BZ83: 1090549.25 | CA83: 1032991 | CB83: 986657.125 | CC83: 936637.3125 | CD83: 887062.625 | CE83: 858259.3125 | CF83: 805662.125 | CG83: 758834.0625 | CH83: 716815.5625 | CI83: 680006.4375 | CJ83: 667178.5625 | CK83: 613964.5 | CL83: 585681.375 | CM83: 551136.5 | CN83: 500358.875 | CO83: 457936.375 | CP83: 416415.5625 | CQ83: 359073.4062 | CR83: 309705 | CS83: 271061.1562 | CT83: 218434.8281 | CU83: 163977.4062 | CV83: 133894.125 | CW83: 101201.3828 | CX83: 74491.57812 | CY83: 55084.55078 | CZ83: 40185.96094 | DA83: 27210.24023 | DB83: 46990.6875
B84: HMD | C84: F | D84: 2014 | E84: 160736656 | F84: 1926007 | G84: 1929018.625 | H84: 1942838.125 | I84: 1956209.875 | J84: 1959167.25 | K84: 1990986.625 | L84: 2025725.375 | M84: 2020638.625 | N84: 2009750 | O84: 2010390.625 | P84: 2006411.5 | Q84: 1995146.5 | R84: 2014521.375 | S84: 2051801.875 | T84: 2048372.625 | U84: 2031632.75 | V84: 2035749.25 | W84: 2046294.25 | X84: 2075111.75 | Y84: 2118513.5 | Z84: 2153527 | AA84: 2200099 | AB84: 2260015.25 | AC84: 2288585.75 | AD84: 2245928.25 | AE84: 2178436 | AF84: 2138480.75 | AG84: 2129121.25 | AH84: 2149110.25 | AI84: 2133342.75 | AJ84: 2124079.5 | AK84: 2145859 | AL84: 2138620.25 | AM84: 2146543.75 | AN84: 2102187 | AO84: 2021130 | AP84: 1995554.75 | AQ84: 1959456.75 | AR84: 1958929.125 | AS84: 1961144.875 | AT84: 1952621 | AU84: 2014512.75 | AV84: 2118345.25 | AW84: 2188500.25 | AX84: 2143630.25 | AY84: 2068281 | AZ84: 2052757.75 | BA84: 2076847.25 | BB84: 2160844.5 | BC84: 2251457 | BD84: 2279007.5 | BE84: 2280307.25 | BF84: 2296824.75 | BG84: 2322188.75 | BH84: 2296556.25 | BI84: 2258497 | BJ84: 2245802.75 | BK84: 2200635.5 | BL84: 2156868 | BM84: 2111528.5 | BN84: 2036519.125 | BO84: 1962475.5 | BP84: 1899921.125 | BQ84: 1853114.75 | BR84: 1806604.125 | BS84: 1772622.5 | BT84: 1801686.875 | BU84: 1602408.875 | BV84: 1360556 | BW84: 1339478 | BX84: 1342043 | BY84: 1275589.875 | BZ84: 1145397.375 | CA84: 1070661.25 | CB84: 1012026.812 | CC84: 964530.25 | CD84: 913400.9375 | CE84: 862547.375 | CF84: 831907.4375 | CG84: 778126.5625 | CH84: 698140.4375 | CI84: 684337.625 | CJ84: 645982.4375 | CK84: 629486 | CL84: 575560.9375 | CM84: 544194.6875 | CN84: 507472.6875 | CO84: 456088.625 | CP84: 412017.0312 | CQ84: 370006.75 | CR84: 314400.625 | CS84: 266658.2812 | CT84: 229148.9375 | CU84: 181029.2656 | CV84: 132823.5156 | CW84: 106037.3281 | CX84: 78066.70312 | CY84: 55998.05859 | CZ84: 39995.12109 | DA84: 28382.61914 | DB84: 48778.20703
B85: HMD | C85: F | D85: 2015 | E85: 161892480 | F85: 1938414.5 | G85: 1935269.875 | H85: 1937577.375 | I85: 1950631.875 | J85: 1963389.75 | K85: 1965841.75 | L85: 1997270.875 | M85: 2031938.875 | N85: 2026906.375 | O85: 2016054.875 | P85: 2016811.125 | Q85: 2012558.125 | R85: 2001164.875 | S85: 2020891.5 | T85: 2058584.125 | U85: 2056210.5 | V85: 2040695.25 | W85: 2046830.25 | X85: 2059830.75 | Y85: 2089171.5 | Z85: 2131848.25 | AA85: 2167782.5 | AB85: 2216285.5 | AC85: 2277459.5 | AD85: 2306538.5 | AE85: 2263726 | AF85: 2195703 | AG85: 2155239 | AH85: 2144471.5 | AI85: 2163081.5 | AJ85: 2146435.75 | AK85: 2135247 | AL85: 2155312 | AM85: 2147189.25 | AN85: 2154364 | AO85: 2108781.75 | AP85: 2026845.375 | AQ85: 2000668.875 | AR85: 1964106.125 | AS85: 1962859.75 | AT85: 1964017.875 | AU85: 1954844.125 | AV85: 2015994.125 | AW85: 2118761.5 | AX85: 2188299.75 | AY85: 2142705.5 | AZ85: 2066766.375 | BA85: 2050709 | BB85: 2073934.5 | BC85: 2157070.75 | BD85: 2246463 | BE85: 2273041 | BF85: 2273624.5 | BG85: 2289506.25 | BH85: 2314225.5 | BI85: 2287850.25 | BJ85: 2248987 | BK85: 2235605.5 | BL85: 2189896.75 | BM85: 2145850.25 | BN85: 2099941 | BO85: 2024357.5 | BP85: 1949870.125 | BQ85: 1886617.5 | BR85: 1839034.75 | BS85: 1791269 | BT85: 1755967 | BU85: 1783148.375 | BV85: 1584574 | BW85: 1343902.125 | BX85: 1321174.625 | BY85: 1321977.5 | BZ85: 1254697.375 | CA85: 1124591.375 | CB85: 1049048.125 | CC85: 989445.4375 | CD85: 940701.5 | CE85: 888280 | CF85: 836202.8125 | CG85: 803671.625 | CH85: 748639.1875 | CI85: 666966.1875 | CJ85: 650045 | CK85: 610488.5 | CL85: 590403.8125 | CM85: 535498.25 | CN85: 502230.1875 | CO85: 463471.7812 | CP85: 412184.0938 | CQ85: 367211.625 | CR85: 325031.5 | CS85: 271541.8125 | CT85: 226154.625 | CU85: 190585.2188 | CV85: 147208.2969 | CW85: 105824.4609 | CX85: 82325.21094 | CY85: 59246.57031 | CZ85: 41074.42188 | DA85: 28624.88086 | DB85: 51064.76562
B86: HMD | C86: F | D86: 2016 | E86: 163039648 | F86: 1941793.375 | G86: 1948076.125 | H86: 1944374.75 | I86: 1945925.625 | J86: 1958391.125 | K86: 1970714.625 | L86: 1972706.625 | M86: 2003890 | N86: 2038341 | O86: 2033296.75 | P86: 2022738.625 | Q86: 2023224.125 | R86: 2018919.75 | S86: 2008007 | T86: 2028184.25 | U86: 2066912.5 | V86: 2065578.25 | W86: 2052125.25 | X86: 2060734.75 | Y86: 2073979.75 | Z86: 2102623.75 | AA86: 2145963.5 | AB86: 2183848.5 | AC86: 2233741.75 | AD86: 2295554.5 | AE86: 2324923 | AF86: 2281723.5 | AG86: 2213280.5 | AH86: 2171579 | AI86: 2159164.25 | AJ86: 2176625.25 | AK86: 2158335.25 | AL86: 2145672.25 | AM86: 2165001.5 | AN86: 2156188.25 | AO86: 2161943.5 | AP86: 2114994.75 | AQ86: 2032177.875 | AR86: 2005584.75 | AS86: 1968477.75 | AT86: 1966235.5 | AU86: 1966871.5 | AV86: 1956892.25 | AW86: 2016880.75 | AX86: 2118993.75 | AY86: 2187590.75 | AZ86: 2141299 | BA86: 2064870.5 | BB86: 2047985.75 | BC86: 2070429.625 | BD86: 2152462.75 | BE86: 2240832 | BF86: 2266710 | BG86: 2266561.75 | BH86: 2281669.75 | BI86: 2305394.5 | BJ86: 2278268 | BK86: 2238731 | BL86: 2224611.25 | BM86: 2178411.25 | BN86: 2133891.25 | BO86: 2087358.5 | BP86: 2011109.625 | BQ86: 1936025.875 | BR86: 1872059.75 | BS86: 1823561 | BT86: 1774818.5 | BU86: 1738046.75 | BV86: 1763306.25 | BW86: 1565211.5 | BX86: 1325612.125 | BY86: 1301490.625 | BZ86: 1300326.375 | CA86: 1231989.625 | CB86: 1102020.875 | CC86: 1025720.5 | CD86: 965012 | CE86: 914919.125 | CF86: 861363.5 | CG86: 807977.6875 | CH86: 773383.25 | CI86: 717145.25 | CJ86: 633820.125 | CK86: 613198.5625 | CL86: 572448.5625 | CM86: 549069.6875 | CN86: 493572.6875 | CO86: 457774.7812 | CP86: 417560.25 | CQ86: 366790.0938 | CR86: 321438.7812 | CS86: 279444.0312 | CT86: 229688.4844 | CU86: 187202.3594 | CV86: 154240.0156 | CW86: 116565.3516 | CX86: 81629.67969 | CY86: 61767.94922 | CZ86: 42945.64844 | DA86: 29192.03906 | DB86: 51910.77344
B87: HMD | C87: F | D87: 2017 | E87: 164138896 | F87: 1916944.625 | G87: 1951451.75 | H87: 1957208 | I87: 1952801.25 | J87: 1953776.25 | K87: 1965909.375 | L87: 1977836.5 | M87: 1979460.375 | N87: 2010181 | O87: 2044586.25 | P87: 2039886.875 | Q87: 2029205.25 | R87: 2029644.25 | S87: 2025668.875 | T87: 2015225.125 | U87: 2036294.625 | V87: 2075885.25 | W87: 2076633.25 | X87: 2065667.75 | Y87: 2074394.875 | Z87: 2086615.25 | AA87: 2115640.5 | AB87: 2160844 | AC87: 2200212.25 | AD87: 2250695.75 | AE87: 2312718.25 | AF87: 2341859 | AG87: 2298561 | AH87: 2229022.25 | AI87: 2185621.5 | AJ87: 2171907.25 | AK87: 2187947 | AL87: 2168396.75 | AM87: 2155221.25 | AN87: 2173898.25 | AO87: 2163550.25 | AP87: 2167768.5 | AQ87: 2119840 | AR87: 2036616.25 | AS87: 2009406.625 | AT87: 1971412.75 | AU87: 1968746 | AV87: 1968728.875 | AW87: 1957763.5 | AX87: 2017136 | AY87: 2118144.25 | AZ87: 2185765.25 | BA87: 2139003.75 | BB87: 2061889.625 | BC87: 2044293.625 | BD87: 2065855 | BE87: 2146959.25 | BF87: 2234620.25 | BG87: 2259616.25 | BH87: 2258521.75 | BI87: 2272507.75 | BJ87: 2295604.25 | BK87: 2267778.25 | BL87: 2227454.75 | BM87: 2212452.25 | BN87: 2165684.75 | BO87: 2120581.75 | BP87: 2073296.25 | BQ87: 1996384.5 | BR87: 1920559.625 | BS87: 1856035 | BT87: 1806692.25 | BU87: 1756712.375 | BV87: 1718516.75 | BW87: 1741467.375 | BX87: 1543892.25 | BY87: 1306022.375 | BZ87: 1280430.875 | CA87: 1277050.625 | CB87: 1207611.75 | CC87: 1077802.125 | CD87: 1000726.875 | CE87: 938969.6875 | CF87: 887641.125 | CG87: 832832.3125 | CH87: 777995.8125 | CI87: 741300.625 | CJ87: 683784.8125 | CK87: 598967.875 | CL87: 575849.875 | CM87: 533081 | CN87: 506980.0938 | CO87: 450913.1562 | CP87: 413682.375 | CQ87: 372274 | CR87: 322620.7812 | CS87: 277526.4688 | CT87: 237181.7031 | CU87: 191426.4062 | CV87: 152506.0625 | CW87: 123010.6875 | CX87: 90582.24219 | CY87: 61636.07812 | CZ87: 45327.39844 | DA87: 30541.33984 | DB87: 53500.01953
B88: HMD | C88: F | D88: 2018 | E88: 165094080 | F88: 1883931.875 | G88: 1925574.5 | H88: 1959627.75 | I88: 1964809.125 | J88: 1959889 | K88: 1960631.625 | L88: 1972433.75 | M88: 1983986.5 | N88: 1985129.125 | O88: 2015898.375 | P88: 2050573 | Q88: 2045794.625 | R88: 2035049.125 | S88: 2035641.5 | T88: 2032108.625 | U88: 2022419.625 | V88: 2044137.375 | W88: 2085583 | X88: 2088566.875 | Y88: 2077546.25 | Z88: 2084970.75 | AA88: 2097526.75 | AB88: 2128258 | AC88: 2174788.25 | AD88: 2214514 | AE88: 2264863.25 | AF88: 2326834 | AG88: 2356048.25 | AH88: 2311609.25 | AI88: 2240508.25 | AJ88: 2195963.5 | AK88: 2181098.5 | AL88: 2196012.25 | AM88: 2175994.25 | AN88: 2162372.75 | AO88: 2179756.75 | AP88: 2167971 | AQ88: 2171322.25 | AR88: 2122948 | AS88: 2039020.5 | AT88: 2011043 | AU88: 1972758.5 | AV88: 1969668.625 | AW88: 1968790.375 | AX88: 1957290.875 | AY88: 2015633.75 | AZ88: 2115567.75 | BA88: 2182577 | BB88: 2135240 | BC88: 2057581.125 | BD88: 2039201.75 | BE88: 2060096 | BF88: 2140627 | BG88: 2227337 | BH88: 2251216.25 | BI88: 2248996.5 | BJ88: 2262378.75 | BK88: 2284511.25 | BL88: 2255813.75 | BM88: 2214608.25 | BN88: 2198642.75 | BO88: 2151108.75 | BP88: 2105527.75 | BQ88: 2057405.125 | BR88: 1979803.75 | BS88: 1903508 | BT88: 1838159.375 | BU88: 1787844 | BV88: 1736741.5 | BW88: 1696860.5 | BX88: 1717372.5 | BY88: 1520796.375 | BZ88: 1284544 | CA88: 1257282.5 | CB88: 1251528.875 | CC88: 1180842.5 | CD88: 1051340.125 | CE88: 973569.125 | CF88: 910811.75 | CG88: 858113.5625 | CH88: 801849.375 | CI88: 745547 | CJ88: 706705.125 | CK88: 647977.4375 | CL88: 561995.875 | CM88: 536098.8125 | CN88: 492025.2812 | CO88: 462950.4688 | CP88: 407186.9375 | CQ88: 368948.8438 | CR88: 326847.0312 | CS88: 278655.5625 | CT88: 234874.2812 | CU88: 196829.5938 | CV88: 155504.4062 | CW88: 120945.1875 | CX88: 94941.90625 | CY88: 67970.61719 | CZ88: 44977.62109 | DA88: 31970.0293 | DB88: 54798.55078
B89: HMD | C89: F | D89: 2019 | E89: 165918736 | F89: 1856137 | G89: 1891787.875 | H89: 1932848.5 | I89: 1966252.875 | J89: 1970842 | K89: 1965607 | L89: 1965965.375 | M89: 1977428.625 | N89: 1988605.875 | O89: 1989722.625 | P89: 2020676.75 | Q89: 2055314 | R89: 2050501.75 | S89: 2039913.125 | T89: 2040941.625 | U89: 2038130.375 | V89: 2028994.375 | W89: 2052412.75 | X89: 2095802.75 | Y89: 2098484.5 | Z89: 2086174.625 | AA89: 2093923.375 | AB89: 2108055.5 | AC89: 2139980 | AD89: 2186763.5 | AE89: 2226195.25 | AF89: 2276284 | AG89: 2338161 | AH89: 2366245.75 | AI89: 2320358.25 | AJ89: 2248130 | AK89: 2202591.25 | AL89: 2186867.25 | AM89: 2201315 | AN89: 2180948.25 | AO89: 2166073.75 | AP89: 2182146.5 | AQ89: 2169729.25 | AR89: 2172754.5 | AS89: 2123708.75 | AT89: 2039091.25 | AU89: 2010809.375 | AV89: 1972286.625 | AW89: 1968567.5 | AX89: 1967262.125 | AY89: 1954850.5 | AZ89: 2012286.125 | BA89: 2111636.5 | BB89: 2177923.5 | BC89: 2130040.75 | BD89: 2051870.25 | BE89: 2032995.125 | BF89: 2053459.875 | BG89: 2133210 | BH89: 2218649.5 | BI89: 2241319 | BJ89: 2238378.75 | BK89: 2250830.5 | BL89: 2272073 | BM89: 2242302 | BN89: 2200210.5 | BO89: 2183297.75 | BP89: 2135087.5 | BQ89: 2088773.5 | BR89: 2039982.125 | BS89: 1961795.125 | BT89: 1884669 | BU89: 1818580.625 | BV89: 1767338.75 | BW89: 1714883.75 | BX89: 1673381.625 | BY89: 1691887.25 | BZ89: 1495829.75 | CA89: 1261301 | CB89: 1232328.375 | CC89: 1224064.625 | CD89: 1152081.125 | CE89: 1022977.125 | CF89: 944655.9375 | CG89: 880775.4375 | CH89: 826494.25 | CI89: 768775.0625 | CJ89: 711101.875 | CK89: 670188.5625 | CL89: 610204 | CM89: 523897.9062 | CN89: 494838.75 | CO89: 450019.2188 | CP89: 418473.3438 | CQ89: 362894.8125 | CR89: 324035.7188 | CS89: 282501.9062 | CT89: 236563.5156 | CU89: 195578.2969 | CV89: 160280.6875 | CW89: 123616.6094 | CX89: 93333.49219 | CY89: 71413.3125 | CZ89: 49691.14844 | DA89: 31899.28906 | DB89: 56456.82422
B90: HMD | C90: F | D90: 2020 | E90: 166829984 | F90: 1825421.375 | G90: 1860313.5 | H90: 1897625 | I90: 1940361.75 | J90: 1975991.75 | K90: 1981143 | L90: 1974593.125 | M90: 1974765.5 | N90: 1984959.625 | O90: 1994659.875 | P90: 2017468 | Q90: 2070768.75 | R90: 2113950.75 | S90: 2102925.5 | T90: 2083480.125 | U90: 2075940.5 | V90: 2075939 | W90: 2063814.125 | X90: 2086236 | Y90: 2121832.5 | Z90: 2107777 | AA90: 2093593.125 | AB90: 2098549 | AC90: 2110545.5 | AD90: 2140505 | AE90: 2183624 | AF90: 2223269.25 | AG90: 2276270.25 | AH90: 2333478.75 | AI90: 2353724.5 | AJ90: 2312662.25 | AK90: 2252780.75 | AL90: 2213896.25 | AM90: 2203514.5 | AN90: 2215882.5 | AO90: 2185451.75 | AP90: 2180625.75 | AQ90: 2197634.75 | AR90: 2185181.75 | AS90: 2185167.25 | AT90: 2116995.5 | AU90: 2055720.5 | AV90: 2024822.875 | AW90: 1984350.75 | AX90: 1976450.375 | AY90: 1959621.75 | AZ90: 1957724.125 | BA90: 2013460.875 | BB90: 2117479.25 | BC90: 2185243.5 | BD90: 2112525.75 | BE90: 2052191.25 | BF90: 2034807.875 | BG90: 2060073.25 | BH90: 2138827 | BI90: 2208020 | BJ90: 2235337.25 | BK90: 2236910.25 | BL90: 2257720 | BM90: 2264417.5 | BN90: 2210535 | BO90: 2188138.5 | BP90: 2170741 | BQ90: 2117967.75 | BR90: 2067493 | BS90: 2007280.5 | BT90: 1937812.625 | BU90: 1861921 | BV90: 1801527.375 | BW90: 1738735.75 | BX90: 1672211.75 | BY90: 1638822 | BZ90: 1651402.5 | CA90: 1465519.375 | CB90: 1219608 | CC90: 1178210.25 | CD90: 1174016.375 | CE90: 1099916.625 | CF90: 972329.375 | CG90: 893146.625 | CH90: 824560.5625 | CI90: 774270.25 | CJ90: 715453.0625 | CK90: 656225.3125 | CL90: 612783.8125 | CM90: 551127.8125 | CN90: 484605.4375 | CO90: 453081.625 | CP90: 407665.875 | CQ90: 374103.7812 | CR90: 319725.5938 | CS90: 280724.3438 | CT90: 240680.5625 | CU90: 197612.2656 | CV90: 159895.1562 | CW90: 127673.6406 | CX90: 96373.74219 | CY90: 70581.77344 | CZ90: 52600.71094 | DA90: 35648.71094 | DB90: 58239.14453
B91: HMD | C91: F | D91: 2021 | E91: 167453408 | F91: 1777142.5 | G91: 1827087 | H91: 1864208 | I91: 1903544.875 | J91: 1948759.375 | K91: 1985091 | L91: 1989097.625 | M91: 1982473.625 | N91: 1981512.375 | O91: 1990284.25 | P91: 2021459.25 | Q91: 2066476.875 | R91: 2128217 | S91: 2165067.5 | T91: 2145052.75 | U91: 2116826 | V91: 2111922 | W91: 2108384.75 | X91: 2094636.5 | Y91: 2109441.75 | Z91: 2128736 | AA91: 2112653 | AB91: 2095343.125 | AC91: 2097812.5 | AD91: 2107919 | AE91: 2134477.75 | AF91: 2178084 | AG91: 2220650.25 | AH91: 2269308.25 | AI91: 2319154.25 | AJ91: 2344597.5 | AK91: 2315952.25 | AL91: 2262864.5 | AM91: 2229220.5 | AN91: 2216673 | AO91: 2219442 | AP91: 2199427 | AQ91: 2195549.25 | AR91: 2212412.75 | AS91: 2197065.25 | AT91: 2178143 | AU91: 2133044 | AV91: 2068986.125 | AW91: 2036337.5 | AX91: 1991758.125 | AY91: 1968669.25 | AZ91: 1962394 | BA91: 1958835.75 | BB91: 2019357.875 | BC91: 2124750.25 | BD91: 2167393.75 | BE91: 2112412.75 | BF91: 2053595 | BG91: 2040984 | BH91: 2065471.875 | BI91: 2128142.25 | BJ91: 2201627.5 | BK91: 2233190.25 | BL91: 2242839.25 | BM91: 2249075.5 | BN91: 2231360.5 | BO91: 2196955 | BP91: 2174058.25 | BQ91: 2151689.25 | BR91: 2094398.5 | BS91: 2032674.125 | BT91: 1980991.125 | BU91: 1912607.375 | BV91: 1842426.25 | BW91: 1770543.75 | BX91: 1694001.75 | BY91: 1635425 | BZ91: 1596870.125 | CA91: 1615722.125 | CB91: 1416933.375 | CC91: 1163306.75 | CD91: 1126883.25 | CE91: 1118626.625 | CF91: 1043881.312 | CG91: 916839.5 | CH91: 833453.125 | CI91: 769289.4375 | CJ91: 717439.875 | CK91: 656907.875 | CL91: 596155.4375 | CM91: 549960.5 | CN91: 490491.75 | CO91: 437890.0312 | CP91: 403943 | CQ91: 357927.5625 | CR91: 323180.625 | CS91: 271131.4688 | CT91: 233426.25 | CU91: 195528.5312 | CV91: 156608.3281 | CW91: 123809.3203 | CX91: 95597.54688 | CY91: 70195.49219 | CZ91: 49517.28125 | DA91: 35661.25 | DB91: 58053.10547
B92: HMD | C92: F | D92: 2022 | E92: 167973392 | F92: 1770531.875 | G92: 1783256 | H92: 1833379.5 | I92: 1870397.375 | J92: 1909404.75 | K92: 1954228.125 | L92: 1990281.75 | M92: 1994027 | N92: 1987225.75 | O92: 1986117.25 | P92: 1994717.375 | Q92: 2025765.125 | R92: 2070606.5 | S92: 2132233.25 | T92: 2169126.25 | U92: 2149459.25 | V92: 2121825 | W92: 2118082 | X92: 2115929.25 | Y92: 2102398.75 | Z92: 2116363 | AA92: 2136029.25 | AB92: 2121109.75 | AC92: 2104523.75 | AD92: 2107460 | AE92: 2118261 | AF92: 2145177.75 | AG92: 2188471 | AH92: 2230374 | AI92: 2278297.25 | AJ92: 2327440 | AK92: 2352039 | AL92: 2322557.25 | AM92: 2268649.5 | AN92: 2233967.25 | AO92: 2220454.75 | AP92: 2222682.5 | AQ92: 2202038 | AR92: 2197380.25 | AS92: 2213658.25 | AT92: 2197503 | AU92: 2177757 | AV92: 2131978.75 | AW92: 2067551.5 | AX92: 2034505.125 | AY92: 1989387.125 | AZ92: 1965794.125 | BA92: 1958839.5 | BB92: 1954765.875 | BC92: 2014472 | BD92: 2118575.5 | BE92: 2160342.75 | BF92: 2105052 | BG92: 2045830 | BH92: 2032413.5 | BI92: 2055724.125 | BJ92: 2117026.75 | BK92: 2189085 | BL92: 2219113.75 | BM92: 2227185 | BN92: 2231891.75 | BO92: 2213001.5 | BP92: 2177271.5 | BQ92: 2152941.25 | BR92: 2129122.75 | BS92: 2071075.5 | BT92: 2008468.75 | BU92: 1955980.5 | BV92: 1886574.625 | BW92: 1815190.625 | BX92: 1742537.75 | BY92: 1665192.875 | BZ92: 1604749.375 | CA92: 1563658.875 | CB92: 1578684.375 | CC92: 1381132.5 | CD92: 1130609.375 | CE92: 1091899.875 | CF92: 1079985.75 | CG92: 1003727.312 | CH92: 877390.125 | CI92: 793456.75 | CJ92: 728015.0625 | CK92: 674219.6875 | CL92: 612413 | CM92: 550677.9375 | CN92: 502957.5 | CO92: 443558.9062 | CP92: 393619.3438 | CQ92: 358285.375 | CR92: 312653.9062 | CS92: 277515.9688 | CT92: 228713.875 | CU92: 192818.6719 | CV92: 157750.9844 | CW92: 123612.8594 | CX92: 94843.90625 | CY92: 71602.21094 | CZ92: 51184.21875 | DA92: 34745.07812 | DB92: 60810.89844
B93: HMD | C93: F | D93: 2023 | E93: 168736512 | F93: 1790138 | G93: 1780528.125 | H93: 1793237.125 | I93: 1843156 | J93: 1879648.25 | K93: 1918061.75 | L93: 1962383 | M93: 1998003 | N93: 2001417.125 | O93: 1994352.75 | P93: 1992996.875 | Q93: 2001374 | R93: 2032177.625 | S93: 2076854.875 | T93: 2138539.75 | U93: 2175936.5 | V93: 2157256 | W93: 2131420 | X93: 2129893.75 | Y93: 2128089 | Z93: 2113582 | AA93: 2128540.5 | AB93: 2149809.5 | AC93: 2135916.75 | AD93: 2119911.5 | AE93: 2123957 | AF93: 2135487.5 | AG93: 2162045.5 | AH93: 2204437.5 | AI93: 2245434.5 | AJ93: 2292327.75 | AK93: 2340426.75 | AL93: 2363861 | AM93: 2333117 | AN93: 2277712.25 | AO93: 2241640.25 | AP93: 2227495.25 | AQ93: 2228838 | AR93: 2207142.75 | AS93: 2201780.75 | AT93: 2216857.75 | AU93: 2199489 | AV93: 2178844.25 | AW93: 2132398.5 | AX93: 2067441.5 | AY93: 2033882.5 | AZ93: 1988317.25 | BA93: 1963931.125 | BB93: 1956384.75 | BC93: 1951720.875 | BD93: 2010101.625 | BE93: 2113039.75 | BF93: 2154299.25 | BG93: 2098653 | BH93: 2038872 | BI93: 2024324.75 | BJ93: 2046578 | BK93: 2106480.25 | BL93: 2176814.5 | BM93: 2205161.75 | BN93: 2211753.25 | BO93: 2215223.75 | BP93: 2194830.75 | BQ93: 2157673.75 | BR93: 2132077.75 | BS93: 2107185.25 | BT93: 2048101.75 | BU93: 1984765.5 | BV93: 1931198.625 | BW93: 1860515 | BX93: 1788252.125 | BY93: 1714826.125 | BZ93: 1636006.125 | CA93: 1573477.5 | CB93: 1529743.625 | CC93: 1540859.125 | CD93: 1344680.125 | CE93: 1097303.25 | CF93: 1056207.375 | CG93: 1040455.938 | CH93: 962674.8125 | CI93: 837288.25 | CJ93: 752960.75 | CK93: 686246.75 | CL93: 630680.125 | CM93: 567954.75 | CN93: 505751.125 | CO93: 457070.1875 | CP93: 398360.3125 | CQ93: 349542.875 | CR93: 313096.9062 | CS93: 269445.4688 | CT93: 233936.5156 | CU93: 189259.4688 | CV93: 155883.2969 | CW93: 124176.6484 | CX93: 94836.5625 | CY93: 70756.67188 | CZ93: 51724.87109 | DA93: 35760.21094 | DB93: 61470.64062
B94: HMD | C94: F | D94: 2024 | E94: 169292912 | F94: 1764536.75 | G94: 1794751.25 | H94: 1785544.875 | I94: 1798194.125 | J94: 1847872.875 | K94: 1884097.625 | L94: 1922248.75 | M94: 1966354.75 | N94: 2001784.75 | O94: 2005055.75 | P94: 1997880.5 | Q94: 1996398.125 | R94: 2004639.25 | S94: 2035305.625 | T94: 2079992.375 | U94: 2141897.25 | V94: 2179765 | W94: 2161961 | X94: 2137206.25 | Y94: 2135740.75 | Z94: 2133516.75 | AA94: 2119560.25 | AB94: 2135327.25 | AC94: 2157109 | AD94: 2143442 | AE94: 2127916.5 | AF94: 2132381.25 | AG94: 2143732.25 | AH94: 2169733 | AI94: 2211587.5 | AJ94: 2251942 | AK94: 2298194.25 | AL94: 2345671.5 | AM94: 2368261.25 | AN94: 2336711.75 | AO94: 2280567.25 | AP94: 2244210.5 | AQ94: 2229503 | AR94: 2230185.25 | AS94: 2208117 | AT94: 2201954 | AU94: 2216254.75 | AV94: 2198331 | AW94: 2177296 | AX94: 2130429.75 | AY94: 2065266.375 | AZ94: 2031324.625 | BA94: 1985419.5 | BB94: 1960530.875 | BC94: 1952669.375 | BD94: 1947149.5 | BE94: 2004658.125 | BF94: 2106726 | BG94: 2147368.25 | BH94: 2091336.25 | BI94: 2030816.875 | BJ94: 2015516.25 | BK94: 2036561.625 | BL94: 2095050.5 | BM94: 2163712.5 | BN94: 2190712.25 | BO94: 2195968.5 | BP94: 2197868.75 | BQ94: 2176153.5 | BR94: 2137947.25 | BS94: 2111311.75 | BT94: 2084967.625 | BU94: 2025114.375 | BV94: 1960899.25 | BW94: 1905927.875 | BX94: 1834464.75 | BY94: 1760675.25 | BZ94: 1685800.375 | CA94: 1605665 | CB94: 1540759 | CC94: 1494624.5 | CD94: 1500477.25 | CE94: 1310226.375 | CF94: 1063188.5 | CG94: 1019019.188 | CH94: 998425.5 | CI94: 921651 | CJ94: 796969.8125 | CK94: 712198.125 | CL94: 644435.5 | CM94: 586830.6875 | CN94: 524617.875 | CO94: 462081.7188 | CP94: 412710.4375 | CQ94: 355695.8125 | CR94: 308141.1875 | CS94: 272067.3438 | CT94: 229448.1719 | CU94: 196025.875 | CV94: 154654.0312 | CW94: 124652 | CX94: 97100.89062 | CY94: 72040.07031 | CZ94: 52258.01172 | DA94: 37253.60938 | DB94: 64594.02344
B95: HMD | C95: F | D95: 2025 | E95: =SUM(F95:DB95) -> 170819306.9 | F95: =F94*F37/F36 -> 1791683.188 | G95: =F94*G37/F36 -> 1786555.474 | H95: 1815446.681 | I95: 1803723.412 | J95: 1814449.106 | K95: 1862760.261 | L95: 1898102.711 | M95: 1935948.469 | N95: 1980009.724 | O95: 2015632.354 | P95: 2019064.02 | Q95: 2012395.985 | R95: 2011746.427 | S95: 2020749.322 | T95: 2052030.896 | U95: 2097488.933 | V95: 2160601.105 | W95: 2199900.31 | X95: 2183637.179 | Y95: 2160589.771 | Z95: 2160806.622 | AA95: 2159926.289 | AB95: 2147483.786 | AC95: 2165576.465 | AD95: 2189378.373 | AE95: 2176822.636 | AF95: 2161550.42 | AG95: 2165769.093 | AH95: 2176521.356 | AI95: 2201675.369 | AJ95: 2242562.989 | AK95: 2281227.715 | AL95: 2325286.172 | AM95: =AL94*AM37/AL36 -> 2370428.157 | AN95: 2390651.996 | AO95: 2356960.988 | AP95: 2298993.945 | AQ95: 2261088.585 | AR95: 2244930.085 | AS95: 2244093.12 | AT95: 2220702.655 | AU95: 2213745.731 | AV95: 2227304.284 | AW95: 2208589.133 | AX95: 2186773.644 | AY95: 2139057.735 | AZ95: 2073095.823 | BA95: 2038326.807 | BB95: 1991675.053 | BC95: 1966134.075 | BD95: 1957466.118 | BE95: 1951137.176 | BF95: 2007726.344 | BG95: 2108558.475 | BH95: 2147725.151 | BI95: 2090543.129 | BJ95: 2029116.53 | BK95: 2012687.568 | BL95: 2032333.084 | BM95: 2089201.755 | BN95: 2156121.724 | BO95: 2181616.299 | BP95: 2185516.07 | BQ95: 2186027.393 | BR95: 2163022.061 | BS95: =BR94*BS37/BR36 -> 2123617.1 | BT95: 2095544.51 | BU95: 2067571.243 | BV95: 2006267.985 | BW95: 1940503.41 | BX95: 1883643.079 | BY95: 1810313.632 | BZ95: 1734475.116 | CA95: 1657541.985 | CB95: 1575461.627 | CC95: 1508332.916 | CD95: 1459521.039 | CE95: 1461124.852 | CF95: 1271868.562 | CG95: 1028527.673 | CH95: 981736.0442 | CI95: 957195.3433 | CJ95: 878734.3789 | CK95: 755264.1696 | CL95: 670270.4967 | CM95: 602026.6321 | CN95: 543823.203 | CO95: 481718.419 | CP95: 419725.1148 | CQ95: 370291.2305 | CR95: 314792.1325 | CS95: 268611.1699 | CT95: 233131.0246 | CU95: 192993.3425 | CV95: 161394.4762 | CW95: 124495.4904 | CX95: 97877.7679 | CY95: 74327.96421 | CZ95: 53761.87774 | DA95: 37947.92704 | DB95: 66420.68469
B96: HMD | C96: F | D96: 2026 | E96: =SUM(F96:DB96) -> 172029428.8 | F96: =F95*F38/F37 -> 1815692.489 | G96: =F95*G38/F37 -> 1807433.421 | H96: 1801568.634 | I96: 1829037.55 | J96: 1815873.12 | K96: 1825703.321 | L96: 1873607.277 | M96: 1908634.441 | N96: 1946481.113 | O96: 1990669.7 | P96: 2026431.799 | Q96: 2030109.975 | R96: 2024018.889 | S96: 2023925.934 | T96: 2033319.321 | U96: 2065151.363 | V96: 2111537.422 | W96: 2175850.893 | X96: 2216241.139 | Y96: 2200963.471 | Z96: 2178863.667 | AA96: 2179829.819 | AB96: 2179504.411 | AC96: 2167966.239 | AD96: 2187478.192 | AE96: 2212005.79 | AF96: 2199449.912 | AG96: 2183973.989 | AH96: 2187905.686 | AI96: 2198351.025 | AJ96: 2222961.584 | AK96: 2262893.59 | AL96: 2300046.47 | AM96: =AL95*AM38/AL37 -> 2342333.201 | AN96: 2385669.125 | AO96: 2404238.12 | AP96: 2369193.176 | AQ96: 2310130.801 | AR96: 2271278.4 | AS96: 2254206.299 | AT96: 2252493.996 | AU96: 2228454.696 | AV96: 2221101.418 | AW96: 2234148.124 | AX96: 2214835.992 | AY96: 2192311.861 | AZ96: 2143837.872 | BA96: 2077282.37 | BB96: 2041940.617 | BC96: 1994751.742 | BD96: 1968666.639 | BE96: 1959273.209 | BF96: 1952206.027 | BG96: 2007896.58 | BH96: 2107463.632 | BI96: 2145195.014 | BJ96: 2086978.898 | BK96: 2024709.729 | BL96: 2007193.871 | BM96: 2025525.586 | BN96: 2080885.119 | BO96: 2146167.014 | BP96: 2170225.237 | BQ96: 2172799.944 | BR96: 2171967.321 | BS96: =BR95*BS38/BR37 -> 2147732.956 | BT96: 2107182.106 | BU96: 2077693.128 | BV96: 2048005.417 | BW96: 1985117.37 | BX96: 1917633.239 | BY96: 1858695.992 | BZ96: 1783336.646 | CA96: 1705365.132 | CB96: 1626396.758 | CC96: 1542456.213 | CD96: 1473136.05 | CE96: 1421572.942 | CF96: 1418693.67 | CG96: 1230559.44 | CH96: 991192.8114 | CI96: 941648.5831 | CJ96: 913101.0451 | CK96: 833132.5724 | CL96: 711244.3154 | CM96: 626357.0665 | CN96: 557761.0187 | CO96: 498895.9712 | CP96: 437143.8387 | CQ96: 376224.4055 | CR96: 327327.7346 | CS96: 274014.3644 | CT96: 229879.5298 | CU96: 195709.0336 | CV96: 158663.223 | CW96: 129567.0078 | CX96: 97518.83581 | CY96: 74664.01209 | CZ96: 55227.96509 | DA96: 38868.07284 | DB96: 68867.04344
B97: HMD | C97: F | D97: 2027 | E97: 173036370.5 | F97: =F96*F39/F38 -> 1836873.937 | G97: =F96*G39/F38 -> 1827652.338 | H97: 1819294.993 | I97: 1812041.811 | J97: 1838544.051 | K97: 1824674.124 | L97: 1834273.494 | M97: 1882125.16 | N97: 1917112.79 | O97: 1955113.314 | P97: 1999419.364 | Q97: 2035441.958 | R97: 2039511.388 | S97: 2033825.044 | T97: 2034027.319 | U97: 2043817.438 | V97: 2076397.058 | W97: 2123796.345 | X97: 2189112.694 | Y97: 2230193.065 | Z97: 2215399.157 | AA97: 2193683.908 | AB97: 2194994.336 | AC97: 2195155.722 | AD97: 2184239.099 | AE97: 2204225.545 | AF97: 2228540.066 | AG97: 2215578.523 | AH97: 2199848.549 | AI97: 2203668.549 | AJ97: 2213936.521 | AK97: 2237821.062 | AL97: 2276626.241 | AM97: =AL96*AM39/AL38 -> 2312381.697 | AN97: 2353148.757 | AO97: 2395073.559 | AP97: 2412486.528 | AQ97: 2376591.332 | AR97: 2316840.625 | AS97: 2277379.388 | AT97: 2259784.432 | AU97: 2257632.114 | AV97: 2233229.692 | AW97: 2225575.84 | AX97: 2238163.578 | AY97: 2218218.901 | AZ97: 2194970.708 | BA97: 2145890.057 | BB97: 2078937.359 | BC97: 2043160.12 | BD97: 1995506.114 | BE97: 1968873.439 | BF97: 1958776.861 | BG97: 1950985.895 | BH97: 2005714.381 | BI97: 2103935.915 | BJ97: 2140271.714 | BK97: 2081111.345 | BL97: 2018044.49 | BM97: 1999521.232 | BN97: 2016649.201 | BO97: 2070580.569 | BP97: 2134262.034 | BQ97: 2156913.395 | BR97: 2158200.675 | BS97: =BR96*BS39/BR38 -> 2156054.051 | BT97: 2130556.617 | BU97: 2088740.031 | BV97: 2057654.129 | BW97: 2026064.971 | BX97: 1961409.804 | BY97: 1891999.741 | BZ97: 1830776.06 | CA97: 1753277.069 | CB97: 1673175.822 | CC97: 1592239.055 | CD97: 1506466.447 | CE97: 1434878.166 | CF97: 1380394.234 | CG97: 1372714.757 | CH97: 1185840.585 | CI97: 950820.9902 | CJ97: 898457.6514 | CK97: 865886.8251 | CL97: 784647.4858 | CM97: 664788.9442 | CN97: 580406.8195 | CO97: 511887.3056 | CP97: 452828.7109 | CQ97: 391973.4716 | CR97: 332745.552 | CS97: 285070.8595 | CT97: 234607.6382 | CU97: 193150.2319 | CV97: 160966.9266 | CW97: 127547.0078 | CX97: 101530.6585 | CY97: 74478.15076 | CZ97: 55511.24054 | DA97: 39943.69157 | DB97: 71101.93843
B99: HMD | C99: M | D99: 2000 | E99: 137431008 | F99: 1958928.25 | G99: 1938985 | H99: 1938981.125 | I99: 1954964.25 | J99: 2008382.875 | K99: 2039969.375 | L99: 2061756.625 | M99: 2113452.5 | N99: 2135226.5 | O99: 2166092.5 | P99: 2169673 | Q99: 2096923.625 | R99: 2073341.375 | S99: 2058964.625 | T99: 2067565.375 | U99: 2055801 | V99: 2062429.375 | W99: 2089179.25 | X99: 2074529.375 | Y99: 2099749.25 | Z99: 2051016.625 | AA99: 1959171.375 | AB99: 1908566.5 | AC99: 1858931 | AD99: 1852523.375 | AE99: 1880550.75 | AF99: 1849276.5 | AG99: 1940307.625 | AH99: 2039719.75 | AI99: 2103455.5 | AJ99: 2144463 | AK99: 2013773.375 | AL99: 2020657.625 | AM99: 2029199.625 | AN99: 2133505.5 | AO99: 2269771 | AP99: 2261611.75 | AQ99: 2268451 | AR99: 2259104.5 | AS99: 2291651.5 | AT99: 2333266.5 | AU99: 2225141 | AV99: 2240168.25 | AW99: 2165942.25 | AX99: 2118268.25 | AY99: 2122547.25 | AZ99: 2004898.375 | BA99: 1956752.625 | BB99: 1869090 | BC99: 1857037.75 | BD99: 1855809.375 | BE99: 1778375.75 | BF99: 1841227.25 | BG99: 1612133.625 | BH99: 1404248.25 | BI99: 1388332.875 | BJ99: 1395327.5 | BK99: 1321837.125 | BL99: 1202014.125 | BM99: 1131371.25 | BN99: 1112605.125 | BO99: 1054234.75 | BP99: 1014629.5 | BQ99: 975974.1875 | BR99: 965875.75 | BS99: 923689.375 | BT99: 875559.0625 | BU99: 875284.8125 | BV99: 868336.375 | BW99: 856122.5 | BX99: 841382.5 | BY99: 808538.75 | BZ99: 777255.6875 | CA99: 751710.3125 | CB99: 723189.375 | CC99: 692157.3125 | CD99: 645771.3125 | CE99: 611787.375 | CF99: 572011.125 | CG99: 512468.6875 | CH99: 422057.6875 | CI99: 391917.0312 | CJ99: 343189.125 | CK99: 298163.375 | CL99: 262947.9062 | CM99: 230410.2031 | CN99: 191355.0625 | CO99: 161730.7969 | CP99: 127803.2266 | CQ99: 105130.1797 | CR99: 81626.95312 | CS99: 64645.48047 | CT99: 49598.10938 | CU99: 35653.69141 | CV99: 26382.28906 | CW99: 18646.06055 | CX99: 12947.67969 | CY99: 8942.530273 | CZ99: 5450.689941 | DA99: 3993.949951 | DB99: 5426.02002
B100: HMD | C100: M | D100: 2001 | E100: 138977920 | F100: 2012047.125 | G100: 1957747.875 | H100: 1943513.875 | I100: 1948976.75 | J100: 1976488.75 | K100: 2016587.25 | L100: 2042434.875 | M100: 2075510.5 | N100: 2115988.75 | O100: 2153483.25 | P100: 2202053.5 | Q100: 2177427.75 | R100: 2117655 | S100: 2086501.125 | T100: 2077524.375 | U100: 2092599 | V100: 2084188.875 | W100: 2087230 | X100: 2112998.5 | Y100: 2116835.5 | Z100: 2109033.5 | AA100: 2050849.125 | AB100: 1965779.625 | AC100: 1919412.875 | AD100: 1878948.75 | AE100: 1882607.25 | AF100: 1878542.375 | AG100: 1873284 | AH100: 1945136.125 | AI100: 2052175 | AJ100: 2148355 | AK100: 2111587.5 | AL100: 2033734 | AM100: 2015665.25 | AN100: 2049382.375 | AO100: 2157474 | AP100: 2246505.5 | AQ100: 2255932 | AR100: 2257959.5 | AS100: 2275611.5 | AT100: 2313263.5 | AU100: 2290643.25 | AV100: 2240734.25 | AW100: 2227935.25 | AX100: 2168302.25 | AY100: 2134363.5 | AZ100: 2094687.125 | BA100: 2010493.5 | BB100: 1944788.125 | BC100: 1889209.75 | BD100: 1862633.375 | BE100: 1828368.625 | BF100: 1783705.125 | BG100: 1821640.125 | BH100: 1629028.25 | BI100: 1387830.375 | BJ100: 1374364.25 | BK100: 1383201.875 | BL100: 1321325.5 | BM100: 1192008.75 | BN100: 1129252.5 | BO100: 1088846.5 | BP100: 1049322.75 | BQ100: 1005208.75 | BR100: 962091.3125 | BS100: 948814.25 | BT100: 905804.5625 | BU100: 863206.625 | BV100: 854185.3125 | BW100: 841075.25 | BX100: 835882.5625 | BY100: 813072.5 | BZ100: 781006.25 | CA100: 759146.0625 | CB100: 722683.125 | CC100: 690398.9375 | CD100: 657906.4375 | CE100: 612292.375 | CF100: 573051.75 | CG100: 533446.375 | CH100: 462317.8125 | CI100: 388385.3125 | CJ100: 357511.4688 | CK100: 310053.0938 | CL100: 266457.1875 | CM100: 232367 | CN100: 200592.375 | CO100: 164121.9531 | CP100: 136825.6094 | CQ100: 106065.0312 | CR100: 85632.35156 | CS100: 65424.07031 | CT100: 50542.51953 | CU100: 37806.71094 | CV100: 26519.01953 | CW100: 19027.39062 | CX100: 13181.83984 | CY100: 8939.700195 | CZ100: 5929.790039 | DA100: 3536.540039 | DB100: 5681.75
B101: HMD | C101: M | D101: 2002 | E101: 140385392 | F101: 2034094.75 | G101: 2008740.625 | H101: 1957960.625 | I101: 1945081.5 | J101: 1953370.25 | K101: 1980748.625 | L101: 2018252.375 | M101: 2046659.375 | N101: 2080097.875 | O101: 2124900.5 | P101: 2180674.75 | Q101: 2213652.5 | R101: 2194418.25 | S101: 2131524.25 | T101: 2098530 | U101: 2099037.5 | V101: 2119054.75 | W101: 2111459.75 | X101: 2118852 | Y101: 2139646 | Z101: 2131331 | AA101: 2119331.75 | AB101: 2055862.625 | AC101: 1971808.5 | AD101: 1925932.625 | AE101: 1888232.375 | AF101: 1883314.125 | AG101: 1884365 | AH101: 1877819.25 | AI101: 1945662.625 | AJ101: 2066974.25 | AK101: 2143594.5 | AL101: 2120609.75 | AM101: 2037695 | AN101: 2019305.5 | AO101: 2055262.75 | AP101: 2158288.25 | AQ101: 2244521.5 | AR101: 2254734.75 | AS101: 2257945 | AT101: 2272558.25 | AU101: 2313081 | AV101: 2288601.5 | AW101: 2238822 | AX101: 2221158.5 | AY101: 2161564.25 | AZ101: 2131717.75 | BA101: 2091646.25 | BB101: 2004188.125 | BC101: 1941023.625 | BD101: 1880984.125 | BE101: 1860350.25 | BF101: 1820658.875 | BG101: 1779137.5 | BH101: 1816022.625 | BI101: 1617938.375 | BJ101: 1382940.25 | BK101: 1365787.625 | BL101: 1374145.5 | BM101: 1310312.625 | BN101: 1178217 | BO101: 1120923.875 | BP101: 1077606.625 | BQ101: 1037873.875 | BR101: 991034.875 | BS101: 947965.875 | BT101: 933360.25 | BU101: 890028.0625 | BV101: 845693.9375 | BW101: 834157.3125 | BX101: 818360.875 | BY101: 814479.5 | BZ101: 787461.8125 | CA101: 754856.75 | CB101: 730142.875 | CC101: 690604.5 | CD101: 659591.75 | CE101: 623856.25 | CF101: 578016.8125 | CG101: 537475.6875 | CH101: 483807.1875 | CI101: 426390.2812 | CJ101: 354695.3125 | CK101: 323348.2188 | CL101: 277903.6875 | CM101: 235911.25 | CN101: 202944.8594 | CO101: 172723.125 | CP101: 139071.5469 | CQ101: 113949.6328 | CR101: 86721.24219 | CS101: 68734.6875 | CT101: 51382.17969 | CU101: 38740.76953 | CV101: 28120.5293 | CW101: 19316.01953 | CX101: 13385.7998 | CY101: 9058.169922 | CZ101: 5954.430176 | DA101: 3928.179932 | DB101: 5625.370605
B102: HMD | C102: M | D102: 2003 | E102: 141644864 | F102: 2025899.625 | G102: 2026901.5 | H102: 2008321.25 | I102: 1959983.25 | J102: 1951336.625 | K102: 1958328.75 | L102: 1981282.875 | M102: 2023292.25 | N102: 2051615.5 | O102: 2091441.375 | P102: 2163257 | Q102: 2188083.5 | R102: 2231988.75 | S102: 2206406.75 | T102: 2140612.75 | U102: 2121013 | V102: 2124604.75 | W102: 2143066.25 | X102: 2141307.75 | Y102: 2139665.75 | Z102: 2143265.25 | AA102: 2133279 | AB102: 2113404 | AC102: 2052413.25 | AD102: 1970614.75 | AE102: 1930341.625 | AF102: 1879215.25 | AG102: 1885749.25 | AH102: 1884852.125 | AI102: 1873489 | AJ102: 1965456 | AK102: 2053481.375 | AL102: 2154719.5 | AM102: 2120815 | AN102: 2038630.375 | AO102: 2024746.5 | AP102: 2052224.375 | AQ102: 2153018.75 | AR102: 2241938 | AS102: 2253653.5 | AT102: 2252179.75 | AU102: 2272425 | AV102: 2309305.25 | AW102: 2285864 | AX102: 2228645.75 | AY102: 2212723 | AZ102: 2160348.75 | BA102: 2128859.75 | BB102: 2083336.625 | BC102: 2001013.125 | BD102: 1930049.75 | BE102: 1880868.75 | BF102: 1850569.375 | BG102: 1817375.5 | BH102: 1774228 | BI102: 1800421.125 | BJ102: 1614332.875 | BK102: 1373434.375 | BL102: 1357115.5 | BM102: 1361989.25 | BN102: 1292971.125 | BO102: 1171979.75 | BP102: 1109088.125 | BQ102: 1066512 | BR102: 1022632.375 | BS102: 977160.5 | BT102: 932825.25 | BU102: 917789.25 | BV102: 872315.6875 | BW102: 825928.1875 | BX102: 810959.8125 | BY102: 798984.5 | BZ102: 788490.6875 | CA102: 761867.875 | CB102: 726084.0625 | CC102: 697150.4375 | CD102: 661568.5625 | CE102: 625640.1875 | CF102: 589735.8125 | CG102: 542760.75 | CH102: 474090.5625 | CI102: 446629.2188 | CJ102: 390202.1875 | CK102: 321444.2188 | CL102: 289933.2188 | CM102: 246271.2656 | CN102: 205971.7344 | CO102: 174775.25 | CP102: 146233.8594 | CQ102: 115623.0469 | CR102: 93043.1875 | CS102: 69471.71094 | CT102: 53585.98828 | CU102: 39103.42969 | CV102: 28610.90039 | CW102: 20434.17969 | CX102: 13573.20996 | CY102: 9107.269531 | CZ102: 5932.419922 | DA102: 3833.47998 | DB102: 5787.650391
B103: HMD | C103: M | D103: 2004 | E103: 142940080 | F103: 2042665.25 | G103: 2014809.25 | H103: 2025919.875 | I103: 2010557.25 | J103: 1967988.375 | K103: 1956865.125 | L103: 1957596.125 | M103: 1987012.875 | N103: 2028474.75 | O103: 2065234.625 | P103: 2140582 | Q103: 2166629.25 | R103: 2207506.25 | S103: 2242013.75 | T103: 2212491.5 | U103: 2164268.5 | V103: 2145940 | W103: 2145464 | X103: 2170949.25 | Y103: 2158761.75 | Z103: 2139525.25 | AA103: 2145943.25 | AB103: 2127714.75 | AC103: 2111566.75 | AD103: 2051907.25 | AE103: 1977506.875 | AF103: 1917777.875 | AG103: 1883919.25 | AH103: 1887365.125 | AI103: 1879882.625 | AJ103: 1901665.5 | AK103: 1947655.625 | AL103: 2070847.5 | AM103: 2155404 | AN103: 2122582.25 | AO103: 2047125.625 | AP103: 2021647.625 | AQ103: 2047162.75 | AR103: 2152810.75 | AS103: 2243696.25 | AT103: 2248370.25 | AU103: 2254593.5 | AV103: 2269242.75 | AW103: 2307415.75 | AX103: 2273733.25 | AY103: 2219830.5 | AZ103: 2214006.5 | BA103: 2158601 | BB103: 2119353 | BC103: 2081532.75 | BD103: 1987689.625 | BE103: 1932890.75 | BF103: 1869250.625 | BG103: 1848664.5 | BH103: 1813150.5 | BI103: 1755970.625 | BJ103: 1798705.75 | BK103: 1602214.75 | BL103: 1364947 | BM103: 1344605.375 | BN103: 1341902.125 | BO103: 1289108.375 | BP103: 1159442.625 | BQ103: 1098295.25 | BR103: 1050212.625 | BS103: 1008878.562 | BT103: 961709.75 | BU103: 917898.5 | BV103: 899787.375 | BW103: 851948.875 | BX103: 802227.75 | BY103: 793272.375 | BZ103: 773048.9375 | CA103: 763490.25 | CB103: 732822.25 | CC103: 692530.9375 | CD103: 669541.8125 | CE103: 627614.6875 | CF103: 592100.75 | CG103: 554193.0625 | CH103: 481517.7188 | CI103: 438365.6562 | CJ103: 409641.75 | CK103: 354912.3125 | CL103: 288674.5625 | CM103: 257503.3125 | CN103: 216299.6406 | CO103: 178021.4844 | CP103: 148545.3906 | CQ103: 122120.9297 | CR103: 94732.42969 | CS103: 74518.95312 | CT103: 54557.42969 | CU103: 41044.10156 | CV103: 29221.35938 | CW103: 20814.09961 | CX103: 14327.87012 | CY103: 9296.719727 | CZ103: 6107.040039 | DA103: 3853.75 | DB103: 5754.550781
B104: HMD | C104: M | D104: 2005 | E104: 144330752 | F104: 2049870.625 | G104: 2028375.875 | H104: 2014369.25 | I104: 2029331.125 | J104: 2021186.75 | K104: 1974788.75 | L104: 1955508.625 | M104: 1964713.375 | N104: 1993066.75 | O104: 2044959.875 | P104: 2125727.75 | Q104: 2140647.75 | R104: 2187656.5 | S104: 2216116.25 | T104: 2245795.25 | U104: 2238413 | V104: 2189649.25 | W104: 2164961.5 | X104: 2173365.5 | Y104: 2189465.5 | Z104: 2159341.25 | AA104: 2147733.75 | AB104: 2144324.25 | AC104: 2130133.25 | AD104: 2114613.75 | AE104: 2063385.25 | AF104: 1963592 | AG104: 1926649.375 | AH104: 1888284.5 | AI104: 1883425.5 | AJ104: 1918464.75 | AK104: 1880416 | AL104: 1971588.5 | AM104: 2073721.375 | AN104: 2159064.25 | AO104: 2135246 | AP104: 2044683.875 | AQ104: 2016937.625 | AR104: 2049423.125 | AS104: 2157843.5 | AT104: 2239584.5 | AU104: 2253615.25 | AV104: 2252332.5 | AW104: 2268719 | AX104: 2293785.25 | AY104: 2264799.75 | AZ104: 2224210.5 | BA104: 2214060.25 | BB104: 2148252.75 | BC104: 2119341.75 | BD104: 2065982.25 | BE104: 1994058.75 | BF104: 1919458.375 | BG104: 1868838 | BH104: 1845182.125 | BI104: 1791688.5 | BJ104: 1757226.125 | BK104: 1784660.625 | BL104: 1592470.625 | BM104: 1351845.5 | BN104: 1322983.75 | BO104: 1341242.25 | BP104: 1275417.375 | BQ104: 1148816 | BR104: 1080866.5 | BS104: 1036708.562 | BT104: 993248.25 | BU104: 947225.1875 | BV104: 899998.6875 | BW104: 879033.625 | BX104: 826969.75 | BY104: 786250.4375 | BZ104: 767180.5 | CA104: 749235.125 | CB104: 734471.4375 | CC104: 698277.6875 | CD104: 666849.875 | CE104: 635408.75 | CF104: 594787.5 | CG104: 556925.9375 | CH104: 494885.1875 | CI104: 446767.1875 | CJ104: 403800.7812 | CK104: 373513.7812 | CL104: 320479.375 | CM104: 257870.125 | CN104: 227106.7188 | CO104: 188276.2031 | CP104: 152309.0625 | CQ104: 124962.4922 | CR104: 100879.9922 | CS104: 76648.28125 | CT104: 59163.37891 | CU104: 42256.62891 | CV104: 30873.24023 | CW104: 21340.0293 | CX104: 14798.25977 | CY104: 9849.780273 | CZ104: 6272.419922 | DA104: 4038.469971 | DB104: 5798.19043
B105: HMD | C105: M | D105: 2006 | E105: 145728560 | F105: 2056789.75 | G105: 2033051 | H105: 2029020.875 | I105: 2019716.375 | J105: 2043172.375 | K105: 2029737.125 | L105: 1973212.75 | M105: 1964581.75 | N105: 1972091.125 | O105: 2012820.125 | P105: 2117125.25 | Q105: 2123016.5 | R105: 2163847 | S105: 2195370.25 | T105: 2218209.25 | U105: 2274281.25 | V105: 2264820 | W105: 2207535.75 | X105: 2193536.75 | Y105: 2190964.5 | Z105: 2185321.5 | AA105: 2165519 | AB105: 2141575.25 | AC105: 2143595 | AD105: 2131321.5 | AE105: 2127297.25 | AF105: 2044425.25 | AG105: 1973710 | AH105: 1931099.875 | AI105: 1882719.75 | AJ105: 1930056 | AK105: 1890492.25 | AL105: 1908068.75 | AM105: 1974061 | AN105: 2078043.375 | AO105: 2174524.25 | AP105: 2131235.5 | AQ105: 2038462.625 | AR105: 2019822.625 | AS105: 2055452.625 | AT105: 2153816 | AU105: 2247043 | AV105: 2251662.25 | AW105: 2252618.25 | AX105: 2253385.5 | AY105: 2284561 | AZ105: 2272017 | BA105: 2225996 | BB105: 2202588.75 | BC105: 2149999.25 | BD105: 2101692.5 | BE105: 2076183 | BF105: 1978763.125 | BG105: 1920743.625 | BH105: 1865973.625 | BI105: 1820498.25 | BJ105: 1796025.375 | BK105: 1742922.625 | BL105: 1774020.25 | BM105: 1576698.375 | BN105: 1328249.75 | BO105: 1326126.125 | BP105: 1327354.625 | BQ105: 1264610.5 | BR105: 1129923.25 | BS105: 1067677.375 | BT105: 1021303 | BU105: 979157.875 | BV105: 929152.0625 | BW105: 879457.5 | BX105: 852922.625 | BY105: 812410 | BZ105: 760248.5625 | CA105: 744550.5625 | CB105: 721110.9375 | CC105: 699474.25 | CD105: 674561.625 | CE105: 633337.125 | CF105: 603383.5625 | CG105: 560387.4375 | CH105: 492273.5938 | CI105: 459302.875 | CJ105: 411410.5 | CK105: 368693.7188 | CL105: 337788.375 | CM105: 286324.3125 | CN105: 227544.2969 | CO105: 197354.8906 | CP105: 161253.8125 | CQ105: 128129.2031 | CR105: 103088.9688 | CS105: 81244.78125 | CT105: 60545.19141 | CU105: 45475.14062 | CV105: 31546.91992 | CW105: 22354.82031 | CX105: 15250.59961 | CY105: 10129 | CZ105: 6497.720215 | DA105: 4120.609863 | DB105: 5937.008789
B106: HMD | C106: M | D106: 2007 | E106: 147157664 | F106: 2093392.875 | G106: 2036870.875 | H106: 2034425.5 | I106: 2035885 | J106: 2036342.25 | K106: 2053011.625 | L106: 2027251.625 | M106: 1983921.625 | N106: 1972949.75 | O106: 1994702.625 | P106: 2095697 | Q106: 2111404.75 | R106: 2147940.5 | S106: 2170369.75 | T106: 2195527.75 | U106: 2248412.25 | V106: 2300981.5 | W106: 2280759.25 | X106: 2236091.75 | Y106: 2207380.75 | Z106: 2180068.5 | AA106: 2188079.5 | AB106: 2153763.25 | AC106: 2137813.25 | AD106: 2142883.25 | AE106: 2144810.75 | AF106: 2103368 | AG106: 2055545.125 | AH106: 1977804.5 | AI106: 1923284 | AJ106: 1936768.5 | AK106: 1894966.5 | AL106: 1922468.375 | AM106: 1909583.75 | AN106: 1978468.75 | AO106: 2095770.625 | AP106: 2169067.75 | AQ106: 2123020.75 | AR106: 2041908.75 | AS106: 2026663.25 | AT106: 2051341.375 | AU106: 2163055 | AV106: 2245695.75 | AW106: 2252832.25 | AX106: 2235549.5 | AY106: 2244095 | AZ106: 2294482.75 | BA106: 2275461 | BB106: 2213538.25 | BC106: 2206177.75 | BD106: 2130099.25 | BE106: 2115427 | BF106: 2058792.5 | BG106: 1982008.25 | BH106: 1918647.125 | BI106: 1837903.75 | BJ106: 1827539.25 | BK106: 1780566.25 | BL106: 1732727.75 | BM106: 1755839.5 | BN106: 1546791.875 | BO106: 1334896.5 | BP106: 1312862.875 | BQ106: 1317100.625 | BR106: 1243479.625 | BS106: 1116571.375 | BT106: 1052033.75 | BU106: 1007661.562 | BV106: 960804.25 | BW106: 907919.375 | BX106: 852583.875 | BY106: 839701.5625 | BZ106: 785292.8125 | CA106: 738619.25 | CB106: 716812.3125 | CC106: 686203.3125 | CD106: 677676.5625 | CE106: 640970.625 | CF106: 602410.3125 | CG106: 569253.875 | CH106: 498226.2188 | CI106: 457836.1875 | CJ106: 423896.8125 | CK106: 376571.0312 | CL106: 334588.875 | CM106: 303213.3438 | CN106: 253853.1719 | CO106: 198973.3906 | CP106: 169789.9531 | CQ106: 136650.8125 | CR106: 106363.0781 | CS106: 83800.22656 | CT106: 64694.92969 | CU106: 47020.78906 | CV106: 34204.5 | CW106: 23183.25977 | CX106: 16040.87012 | CY106: 10606.99023 | CZ106: 6852.009766 | DA106: 4253.819824 | DB106: 6115.179688
B107: HMD | C107: M | D107: 2008 | E107: 148581888 | F107: 2115316 | G107: 2069706.375 | H107: 2038739.625 | I107: 2042533.375 | J107: 2055120.625 | K107: 2047347.25 | L107: 2049419 | M107: 2039463.375 | N107: 1993117.375 | O107: 1998320.75 | P107: 2088521.25 | Q107: 2086880.5 | R107: 2137564.25 | S107: 2153081.25 | T107: 2168423.5 | U107: 2227204.5 | V107: 2274957.5 | W107: 2314698.75 | X107: 2308768.5 | Y107: 2245576.25 | Z107: 2189152.75 | AA107: 2180651.25 | AB107: 2172820.5 | AC107: 2147241.25 | AD107: 2134620.75 | AE107: 2155938.75 | AF107: 2114962.25 | AG107: 2115101.5 | AH107: 2058427.25 | AI107: 1967126 | AJ107: 1985294 | AK107: 1893897.25 | AL107: 1930653.5 | AM107: 1922583 | AN107: 1912843.25 | AO107: 1997023.75 | AP107: 2089104.75 | AQ107: 2158663.25 | AR107: 2126410 | AS107: 2049039.875 | AT107: 2021466.125 | AU107: 2060984.125 | AV107: 2161545.75 | AW107: 2247381.5 | AX107: 2233464 | AY107: 2225715.5 | AZ107: 2256051 | BA107: 2298996.5 | BB107: 2261428.5 | BC107: 2218586.25 | BD107: 2183692.25 | BE107: 2147446 | BF107: 2095931.625 | BG107: 2064195.875 | BH107: 1980758 | BI107: 1886510.875 | BJ107: 1847406 | BK107: 1810701.5 | BL107: 1770415.375 | BM107: 1714009.5 | BN107: 1720035.75 | BO107: 1559474.125 | BP107: 1321762 | BQ107: 1303655.875 | BR107: 1294239.125 | BS107: 1229541.375 | BT107: 1100406 | BU107: 1038739.125 | BV107: 988960.25 | BW107: 938700.0625 | BX107: 879313.1875 | BY107: 840981.375 | BZ107: 811345.8125 | CA107: 763656.625 | CB107: 711082 | CC107: 681358.4375 | CD107: 666526.8125 | CE107: 644014.3125 | CF107: 610493.1875 | CG107: 568788.875 | CH107: 511934.8438 | CI107: 464397 | CJ107: 423507.9375 | CK107: 389134 | CL107: 342313.75 | CM107: 300868.75 | CN107: 269347.5938 | CO107: 222583.6562 | CP107: 171904.1562 | CQ107: 144412.2969 | CR107: 114013.9531 | CS107: 87077.21875 | CT107: 66916.11719 | CU107: 50557.16016 | CV107: 35764.87891 | CW107: 25152.40039 | CX107: 16644.43945 | CY107: 11276.2002 | CZ107: 7221.640137 | DA107: 4519.120117 | DB107: 6287.100098
B108: HMD | C108: M | D108: 2009 | E108: 149949408 | F108: 2077042.375 | G108: 2087996.5 | H108: 2072070.5 | I108: 2048131.875 | J108: 2064255 | K108: 2067467.375 | L108: 2043051.875 | M108: 2062952.375 | N108: 2049485.375 | O108: 2021651 | P108: 2103905 | Q108: 2076492.875 | R108: 2114264.5 | S108: 2141329.5 | T108: 2148978.5 | U108: 2201433 | V108: 2253551.25 | W108: 2286512 | X108: 2341902.25 | Y108: 2313563.25 | Z108: 2222591.5 | AA108: 2188821.5 | AB108: 2163517.5 | AC108: 2165318.25 | AD108: 2142743.25 | AE108: 2148627.5 | AF108: 2121081 | AG108: 2127974.5 | AH108: 2117827.75 | AI108: 2044875.875 | AJ108: 2038274.125 | AK108: 1934373.25 | AL108: 1934002.875 | AM108: 1929848.75 | AN108: 1925468.5 | AO108: 1932517.25 | AP108: 1989518.875 | AQ108: 2078116.375 | AR108: 2162786.5 | AS108: 2134476.75 | AT108: 2042920 | AU108: 2031914 | AV108: 2059327.875 | AW108: 2163679.25 | AX108: 2225740 | AY108: 2222770.25 | AZ108: 2239419.5 | BA108: 2261370.75 | BB108: 2283329.5 | BC108: 2267970 | BD108: 2193769 | BE108: 2205025.5 | BF108: 2125618.75 | BG108: 2103280.25 | BH108: 2063801.375 | BI108: 1944271.375 | BJ108: 1899016.375 | BK108: 1829230 | BL108: 1800650.25 | BM108: 1750494.25 | BN108: 1676013.75 | BO108: 1738722 | BP108: 1545030.5 | BQ108: 1313321.75 | BR108: 1279752.375 | BS108: 1280385.25 | BT108: 1212435.125 | BU108: 1087343.75 | BV108: 1019604.25 | BW108: 966026.6875 | BX108: 908254.6875 | BY108: 869015.75 | BZ108: 812181.875 | CA108: 789738.125 | CB108: 735191.3125 | CC108: 675053.3125 | CD108: 663604.625 | CE108: 633480.75 | CF108: 614212.625 | CG108: 576902.75 | CH108: 512530.7188 | CI108: 477558.9375 | CJ108: 430181.6562 | CK108: 388879.0625 | CL108: 353605.0312 | CM108: 307925.875 | CN108: 267440 | CO108: 236247.7969 | CP108: 192328.125 | CQ108: 145787 | CR108: 120246.7812 | CS108: 93150.71875 | CT108: 69467.25 | CU108: 52266.91016 | CV108: 38257.12891 | CW108: 26338.09961 | CX108: 18132.32031 | CY108: 11614.5 | CZ108: 7597.879883 | DA108: 4741.950195 | DB108: 6482.889648
B109: HMD | C109: M | D109: 2010 | E109: 151237824 | F109: 2031431.5 | G109: 2050516 | H109: 2093174.5 | I109: 2078821.125 | J109: 2073566.5 | K109: 2077627.5 | L109: 2065530.625 | M109: 2055862.5 | N109: 2071102.75 | O109: 2074165.25 | P109: 2127878.25 | Q109: 2092665.375 | R109: 2102048.5 | S109: 2118009.5 | T109: 2134532.5 | U109: 2177765.75 | V109: 2229329 | W109: 2263126 | X109: 2315792.75 | Y109: 2347094 | Z109: 2286980.75 | AA109: 2221024.25 | AB109: 2172433.75 | AC109: 2156216.25 | AD109: 2162206.75 | AE109: 2156574 | AF109: 2112781.5 | AG109: 2133398.5 | AH109: 2130591.25 | AI109: 2103004.25 | AJ109: 2119295.25 | AK109: 1988289.875 | AL109: 1973540.125 | AM109: 1934379.75 | AN109: 1932747.875 | AO109: 1944115.625 | AP109: 1925044.75 | AQ109: 1979373 | AR109: 2081810.5 | AS109: 2173104.25 | AT109: 2126692.75 | AU109: 2053205.625 | AV109: 2030388.625 | AW109: 2061109 | AX109: 2143523.25 | AY109: 2214301 | AZ109: 2235696.75 | BA109: 2244636 | BB109: 2244896 | BC109: 2290667.25 | BD109: 2240600.25 | BE109: 2214931.75 | BF109: 2181673.5 | BG109: 2131873.75 | BH109: 2102589 | BI109: 2025029.25 | BJ109: 1956078 | BK109: 1880633.25 | BL109: 1817884.75 | BM109: 1781433.875 | BN109: 1710006.625 | BO109: 1692891.125 | BP109: 1723079.875 | BQ109: 1534212.25 | BR109: 1290208.375 | BS109: 1264992.375 | BT109: 1262723.375 | BU109: 1198079.875 | BV109: 1067698.75 | BW109: 996453.25 | BX109: 934408.375 | BY109: 897632.25 | BZ109: 839654.25 | CA109: 790565.125 | CB109: 761150.5625 | CC109: 698122.625 | CD109: 658228.6875 | CE109: 631127.25 | CF109: 604694.75 | CG109: 580873.3125 | CH109: 510311.1562 | CI109: 479600.9375 | CJ109: 443613.0312 | CK109: 396143.2188 | CL109: 354982.6562 | CM109: 319400.5625 | CN109: 275003.625 | CO109: 235595.3906 | CP109: 205730.3594 | CQ109: 164457.5938 | CR109: 122434.1484 | CS109: 99070.71875 | CT109: 75070.59375 | CU109: 54476.60156 | CV109: 39988.12891 | CW109: 28606.73047 | CX109: 19058.03906 | CY109: 12755.5498 | CZ109: 7956.970215 | DA109: 5121.459961 | DB109: 6858.259277
B110: HMD | C110: M | D110: 2011 | E110: 152440144 | F110: 2023530.75 | G110: 2022949.625 | H110: 2057648.875 | I110: 2097710.25 | J110: 2095291.5 | K110: 2082992.125 | L110: 2080613.75 | M110: 2073813.625 | N110: 2061262.125 | O110: 2083077.125 | P110: 2126952.5 | Q110: 2125963.75 | R110: 2106675.25 | S110: 2106889.75 | T110: 2116698.5 | U110: 2149740 | V110: 2196731.25 | W110: 2239460.25 | X110: 2285783.5 | Y110: 2327714.25 | Z110: 2340460.5 | AA110: 2292981.75 | AB110: 2220363 | AC110: 2174885.25 | AD110: 2161067.25 | AE110: 2173527.5 | AF110: 2143644.25 | AG110: 2122210 | AH110: 2138245.75 | AI110: 2126536.25 | AJ110: 2142244.75 | AK110: 2099177.75 | AL110: 2007953.125 | AM110: 1976365.875 | AN110: 1937262.625 | AO110: 1942382.125 | AP110: 1941428.25 | AQ110: 1920938.125 | AR110: 1980760.625 | AS110: 2087693.625 | AT110: 2167763 | AU110: 2130021 | AV110: 2051067.875 | AW110: 2029366.375 | AX110: 2050419.25 | AY110: 2135132 | AZ110: 2216903 | BA110: 2234463.75 | BB110: 2232101 | BC110: 2243759.25 | BD110: 2270930.25 | BE110: 2244231.25 | BF110: 2196913 | BG110: 2176881.75 | BH110: 2123687 | BI110: 2075337.375 | BJ110: 2021486.625 | BK110: 1938628.625 | BL110: 1865399.375 | BM110: 1799896.125 | BN110: 1751401.875 | BO110: 1707223 | BP110: 1675223.75 | BQ110: 1705508.5 | BR110: 1511606.125 | BS110: 1272662.125 | BT110: 1246227.25 | BU110: 1244189.25 | BV110: 1176134.625 | BW110: 1045050.188 | BX110: 969351.9375 | BY110: 917285 | BZ110: 871141.625 | CA110: 816347.375 | CB110: 764328.0625 | CC110: 729277.9375 | CD110: 676056.5 | CE110: 628698.0625 | CF110: 602539.3125 | CG110: 573252.75 | CH110: 532622.25 | CI110: 477846.4375 | CJ110: 445608.5625 | CK110: 408971.5938 | CL110: 362286.9062 | CM110: 320232.1875 | CN110: 285244.6562 | CO110: 242848.9062 | CP110: 204688.2656 | CQ110: 175830.625 | CR110: 138115.8438 | CS110: 100632.6797 | CT110: 79868.35156 | CU110: 58954.46094 | CV110: 41491.21094 | CW110: 29951.41016 | CX110: 20603.7207 | CY110: 13376.63965 | CZ110: 8800.269531 | DA110: 5287.720215 | DB110: 7347.459473
B111: HMD | C111: M | D111: 2012 | E111: 153582576 | F111: 2018143.625 | G111: 2030569.625 | H111: 2029408.5 | I111: 2063175.75 | J111: 2102717.5 | K111: 2100377 | L111: 2088156.375 | M111: 2085532.625 | N111: 2078651.5 | O111: 2066106.75 | P111: 2087939.75 | Q111: 2131875.25 | R111: 2130909 | S111: 2111850.25 | T111: 2112475.75 | U111: 2122978.5 | V111: 2157866.25 | W111: 2207809 | X111: 2252567.5 | Y111: 2300562.25 | Z111: 2342974.5 | AA111: 2356149.5 | AB111: 2307395.25 | AC111: 2233670.75 | AD111: 2187121.5 | AE111: 2172411.75 | AF111: 2183986 | AG111: 2153097.75 | AH111: 2130754.25 | AI111: 2146173.25 | AJ111: 2133384.25 | AK111: 2148084 | AL111: 2104117.5 | AM111: 2012124.5 | AN111: 1979882.75 | AO111: 1940276.75 | AP111: 1944369.375 | AQ111: 1942785.875 | AR111: 1921588.5 | AS111: 1980880.625 | AT111: 2086614 | AU111: 2165589.5 | AV111: 2127386 | AW111: 2047896.25 | AX111: 2025669.75 | AY111: 2045779.5 | AZ111: 2129542.5 | BA111: 2210149.75 | BB111: 2226333.25 | BC111: 2222861.5 | BD111: 2233388.25 | BE111: 2259173.25 | BF111: 2231480.5 | BG111: 2183137 | BH111: 2162160.5 | BI111: 2107934.25 | BJ111: 2058839 | BK111: 2004222 | BL111: 1920868.5 | BM111: 1847106.75 | BN111: 1781046.75 | BO111: 1732087.75 | BP111: 1687219.5 | BQ111: 1654013.125 | BR111: 1682579.25 | BS111: 1489774 | BT111: 1252822.375 | BU111: 1225013 | BV111: 1220934.375 | BW111: 1152420.75 | BX111: 1022451.375 | BY111: 946678.5 | BZ111: 893889.625 | CA111: 846771.5625 | CB111: 791330.75 | CC111: 738667.3125 | CD111: 702399.8125 | CE111: 648659.4375 | CF111: 600639 | CG111: 572920.3125 | CH111: 522666.9062 | CI111: 499062.625 | CJ111: 444339.3438 | CK111: 410957.3438 | CL111: 373552.7812 | CM111: 327790.7188 | CN111: 286242.5625 | CO111: 251909.0469 | CP111: 211088.4375 | CQ111: 175547.4844 | CR111: 147793.9219 | CS111: 113627.9297 | CT111: 80885.14844 | CU111: 62716 | CV111: 45154.37891 | CW111: 30954.39062 | CX111: 21704.75977 | CY111: 14365.23047 | CZ111: 9257.320312 | DA111: 5814.419922 | DB111: 7787.430176
B112: HMD | C112: M | D112: 2013 | E112: 154730832 | F112: 2008810.75 | G112: 2025768.75 | H112: 2037469.5 | I112: 2035187.375 | J112: 2068456.375 | K112: 2107943.75 | L112: 2105571.25 | M112: 2093133.25 | N112: 2090415.75 | O112: 2083620.75 | P112: 2071074.375 | Q112: 2092993.375 | R112: 2136971.75 | S112: 2136157.25 | T112: 2117531 | U112: 2118927.75 | V112: 2131188.5 | W112: 2168821.25 | X112: 2220912 | Y112: 2266948 | Z112: 2315495.75 | AA112: 2359316.25 | AB112: 2372754.5 | AC112: 2322762.25 | AD112: 2247561 | AE112: 2200046.75 | AF112: 2184581 | AG112: 2195272.25 | AH112: 2163054.25 | AI112: 2140247.25 | AJ112: 2154604 | AK112: 2140537.5 | AL112: 2154360.5 | AM112: 2109091.25 | AN112: 2016352 | AO112: 1983556 | AP112: 1942677.625 | AQ112: 1946224.625 | AR112: 1943989 | AS112: 1922202.875 | AT112: 1980603.5 | AU112: 2085521.875 | AV112: 2163448 | AW112: 2124245.5 | AX112: 2044306.125 | AY112: 2021331.375 | AZ112: 2040627.125 | BA112: 2123327.25 | BB112: 2202412.75 | BC112: 2217417 | BD112: 2212707.75 | BE112: 2221682.25 | BF112: 2246292 | BG112: 2217691.5 | BH112: 2168584.75 | BI112: 2146284.5 | BJ112: 2091002.875 | BK112: 2041195.625 | BL112: 1985863.5 | BM112: 1901918.5 | BN112: 1827652.875 | BO112: 1761024.5 | BP112: 1711361.75 | BQ112: 1665649.625 | BR112: 1631278.875 | BS112: 1658135.25 | BT112: 1466500.375 | BU112: 1231559.5 | BV112: 1202335.875 | BW112: 1196403 | BX112: 1127573.875 | BY112: 998641.6875 | BZ112: 922643.125 | CA112: 869035.375 | CB112: 820996.625 | CC112: 764935.5625 | CD112: 711641 | CE112: 674190.1875 | CF112: 619899.625 | CG112: 571295.75 | CH112: 532281.9375 | CI112: 490691.9375 | CJ112: 465020.9375 | CK112: 410413.6875 | CL112: 376086.0938 | CM112: 338513.5312 | CN112: 293647.5625 | CO112: 253183.9375 | CP112: 219457.4844 | CQ112: 180990.5625 | CR112: 147798.8438 | CS112: 121937.8906 | CT112: 91843.21875 | CU112: 63982.82031 | CV112: 47955.78906 | CW112: 33623.46094 | CX112: 22347.7793 | CY112: 15186.25 | CZ112: 9744.870117 | DA112: 6046.529785 | DB112: 8333.000977
B113: HMD | C113: M | D113: 2014 | E113: 155865664 | F113: 2017217.25 | G113: 2017443.375 | H113: 2033647.625 | I113: 2044156.25 | J113: 2041322 | K113: 2074287.625 | L113: 2113595.25 | M113: 2111125 | N113: 2098538 | O113: 2095825.75 | P113: 2088954.625 | Q113: 2076527.25 | R113: 2098494.75 | S113: 2142670 | T113: 2142496.25 | U113: 2124877 | V113: 2127881.75 | W113: 2142755.75 | X113: 2182779.5 | Y113: 2236154.75 | Z113: 2281054.25 | AA113: 2329892.75 | AB113: 2375189.25 | AC113: 2388436 | AD113: 2336780.25 | AE113: 2260219 | AF113: 2212158.25 | AG113: 2196348.75 | AH113: 2205775 | AI113: 2172974.5 | AJ113: 2149427.5 | AK113: 2162428.5 | AL113: 2147411.25 | AM113: 2159916.25 | AN113: 2113519.75 | AO113: 2020024.875 | AP113: 1986048.375 | AQ113: 1944604 | AR113: 1947617.375 | AS113: 1945042.875 | AT113: 1922380.75 | AU113: 1979965.25 | AV113: 2083913.375 | AW113: 2160579.5 | AX113: 2120672.75 | AY113: 2039868.75 | AZ113: 2016151.75 | BA113: 2034831.125 | BB113: 2116087 | BC113: 2193793.75 | BD113: 2207316.25 | BE113: 2201160 | BF113: 2209111.25 | BG113: 2232514 | BH113: 2202884 | BI113: 2152573.75 | BJ113: 2128859 | BK113: 2072868 | BL113: 2022156.25 | BM113: 1966059.25 | BN113: 1881638.5 | BO113: 1806689 | BP113: 1739373.5 | BQ113: 1688879 | BR113: 1642528.375 | BS113: 1607274.125 | BT113: 1632274.75 | BU113: 1441837.5 | BV113: 1208950.25 | BW113: 1178362.375 | BX113: 1170526.5 | BY113: 1101488.375 | BZ113: 973402.25 | CA113: 897175.6875 | CB113: 842790.5625 | CC113: 793821.1875 | CD113: 737223.5 | CE113: 683342.875 | CF113: 644624.75 | CG113: 589881 | CH113: 523631.5312 | CI113: 499636.0625 | CJ113: 457068.5 | CK113: 429894.8438 | CL113: 375875.7188 | CM113: 341066.0312 | CN113: 303268.9688 | CO113: 259571.5625 | CP113: 220521.5625 | CQ113: 188070.6875 | CR113: 152408.9844 | CS113: 122045.9766 | CT113: 98698.20312 | CU113: 71940.25 | CV113: 49046.25 | CW113: 35888.91016 | CX113: 24323.7793 | CY113: 15671.2998 | CZ113: 10392.90039 | DA113: 6417.569824 | DB113: 8779.189453
B114: HMD | C114: M | D114: 2015 | E114: 157068592 | F114: 2031184 | G114: 2026456.875 | H114: 2026276.625 | I114: 2041389.375 | J114: 2051228.625 | K114: 2047982.5 | L114: 2080654.125 | M114: 2119881.5 | N114: 2117279 | O114: 2104686 | P114: 2101877.25 | Q114: 2095021.875 | R114: 2082602 | S114: 2104825.5 | T114: 2149769 | U114: 2150759.25 | V114: 2134554 | W114: 2140081.75 | X114: 2157794.75 | Y114: 2199429.75 | Z114: 2251233.5 | AA114: 2296241.5 | AB114: 2346552.5 | AC114: 2392368.75 | AD114: 2404157.25 | AE114: 2351233.5 | AF114: 2274195 | AG114: 2225780.25 | AH114: 2209258.5 | AI114: 2217885.25 | AJ114: 2184109 | AK114: 2159518.75 | AL114: 2171403.5 | AM114: 2154971.5 | AN114: 2166218.75 | AO114: 2118582.75 | AP114: 2023901.75 | AQ114: 1989218.375 | AR114: 1947097.25 | AS114: 1949605.125 | AT114: 1946142.5 | AU114: 1922623.875 | AV114: 1979415.625 | AW114: 2082309.375 | AX114: 2157937.5 | AY114: 2116741 | AZ114: 2035072.5 | BA114: 2010930.25 | BB114: 2028453.125 | BC114: 2108330.5 | BD114: 2184305.25 | BE114: 2196284.25 | BF114: 2189235.25 | BG114: 2195823.5 | BH114: 2217629.75 | BI114: 2186814.5 | BJ114: 2135261.5 | BK114: 2110464.25 | BL114: 2053569.625 | BM114: 2001995.5 | BN114: 1945066.75 | BO114: 1859794.875 | BP114: 1784310.625 | BQ114: 1716297.5 | BR114: 1665359.25 | BS114: 1618464.875 | BT114: 1582136.625 | BU114: 1604864 | BV114: 1415682.125 | BW114: 1185041.5 | BX114: 1153026.875 | BY114: 1143410.75 | BZ114: 1073687.25 | CA114: 946544.9375 | CB114: 870171.4375 | CC114: 815025.375 | CD114: 765226.3125 | CE114: 708108.875 | CF114: 653563.25 | CG114: 613641.25 | CH114: 558484.6875 | CI114: 492211.3125 | CJ114: 466523.375 | CK114: 423085.875 | CL114: 394259.9375 | CM114: 341618.6562 | CN114: 306512.375 | CO114: 268927.8438 | CP114: 226825.3125 | CQ114: 189358.0156 | CR114: 159178.8438 | CS114: 126216.0938 | CT114: 98839.03125 | CU114: 77968.60938 | CV114: 55468.51172 | CW114: 36882.25 | CX114: 26235.15039 | CY114: 17004.41992 | CZ114: 10709.16992 | DA114: 6882.759766 | DB114: 9344.550781
B115: HMD | C115: M | D115: 2016 | E115: 158263904 | F115: 2031884 | G115: 2040671.625 | H115: 2035824 | I115: 2034717.375 | J115: 2049080.125 | K115: 2058565 | L115: 2055011.875 | M115: 2087486.375 | N115: 2126604.75 | O115: 2124016 | P115: 2111385.75 | Q115: 2108438 | R115: 2101635.25 | S115: 2089498.25 | T115: 2112302.5 | U115: 2158345.25 | V115: 2160774.25 | W115: 2147129.5 | X115: 2155577 | Y115: 2174119.25 | Z115: 2214313.75 | AA115: 2266410.75 | AB115: 2313283.5 | AC115: 2364024.5 | AD115: 2408370 | AE115: 2419538.75 | AF115: 2365856.5 | AG115: 2288432.5 | AH115: 2239417.5 | AI115: 2222294.75 | AJ115: 2229917.25 | AK115: 2195126.5 | AL115: 2169596.25 | AM115: 2180143.5 | AN115: 2162328.25 | AO115: 2172166.25 | AP115: 2123097.5 | AQ115: 2027574.25 | AR115: 1992155.375 | AS115: 1949302.125 | AT115: 1950913.5 | AU115: 1946671.125 | AV115: 1922584.875 | AW115: 1978422.875 | AX115: 2080354.375 | AY115: 2154197.5 | AZ115: 2112068.75 | BA115: 2029944.625 | BB115: 2004838.5 | BC115: 2021305.375 | BD115: 2099380.5 | BE115: 2173759.75 | BF115: 2184612 | BG115: 2176133.5 | BH115: 2181119.25 | BI115: 2201467.25 | BJ115: 2169622.75 | BK115: 2116973.75 | BL115: 2090958 | BM115: 2032982.625 | BN115: 1980473 | BO115: 1922458.75 | BP115: 1836761.5 | BQ115: 1760580.75 | BR115: 1691803.625 | BS115: 1640526.125 | BT115: 1592947.375 | BU115: 1555421.625 | BV115: 1575884.25 | BW115: 1387875.25 | BX115: 1159639.25 | BY115: 1126379.375 | BZ115: 1114652.125 | CA115: 1044247.562 | CB115: 918229.5625 | CC115: 841707.6875 | CD115: 785856.6875 | CE115: 735208 | CF115: 677486.1875 | CG115: 622372.1875 | CH115: 581284.375 | CI115: 525807.875 | CJ115: 459188.1562 | CK115: 432005.1875 | CL115: 388391.4688 | CM115: 358125.8438 | CN115: 306881.875 | CO115: 271608.9375 | CP115: 234618.0469 | CQ115: 194982.5312 | CR115: 159884.9844 | CS115: 131469.7344 | CT115: 102119.0391 | CU115: 77769.10938 | CV115: 59840.39062 | CW115: 41303.53125 | CX115: 26711.53906 | CY115: 18362.59961 | CZ115: 11536.04004 | DA115: 6982.589844 | DB115: 9799.149414
B116: HMD | C116: M | D116: 2017 | E116: 159374544 | F116: 2005797.125 | G116: 2041243.5 | H116: 2049790.25 | I116: 2044254.25 | J116: 2042552.5 | K116: 2056676 | L116: 2065886 | M116: 2061951.375 | N116: 2094297.375 | O116: 2133482.5 | P116: 2130856.75 | Q116: 2117949.5 | R116: 2115067.75 | S116: 2108574 | T116: 2096854.625 | U116: 2120660 | V116: 2168082 | W116: 2173148.5 | X116: 2161931.25 | Y116: 2170119.25 | Z116: 2186499 | AA116: 2226994.25 | AB116: 2281019.75 | AC116: 2328108.5 | AD116: 2377583.75 | AE116: 2421548.75 | AF116: 2432309.5 | AG116: 2378339.75 | AH116: 2300136.25 | AI116: 2250694 | AJ116: 2232878.5 | AK116: 2239510.5 | AL116: 2203946.5 | AM116: 2177299.25 | AN116: 2186423 | AO116: 2167123.75 | AP116: 2175640.5 | AQ116: 2125804.5 | AR116: 2029615.75 | AS116: 1993436 | AT116: 1949665.625 | AU116: 1950664.75 | AV116: 1946031 | AW116: 1921142.875 | AX116: 1976225.75 | AY116: 2076512.875 | AZ116: 2149257.25 | BA116: 2106377.5 | BB116: 2023380.625 | BC116: 1997538.375 | BD116: 2012497.25 | BE116: 2089203.875 | BF116: 2162227.25 | BG116: 2171305.75 | BH116: 2161546.5 | BI116: 2164941.75 | BJ116: 2184128.75 | BK116: 2151236.5 | BL116: 2097367 | BM116: 2069743.25 | BN116: 2010708.625 | BO116: 1957252.875 | BP116: 1898540.625 | BQ116: 1812130 | BR116: 1735093 | BS116: 1665970 | BT116: 1614289.125 | BU116: 1566014.75 | BV116: 1527104.875 | BW116: 1544980.5 | BX116: 1358522.625 | BY116: 1133159.25 | BZ116: 1098501.875 | CA116: 1084544.5 | CB116: 1013549.375 | CC116: 888661.3125 | CD116: 812015 | CE116: 755483.0625 | CF116: 703908.25 | CG116: 645661.5625 | CH116: 590069.6875 | CI116: 547824.0625 | CJ116: 492075.5 | CK116: 426285.875 | CL116: 397349.4062 | CM116: 354103.5 | CN116: 322497.9062 | CO116: 273008.9688 | CP116: 238000.625 | CQ116: 202251.8125 | CR116: 164827.8438 | CS116: 132587.6875 | CT116: 106663.0312 | CU116: 81046.57812 | CV116: 60090.87891 | CW116: 45015.03125 | CX116: 30342.10938 | CY116: 18846 | CZ116: 12609.26953 | DA116: 7579.689941 | DB116: 10320.2793
B117: HMD | C117: M | D117: 2018 | E117: 160317536 | F117: 1970664.625 | G117: 2014201 | H117: 2049340.125 | I117: 2057282.875 | J117: 2051291 | K117: 2049387 | L117: 2063287.5 | M117: 2072072.875 | N117: 2068057 | O117: 2100587.5 | P117: 2139726.25 | Q117: 2136733.75 | R117: 2123807.75 | S117: 2121234.25 | T117: 2115123 | U117: 2104282.75 | V117: 2129251.75 | W117: 2179030.75 | X117: 2186238.5 | Y117: 2174230 | Z117: 2179433.75 | AA117: 2195978.75 | AB117: 2237693 | AC117: 2291763.5 | AD117: 2338109.5 | AE117: 2386820.75 | AF117: 2430972.5 | AG117: 2441513.75 | AH117: 2386791 | AI117: 2308300.75 | AJ117: 2258163.75 | AK117: 2239803.5 | AL117: 2245820 | AM117: 2209165.25 | AN117: 2181295.75 | AO117: 2188862.5 | AP117: 2168725.75 | AQ117: 2176748.25 | AR117: 2126045.5 | AS117: 2029228.5 | AT117: 1992189.5 | AU117: 1948071.25 | AV117: 1948685.75 | AW117: 1943473.5 | AX117: 1918035 | AY117: 1971904 | AZ117: 2070922.375 | BA117: 2142603.75 | BB117: 2098847.75 | BC117: 2015241.5 | BD117: 1988342.5 | BE117: 2002258.625 | BF117: 2077744.625 | BG117: 2148969.25 | BH117: 2156544.25 | BI117: 2145198 | BJ117: 2147308.25 | BK117: 2165287.5 | BL117: 2131086.5 | BM117: 2075646 | BN117: 2046617 | BO117: 1986640.375 | BP117: 1932375.375 | BQ117: 1872563 | BR117: 1785444 | BS117: 1707921.875 | BT117: 1638331.625 | BU117: 1586170.625 | BV117: 1537039.25 | BW117: 1496741.5 | BX117: 1512164.125 | BY117: 1327545.875 | BZ117: 1104902.125 | CA117: 1068753.5 | CB117: 1052560.625 | CC117: 980848.5625 | CD117: 857143.5 | CE117: 780483.4375 | CF117: 723234.125 | CG117: 670771.3125 | CH117: 612102.5625 | CI117: 556043.4375 | CJ117: 512686.5625 | CK117: 456886.875 | CL117: 391798.6875 | CM117: 361897.1875 | CN117: 318901.3438 | CO117: 286490.5625 | CP117: 238972.8125 | CQ117: 204965.5312 | CR117: 170995.6875 | CS117: 136729.2188 | CT117: 107511.1094 | CU117: 84292.61719 | CV117: 62597.41016 | CW117: 45073.92969 | CX117: 32706.25 | CY117: 21284.5293 | CZ117: 12917.62012 | DA117: 8208.990234 | DB117: 10833.51855
B118: HMD | C118: M | D118: 2019 | E118: 161115296 | F118: 1938341.875 | G118: 1978222.875 | H118: 2021317.25 | I118: 2055756.5 | J118: 2063142.5 | K118: 2056929.625 | L118: 2054808.125 | M118: 2068283.875 | N118: 2076963 | O118: 2073053.375 | P118: 2105497.75 | Q118: 2144391.25 | R118: 2141378.5 | S118: 2128710.25 | T118: 2126529.75 | U118: 2121203 | V118: 2111460 | W118: 2138609.5 | X118: 2190325.75 | Y118: 2196306.75 | Z118: 2181791.25 | AA118: 2186994 | AB118: 2204482.25 | AC118: 2246426.25 | AD118: 2299703.25 | AE118: 2345048.25 | AF118: 2393654.25 | AG118: 2437604.75 | AH118: 2447400.5 | AI118: 2392372.25 | AJ118: 2312956.75 | AK118: 2262320.25 | AL118: 2243737.75 | AM118: 2248678 | AN118: 2210948.25 | AO118: 2181623.75 | AP118: 2188572.25 | AQ118: 2168060.25 | AR118: 2175204.25 | AS118: 2123828.75 | AT118: 2026336 | AU118: 1988982 | AV118: 1944698.375 | AW118: 1944941 | AX118: 1939198.625 | AY118: 1912790.375 | AZ118: 1965541.25 | BA118: 2063631.625 | BB118: 2134184.5 | BC118: 2089608 | BD118: 2005346.5 | BE118: 1977702 | BF118: 1990683.5 | BG118: 2064662.25 | BH118: 2133945.5 | BI118: 2139898.5 | BJ118: 2127217.5 | BK118: 2128124.25 | BL118: 2144578.75 | BM118: 2108807.5 | BN118: 2052211.875 | BO118: 2021787.125 | BP118: 1960764.25 | BQ118: 1905329.5 | BR118: 1844567.375 | BS118: 1757043.75 | BT118: 1678935.125 | BU118: 1608975.875 | BV118: 1556456.5 | BW118: 1506175.25 | BX118: 1464515 | BY118: 1478121.375 | BZ118: 1294758.5 | CA118: 1075092.375 | CB118: 1037511.938 | CC118: 1018964.438 | CD118: 946443.4375 | CE118: 824087.875 | CF118: 747464.75 | CG118: 689535.5625 | CH118: 636272.1875 | CI118: 577159.3125 | CJ118: 520767.0625 | CK118: 476536.0625 | CL118: 421013.9688 | CM118: 357273.125 | CN118: 326418.5312 | CO118: 284347.75 | CP118: 251373.9531 | CQ118: 206265.375 | CR118: 174020.2188 | CS118: 142182.5469 | CT118: 111220.3203 | CU118: 85300.45312 | CV118: 65183.19922 | CW118: 47131.25 | CX118: 32913.01953 | CY118: 23016.5293 | CZ118: 14455.01953 | DA118: 8513.740234 | DB118: 11656.51074
B119: HMD | C119: M | D119: 2020 | E119: 162877264 | F119: 1907094 | G119: 1942807.125 | H119: 1985102.5 | I119: 2030622.75 | J119: 2065884.5 | K119: 2072199.625 | L119: 2067951.75 | M119: 2063975.125 | N119: 2079370.25 | O119: 2089995.5 | P119: 2109932 | Q119: 2165621.75 | R119: 2213733.5 | S119: 2202851 | T119: 2177660.75 | U119: 2167387.25 | V119: 2165404.5 | W119: 2152827.5 | X119: 2177604.25 | Y119: 2217920 | Z119: 2202034 | AA119: 2185009 | AB119: 2185608.5 | AC119: 2199294.5 | AD119: 2235650.5 | AE119: 2279478.75 | AF119: 2323661 | AG119: 2369634.25 | AH119: 2408505 | AI119: 2417819 | AJ119: 2370992.25 | AK119: 2308447.25 | AL119: 2267448.5 | AM119: 2258930.5 | AN119: 2265628.5 | AO119: 2222407.5 | AP119: 2208821 | AQ119: 2220002.5 | AR119: 2201450 | AS119: 2207265.25 | AT119: 2127001 | AU119: 2056041.375 | AV119: 2016866.25 | AW119: 1971495.5 | AX119: 1966871.5 | AY119: 1940950.875 | AZ119: 1930938 | BA119: 1986272.125 | BB119: 2090870.375 | BC119: 2171404.25 | BD119: 2093491.125 | BE119: 2027743.25 | BF119: 2000262.375 | BG119: 2016755.875 | BH119: 2087879.375 | BI119: 2134810 | BJ119: 2153515.75 | BK119: 2144876.25 | BL119: 2154539.25 | BM119: 2158994 | BN119: 2093937.125 | BO119: 2057219.75 | BP119: 2026980.625 | BQ119: 1961771.25 | BR119: 1898185.625 | BS119: 1824317.5 | BT119: 1746626.25 | BU119: 1667319.875 | BV119: 1600651.875 | BW119: 1533892.25 | BX119: 1466785.625 | BY119: 1432410.5 | BZ119: 1441066.5 | CA119: 1278221.125 | CB119: 1035684.188 | CC119: 986993.375 | CD119: 972655 | CE119: 898914.5 | CF119: 777977.8125 | CG119: 701930 | CH119: 638071.3125 | CI119: 587216.875 | CJ119: 528592.375 | CK119: 472463.875 | CL119: 428169.8125 | CM119: 372997 | CN119: 323326.75 | CO119: 291276.0625 | CP119: 250321.375 | CQ119: 217824.6094 | CR119: 175855.2344 | CS119: 145558.2344 | CT119: 116165.7188 | CU119: 88615.74219 | CV119: 66438.13281 | CW119: 49194.08984 | CX119: 34627.37891 | CY119: 23425.35938 | CZ119: 15830.03027 | DA119: 9641.360352 | DB119: 12506.0498
B120: HMD | C120: M | D120: 2021 | E120: 164326048 | F120: 1860243.75 | G120: 1909180.75 | H120: 1947840.5 | I120: 1992921.5 | J120: 2039558.5 | K120: 2073797.375 | L120: 2082118.125 | M120: 2076225.875 | N120: 2074226.75 | O120: 2091522.875 | P120: 2125870 | Q120: 2168967.75 | R120: 2233798.75 | S120: 2273906.25 | T120: 2250324 | U120: 2216742.5 | V120: 2209359.75 | W120: 2203750.75 | X120: 2187969.25 | Y120: 2201722.75 | Z120: 2220989 | AA120: 2202077 | AB120: 2179995 | AC120: 2177018.25 | AD120: 2185728.5 | AE120: 2213115.25 | AF120: 2255805 | AG120: 2297393 | AH120: 2338359.75 | AI120: 2376713.75 | AJ120: 2394588.75 | AK120: 2364480.25 | AL120: 2311541.5 | AM120: 2280696.75 | AN120: 2274359.25 | AO120: 2275937.5 | AP120: 2248418.25 | AQ120: 2239050.5 | AR120: 2252266.5 | AS120: 2232403 | AT120: 2209525.75 | AU120: 2155491.75 | AV120: 2082718.875 | AW120: 2042567.5 | AX120: 1992473.875 | AY120: 1968080.25 | AZ120: 1958539.125 | BA120: 1951126.5 | BB120: 2013029.625 | BC120: 2127350.25 | BD120: 2174120.25 | BE120: 2114492 | BF120: 2048996.375 | BG120: 2025220 | BH120: 2039307.5 | BI120: 2088142.375 | BJ120: 2147216 | BK120: 2169398.25 | BL120: 2169331.75 | BM120: 2167039.75 | BN120: 2141732 | BO120: 2096247.75 | BP120: 2059646.125 | BQ120: 2024652 | BR120: 1951127.875 | BS120: 1874459.125 | BT120: 1810105.375 | BU120: 1730995.25 | BV120: 1654625.75 | BW120: 1573980 | BX120: 1491110.875 | BY120: 1431064.25 | BZ120: 1392755.875 | CA120: 1416653.625 | CB120: 1228591.25 | CC120: 981558.625 | CD120: 938223.4375 | CE120: 920353.1875 | CF120: 845510.5 | CG120: 727048.6875 | CH120: 645965.6875 | CI120: 585106.25 | CJ120: 534105.1875 | CK120: 475748.5 | CL120: 420587.8438 | CM120: 375724 | CN120: 323753.0625 | CO120: 284280 | CP120: 251917.3125 | CQ120: 212417.6875 | CR120: 181191.9688 | CS120: 143344.8125 | CT120: 115580.8594 | CU120: 89594.53906 | CV120: 66644.75781 | CW120: 48345.32031 | CX120: 34515.44141 | CY120: 23506.89062 | CZ120: 15358 | DA120: 10037.08984 | DB120: 12702.65039
B121: HMD | C121: M | D121: 2022 | E121: 164703248 | F121: 1852322.625 | G121: 1866208.75 | H121: 1915465.75 | I121: 1953951.25 | J121: 1998843.375 | K121: 2045177.875 | L121: 2079093.125 | M121: 2087161.625 | N121: 2081193.875 | O121: 2079071.375 | P121: 2096118.375 | Q121: 2130465.75 | R121: 2173452.25 | S121: 2237948.75 | T121: 2277923.75 | U121: 2254678.25 | V121: 2221770.25 | W121: 2215812.75 | X121: 2211239.5 | Y121: 2195467 | Z121: 2207978.5 | AA121: 2226775.75 | AB121: 2207977 | AC121: 2186178.25 | AD121: 2183459.75 | AE121: 2192111 | AF121: 2219086.5 | AG121: 2261020.25 | AH121: 2302138.5 | AI121: 2343111.5 | AJ121: 2380986.25 | AK121: 2398129.75 | AL121: 2367508.25 | AM121: 2313836 | AN121: 2282453.25 | AO121: 2275130.75 | AP121: 2275731.75 | AQ121: 2247518.25 | AR121: 2237470 | AS121: 2249627.75 | AT121: 2228749.25 | AU121: 2205090.5 | AV121: 2150801.5 | AW121: 2077778.875 | AX121: 2037092.5 | AY121: 1986425.625 | AZ121: 1961388.875 | BA121: 1950825.875 | BB121: 1942442.125 | BC121: 2002992.5 | BD121: 2115638.25 | BE121: 2160941 | BF121: 2100523.75 | BG121: 2033977.875 | BH121: 2009325.25 | BI121: 2021695 | BJ121: 2068383.625 | BK121: 2125125.25 | BL121: 2145097.25 | BM121: 2143174.5 | BN121: 2138850 | BO121: 2111615.75 | BP121: 2064416.75 | BQ121: 2025940.125 | BR121: 1989287.875 | BS121: 1914758.125 | BT121: 1837418.5 | BU121: 1772296.875 | BV121: 1692353.125 | BW121: 1615248.125 | BX121: 1534675.375 | BY121: 1451594.875 | BZ121: 1389698.25 | CA121: 1348724.25 | CB121: 1367981.125 | CC121: 1182485 | CD121: 940854.6875 | CE121: 895684.0625 | CF121: 874373.625 | CG121: 798953.1875 | CH121: 682692.375 | CI121: 602338.375 | CJ121: 541212.75 | CK121: 489558.375 | CL121: 431713.0625 | CM121: 377470.2812 | CN121: 333233.9688 | CO121: 283385.4688 | CP121: 247751.0938 | CQ121: 215864.9375 | CR121: 179081.4062 | CS121: 149286.7656 | CT121: 115620.75 | CU121: 90809.92188 | CV121: 68658.74219 | CW121: 49684.10938 | CX121: 35004.80859 | CY121: 24100.03906 | CZ121: 15800.58984 | DA121: 10006.79004 | DB121: 13699.40918
B122: HMD | C122: M | D122: 2023 | E122: 165360992 | F122: 1870788.75 | G122: 1862105.625 | H122: 1876184.25 | I122: 1925140.75 | J122: 1963323.25 | K122: 2007660.875 | L122: 2053483.25 | M122: 2087000.5 | N122: 2094914.25 | O122: 2088766.125 | P122: 2086271.625 | Q122: 2103367 | R122: 2137517.75 | S122: 2179946.25 | T122: 2244297 | U122: 2284835.5 | V122: 2262773.5 | W122: 2232196.5 | X122: 2228206.25 | Y122: 2224116.5 | Z122: 2206964 | AA122: 2219649 | AB122: 2239034.75 | AC122: 2220383.75 | AD122: 2198351.5 | AE122: 2195606 | AF122: 2203815.5 | AG122: 2229688.75 | AH122: 2271252 | AI122: 2312817.75 | AJ122: 2353115 | AK122: 2390210.75 | AL122: 2406485.25 | AM122: 2374861.5 | AN122: 2320219 | AO122: 2287627 | AP122: 2279135.75 | AQ122: 2278525.75 | AR122: 2249368.25 | AS122: 2238104.75 | AT122: 2248739.5 | AU122: 2226932.25 | AV122: 2202792.75 | AW122: 2147952.25 | AX122: 2074223.125 | AY122: 2032657.125 | AZ122: 1981423.125 | BA122: 1955442 | BB122: 1943885 | BC122: 1934553.25 | BD122: 1993710.125 | BE122: 2104491.5 | BF122: 2148407.25 | BG122: 2086792.75 | BH122: 2019821.875 | BI122: 1993909.25 | BJ122: 2004583.5 | BK122: 2049050.5 | BL122: 2103318.75 | BM122: 2121342.75 | BN122: 2117578 | BO122: 2111230.75 | BP122: 2082251.625 | BQ122: 2033276.875 | BR122: 1993139.75 | BS122: 1954948.75 | BT122: 1879758.75 | BU122: 1801871.625 | BV122: 1735677.125 | BW122: 1654949.125 | BX122: 1577738.125 | BY122: 1497059.125 | BZ122: 1412822.5 | CA122: 1349069.625 | CB122: 1305534.875 | CC122: 1320126 | CD122: 1137470.125 | CE122: 901050.5625 | CF122: 854053.5625 | CG122: 829396.25 | CH122: 753602.25 | CI122: 639637.1875 | CJ122: 560151.0625 | CK122: 499059.625 | CL122: 447198.9062 | CM122: 390356.4375 | CN122: 337528.2812 | CO122: 294424.8125 | CP122: 247058.1562 | CQ122: 213904.3906 | CR122: 182867.2656 | CS122: 148655.875 | CT122: 121050.3281 | CU122: 91534.53125 | CV122: 69990.86719 | CW122: 51346.85938 | CX122: 36004.42188 | CY122: 24582.28906 | CZ122: 16398.66016 | DA122: 10426.78027 | DB122: 14097.24902
B123: HMD | C123: M | D123: 2024 | E123: 165846608 | F123: 1845071.375 | G123: 1875168.75 | H123: 1867003.5 | I123: 1881022.875 | J123: 1929899.75 | K123: 1967805.125 | L123: 2011913.625 | M123: 2057535.75 | N123: 2090957.375 | O123: 2098781.5 | P123: 2092442.375 | Q123: 2089956.125 | R123: 2106918 | S123: 2140710.25 | T123: 2183006 | U123: 2247483.25 | V123: 2288429.25 | W123: 2267408.75 | X123: 2237587.25 | Y123: 2233524.5 | Z123: 2228906.75 | AA123: 2211732.75 | AB123: 2224908.25 | AC123: 2244407.75 | AD123: 2225412.75 | AE123: 2203143.75 | AF123: 2200074.5 | AG123: 2207735.75 | AH123: 2233242 | AI123: 2274872.5 | AJ123: 2315937.75 | AK123: 2355644 | AL123: 2392243.75 | AM123: 2407677 | AN123: 2375525.75 | AO123: 2320287.75 | AP123: 2287132.75 | AQ123: 2277848.75 | AR123: 2276558.25 | AS123: 2246770.75 | AT123: 2234613 | AU123: 2244648.75 | AV123: 2222444.5 | AW123: 2197828.5 | AX123: 2142553.75 | AY123: 2068374.375 | AZ123: 2026391.375 | BA123: 1974893.875 | BB123: 1948200.375 | BC123: 1935964.625 | BD123: 1925806.5 | BE123: 1983669.5 | BF123: 2092748.5 | BG123: 2135303.75 | BH123: 2073310.625 | BI123: 2005700 | BJ123: 1978429.375 | BK123: 1987259.875 | BL123: 2029528.25 | BM123: 2081647.25 | BN123: 2097910 | BO123: 2092219.875 | BP123: 2083973.875 | BQ123: 2053328.625 | BR123: 2002749.5 | BS123: 1961424.875 | BT123: 1921715.75 | BU123: 1845955.875 | BV123: 1767094.125 | BW123: 1699813.125 | BX123: 1618917.625 | BY123: 1540778.25 | BZ123: 1459236.875 | CA123: 1374281.75 | CB123: 1308492.75 | CC123: 1262828.75 | CD123: 1271658.375 | CE123: 1097364 | CF123: 862437.125 | CG123: 812851.625 | CH123: 784161.625 | CI123: 710574.0625 | CJ123: 598598.6875 | CK123: 520115.1875 | CL123: 459454.9375 | CM123: 407336.0312 | CN123: 352406.6562 | CO123: 300871.7812 | CP123: 259059.9844 | CQ123: 214603.1719 | CR123: 183400.4844 | CS123: 154366.375 | CT123: 122623.6797 | CU123: 97903.61719 | CV123: 71876.64062 | CW123: 53705.98828 | CX123: 38473.05078 | CY123: 26076.82031 | CZ123: 17168.59961 | DA123: 11227.55957 | DB123: 15570.4502
B124: HMD | C124: M | D124: 2025 | E124: =SUM(F124:DB124) -> 167202025.4 | F124: =F123*F66/F65 -> 1872139.004 | G124: =F123*G66/F65 -> 1866488.811 | H124: 1896112.33 | I124: 1885821.966 | J124: 1898130.989 | K124: 1945745.844 | L124: 1982828.536 | M124: 2026574.825 | N124: 2072003.279 | O124: 2105623.511 | P124: 2113717.713 | Q124: 2107813.644 | R124: 2105896.407 | S124: 2123385.415 | T124: 2157914.632 | U124: 2201503.755 | V124: 2267606.551 | W124: 2310143.307 | X124: 2290654.505 | Y124: 2262222.559 | Z124: 2259266.832 | AA124: 2255105.729 | AB124: 2238197.863 | AC124: 2252212.024 | AD124: 2272192.388 | AE124: 2253417.187 | AF124: 2231210.055 | AG124: 2227878.883 | AH124: 2235289.072 | AI124: 2260587.635 | AJ124: 2302112.212 | AK124: 2342072.204 | AL124: 2379105.054 | AM124: =AL123*AM66/AL65 -> 2412795.116 | AN124: 2425995.685 | AO124: 2392141.704 | AP124: 2335499.441 | AQ124: 2301021.289 | AR124: 2290253.399 | AS124: 2287247.446 | AT124: 2255854.35 | AU124: 2242369.787 | AV124: 2251016.658 | AW124: 2227540.203 | AX124: 2201687.172 | AY124: 2145071.593 | AZ124: 2069574.467 | BA124: 2026255.892 | BB124: 1973605.582 | BC124: 1945816.013 | BD124: 1932476.146 | BE124: 1921391.099 | BF124: 1978102.009 | BG124: 2085585.471 | BH124: 2126520.328 | BI124: 2063432.454 | BJ124: 1994828.151 | BK124: 1966235.886 | BL124: 1973376.547 | BM124: 2013596.962 | BN124: 2063459.171 | BO124: 2077638.095 | BP124: 2069942.747 | BQ124: 2059658.929 | BR124: 2027232.04 | BS124: =BR123*BS66/BR65 -> 1975155.454 | BT124: 1932210.383 | BU124: 1891000.346 | BV124: 1814490.794 | BW124: 1734887.51 | BX124: 1666423.392 | BY124: 1584386.776 | BZ124: 1504772.086 | CA124: 1421724.26 | CB124: 1335342.382 | CC124: 1267596.26 | CD124: 1219335.553 | CE124: 1223389.721 | CF124: 1051481.266 | CG124: 822826.4202 | CH124: 771572.7881 | CI124: 740004.7452 | CJ124: 666159.6724 | CK124: 557074.3094 | CL124: 479920.1305 | CM124: 420046.6147 | CN124: 368664.0246 | CO124: 315284.8917 | CP124: 265579.6286 | CQ124: 225249.1696 | CR124: 183543.6614 | CS124: 154032.5552 | CT124: 127034.9706 | CU124: 98707.50445 | CV124: 76851.99519 | CW124: 54951.98362 | CX124: 39878.65143 | CY124: 27740.8956 | CZ124: 18276.07046 | DA124: 11680.05517 | DB124: 16551.88033
B125: HMD | C125: M | D125: 2026 | E125: =SUM(F125:DB125) -> 168251430.3 | F125: =F124*F67/F66 -> 1897667.332 | G125: =F124*G67/F66 -> 1887271.285 | H125: 1881660.536 | I125: 1910178.942 | J125: 1898631.729 | K125: 1910133.499 | L125: 1957365.068 | M125: 1994080.788 | N125: 2037740.386 | O125: 2083286.628 | P125: 2117082.317 | Q125: 2125398.623 | R125: 2119859.188 | S125: 2118267.664 | T125: 2136254.257 | U125: 2171644.714 | V125: 2216389.622 | W125: 2283754.1 | X125: 2327281.076 | Y125: 2308390.433 | Z125: 2280251.329 | AA125: 2277180.831 | AB125: 2272453.468 | AC125: 2255190.453 | AD125: 2269335.189 | AE125: 2289258.795 | AF125: 2270409.562 | AG125: 2248201.884 | AH125: 2244925.07 | AI125: 2252678.566 | AJ125: 2278257.032 | AK125: 2319332.808 | AL125: 2357514.981 | AM125: =AL124*AM67/AL66 -> 2392276.922 | AN125: 2424319.319 | AO125: 2436180.7 | AP125: 2401150.009 | AQ125: 2343552.576 | AR125: 2308054.929 | AS125: 2296169.447 | AT125: 2291967.602 | AU125: 2259454.71 | AV125: 2245053.275 | AW125: 2252766.329 | AX125: 2228380.431 | AY125: 2201462.075 | AZ125: 2143713.031 | BA125: 2067291.788 | BB125: 2023079.354 | BC125: 1969611.491 | BD125: 1940993.996 | BE125: 1926814.5 | BF125: 1914904.924 | BG125: 1970382.851 | BH125: 2076143.574 | BI125: 2115406.729 | BJ125: 2051275.076 | BK125: 1981718.152 | BL125: 1951821.542 | BM125: 1957300.751 | BN125: 1995469.773 | BO125: 2042988.366 | BP125: 2055010.479 | BQ125: 2045325.11 | BR125: 2033058.157 | BS125: =BR124*BS67/BR66 -> 1998985.446 | BT125: 1945699.539 | BU125: 1901498.691 | BV125: 1858969.722 | BW125: 1781663.908 | BX125: 1701128.629 | BY125: 1631216.817 | BZ125: 1547778.898 | CA125: 1466492.161 | CB125: 1381897.649 | CC125: 1294161.112 | CD125: 1224535.227 | CE125: 1173726.046 | CF125: 1172952.256 | CG125: 1003677.704 | CH125: 781648.2371 | CI125: 728790.3632 | CJ125: 694435.8751 | CK125: 620540.1423 | CL125: 514632.0642 | CM125: 439094.1548 | CN125: 380161.2992 | CO125: 329540.5458 | CP125: 278022.1829 | CQ125: 230687.6433 | CR125: 192396.5942 | CS125: 153915.4007 | CT125: 126567.7098 | CU125: 102026.6233 | CV125: 77336.83794 | CW125: 58549.41668 | CX125: 40669.30517 | CY125: 28614.87747 | CZ125: 19318.07823 | DA125: 12346.05327 | DB125: 17326.96015
B126: HMD | C126: M | D126: 2027 | E126: 169107403.5 | F126: =F125*F68/F67 -> 1920067.034 | G126: =F125*G68/F67 -> 1909014.86 | H126: 1899247.039 | I126: 1892522.222 | J126: 1920224.574 | K126: 1908052.614 | L126: 1919346.328 | M126: 1966457.605 | N126: 2003056.915 | O126: 2046892.678 | P126: 2092574.559 | Q126: 2126563.238 | R126: 2135108.039 | S126: 2129784.826 | T126: 2128563.566 | U126: 2147225.35 | V126: 2183475.903 | W126: 2229213.944 | X126: 2297442.442 | Y126: 2341245.939 | Z126: 2322208.775 | AA126: 2293607.985 | AB126: 2289854.905 | AC126: 2284495.474 | AD126: 2266767.98 | AE126: 2280683.859 | AF126: 2300232.793 | AG126: 2281200.167 | AH126: 2259183.603 | AI126: 2256384.7 | AJ126: 2264754.363 | AK126: 2290073.43 | AL126: 2329751.25 | AM126: =AL125*AM68/AL67 -> 2366182.591 | AN126: 2399542.45 | AO126: 2430509.068 | AP126: 2441361.87 | AQ126: 2405485.643 | AR126: 2347124.175 | AS126: 2310831.67 | AT126: 2298123.318 | AU126: 2292999.288 | AV126: 2259665.308 | AW126: 2244595.022 | AX126: 2251524.189 | AY126: 2226225.527 | AZ126: 2198271.903 | BA126: 2139679.5 | BB126: 2062651.305 | BC126: 2017753.609 | BD126: 1963658.16 | BE126: 1934354.101 | BF126: 1919372.347 | BG126: 1906587.102 | BH126: 1960716.373 | BI126: 2064621.103 | BJ126: 2102195.294 | BK126: 2037087.766 | BL126: 1966619.116 | BM126: 1935454.701 | BN126: 1939284.891 | BO126: 1975324.674 | BP126: 2020401.231 | BQ126: 2030277.969 | BR126: 2018662.969 | BS126: =BR125*BS68/BR67 -> 2004533.259 | BT126: 1968975.439 | BU126: 1914628.569 | BV126: 1869226.151 | BW126: 1825298.724 | BX126: 1746994.803 | BY126: 1665251.35 | BZ126: 1593593.23 | CA126: 1508542.61 | CB126: 1425514.602 | CC126: 1339434.136 | CD126: 1250433.047 | CE126: 1178980.895 | CF126: 1125630.578 | CG126: 1119931.624 | CH126: 953574.1598 | CI126: 738600.5844 | CJ126: 684221.1633 | CK126: 647171.8244 | CL126: 573455.4158 | CM126: 471095.4751 | CN126: 397584.7618 | CO126: 340062.6172 | CP126: 290743.341 | CQ126: 241641.0665 | CR126: 197206.971 | CS126: 161465.1945 | CT126: 126579.9188 | CU126: 101777.0864 | CV126: 79998.93687 | CW126: 59011.9767 | CX126: 43351.53415 | CY126: 29219.75617 | CZ126: 19934.79645 | DA126: 13046.46573 | DB126: 18268.24722
B128: SSA_2024 | C128: F | D128: 2000 | E128: 145467724 | F128: 1976921 | G128: 1947220 | H128: 1941614 | I128: 1947367 | J128: 1955962 | K128: 1991114 | L128: 2018018 | M128: 2047331 | N128: 2095388 | O128: 2116413 | P128: 2124101 | Q128: 2058668 | R128: 2006518 | S128: 1981881 | T128: 1980757 | U128: 1971701 | V128: 1923029 | W128: 1971739 | X128: 1972983 | Y128: 1960388 | Z128: 1963070 | AA128: 1911392 | AB128: 1868218 | AC128: 1865088 | AD128: 1799470 | AE128: 1842226 | AF128: 1817930 | AG128: 1874160 | AH128: 1976187 | AI128: 2138850 | AJ128: 2095217 | AK128: 2053822 | AL128: 2015171 | AM128: 2050538 | AN128: 2093169 | AO128: 2203147 | AP128: 2288813 | AQ128: 2319550 | AR128: 2331614 | AS128: 2361267 | AT128: 2321070 | AU128: 2328979 | AV128: 2313842 | AW128: 2299008 | AX128: 2221396 | AY128: 2184290 | AZ128: 2141227 | BA128: 2079739 | BB128: 2016579 | BC128: 1964260 | BD128: 1890414 | BE128: 1893071 | BF128: 1866491 | BG128: 1995672 | BH128: 1446816 | BI128: 1472194 | BJ128: 1479408 | BK128: 1541361 | BL128: 1345710 | BM128: 1266116 | BN128: 1209031 | BO128: 1191056 | BP128: 1169074 | BQ128: 1102514 | BR128: 1084889 | BS128: 1079132 | BT128: 1017663 | BU128: 1016902 | BV128: 1023273 | BW128: 1035773 | BX128: 1017056 | BY128: 1010118 | BZ128: 1001839 | CA128: 980460 | CB128: 962245 | CC128: 945940 | CD128: 918605 | CE128: 883365 | CF128: 849269 | CG128: 801574 | CH128: 736125 | CI128: 675959 | CJ128: 622630 | CK128: 570841 | CL128: 526979 | CM128: 487189 | CN128: 442943 | CO128: 392342 | CP128: 339224 | CQ128: 290161 | CR128: 248245 | CS128: 207971 | CT128: 169894 | CU128: 136014 | CV128: 107099 | CW128: 82639 | CX128: 61538 | CY128: 45012 | CZ128: 32565 | DA128: 23591 | DB128: 43330
B129: SSA_2024 | C129: F | D129: 2001 | E129: 146807281 | F129: 1992143 | G129: 1984274 | H129: 1959111 | I129: 1951955 | J129: 1956129 | K129: 1964321 | L129: 1998357 | M129: 2024547 | N129: 2054366 | O129: 2102222 | P129: 2124257 | Q129: 2133277 | R129: 2068027 | S129: 2017061 | T129: 1992859 | U129: 1992003 | V129: 1984397 | W129: 1936171 | X129: 1986058 | Y129: 1990009 | Z129: 1979217 | AA129: 1981080 | AB129: 1928468 | AC129: 1885564 | AD129: 1884899 | AE129: 1820337 | AF129: 1862610 | AG129: 1836273 | AH129: 1892868 | AI129: 1992813 | AJ129: 2153968 | AK129: 2109721 | AL129: 2065685 | AM129: 2025497 | AN129: 2059899 | AO129: 2102499 | AP129: 2211070 | AQ129: 2293790 | AR129: 2323533 | AS129: 2333955 | AT129: 2365100 | AU129: 2323934 | AV129: 2328323 | AW129: 2313471 | AX129: 2298409 | AY129: 2220681 | AZ129: 2183362 | BA129: 2138315 | BB129: 2076607 | BC129: 2012623 | BD129: 1961828 | BE129: 1887340 | BF129: 1886408 | BG129: 1860145 | BH129: 1989812 | BI129: 1442628 | BJ129: 1466645 | BK129: 1471895 | BL129: 1534143 | BM129: 1339369 | BN129: 1259766 | BO129: 1202388 | BP129: 1182396 | BQ129: 1159672 | BR129: 1092730 | BS129: 1074054 | BT129: 1066437 | BU129: 1003110 | BV129: 1001915 | BW129: 1006210 | BX129: 1016879 | BY129: 997077 | BZ129: 987092 | CA129: 977980 | CB129: 955030 | CC129: 935060 | CD129: 917402 | CE129: 888171 | CF129: 850847 | CG129: 814489 | CH129: 765017 | CI129: 698654 | CJ129: 637475 | CK129: 583001 | CL129: 530192 | CM129: 485007 | CN129: 443835 | CO129: 398993 | CP129: 349020 | CQ129: 297616 | CR129: 250641 | CS129: 210748 | CT129: 173235 | CU129: 138613 | CV129: 108583 | CW129: 83568 | CX129: 63002 | CY129: 45801 | CZ129: 32700 | DA129: 23071 | DB129: 43476
B130: SSA_2024 | C130: F | D130: 2002 | E130: 148154376 | F130: 1973427 | G130: 1998055 | H130: 1993813 | I130: 1970702 | J130: 1962657 | K130: 1965596 | L130: 1973232 | M130: 2005742 | N130: 2031216 | O130: 2061872 | P130: 2109811 | Q130: 2132983 | R130: 2143258 | S130: 2077868 | T130: 2027811 | U130: 2004292 | V130: 2004172 | W130: 1998377 | X130: 1951016 | Y130: 2002889 | Z130: 2009869 | AA130: 1999971 | AB130: 2000401 | AC130: 1947437 | AD130: 1904958 | AE130: 1906098 | AF130: 1842265 | AG130: 1884110 | AH130: 1855111 | AI130: 1911550 | AJ130: 2009337 | AK130: 2168881 | AL130: 2123978 | AM130: 2077246 | AN130: 2035514 | AO130: 2068997 | AP130: 2111597 | AQ130: 2218724 | AR130: 2298445 | AS130: 2327147 | AT130: 2335902 | AU130: 2368517 | AV130: 2326315 | AW130: 2327117 | AX130: 2312507 | AY130: 2297198 | AZ130: 2219372 | BA130: 2181832 | BB130: 2134811 | BC130: 2072927 | BD130: 2008197 | BE130: 1958957 | BF130: 1883820 | BG130: 1879277 | BH130: 1853286 | BI130: 1983385 | BJ130: 1438059 | BK130: 1460699 | BL130: 1463933 | BM130: 1526407 | BN130: 1332559 | BO130: 1252964 | BP130: 1195289 | BQ130: 1173257 | BR130: 1149715 | BS130: 1082356 | BT130: 1062608 | BU130: 1053121 | BV130: 987955 | BW130: 986228 | BX130: 988344 | BY130: 997007 | BZ130: 975978 | CA130: 962843 | CB130: 952711 | CC130: 928083 | CD130: 906240 | CE130: 887067 | CF130: 855826 | CG130: 816341 | CH130: 777639 | CI130: 726371 | CJ130: 659179 | CK130: 597131 | CL130: 541717 | CM130: 488181 | CN130: 442033 | CO130: 399911 | CP130: 354964 | CQ130: 306163 | CR130: 257052 | CS130: 212763 | CT130: 175515 | CU130: 141331 | CV130: 110603 | CW130: 84658 | CX130: 63601 | CY130: 46797 | CZ130: 33189 | DA130: 23104 | DB130: 43039
B131: SSA_2024 | C131: F | D131: 2003 | E131: 149465614 | F131: 1995296 | G131: 1980049 | H131: 2005935 | I131: 2002628 | J131: 1982149 | K131: 1973486 | L131: 1974933 | M131: 1981598 | N131: 2012517 | O131: 2037500 | P131: 2069188 | Q131: 2117269 | R131: 2141421 | S131: 2152665 | T131: 2086862 | U131: 2037657 | V131: 2015063 | W131: 2015993 | X131: 2012304 | Y131: 1966309 | Z131: 2020580 | AA131: 2030110 | AB131: 2020442 | AC131: 2019573 | AD131: 1966078 | AE131: 1923233 | AF131: 1925412 | AG131: 1861949 | AH131: 1903257 | AI131: 1871428 | AJ131: 1927498 | AK131: 2023133 | AL131: 2181043 | AM131: 2135625 | AN131: 2086279 | AO131: 2043119 | AP131: 2075761 | AQ131: 2118486 | AR131: 2224255 | AS131: 2301090 | AT131: 2328891 | AU131: 2336098 | AV131: 2370227 | AW131: 2327051 | AX131: 2324303 | AY131: 2310003 | AZ131: 2294473 | BA131: 2216603 | BB131: 2178924 | BC131: 2130024 | BD131: 2068044 | BE131: 2002634 | BF131: 1954960 | BG131: 1879220 | BH131: 1871095 | BI131: 1845399 | BJ131: 1975824 | BK131: 1432591 | BL131: 1453780 | BM131: 1454971 | BN131: 1517569 | BO131: 1324709 | BP131: 1245096 | BQ131: 1187089 | BR131: 1162984 | BS131: 1138651 | BT131: 1070966 | BU131: 1050158 | BV131: 1038766 | BW131: 971794 | BX131: 969434 | BY131: 969304 | BZ131: 975830 | CA131: 953458 | CB131: 937123 | CC131: 925818 | CD131: 899414 | CE131: 875583 | CF131: 854767 | CG131: 821498 | CH131: 779857 | CI131: 738785 | CJ131: 685745 | CK131: 617859 | CL131: 555166 | CM131: 499120 | CN131: 445229 | CO131: 398538 | CP131: 355971 | CQ131: 311518 | CR131: 264499 | CS131: 218230 | CT131: 177145 | CU131: 143086 | CV131: 112700 | CW131: 86173 | CX131: 64408 | CY131: 47212 | CZ131: 33899 | DA131: 23436 | DB131: 42739
B132: SSA_2024 | C132: F | D132: 2004 | E132: 150801878 | F132: 2027389 | G132: 2001803 | H132: 1988651 | I132: 2012982 | J132: 2011350 | K132: 1993897 | L132: 1984419 | M132: 1983944 | N132: 1989542 | O132: 2019074 | P132: 2043720 | Q132: 2076583 | R132: 2124754 | S132: 2149633 | T132: 2161767 | U132: 2095714 | V132: 2047513 | W132: 2025933 | X132: 2028121 | Y132: 2026902 | Z132: 1982440 | AA132: 2038519 | AB132: 2050337 | AC132: 2041037 | AD132: 2038562 | AE132: 1984005 | AF132: 1940295 | AG132: 1943246 | AH132: 1880054 | AI132: 1920684 | AJ132: 1886303 | AK132: 1942266 | AL132: 2035709 | AM132: 2191949 | AN132: 2146068 | AO132: 2094144 | AP132: 2049647 | AQ132: 2081501 | AR132: 2124382 | AS132: 2228814 | AT132: 2302802 | AU132: 2329741 | AV132: 2335421 | AW132: 2371045 | AX132: 2326915 | AY132: 2320636 | AZ132: 2306661 | BA132: 2290940 | BB132: 2213063 | BC132: 2175262 | BD132: 2124520 | BE132: 2062455 | BF132: 1996359 | BG132: 1950231 | BH132: 1873883 | BI132: 1862165 | BJ132: 1836744 | BK132: 1967359 | BL132: 1426374 | BM132: 1446042 | BN132: 1445153 | BO132: 1507754 | BP132: 1315921 | BQ132: 1236232 | BR132: 1177827 | BS132: 1151655 | BT132: 1126565 | BU132: 1058601 | BV132: 1036733 | BW132: 1023440 | BX132: 954715 | BY132: 951613 | BZ132: 949174 | CA132: 953444 | CB132: 929674 | CC132: 910190 | CD132: 897652 | CE132: 869473 | CF132: 843638 | CG132: 821090 | CH132: 785743 | CI132: 741938 | CJ132: 698567 | CK132: 643946 | CL132: 575665 | CM132: 512669 | CN132: 456357 | CO132: 402537 | CP132: 355826 | CQ132: 313438 | CR132: 270119 | CS132: 225460 | CT132: 182530 | CU132: 145137 | CV132: 114709 | CW132: 88351 | CX132: 66001 | CY132: 48178 | CZ132: 34473 | DA132: 24153 | DB132: 43266
B133: SSA_2024 | C133: F | D133: 2005 | E133: 152302976 | F133: 2034752 | G133: 2034619 | H133: 2011017 | I133: 1997497 | J133: 2021448 | K133: 2022277 | L133: 2007842 | M133: 1997287 | N133: 1994933 | O133: 1999709 | P133: 2028104 | Q133: 2052675 | R133: 2086894 | S133: 2135114 | T133: 2160727 | U133: 2174058 | V133: 2107957 | W133: 2060881 | X133: 2040544 | Y133: 2044411 | Z133: 2046034 | AA133: 2002761 | AB133: 2060325 | AC133: 2074900 | AD133: 2066373 | AE133: 2061974 | AF133: 2005846 | AG133: 1960874 | AH133: 1964442 | AI133: 1901262 | AJ133: 1940972 | AK133: 1903764 | AL133: 1959561 | AM133: 2050700 | AN133: 2205191 | AO133: 2158652 | AP133: 2104016 | AQ133: 2058129 | AR133: 2089245 | AS133: 2132249 | AT133: 2235243 | AU133: 2306244 | AV133: 2332182 | AW133: 2336163 | AX133: 2373123 | AY133: 2327904 | AZ133: 2318027 | BA133: 2304305 | BB133: 2288312 | BC133: 2210338 | BD133: 2172384 | BE133: 2119796 | BF133: 2057647 | BG133: 1990895 | BH133: 1946325 | BI133: 1869285 | BJ133: 1853864 | BK133: 1828553 | BL133: 1959297 | BM133: 1420515 | BN133: 1438671 | BO133: 1435577 | BP133: 1498037 | BQ133: 1307143 | BR133: 1227291 | BS133: 1168441 | BT133: 1140192 | BU133: 1114245 | BV133: 1045906 | BW133: 1022878 | BX133: 1007607 | BY133: 937128 | BZ133: 933156 | CA133: 928302 | CB133: 930176 | CC133: 904923 | CD133: 882232 | CE133: 868244 | CF133: 838165 | CG133: 810236 | CH133: 785839 | CI133: 748371 | CJ133: 702439 | CK133: 656849 | CL133: 600809 | CM133: 532406 | CN133: 469460 | CO133: 413291 | CP133: 360014 | CQ133: 313829 | CR133: 272241 | CS133: 230711 | CT133: 189036 | CU133: 149990 | CV133: 116723 | CW133: 90218 | CX133: 67924 | CY133: 49567 | CZ133: 35343 | DA133: 24680 | DB133: 44268
B134: SSA_2024 | C134: F | D134: 2006 | E134: 153912250 | F134: 2068296 | G134: 2042270 | H134: 2044870 | I134: 2020768 | J134: 2007959 | K134: 2032368 | L134: 2035691 | M134: 2023963 | N134: 2012305 | O134: 2008331 | P134: 2012523 | Q134: 2039998 | R134: 2064633 | S134: 2100104 | T134: 2148293 | U134: 2174847 | V134: 2189647 | W134: 2123553 | X134: 2077678 | Y134: 2058903 | Z134: 2064781 | AA134: 2069019 | AB134: 2026451 | AC134: 2085274 | AD134: 2101923 | AE134: 2093561 | AF134: 2086977 | AG134: 2029074 | AH134: 1982737 | AI134: 1986907 | AJ134: 1922772 | AK134: 1959717 | AL134: 1918907 | AM134: 1974672 | AN134: 2063669 | AO134: 2216567 | AP134: 2169647 | AQ134: 2112471 | AR134: 2065374 | AS134: 2095953 | AT134: 2139298 | AU134: 2241016 | AV134: 2309161 | AW134: 2334170 | AX134: 2336498 | AY134: 2374879 | AZ134: 2328668 | BA134: 2315269 | BB134: 2301830 | BC134: 2285578 | BD134: 2207562 | BE134: 2169516 | BF134: 2115139 | BG134: 2052932 | BH134: 1985542 | BI134: 1942572 | BJ134: 1864862 | BK134: 1845699 | BL134: 1820390 | BM134: 1951215 | BN134: 1414713 | BO134: 1431398 | BP134: 1426029 | BQ134: 1488228 | BR134: 1298176 | BS134: 1218112 | BT134: 1158790 | BU134: 1128392 | BV134: 1101505 | BW134: 1032724 | BX134: 1008418 | BY134: 991089 | BZ134: 918850 | CA134: 913853 | CB134: 906499 | CC134: 905849 | CD134: 878982 | CE134: 852990 | CF134: 837342 | CG134: 805261 | CH134: 775132 | CI134: 748753 | CJ134: 709178 | CK134: 661240 | CL134: 613595 | CM134: 556377 | CN134: 488180 | CO134: 425660 | CP134: 370056 | CQ134: 317812 | CR134: 272716 | CS134: 232540 | CT134: 193427 | CU134: 155336 | CV134: 120654 | CW134: 91815 | CX134: 69348 | CY134: 51003 | CZ134: 36344 | DA134: 25294 | DB134: 45341
B135: SSA_2024 | C135: F | D135: 2007 | E135: 155367974 | F135: 2134595 | G135: 2075013 | H135: 2052598 | I135: 2055143 | J135: 2031233 | K135: 2019613 | L135: 2044144 | M135: 2049276 | N135: 2040021 | O135: 2027337 | P135: 2021762 | Q135: 2025398 | R135: 2051870 | S135: 2076285 | T135: 2112781 | U135: 2160946 | V135: 2188503 | W135: 2204733 | X135: 2138616 | Y135: 2094079 | Z135: 2077004 | AA135: 2084500 | AB135: 2090284 | AC135: 2047527 | AD135: 2106890 | AE135: 2124498 | AF135: 2114715 | AG135: 2104188 | AH135: 2042857 | AI135: 1993656 | AJ135: 1996637 | AK135: 1931098 | AL135: 1965280 | AM135: 1921494 | AN135: 1977705 | AO135: 2065325 | AP135: 2217237 | AQ135: 2171110 | AR135: 2112173 | AS135: 2064525 | AT135: 2094899 | AU135: 2139115 | AV135: 2240141 | AW135: 2306031 | AX135: 2330663 | AY135: 2331849 | AZ135: 2372095 | BA135: 2325413 | BB135: 2308810 | BC135: 2295977 | BD135: 2279768 | BE135: 2202017 | BF135: 2164051 | BG135: 2108004 | BH135: 2045846 | BI135: 1977939 | BJ135: 1936677 | BK135: 1858494 | BL135: 1835736 | BM135: 1810568 | BN135: 1941403 | BO135: 1407612 | BP135: 1422805 | BQ135: 1415228 | BR135: 1477068 | BS135: 1287977 | BT135: 1207756 | BU135: 1147957 | BV135: 1115379 | BW135: 1087518 | BX135: 1018308 | BY135: 992690 | BZ135: 973247 | CA135: 899284 | CB135: 893128 | CC135: 883222 | CD135: 879940 | CE135: 851422 | CF135: 822233 | CG135: 804930 | CH135: 770906 | CI135: 738543 | CJ135: 710104 | CK135: 668484 | CL135: 618703 | CM135: 569261 | CN135: 511267 | CO135: 443777 | CP135: 382213 | CQ135: 327752 | CR135: 277168 | CS135: 233835 | CT135: 195754 | CU135: 159635 | CV135: 125518 | CW135: 95373 | CX135: 70936 | CY135: 52348 | CZ135: 37621 | DA135: 26177 | DB135: 46750
B136: SSA_2024 | C136: F | D136: 2008 | E136: 156462102 | F136: 2135645 | G136: 2140891 | H136: 2084131 | I136: 2062542 | J136: 2065279 | K136: 2041617 | L136: 2030589 | M136: 2054234 | N136: 2060631 | O136: 2053735 | P136: 2039801 | Q136: 2032310 | R136: 2034972 | S136: 2059841 | T136: 2083492 | U136: 2120635 | V136: 2168443 | W136: 2196607 | X136: 2213783 | Y136: 2147508 | Z136: 2103841 | AA136: 2086911 | AB136: 2093958 | AC136: 2099705 | AD136: 2055708 | AE136: 2114358 | AF136: 2132304 | AG136: 2121021 | AH136: 2106722 | AI136: 2042167 | AJ136: 1990438 | AK136: 1992157 | AL136: 1926460 | AM136: 1959566 | AN136: 1914162 | AO136: 1971291 | AP136: 2058213 | AQ136: 2209608 | AR136: 2165159 | AS136: 2105046 | AT136: 2057290 | AU136: 2087583 | AV136: 2132955 | AW136: 2233647 | AX136: 2297696 | AY136: 2322409 | AZ136: 2322867 | BA136: 2365300 | BB136: 2318555 | BC136: 2298983 | BD136: 2287002 | BE136: 2271050 | BF136: 2193760 | BG136: 2155998 | BH136: 2098387 | BI136: 2036370 | BJ136: 1968069 | BK136: 1928590 | BL136: 1850066 | BM136: 1823803 | BN136: 1798888 | BO136: 1929585 | BP136: 1398873 | BQ136: 1412414 | BR136: 1402621 | BS136: 1464006 | BT136: 1276085 | BU136: 1195706 | BV136: 1135393 | BW136: 1100621 | BX136: 1071756 | BY136: 1002123 | BZ136: 975107 | CA136: 953476 | CB136: 877878 | CC136: 870452 | CD136: 857960 | CE136: 851972 | CF136: 821812 | CG136: 789524 | CH136: 770473 | CI136: 734451 | CJ136: 699782 | CK136: 669212 | CL136: 625646 | CM136: 574233 | CN136: 523294 | CO136: 464934 | CP136: 398663 | CQ136: 338641 | CR136: 285975 | CS136: 237740 | CT136: 196867 | CU136: 161539 | CV136: 128941 | CW136: 99110 | CX136: 73562 | CY136: 53415 | CZ136: 38483 | DA136: 27000 | DB136: 48028
B137: SSA_2024 | C137: F | D137: 2009 | E137: 157494448 | F137: 2068667 | G137: 2145083 | H137: 2150706 | I137: 2094228 | J137: 2073897 | K137: 2077213 | L137: 2053532 | M137: 2042320 | N137: 2064736 | O137: 2072563 | P137: 2068084 | Q137: 2052820 | R137: 2043153 | S137: 2044381 | T137: 2067234 | U137: 2089888 | V137: 2127550 | W137: 2174930 | X137: 2203548 | Y137: 2221340 | Z137: 2154523 | AA137: 2110766 | AB137: 2092524 | AC137: 2098026 | AD137: 2103412 | AE137: 2058134 | AF137: 2115625 | AG137: 2133714 | AH137: 2121890 | AI137: 2105638 | AJ137: 2039699 | AK137: 1987262 | AL137: 1989559 | AM137: 1924546 | AN137: 1956615 | AO137: 1909517 | AP137: 1967545 | AQ137: 2053627 | AR137: 2204335 | AS137: 2161290 | AT137: 2099807 | AU137: 2051749 | AV137: 2081840 | AW137: 2128204 | AX137: 2228345 | AY137: 2290333 | AZ137: 2314915 | BA137: 2314465 | BB137: 2358952 | BC137: 2312002 | BD137: 2289342 | BE137: 2278090 | BF137: 2262278 | BG137: 2185374 | BH137: 2147780 | BI137: 2088610 | BJ137: 2026710 | BK137: 1957947 | BL137: 1920140 | BM137: 1841161 | BN137: 1811312 | BO137: 1786568 | BP137: 1916925 | BQ137: 1389377 | BR137: 1401137 | BS137: 1389099 | BT137: 1449926 | BU137: 1263179 | BV137: 1182573 | BW137: 1121728 | BX137: 1084755 | BY137: 1054805 | BZ137: 984682 | CA137: 956152 | CB137: 932262 | CC137: 855115 | CD137: 846344 | CE137: 831286 | CF137: 822549 | CG137: 790747 | CH137: 755428 | CI137: 734484 | CJ137: 696437 | CK137: 659497 | CL137: 626816 | CM137: 581459 | CN137: 528724 | CO137: 476746 | CP137: 418616 | CQ137: 354224 | CR137: 296417 | CS137: 246181 | CT137: 200880 | CU137: 163033 | CV137: 130978 | CW137: 102254 | CX137: 76807 | CY137: 55682 | CZ137: 39482 | DA137: 27767 | DB137: 49851
B138: SSA_2024 | C138: F | D138: 2010 | E138: 158706104 | F138: 1996004 | G138: 2076282 | H138: 2152908 | I138: 2157190 | J138: 2101383 | K138: 2082273 | L138: 2086159 | M138: 2062681 | N138: 2051453 | O138: 2074259 | P138: 2082584 | Q138: 2078469 | R138: 2063223 | S138: 2053231 | T138: 2054163 | U138: 2076703 | V138: 2099410 | W138: 2137711 | X138: 2185653 | Y138: 2214939 | Z138: 2233630 | AA138: 2167264 | AB138: 2123275 | AC138: 2104590 | AD138: 2110424 | AE138: 2116005 | AF138: 2069645 | AG138: 2126185 | AH138: 2143228 | AI138: 2130938 | AJ138: 2113431 | AK138: 2046270 | AL138: 1993283 | AM138: 1995327 | AN138: 1929998 | AO138: 1961371 | AP138: 1913007 | AQ138: 1970954 | AR138: 2056152 | AS138: 2206127 | AT138: 2163233 | AU138: 2100733 | AV138: 2052090 | AW138: 2081827 | AX138: 2128176 | AY138: 2227699 | AZ138: 2288343 | BA138: 2312394 | BB138: 2311350 | BC138: 2356103 | BD138: 2308341 | BE138: 2284396 | BF138: 2273420 | BG138: 2257367 | BH138: 2180397 | BI138: 2142837 | BJ138: 2082852 | BK138: 2020682 | BL138: 1951462 | BM138: 1913623 | BN138: 1833946 | BO138: 1802443 | BP138: 1777105 | BQ138: 1906310 | BR138: 1380564 | BS138: 1389741 | BT138: 1375637 | BU138: 1435048 | BV138: 1249007 | BW138: 1167723 | BX138: 1106028 | BY138: 1067339 | BZ138: 1035809 | CA138: 965030 | CB138: 935117 | CC138: 909150 | CD138: 831053 | CE138: 820389 | CF138: 802933 | CG138: 791439 | CH138: 757838 | CI138: 719980 | CJ138: 696573 | CK138: 656402 | CL138: 617162 | CM138: 582186 | CN138: 535337 | CO138: 481836 | CP138: 429440 | CQ138: 372249 | CR138: 310508 | CS138: 255703 | CT138: 208650 | CU138: 166978 | CV138: 132764 | CW138: 104441 | CX138: 79806 | CY138: 58648 | CZ138: 41592 | DA138: 28851 | DB138: 52242
B139: SSA_2024 | C139: F | D139: 2011 | E139: 159886545 | F139: 1951019 | G139: 1998178 | H139: 2079362 | I139: 2155955 | J139: 2159375 | K139: 2104456 | L139: 2085935 | M139: 2089885 | N139: 2067059 | O139: 2056253 | P139: 2080764 | Q139: 2088369 | R139: 2082351 | S139: 2068169 | T139: 2059582 | U139: 2061431 | V139: 2085377 | W139: 2109099 | X139: 2147853 | Y139: 2197195 | Z139: 2227393 | AA139: 2246942 | AB139: 2181970 | AC139: 2138157 | AD139: 2119880 | AE139: 2126846 | AF139: 2132146 | AG139: 2084617 | AH139: 2140184 | AI139: 2154782 | AJ139: 2142008 | AK139: 2123899 | AL139: 2055686 | AM139: 2002446 | AN139: 2003412 | AO139: 1936968 | AP139: 1967972 | AQ139: 1918998 | AR139: 1976073 | AS139: 2060713 | AT139: 2210182 | AU139: 2166664 | AV139: 2103786 | AW139: 2054500 | AX139: 2083801 | AY139: 2129342 | AZ139: 2228476 | BA139: 2288810 | BB139: 2312208 | BC139: 2311113 | BD139: 2354567 | BE139: 2305674 | BF139: 2282425 | BG139: 2271444 | BH139: 2254931 | BI139: 2177573 | BJ139: 2139936 | BK139: 2079916 | BL139: 2017159 | BM139: 1947566 | BN139: 1908091 | BO139: 1827547 | BP139: 1796305 | BQ139: 1769602 | BR139: 1896746 | BS139: 1371716 | BT139: 1377525 | BU139: 1361521 | BV139: 1418675 | BW139: 1233001 | BX139: 1150624 | BY139: 1087768 | BZ139: 1047822 | CA139: 1014227 | CB139: 942636 | CC139: 911436 | CD139: 883552 | CE139: 805081 | CF139: 791960 | CG139: 772192 | CH139: 757823 | CI139: 722192 | CJ139: 682253 | CK139: 655923 | CL139: 613643 | CM139: 572151 | CN139: 534743 | CO139: 486670 | CP139: 432902 | CQ139: 380681 | CR139: 325123 | CS139: 266795 | CT139: 215778 | CU139: 172705 | CV139: 135388 | CW139: 105355 | CX139: 81076 | CY139: 60587 | CZ139: 43539 | DA139: 30202 | DB139: 54157
B140: SSA_2024 | C140: F | D140: 2012 | E140: 160996163 | F140: 1935356 | G140: 1955550 | H140: 2003751 | I140: 2083300 | J140: 2159459 | K140: 2162015 | L140: 2107805 | M140: 2089544 | N140: 2093502 | O140: 2071491 | P140: 2061164 | Q140: 2087341 | R140: 2094124 | S140: 2085889 | T140: 2072512 | U140: 2065318 | V140: 2068172 | W140: 2093575 | X140: 2118198 | Y140: 2157545 | Z140: 2208746 | AA140: 2239783 | AB140: 2259652 | AC140: 2195909 | AD140: 2152363 | AE140: 2134077 | AF140: 2141256 | AG140: 2145729 | AH140: 2097181 | AI140: 2151952 | AJ140: 2164222 | AK140: 2151073 | AL140: 2132405 | AM140: 2063174 | AN140: 2009745 | AO140: 2009634 | AP140: 1942124 | AQ140: 1972763 | AR140: 1923249 | AS140: 1979477 | AT140: 2063634 | AU140: 2212648 | AV140: 2168637 | AW140: 2105448 | AX140: 2055537 | AY140: 2084385 | AZ140: 2129156 | BA140: 2227927 | BB140: 2287995 | BC140: 2310767 | BD140: 2309654 | BE140: 2351877 | BF140: 2301961 | BG140: 2279456 | BH140: 2268467 | BI140: 2251460 | BJ140: 2173691 | BK140: 2135949 | BL140: 2075910 | BM140: 2012553 | BN140: 1942559 | BO140: 1901416 | BP140: 1819975 | BQ140: 1788907 | BR140: 1760752 | BS140: 1885622 | BT140: 1361655 | BU140: 1363982 | BV140: 1346000 | BW140: 1400793 | BX140: 1215647 | BY140: 1132223 | BZ140: 1068220 | CA140: 1026948 | CB140: 991182 | CC140: 918682 | CD140: 886055 | CE140: 856179 | CF140: 777380 | CG140: 761700 | CH140: 739535 | CI140: 722180 | CJ140: 684504 | CK140: 642556 | CL140: 613411 | CM140: 569236 | CN140: 525769 | CO140: 486215 | CP140: 437258 | CQ140: 383726 | CR140: 332427 | CS140: 279372 | CT140: 225218 | CU140: 178603 | CV140: 139999 | CW140: 107367 | CX140: 81676 | CY140: 61431 | CZ140: 44875 | DA140: 31531 | DB140: 56160
B141: SSA_2024 | C141: F | D141: 2013 | E141: 162119829 | F141: 1939478 | G141: 1939977 | H141: 1963614 | I141: 2010394 | J141: 2087892 | K141: 2163633 | L141: 2165266 | M141: 2111537 | N141: 2093565 | O141: 2097812 | P141: 2076751 | Q141: 2066933 | R141: 2094784 | S141: 2100574 | T141: 2089871 | U141: 2077289 | V141: 2071690 | W141: 2075671 | X141: 2102505 | Y141: 2128101 | Z141: 2168432 | AA141: 2221598 | AB141: 2252981 | AC141: 2273022 | AD141: 2210689 | AE141: 2167182 | AF141: 2148396 | AG141: 2155423 | AH141: 2159060 | AI141: 2109686 | AJ141: 2163776 | AK141: 2173772 | AL141: 2160266 | AM141: 2141031 | AN141: 2070773 | AO141: 2017123 | AP141: 2015885 | AQ141: 1947299 | AR141: 1977568 | AS141: 1927465 | AT141: 1982757 | AU141: 2066370 | AV141: 2214921 | AW141: 2170405 | AX141: 2106864 | AY141: 2056322 | AZ141: 2084692 | BA141: 2128609 | BB141: 2226888 | BC141: 2286581 | BD141: 2308692 | BE141: 2307568 | BF141: 2348535 | BG141: 2297567 | BH141: 2275744 | BI141: 2264666 | BJ141: 2247078 | BK141: 2168839 | BL141: 2130953 | BM141: 2070864 | BN141: 2006850 | BO141: 1936397 | BP141: 1893504 | BQ141: 1811086 | BR141: 1780075 | BS141: 1750436 | BT141: 1872878 | BU141: 1350298 | BV141: 1349012 | BW141: 1328981 | BX141: 1381276 | BY141: 1196811 | BZ141: 1112350 | CA141: 1047146 | CB141: 1004449 | CC141: 966460 | CD141: 893039 | CE141: 858886 | CF141: 826953 | CG141: 747886 | CH141: 729579 | CI141: 704978 | CJ141: 684587 | CK141: 644880 | CL141: 600982 | CM141: 569130 | CN141: 523327 | CO141: 478245 | CP141: 437032 | CQ141: 387856 | CR141: 335356 | CS141: 285830 | CT141: 236032 | CU141: 186628 | CV141: 144864 | CW141: 111023 | CX141: 83184 | CY141: 61803 | CZ141: 45411 | DA141: 32425 | DB141: 58225
B142: SSA_2024 | C142: F | D142: 2014 | E142: 163467241 | F142: 1952595 | G142: 1945315 | H142: 1948448 | I142: 1973259 | J142: 2018349 | K142: 2094001 | L142: 2169523 | M142: 2170221 | N142: 2117219 | O142: 2100106 | P142: 2105103 | Q142: 2085424 | R142: 2076383 | S142: 2105975 | T142: 2110871 | U142: 2098088 | V142: 2086881 | W142: 2083320 | X142: 2088725 | Y142: 2117548 | Z142: 2145053 | AA142: 2186916 | AB142: 2242298 | AC142: 2274290 | AD142: 2294653 | AE142: 2233463 | AF142: 2189733 | AG142: 2170502 | AH142: 2177725 | AI142: 2180119 | AJ142: 2128534 | AK142: 2180791 | AL142: 2187179 | AM142: 2172534 | AN142: 2152587 | AO142: 2081222 | AP142: 2027326 | AQ142: 2025010 | AR142: 1955292 | AS142: 1985191 | AT142: 1934357 | AU142: 1988610 | AV142: 2071535 | AW142: 2219482 | AX142: 2174159 | AY142: 2110089 | AZ142: 2058815 | BA142: 2086676 | BB142: 2129607 | BC142: 2227177 | BD142: 2286239 | BE142: 2307483 | BF142: 2306186 | BG142: 2345678 | BH142: 2293418 | BI142: 2272099 | BJ142: 2260768 | BK142: 2242488 | BL142: 2163688 | BM142: 2125554 | BN142: 2065345 | BO142: 2000603 | BP142: 1929606 | BQ142: 1884837 | BR142: 1801321 | BS142: 1770253 | BT142: 1738989 | BU142: 1858727 | BV142: 1337873 | BW142: 1332960 | BX142: 1310788 | BY142: 1360351 | BZ142: 1176596 | CA142: 1091046 | CB142: 1024533 | CC142: 980304 | CD142: 940090 | CE142: 865797 | CF142: 830036 | CG142: 795970 | CH142: 716691 | CI142: 695721 | CJ142: 668695 | CK142: 645277 | CL142: 603641 | CM142: 558000 | CN142: 523725 | CO142: 476732 | CP142: 430599 | CQ142: 388344 | CR142: 339598 | CS142: 288824 | CT142: 241783 | CU142: 195874 | CV142: 151722 | CW142: 115203 | CX142: 86312 | CY142: 63188 | CZ142: 45868 | DA142: 32943 | DB142: 60596
B143: SSA_2024 | C143: F | D143: 2015 | E143: 164969273 | F143: 1976353 | G143: 1958942 | H143: 1954917 | I143: 1958510 | J143: 1984160 | K143: 2027592 | L143: 2101404 | M143: 2176595 | N143: 2176434 | O143: 2124466 | P143: 2108474 | Q143: 2114468 | R143: 2096373 | S143: 2088018 | T143: 2119235 | U143: 2123333 | V143: 2108783 | W143: 2099277 | X143: 2097876 | Y143: 2104947 | Z143: 2136253 | AA143: 2165934 | AB143: 2209291 | AC143: 2267155 | AD143: 2300020 | AE143: 2320326 | AF143: 2259685 | AG143: 2215414 | AH143: 2195610 | AI143: 2203132 | AJ143: 2204408 | AK143: 2150564 | AL143: 2201008 | AM143: 2203696 | AN143: 2187749 | AO143: 2166971 | AP143: 2094437 | AQ143: 2040202 | AR143: 2036787 | AS143: 1965803 | AT143: 1995299 | AU143: 1943629 | AV143: 1996747 | AW143: 2078799 | AX143: 2225939 | AY143: 2179518 | AZ143: 2114743 | BA143: 2062601 | BB143: 2089911 | BC143: 2131740 | BD143: 2228424 | BE143: 2286698 | BF143: 2306909 | BG143: 2305264 | BH143: 2343089 | BI143: 2289361 | BJ143: 2268417 | BK143: 2256710 | BL143: 2237617 | BM143: 2158205 | BN143: 2119771 | BO143: 2059331 | BP143: 1993731 | BQ143: 1922057 | BR143: 1875312 | BS143: 1790699 | BT143: 1759516 | BU143: 1726443 | BV143: 1843170 | BW143: 1324349 | BX143: 1315731 | BY143: 1291253 | BZ143: 1337809 | CA143: 1154809 | CB143: 1068120 | CC143: 1000229 | CD143: 954360 | CE143: 911864 | CF143: 836718 | CG143: 799272 | CH143: 763023 | CI143: 683595 | CJ143: 659857 | CK143: 630364 | CL143: 603972 | CM143: 560613 | CN143: 513522 | CO143: 477131 | CP143: 429365 | CQ143: 382719 | CR143: 340070 | CS143: 292483 | CT143: 244234 | CU143: 200506 | CV143: 159213 | CW143: 120795 | CX143: 89765 | CY143: 65803 | CZ143: 47127 | DA143: 33470 | DB143: 62880
B144: SSA_2024 | C144: F | D144: 2016 | E144: 166292583 | F144: 1972062 | G144: 1982392 | H144: 1968699 | I144: 1965644 | J144: 1969243 | K144: 1995594 | L144: 2037090 | M144: 2108657 | N144: 2183250 | O144: 2182194 | P144: 2131233 | Q144: 2116258 | R144: 2123132 | S144: 2106299 | T144: 2098346 | U144: 2131102 | V144: 2134375 | W144: 2117980 | X144: 2109971 | Y144: 2110722 | Z144: 2119565 | AA144: 2152904 | AB144: 2183902 | AC144: 2228458 | AD144: 2288781 | AE144: 2322223 | AF144: 2342057 | AG144: 2280794 | AH144: 2234197 | AI144: 2212060 | AJ144: 2218145 | AK144: 2218259 | AL144: 2163797 | AM144: 2213720 | AN144: 2214150 | AO144: 2197790 | AP144: 2176439 | AQ144: 2102938 | AR144: 2048543 | AS144: 2044045 | AT144: 1972019 | AU144: 2001228 | AV144: 1948974 | AW144: 2001134 | AX144: 2082547 | AY144: 2229006 | AZ144: 2181814 | BA144: 2116555 | BB144: 2063701 | BC144: 2090462 | BD144: 2131283 | BE144: 2227254 | BF144: 2284950 | BG144: 2304296 | BH144: 2302405 | BI144: 2338664 | BJ144: 2283622 | BK144: 2263136 | BL144: 2251109 | BM144: 2231240 | BN144: 2151254 | BO144: 2112461 | BP144: 2051716 | BQ144: 1985202 | BR144: 1912812 | BS144: 1864112 | BT144: 1778436 | BU144: 1747000 | BV144: 1712063 | BW144: 1825560 | BX144: 1309214 | BY144: 1296760 | BZ144: 1269841 | CA144: 1313120 | CB144: 1130979 | CC144: 1043154 | CD144: 973925 | CE144: 926382 | CF144: 881563 | CG144: 805581 | CH144: 766397 | CI144: 727966 | CJ144: 648557 | CK144: 622093 | CL144: 590200 | CM144: 560937 | CN144: 516104 | CO144: 467881 | CP144: 429738 | CQ144: 381681 | CR144: 335130 | CS144: 292878 | CT144: 247393 | CU144: 202567 | CV144: 162866 | CW144: 126595 | CX144: 93970 | CY144: 68279 | CZ144: 48950 | DA144: 34289 | DB144: 64568
B145: SSA_2024 | C145: F | D145: 2017 | E145: 167483879 | F145: 1932776 | G145: 1977425 | H145: 1991861 | I145: 1979549 | J145: 1976930 | K145: 1980336 | L145: 2007151 | M145: 2046392 | N145: 2115626 | O145: 2189698 | P145: 2187736 | Q145: 2137801 | R145: 2123860 | S145: 2131459 | T145: 2115706 | U145: 2108169 | V145: 2142567 | W145: 2145028 | X145: 2126678 | Y145: 2120212 | Z145: 2123240 | AA145: 2133452 | AB145: 2168090 | AC145: 2200118 | AD145: 2246074 | AE145: 2308733 | AF145: 2342317 | AG145: 2360484 | AH145: 2297641 | AI145: 2248746 | AJ145: 2224409 | AK145: 2229199 | AL145: 2228258 | AM145: 2173335 | AN145: 2222778 | AO145: 2221124 | AP145: 2204590 | AQ145: 2182820 | AR145: 2108506 | AS145: 2054145 | AT145: 2048657 | AU145: 1975745 | AV145: 2004734 | AW145: 1952096 | AX145: 2003424 | AY145: 2084297 | AZ145: 2230119 | BA145: 2182336 | BB145: 2116734 | BC145: 2063241 | BD145: 2089447 | BE145: 2129306 | BF145: 2224643 | BG145: 2281821 | BH145: 2300309 | BI145: 2298153 | BJ145: 2332801 | BK145: 2276472 | BL145: 2256423 | BM145: 2244047 | BN145: 2223364 | BO145: 2142773 | BP145: 2103529 | BQ145: 2042401 | BR145: 1974953 | BS145: 1901908 | BT145: 1851252 | BU145: 1764374 | BV145: 1732512 | BW145: 1695671 | BX145: 1805688 | BY145: 1292306 | BZ145: 1275898 | CA145: 1246451 | CB145: 1286225 | CC145: 1105080 | CD145: 1016148 | CE145: 945579 | CF145: 896310 | CG145: 849182 | CH145: 772431 | CI145: 731453 | CJ145: 690833 | CK145: 611607 | CL145: 582536 | CM145: 548447 | CN145: 516549 | CO145: 470586 | CP145: 421692 | CQ145: 382332 | CR145: 334605 | CS145: 288907 | CT145: 247947 | CU145: 205441 | CV145: 164782 | CW145: 129642 | CX145: 98558 | CY145: 71521 | CZ145: 50797 | DA145: 35616 | DB145: 66169
B146: SSA_2024 | C146: F | D146: 2018 | E146: 168583998 | F146: 1907986 | G146: 1936995 | H146: 1985725 | I146: 2001953 | J146: 1990443 | K146: 1988049 | L146: 1991034 | M146: 2018009 | N146: 2054951 | O146: 2121889 | P146: 2195377 | Q146: 2192511 | R146: 2143563 | S146: 2130422 | T146: 2138458 | U146: 2123622 | V146: 2116407 | W146: 2152309 | X146: 2153728 | Y146: 2133319 | Z146: 2128338 | AA146: 2133046 | AB146: 2143769 | AC146: 2179231 | AD146: 2212360 | AE146: 2259496 | AF146: 2323691 | AG146: 2356762 | AH146: 2372803 | AI146: 2309186 | AJ146: 2259699 | AK146: 2234870 | AL146: 2240072 | AM146: 2238890 | AN146: 2183493 | AO146: 2232519 | AP146: 2228905 | AQ146: 2212240 | AR146: 2190016 | AS146: 2114886 | AT146: 2060568 | AU146: 2054122 | AV146: 1980276 | AW146: 2008978 | AX146: 1955864 | AY146: 2006242 | AZ146: 2086416 | BA146: 2231457 | BB146: 2182934 | BC146: 2116865 | BD146: 2062658 | BE146: 2088276 | BF146: 2127097 | BG146: 2221645 | BH146: 2278125 | BI146: 2295594 | BJ146: 2293053 | BK146: 2325959 | BL146: 2268225 | BM146: 2248492 | BN146: 2235668 | BO146: 2214050 | BP146: 2132756 | BQ146: 2092967 | BR146: 2031442 | BS146: 1963119 | BT146: 1889439 | BU146: 1836684 | BV146: 1748503 | BW146: 1716118 | BX146: 1677281 | BY146: 1783451 | BZ146: 1273502 | CA146: 1252984 | CB146: 1220898 | CC146: 1256946 | CD146: 1076998 | CE146: 986997 | CF146: 915094 | CG146: 864055 | CH146: 814614 | CI146: 737150 | CJ146: 694361 | CK146: 651593 | CL146: 572741 | CM146: 541140 | CN146: 505028 | CO146: 470742 | CP146: 423987 | CQ146: 374923 | CR146: 334991 | CS146: 288397 | CT146: 244451 | CU146: 205679 | CV146: 166893 | CW146: 130957 | CX146: 100730 | CY146: 74863 | CZ146: 53103 | DA146: 36876 | DB146: 67959
B147: SSA_2024 | C147: F | D147: 2019 | E147: 169472116 | F147: 1867019 | G147: 1910272 | H147: 1943277 | I147: 1993724 | J147: 2011114 | K147: 2000157 | L147: 1997703 | M147: 1999945 | N147: 2026994 | O147: 2061660 | P147: 2126166 | Q147: 2198931 | R147: 2195088 | S147: 2146967 | T147: 2134419 | U147: 2142723 | V147: 2128633 | W147: 2121560 | X147: 2158711 | Y147: 2158889 | Z147: 2136282 | AA147: 2132293 | AB147: 2138008 | AC147: 2148935 | AD147: 2185194 | AE147: 2219373 | AF147: 2267171 | AG147: 2332259 | AH147: 2364590 | AI147: 2379340 | AJ147: 2316053 | AK147: 2266221 | AL147: 2241024 | AM147: 2246717 | AN147: 2245435 | AO147: 2189853 | AP147: 2238622 | AQ147: 2233198 | AR147: 2216577 | AS147: 2194109 | AT147: 2118395 | AU147: 2064348 | AV147: 2057046 | AW147: 1982414 | AX147: 2010862 | AY147: 1957367 | AZ147: 2006819 | BA147: 2086374 | BB147: 2230663 | BC147: 2181505 | BD147: 2115027 | BE147: 2060199 | BF147: 2085249 | BG147: 2123044 | BH147: 2216761 | BI147: 2272543 | BJ147: 2289029 | BK147: 2286127 | BL147: 2317266 | BM147: 2258149 | BN147: 2238690 | BO147: 2225387 | BP147: 2202797 | BQ147: 2120788 | BR147: 2080482 | BS147: 2018719 | BT147: 1949631 | BU147: 1875215 | BV147: 1820230 | BW147: 1730714 | BX147: 1697693 | BY147: 1656743 | BZ147: 1758677 | CA147: 1252719 | CB147: 1228074 | CC147: 1193346 | CD147: 1225486 | CE147: 1046908 | CF147: 955865 | CG147: 882649 | CH147: 829824 | CI147: 778096 | CJ147: 700013 | CK147: 655468 | CL147: 610735 | CM147: 532571 | CN147: 498661 | CO147: 460800 | CP147: 424504 | CQ147: 377453 | CR147: 328846 | CS147: 289142 | CT147: 244553 | CU147: 203230 | CV147: 167415 | CW147: 132862 | CX147: 101887 | CY147: 76570 | CZ147: 55623 | DA147: 38582 | DB147: 70075
B148: SSA_2024 | C148: F | D148: 2020 | E148: 170247148 | F148: 1844766 | G148: 1867768 | H148: 1914386 | I148: 1949235 | J148: 2000868 | K148: 2019209 | L148: 2008608 | M148: 2005887 | N148: 2007407 | O148: 2034703 | P148: 2067107 | Q148: 2129209 | R148: 2201502 | S148: 2196875 | T148: 2149702 | U148: 2137942 | V148: 2146718 | W148: 2133504 | X148: 2126565 | Y148: 2164984 | Z148: 2164002 | AA148: 2139081 | AB148: 2135910 | AC148: 2142786 | AD148: 2154227 | AE148: 2191539 | AF148: 2226852 | AG148: 2275341 | AH148: 2341551 | AI148: 2372622 | AJ148: 2385605 | AK148: 2322906 | AL148: 2272892 | AM148: 2247420 | AN148: 2253696 | AO148: 2252417 | AP148: 2196777 | AQ148: 2245407 | AR148: 2238248 | AS148: 2221691 | AT148: 2198977 | AU148: 2122694 | AV148: 2068927 | AW148: 2060823 | AX148: 1985408 | AY148: 2013619 | AZ148: 1959708 | BA148: 2008115 | BB148: 2086899 | BC148: 2230291 | BD148: 2180329 | BE148: 2113375 | BF148: 2057864 | BG148: 2082236 | BH148: 2118796 | BI148: 2211372 | BJ148: 2266162 | BK148: 2281426 | BL148: 2277926 | BM148: 2306978 | BN148: 2246212 | BO148: 2226774 | BP148: 2212749 | BQ148: 2188950 | BR148: 2106138 | BS148: 2065262 | BT148: 2003204 | BU148: 1933171 | BV148: 1857850 | BW148: 1800462 | BX148: 1709420 | BY148: 1675389 | BZ148: 1631988 | CA148: 1728922 | CB148: 1228062 | CC148: 1199142 | CD148: 1161597 | CE148: 1189292 | CF148: 1012324 | CG148: 920170 | CH148: 845550 | CI148: 790815 | CJ148: 736818 | CK148: 658297 | CL148: 611935 | CM148: 565251 | CN148: 488168 | CO148: 452120 | CP148: 412828 | CQ148: 375000 | CR148: 328397 | CS148: 281179 | CT148: 242665 | CU148: 201110 | CV148: 163476 | CW148: 131601 | CX148: 101992 | CY148: 76343 | CZ148: 56004 | DA148: 39733 | DB148: 70948
B149: SSA_2024 | C149: F | D149: 2021 | E149: 170942447 | F149: 1767777 | G149: 1842631 | H149: 1870806 | I149: 1918889 | J149: 1955243 | K149: 2007981 | L149: 2027226 | M149: 2016950 | N149: 2014107 | O149: 2015182 | P149: 2042926 | Q149: 2073239 | R149: 2133449 | S149: 2205806 | T149: 2200603 | U149: 2154483 | V149: 2143637 | W149: 2152984 | X149: 2140574 | Y149: 2133845 | Z149: 2173817 | AA149: 2171786 | AB149: 2144644 | AC149: 2142683 | AD149: 2151197 | AE149: 2163485 | AF149: 2202055 | AG149: 2238476 | AH149: 2287619 | AI149: 2354910 | AJ149: 2384537 | AK149: 2395605 | AL149: 2333238 | AM149: 2282814 | AN149: 2256900 | AO149: 2263583 | AP149: 2262125 | AQ149: 2206199 | AR149: 2254551 | AS149: 2245468 | AT149: 2228782 | AU149: 2205642 | AV149: 2128581 | AW149: 2074833 | AX149: 2065715 | AY149: 1989311 | AZ149: 2017108 | BA149: 1962538 | BB149: 2009622 | BC149: 2087315 | BD149: 2229477 | BE149: 2178502 | BF149: 2110927 | BG149: 2054586 | BH149: 2078089 | BI149: 2113166 | BJ149: 2204259 | BK149: 2257721 | BL149: 2271460 | BM149: 2267090 | BN149: 2293750 | BO149: 2231132 | BP149: 2211447 | BQ149: 2196452 | BR149: 2171283 | BS149: 2087696 | BT149: 2046151 | BU149: 1983572 | BV149: 1912403 | BW149: 1836083 | BX149: 1776190 | BY149: 1683576 | BZ149: 1648279 | CA149: 1602189 | CB149: 1693360 | CC149: 1198930 | CD149: 1165503 | CE149: 1124928 | CF149: 1147678 | CG149: 972805 | CH149: 879715 | CI149: 803876 | CJ149: 747371 | CK149: 691360 | CL149: 612798 | CM149: 564799 | CN149: 516446 | CO149: 441039 | CP149: 403347 | CQ149: 363248 | CR149: 324661 | CS149: 279405 | CT149: 234522 | CU149: 198127 | CV149: 160486 | CW149: 127330 | CX149: 100010 | CY149: 75597 | CZ149: 55178 | DA149: 39480 | DB149: 71491
B150: SSA_2024 | C150: F | D150: 2022 | E150: 171753419 | F150: 1814797 | G150: 1761477 | H150: 1847978 | I150: 1877706 | J150: 1926065 | K150: 1963248 | L150: 2016759 | M150: 2036467 | N150: 2026460 | O150: 2023767 | P150: 2024859 | Q150: 2053175 | R150: 2082760 | S150: 2142400 | T150: 2215175 | U150: 2209876 | V150: 2164530 | W150: 2154505 | X150: 2164210 | Y150: 2152287 | Z150: 2146450 | AA150: 2188015 | AB150: 2185770 | AC150: 2157815 | AD150: 2156833 | AE150: 2166351 | AF150: 2178881 | AG150: 2217722 | AH150: 2253963 | AI150: 2302502 | AJ150: 2369321 | AK150: 2397579 | AL150: 2407329 | AM150: 2344400 | AN150: 2293108 | AO150: 2266263 | AP150: 2272442 | AQ150: 2270353 | AR150: 2213804 | AS150: 2261555 | AT150: 2250986 | AU150: 2233810 | AV150: 2210126 | AW150: 2132340 | AX150: 2078164 | AY150: 2068082 | AZ150: 1990756 | BA150: 2017912 | BB150: 1962685 | BC150: 2008733 | BD150: 2085398 | BE150: 2226372 | BF150: 2174616 | BG150: 2106407 | BH150: 2049209 | BI150: 2071685 | BJ150: 2105359 | BK150: 2194808 | BL150: 2246715 | BM150: 2258848 | BN150: 2253270 | BO150: 2277836 | BP150: 2213706 | BQ150: 2193099 | BR150: 2176822 | BS150: 2150268 | BT150: 2065967 | BU150: 2023426 | BV150: 1959963 | BW150: 1887596 | BX150: 1810160 | BY150: 1748202 | BZ150: 1654151 | CA150: 1616854 | CB150: 1568059 | CC150: 1652988 | CD150: 1166557 | CE150: 1129452 | CF150: 1086067 | CG150: 1103760 | CH150: 931435 | CI150: 837900 | CJ150: 761230 | CK150: 703128 | CL150: 645536 | CM150: 567284 | CN150: 517928 | CO150: 468429 | CP150: 395178 | CQ150: 356499 | CR150: 316350 | CS150: 277936 | CT150: 234848 | CU150: 193083 | CV150: 159600 | CW150: 126342 | CX150: 97858 | CY150: 75026 | CZ150: 55364 | DA150: 39443 | DB150: 72851
